Workbook

Sheet RESUMO MODULO TOTAL
A1: ='RESUMO MODULO MINIMO'!A1 -> EXECUÇÃO DE SERVIÇOS DE IMPLANTAÇÃO DE PAVIMENTAÇÃO EM BLOCO DE CONCRETO INTERTRAVADO, EM VIAS URBANAS E RURAIS DE MUNÍCIPIOS DIVERSOS INSERIDOS NA ÁREA DE ATUAÇÃO DA CODEVASF, NO ESTADO DO GOIÁS
A5: =A1 -> EXECUÇÃO DE SERVIÇOS DE IMPLANTAÇÃO DE PAVIMENTAÇÃO EM BLOCO DE CONCRETO INTERTRAVADO, EM VIAS URBANAS E RURAIS DE MUNÍCIPIOS DIVERSOS INSERIDOS NA ÁREA DE ATUAÇÃO DA CODEVASF, NO ESTADO DO GOIÁS
A6: ITEM | B6: ORIGEM COMPOSIÇÃO | C6: CÓDIGO COMPOSIÇÃO | D6: DISCRIMINAÇÃO DOS SERVIÇOS | H6: BDI %: | I6: =BDI!H24 -> 0.2158381752 | J6: R$/m² | K6: =L33/I15 -> 113.9693039 | L6: PERCENTUAL DE RISCO
H7: Total de m² | I7: Encargos Sociais: | J7: Horista | K7: Mensalista | L7: 0.0119
H8: =I15 -> 546000 | J8: ='ENC. SOCIAIS'!$E$51 -> 114.7 | K8: ='ENC. SOCIAIS'!$F$51 -> 72.66
H9: UND | I9: QTDE. | J9: PREÇO UNITÁRIO COM BDI COM RISCO 0 (R$) | K9: PREÇO TOTAL COM BDI RISCO 0 (R$) | L9: PREÇO TOTAL COM CONTINGÊNCIA (R$) | R9: TOTAL
D10: MOBILIZAÇÃO | O10: Índices de reajustamento
A11: 1 | B11: Codevasf | C11: Composição Própria | D11: Implantação da Obra | H11: Módulo | I11: ='MC MODULO'!N17 -> 78 | J11: ='SERVIÇOS PRELI'!I15 -> 1297.59 | K11: =ROUND(I11*J11,2) -> 101212.02 | L11: =K11*(1+$L$7) -> 102416.443 | M11: INCC | N11: =SUMIF(M11:M32,"INCC",L11:L32) -> 2175863.404 | O11: =N11/$N$15 -> 0.03496641354 | P11: INCC | R11: 102035.7
A12: 2 | B12: Codevasf | C12: Composição Própria | D12: Administração da Obra | H12: Módulo | I12: ='MC MODULO'!N22 -> 78 | J12: ='SERVIÇOS PRELI'!$I$24 -> 7789.63 | K12: =ROUND(I12*J12,2) -> 607591.14 | L12: =K12*(1+$L$7) -> 614821.4746 | M12: INCC | N12: =SUMIF(M11:M32,"T",L11:L32) -> 667416.8592 | O12: =N12/$N$15 -> 0.01072547746 | P12: T | R12: 612534.78
A13: 3 | B13: Codevasf | C13: Composição Própria | D13: Placa de Obra em Chapa de Aço Galvanizado | H13: und | I13: =I12 -> 78 | J13: ='SERVIÇOS PRELI'!I19 -> 503.48 | K13: 39271.44 | L13: =K13*(1+$L$7) -> 39738.77014 | M13: INCC | N13: =SUMIF(M11:M32,"P",L11:L32) -> 55420185.45 | O13: =N13/$N$15 -> 0.8906097317 | P13: P | R13: 39590.46
D14: TERRAPLENAGEM | N14: =SUMIF(M11:M32,"D",L11:L32) -> 3963774.204 | O14: =N14/$N$15 -> 0.06369837726 | P14: D
A15: 4 | B15: Codevasf | C15: Composição Própria | D15: serviços topográficos para pavimentação, inclusive notas de serviços, acompanhamento e greide | H15: m² | I15: ='MC MODULO'!P29 -> 546000 | J15: ='CPU CODEVASF'!H90 -> 0.41 | K15: =ROUND(I15*J15,2) -> 223860 | L15: =K15*(1+$L$7) -> 226523.934 | M15: T | N15: =SUM(N11:N14) -> 62227239.92 | O15: =SUM(O11:O14) -> 1 | R15: 229320
A16: 5 | B16: SICRO | C16: 5502114 | D16: Escavação, carga e transporte de material de 1ª categoria - DMT de 1.000 a 1.200 m - caminho de serviço em leito natural - com escavadeira e caminhão basculante de 14 m³ | H16: m³ | I16: ='MC MODULO'!R34 -> 54600 | J16: =CPU_SICRO!I215 -> 6.44 | K16: 351624 | L16: 355808.3256 | M16: T | R16: 354900
A17: 6 | B17: SICRO | C17: 4413942 | D17: Espalhamento de material em bota-fora | H17: m³ | I17: ='MC MODULO'!R41 -> 54600 | J17: =CPU_SICRO!I247 -> 1.54 | K17: 84084 | L17: 85084.5996 | M17: T | R17: 84630
D18: PAVIMENTAÇÃO
A19: 7 | B19: SINAPI | C19: 92394 | D19: Execução de Pavimento em Piso Intertravado, com Bloco Sextavado de 25 X 25 cm, espessura 8 cm. AF_12/2015 | H19: m² | I19: ='MC MODULO'!P49 -> 546000 | J19: ='CPU SINAPI'!$G$5 -> 77.78 | K19: =ROUND(I19*J19,2) -> 42467880 | L19: =K19*(1+$L$7) -> 42973247.77 | M19: P | R19: 42811860
A20: 8 | B20: SICRO | C20: 4011276 | D20: Base ou sub-base de brita graduada com brita comercial | H20: m³ | I20: ='MC MODULO'!R55 -> 81900 | J20: =CPU_SICRO!$I$35 -> 143.79 | K20: 11776401 | L20: 11916540.17 | M20: P | R20: 11872224
A21: 9 | B21: SICRO | C21: 4011209 | D21: Regularização do subleito | H21: m² | I21: ='MC MODULO'!R61 -> 546000 | J21: =CPU_SICRO!$I$71 -> 0.96 | K21: 524160 | L21: 530397.504 | M21: P | R21: 529620
D22: SINALIZAÇÃO
A23: 10 | B23: SICRO | C23: 5213440 | D23: Fornecimento e implantação de placa de regulamentação em aço D = 0,60 m - película retrorrefletiva tipo I + SI | H23: und | I23: ='MC MODULO'!R69 -> 39 | J23: =CPU_SICRO!$I$106 -> 236.41 | K23: =ROUND(I23*J23,2) -> 9219.99 | L23: =K23*(1+$L$7) -> 9329.707881 | M23: INCC | R23: 9294.87
A24: 11 | B24: SICRO | C24: 5213863 | D24: Suporte metálico galvanizado para placa de advertência ou regulamentação - lado ou diâmetro de 0,60 m - fornecimento e implantação | H24: und | I24: ='MC MODULO'!R75 -> 39 | J24: =CPU_SICRO!$I$148 -> 334.21 | K24: 13034.19 | L24: 13189.29686 | M24: INCC | R24: 13140.27
D25: DRENAGEM
A26: 12 | B26: SICRO | C26: 2003373 | D26: Meio fio de concreto - MFC 03 - areia e brita comerciais - fôrma de madeira | H26: m | I26: ='MC MODULO'!R82 -> 156000 | J26: =CPU_SICRO!I180 -> 25.11 | K26: =ROUND(I26*J26,2) -> 3917160 | L26: =K26*(1+$L$7) -> 3963774.204 | M26: D | R26: 3949920
D27: LIMPEZA GERAL
A28: 13 | B28: Codevasf | C28: Composição Própria | D28: Limpeza Geral | H28: m² | I28: ='MC MODULO'!R90 -> 546000 | J28: ='CPU CODEVASF'!$H$66 -> 0.95 | K28: =ROUND(I28*J28,2) -> 518700 | L28: =K28*(1+$L$7) -> 524872.53 | M28: INCC | R28: 524160
D29: SERVIÇOS COMPLEMENTARES
A30: 14 | B30: Codevasf | C30: Composição Própria | D30: Conserto de quebra no ramal na rua sem pavimento com fornecimento de material hidráulico | H30: m | I30: ='MC MODULO'!R97 -> 7800 | J30: ='CPU CODEVASF'!H77 -> 17.44 | K30: =ROUND(I30*J30,2) -> 136032 | L30: =K30*(1+$L$7) -> 137650.7808 | M30: INCC | R30: 137124
D31: PROJETO EXECUTIVO
A32: 15 | B32: Codevasf | C32: Composição Própria | D32: Projeto Executivo | H32: km | I32: ='MC MODULO'!R104 -> 78 | J32: ='Projeto Executivo'!G33 -> 9297.619865 | K32: =ROUND(I32*J32,2) -> 725214.35 | L32: =K32*(1+$L$7) -> 733844.4008 | M32: INCC | R32: 725214.35
A33: VALOR TOTAL DO SRP | K33: =SUM(K11:K32) -> 61495444.13 | L33: =SUM(L11:L32) -> 62227239.92 | R33: =SUM(R11:R32) -> 61995568.43

Sheet CRONOGRAMA TOTAL
A2: ='RESUMO MODULO MINIMO'!$A$5 -> EXECUÇÃO DE SERVIÇOS DE IMPLANTAÇÃO DE PAVIMENTAÇÃO EM BLOCO DE CONCRETO INTERTRAVADO, EM VIAS URBANAS E RURAIS DE MUNÍCIPIOS DIVERSOS INSERIDOS NA ÁREA DE ATUAÇÃO DA CODEVASF, NO ESTADO DO GOIÁS
A3: Cronograma Físico e Financeiro
A4: Item | B4: Descrição | C4: Total Por Etapa | D4: 30 DIAS | E4: 60 DIAS | F4: 90 DIAS | G4: 120 DIAS | H4: 150 DIAS | I4: 180 DIAS | J4: 210 DIAS | K4: 240 DIAS | L4: 270 DIAS | M4: 300 DIAS | N4: 330 DIAS | O4: 360 DIAS
B5: ='RESUMO MODULO MINIMO'!$D$10 -> MOBILIZAÇÃO | C5: 1 | E5: =$C$5/11 -> 0.09090909091 | F5: 0.09090909091 | G5: 0.09090909091 | H5: 0.09090909091 | I5: 0.09090909091 | J5: 0.09090909091 | K5: 0.09090909091 | L5: 0.09090909091 | M5: 0.09090909091 | N5: 0.09090909091 | O5: 0.09090909091 | Q5: =SUM(D5:O5) -> 1
C6: =SUM('RESUMO MODULO TOTAL'!L11:L13) -> 756976.6877 | E6: =$C$6*E5 -> 68816.06252 | F6: 68816.06252 | G6: 68816.06252 | H6: 68816.06252 | I6: 68816.06252 | J6: 68816.06252 | K6: 68816.06252 | L6: 68816.06252 | M6: 68816.06252 | N6: 68816.06252 | O6: 68816.06252 | Q6: =SUM(D6:O6) -> 756976.6877 | R6: =C6 -> 756976.6877 | S6: =Q6-R6 -> 0
B7: ='RESUMO MODULO MINIMO'!D14 -> TERRAPLENAGEM | C7: 1 | F7: =$C$9/10 -> 0.1 | G7: 0.1 | H7: 0.1 | I7: 0.1 | J7: 0.1 | K7: 0.1 | L7: 0.1 | M7: 0.1 | N7: 0.1 | O7: 0.1 | Q7: =SUM(F7:O7) -> 1
C8: =SUM('RESUMO MODULO TOTAL'!L15:L17) -> 667416.8592 | F8: =$C$8*F7 -> 66741.68592 | G8: 66741.68592 | H8: 66741.68592 | I8: 66741.68592 | J8: 66741.68592 | K8: 66741.68592 | L8: 66741.68592 | M8: 66741.68592 | N8: 66741.68592 | O8: 66741.68592 | Q8: 667416.8592 | R8: =C8 -> 667416.8592 | S8: =Q8-R8 -> 0
B9: ='RESUMO MODULO MINIMO'!$D$18 -> PAVIMENTAÇÃO | C9: 1 | F9: =$C$9/10 -> 0.1 | G9: 0.1 | H9: 0.1 | I9: 0.1 | J9: 0.1 | K9: 0.1 | L9: 0.1 | M9: 0.1 | N9: 0.1 | O9: 0.1 | Q9: 1
C10: =SUM('RESUMO MODULO TOTAL'!L19:L21) -> 55420185.45 | F10: =$C$10*F9 -> 5542018.545 | G10: 5542018.545 | H10: 5542018.545 | I10: 5542018.545 | J10: 5542018.545 | K10: 5542018.545 | L10: 5542018.545 | M10: 5542018.545 | N10: 5542018.545 | O10: 5542018.545 | Q10: 55420185.45 | R10: =C10 -> 55420185.45 | S10: =Q10-R10 -> 0
B11: ='RESUMO MODULO MINIMO'!$D$22 -> SINALIZAÇÃO | C11: 1 | F11: =$C$11/10 -> 0.1 | G11: =(100%-$F$11)/9 -> 0.1 | H11: 0.1 | I11: 0.1 | J11: 0.1 | K11: 0.1 | L11: 0.1 | M11: 0.1 | N11: 0.1 | O11: 0.1 | Q11: 1
C12: =SUM('RESUMO MODULO TOTAL'!L23:L24) -> 22519.00474 | F12: =$C$12*F11 -> 2251.900474 | G12: 2251.900474 | H12: 2251.900474 | I12: 2251.900474 | J12: 2251.900474 | K12: 2251.900474 | L12: 2251.900474 | M12: 2251.900474 | N12: 2251.900474 | O12: 2251.900474 | Q12: 22519.00474 | R12: =C12 -> 22519.00474 | S12: =Q12-R12 -> 0
B13: ='RESUMO MODULO MINIMO'!$D$25 -> DRENAGEM | C13: 1 | F13: =$C$13/10 -> 0.1 | G13: 0.1 | H13: 0.1 | I13: 0.1 | J13: 0.1 | K13: 0.1 | L13: 0.1 | M13: 0.1 | N13: 0.1 | O13: 0.1 | Q13: =SUM(D13:O13) -> 1
C14: =SUM('RESUMO MODULO TOTAL'!L26) -> 3963774.204 | F14: =$C$14*F13 -> 396377.4204 | G14: 396377.4204 | H14: 396377.4204 | I14: 396377.4204 | J14: 396377.4204 | K14: 396377.4204 | L14: 396377.4204 | M14: 396377.4204 | N14: 396377.4204 | O14: 396377.4204 | Q14: 3963774.204 | R14: =C14 -> 3963774.204 | S14: =Q14-R14 -> 0
B15: ='RESUMO MODULO MINIMO'!$D$27 -> LIMPEZA GERAL | C15: 1 | F15: =100%/10 -> 0.1 | G15: 0.1 | H15: 0.1 | I15: 0.1 | J15: 0.1 | K15: 0.1 | L15: 0.1 | M15: 0.1 | N15: 0.1 | O15: 0.1 | Q15: 1
C16: ='RESUMO MODULO TOTAL'!L28 -> 524872.53 | F16: =$C$16*F15 -> 52487.253 | G16: 52487.253 | H16: 52487.253 | I16: 52487.253 | J16: 52487.253 | K16: 52487.253 | L16: 52487.253 | M16: 52487.253 | N16: 52487.253 | O16: 52487.253 | Q16: 524872.53 | R16: =C16 -> 524872.53 | S16: =Q16-R16 -> 0
B17: ='RESUMO MODULO MINIMO'!D29 -> SERVIÇOS COMPLEMENTARES | C17: 1 | F17: =100%/10 -> 0.1 | G17: 0.1 | H17: 0.1 | I17: 0.1 | J17: 0.1 | K17: 0.1 | L17: 0.1 | M17: 0.1 | N17: 0.1 | O17: 0.1 | Q17: 1
C18: ='RESUMO MODULO TOTAL'!L30 -> 137650.7808 | F18: =$C$18*F17 -> 13765.07808 | G18: 13765.07808 | H18: 13765.07808 | I18: 13765.07808 | J18: 13765.07808 | K18: 13765.07808 | L18: 13765.07808 | M18: 13765.07808 | N18: 13765.07808 | O18: 13765.07808 | Q18: 137650.7808 | R18: =C18 -> 137650.7808 | S18: =Q18-R18 -> 0
B19: ='RESUMO MODULO MINIMO'!$D$31 -> PROJETO EXECUTIVO | C19: 1 | D19: 0.5 | E19: 0.5 | Q19: 1
C20: ='RESUMO MODULO TOTAL'!L32 -> 733844.4008 | D20: =$C$20*D19 -> 366922.2004 | E20: =$C$20*E19 -> 366922.2004 | Q20: 733844.4008 | R20: =C20 -> 733844.4008 | S20: =Q20-R20 -> 0
A22: Porcentagem | D22: =SUM(D6+D8+D10+D12+D14+D16+D18+D20)/$O$27 -> 0.005896488433 | E22: 0.007002371686 | F22: 0.09871011399 | G22: 0.09871011399 | H22: 0.09871011399 | I22: 0.09871011399 | J22: 0.09871011399 | K22: 0.09871011399 | L22: 0.09871011399 | M22: 0.09871011399 | N22: 0.09871011399 | O22: 0.09871011399
A23: Custo | D23: =$O$27*D22 -> 366922.2004 | E23: 435738.2629 | F23: 6142457.945 | G23: 6142457.945 | H23: 6142457.945 | I23: 6142457.945 | J23: 6142457.945 | K23: 6142457.945 | L23: 6142457.945 | M23: 6142457.945 | N23: 6142457.945 | O23: 6142457.945
A24: Porcentagem Acumulado | D24: =D22 -> 0.005896488433 | E24: =D24+E22 -> 0.01289886012 | F24: 0.1116089741 | G24: 0.2103190881 | H24: 0.3090292021 | I24: 0.4077393161 | J24: 0.5064494301 | K24: 0.605159544 | L24: 0.703869658 | M24: 0.802579772 | N24: 0.901289886 | O24: 1
A25: Custo Acumulado | D25: =D23 -> 366922.2004 | E25: =D25+E23 -> 802660.4633 | F25: 6945118.408 | G25: 13087576.35 | H25: 19230034.3 | I25: 25372492.24 | J25: 31514950.19 | K25: 37657408.13 | L25: 43799866.08 | M25: 49942324.02 | N25: 56084781.97 | O25: 62227239.92
D27: Total Geral | N27: R$ | O27: ='RESUMO MODULO TOTAL'!L33 -> 62227239.92

Sheet RESUMO MODULO MINIMO
A1: EXECUÇÃO DE SERVIÇOS DE IMPLANTAÇÃO DE PAVIMENTAÇÃO EM BLOCO DE CONCRETO INTERTRAVADO, EM VIAS URBANAS E RURAIS DE MUNÍCIPIOS DIVERSOS INSERIDOS NA ÁREA DE ATUAÇÃO DA CODEVASF, NO ESTADO DO GOIÁS | J1: Extensão (km)
C4: MÓDULO MÍNIMO
A5: =A1 -> EXECUÇÃO DE SERVIÇOS DE IMPLANTAÇÃO DE PAVIMENTAÇÃO EM BLOCO DE CONCRETO INTERTRAVADO, EM VIAS URBANAS E RURAIS DE MUNÍCIPIOS DIVERSOS INSERIDOS NA ÁREA DE ATUAÇÃO DA CODEVASF, NO ESTADO DO GOIÁS
A6: ITEM | B6: ORIGEM COMPOSIÇÃO | C6: CÓDIGO COMPOSIÇÃO | D6: DISCRIMINAÇÃO DOS SERVIÇOS | H6: BDI %: | I6: =BDI!H24 -> 0.2158381752 | J6: R$/m² | K6: =L33/I15 -> 113.9693053 | L6: PERCENTUAL DE RISCO
H7: Total de m² | I7: Encargos Sociais: | J7: Horista | K7: Mensalista | L7: 0.0119
H8: =I15 -> 7000 | J8: ='ENC. SOCIAIS'!$E$51 -> 114.7 | K8: ='ENC. SOCIAIS'!$F$51 -> 72.66
H9: UND | I9: QTDE. | J9: PREÇO UNITÁRIO COM BDI COM RISCO 0 (R$) | K9: PREÇO TOTAL COM BDI RISCO 0 (R$) | L9: PREÇO TOTAL COM CONTINGÊNCIA (R$) | N9: TOTAL
D10: MOBILIZAÇÃO
A11: 1 | B11: Codevasf | C11: Composição Própria | D11: Implantação da Obra | H11: Módulo | I11: ='MC MODULO'!$D$17 -> 1 | J11: ='SERVIÇOS PRELI'!I15 -> 1297.59 | K11: =ROUND(I11*J11,2) -> 1297.59 | L11: =K11*(1+$L$7) -> 1313.031321 | N11: 1308.15
A12: 2 | B12: Codevasf | C12: Composição Própria | D12: Administração da Obra | H12: Módulo | I12: ='MC MODULO'!$D$22 -> 1 | J12: ='SERVIÇOS PRELI'!$I$24 -> 7789.63 | K12: =ROUND(I12*J12,2) -> 7789.63 | L12: =K12*(1+$L$7) -> 7882.326597 | N12: 7853.01
A13: 3 | B13: Codevasf | C13: Composição Própria | D13: Placa de Obra em Chapa de Aço Galvanizado | H13: und | I13: 1 | J13: ='SERVIÇOS PRELI'!I19 -> 503.48 | K13: 503.48 | L13: 509.471412 | N13: 507.57
D14: TERRAPLENAGEM
A15: 4 | B15: Codevasf | C15: Composição Própria | D15: serviços topográficos para pavimentação, inclusive notas de serviços, acompanhamento e greide | H15: m² | I15: ='MC MODULO'!F29 -> 7000 | J15: ='CPU CODEVASF'!H90 -> 0.41 | K15: =ROUND(I15*J15,2) -> 2870 | L15: =K15*(1+$L$7) -> 2904.153 | N15: 2940
A16: 5 | B16: SICRO | C16: 5502114 | D16: Escavação, carga e transporte de material de 1ª categoria - DMT de 1.000 a 1.200 m - caminho de serviço em leito natural - com escavadeira e caminhão basculante de 14 m³ | H16: m³ | I16: ='MC MODULO'!$H$34 -> 700 | J16: =CPU_SICRO!I215 -> 6.44 | K16: 4508 | L16: 4561.6452 | N16: 4550
A17: 6 | B17: SICRO | C17: 4413942 | D17: Espalhamento de material em bota-fora | H17: m³ | I17: ='MC MODULO'!$H$41 -> 700 | J17: =CPU_SICRO!I247 -> 1.54 | K17: 1078 | L17: 1090.8282 | N17: 1085
D18: PAVIMENTAÇÃO
A19: 7 | B19: SINAPI | C19: 92394 | D19: Execução de Pavimento em Piso Intertravado, com Bloco Sextavado de 25 X 25 cm, espessura 8 cm. AF_12/2015 | H19: m² | I19: ='MC MODULO'!$F$49 -> 7000 | J19: ='CPU SINAPI'!$G$5 -> 77.78 | K19: =ROUND(I19*J19,2) -> 544460 | L19: =K19*(1+$L$7) -> 550939.074 | N19: 548870
A20: 8 | B20: SICRO | C20: 4011276 | D20: Base ou sub-base de brita graduada com brita comercial | H20: m³ | I20: ='MC MODULO'!$H$55 -> 1050 | J20: =CPU_SICRO!$I$35 -> 143.79 | K20: 150979.5 | L20: 152776.156 | N20: 152208
A21: 9 | B21: SICRO | C21: 4011209 | D21: Regularização do subleito | H21: m² | I21: ='MC MODULO'!$H$61 -> 7000 | J21: =CPU_SICRO!$I$71 -> 0.96 | K21: 6720 | L21: 6799.968 | N21: 6790
D22: SINALIZAÇÃO
A23: 10 | B23: SICRO | C23: 5213440 | D23: Fornecimento e implantação de placa de regulamentação em aço D = 0,60 m - película retrorrefletiva tipo I + SI | H23: und | I23: ='MC MODULO'!$H$69 -> 0.5 | J23: =CPU_SICRO!$I$106 -> 236.41 | K23: =ROUND(I23*J23,2) -> 118.21 | L23: =K23*(1+$L$7) -> 119.616699 | N23: 119.17
A24: 11 | B24: SICRO | C24: 5213863 | D24: Suporte metálico galvanizado para placa de advertência ou regulamentação - lado ou diâmetro de 0,60 m - fornecimento e implantação | H24: und | I24: ='MC MODULO'!$H$75 -> 0.5 | J24: =CPU_SICRO!$I$148 -> 334.21 | K24: 167.11 | L24: 169.098609 | N24: 168.47
D25: DRENAGEM
A26: 12 | B26: SICRO | C26: 2003373 | D26: Meio fio de concreto - MFC 03 - areia e brita comerciais - fôrma de madeira | H26: m | I26: ='MC MODULO'!$H$82 -> 2000 | J26: =CPU_SICRO!I180 -> 25.11 | K26: =ROUND(I26*J26,2) -> 50220 | L26: =K26*(1+$L$7) -> 50817.618 | N26: 50640
D27: LIMPEZA GERAL
A28: 13 | B28: Codevasf | C28: Composição Própria | D28: Limpeza Geral | H28: m² | I28: ='MC MODULO'!$H$90 -> 7000 | J28: ='CPU CODEVASF'!$H$66 -> 0.95 | K28: =ROUND(I28*J28,2) -> 6650 | L28: =K28*(1+$L$7) -> 6729.135 | N28: 6720
D29: SERVIÇOS COMPLEMENTARES
A30: 14 | B30: Codevasf | C30: Composição Própria | D30: Conserto de quebra no ramal na rua sem pavimento com fornecimento de material hidráulico | H30: m | I30: ='MC MODULO'!H97 -> 100 | J30: ='CPU CODEVASF'!H77 -> 17.44 | K30: =ROUND(I30*J30,2) -> 1744 | L30: =K30*(1+$L$7) -> 1764.7536 | N30: 1758
D31: PROJETO EXECUTIVO
A32: 15 | B32: Codevasf | C32: Composição Própria | D32: Projeto Executivo | H32: km | I32: ='MC MODULO'!$H$104 -> 1 | J32: ='Projeto Executivo'!G33 -> 9297.619865 | K32: =ROUND(I32*J32,2) -> 9297.62 | L32: =K32*(1+$L$7) -> 9408.261678 | N32: 9297.62
A33: VALOR TOTAL DO SRP | K33: =SUM(K11:K32) -> 788403.14 | L33: =SUM(L11:L32) -> 797785.1374 | N33: =SUM(N11:N32) -> 794814.99

Sheet Curva ABC (hidden)
B2: Item | C2: Código | D2: Descrição | E2: % individual | F2: % acumul. | G2: Classe | I2: % individual | J2: % acumul.
B3: 7 | C3: 92394 | D3: Execução de Pavimento em Piso Intertravado, com Bloco Sextavado de 25 X 25 cm, espessura 8 cm. AF_12/2015 | E3: ='RESUMO MODULO TOTAL'!L19/'RESUMO MODULO TOTAL'!L33 -> 0.6905857922 | F3: =E3 -> 0.6905857922 | G3: A | I3: 0.6026 | J3: 0.6026
B4: 8 | C4: 4011276 | D4: Base ou sub-base de brita graduada com brita comercial | E4: ='RESUMO MODULO TOTAL'!L20/'RESUMO MODULO TOTAL'!L33 -> 0.1915003813 | F4: =F3+E4 -> 0.8820861735 | G4: B | I4: 0.2681 | J4: 0.8708
B5: 12 | C5: 2003373 | D5: Meio fio de concreto - MFC 03 - areia e brita comerciais - fôrma de madeira | E5: ='RESUMO MODULO TOTAL'!L26/'RESUMO MODULO TOTAL'!L33 -> 0.06369837726 | F5: =F4+E5 -> 0.9457845508 | G5: B | I5: 0.0718 | J5: 0.9426
B6: 15 | C6: Comp. Própria | D6: Projeto Executivo | E6: ='RESUMO MODULO TOTAL'!L32/'RESUMO MODULO TOTAL'!L33 -> 0.01179297687 | F6: 0.9575775276 | G6: C | I6: 0.0151 | J6: 0.9577
B7: 2 | C7: Comp. Própria | D7: Administração da Obra | E7: ='RESUMO MODULO TOTAL'!L12/'RESUMO MODULO TOTAL'!L33 -> 0.009880262654 | F7: 0.9674577903 | G7: C | I7: 0.011 | J7: 0.9688
B8: 13 | C8: Comp. Própria | D8: Limpeza Geral | E8: ='RESUMO MODULO TOTAL'!L28/'RESUMO MODULO TOTAL'!L33 -> 0.008434771182 | F8: 0.9758925615 | G8: C | I8: 0.0089 | J8: 0.9777
B9: 9 | C9: 4011209 | D9: Regularização do subleito | E9: ='RESUMO MODULO TOTAL'!L21/'RESUMO MODULO TOTAL'!L33 -> 0.008523558248 | F9: 0.9844161197 | G9: C | I9: 0.0079 | J9: 0.9856
B10: 5 | C10: 5502114 | D10: Escavação, carga e transporte de material de 1ª categoria - DMT de 1.000 a 1.200 m - caminho de serviço em leito natural - com escavadeira e caminhão basculante de 14 m³ | E10: ='RESUMO MODULO TOTAL'!L16/'RESUMO MODULO TOTAL'!L33 -> 0.005717886991 | F10: 0.9901340067 | G10: C | I10: 0.005 | J10: 0.9906
B11: 4 | C11: Comp. Própria | D11: Serviços topográficos para pavimentação, inclusive notas de serviços, acompanhamento e greide | E11: ='RESUMO MODULO TOTAL'!L15/'RESUMO MODULO TOTAL'!L33 -> 0.003640269668 | F11: 0.9937742764 | G11: C | I11: 0.0039 | J11: 0.9945
B12: 14 | C12: Comp. Própria | D12: Conserto de quebra no ramal na rua sem pavimento com fornecimento de material hidráulico | E12: ='RESUMO MODULO TOTAL'!L30/'RESUMO MODULO TOTAL'!L33 -> 0.002212066307 | F12: 0.9959863427 | G12: C | I12: 0.0022 | J12: 0.9966
B13: 1 | C13: Comp. Própria | D13: Implantação da Obra | E13: ='RESUMO MODULO TOTAL'!L11/'RESUMO MODULO TOTAL'!L33 -> 0.001645845825 | F13: 0.9976321885 | G13: C | I13: 0.0016 | J13: 0.9982
B14: 6 | C14: 4413942 | D14: Espalhamento de material em bota-fora | E14: ='RESUMO MODULO TOTAL'!L17/'RESUMO MODULO TOTAL'!L33 -> 0.001367320802 | F14: 0.9989995093 | G14: C | I14: 0.0015 | J14: 0.9997
B15: 11 | C15: 5213851 | D15: Fornecimento e implantação de suporte metálico galvanizado para placa de regulamentação - D = 0,60 m | E15: ='RESUMO MODULO TOTAL'!L24/'RESUMO MODULO TOTAL'!L33 -> 0.0002119537501 | F15: 0.999211463 | G15: C | I15: 0.0002 | J15: 0.9999
B16: 10 | C16: 5213440 | D16: Fornecimento e implantação de placa de regulamentação em aço D = 0,60 m - película retrorrefletiva tipo I + SI | E16: ='RESUMO MODULO TOTAL'!L23/'RESUMO MODULO TOTAL'!L33 -> 0.0001499296433 | F16: 0.9993613927 | G16: C | I16: 0.0001 | J16: 1
B17: 3 | C17: Comp. Própria | D17: Placa de Obra em Chapa de Aço Galvanizado | E17: ='RESUMO MODULO TOTAL'!L13/'RESUMO MODULO TOTAL'!L33 -> 0.0006386073075 | F17: 1 | G17: C | I17: 0 | J17: 1

Sheet CRONOGRAMA MINIMO
A2: MÓDULO MÍNIMO
A3: ='RESUMO MODULO MINIMO'!$A$5 -> EXECUÇÃO DE SERVIÇOS DE IMPLANTAÇÃO DE PAVIMENTAÇÃO EM BLOCO DE CONCRETO INTERTRAVADO, EM VIAS URBANAS E RURAIS DE MUNÍCIPIOS DIVERSOS INSERIDOS NA ÁREA DE ATUAÇÃO DA CODEVASF, NO ESTADO DO GOIÁS
A4: Cronograma Físico e Financeiro
A5: Item | B5: Descrição | C5: Total Por Etapa | D5: 30 DIAS | E5: 60 DIAS | F5: 90 DIAS | G5: 120 DIAS | H5: 150 DIAS | I5: 180 DIAS | J5: 210 DIAS | K5: 240 DIAS | L5: 270 DIAS | M5: 300 DIAS | N5: 330 DIAS | O5: 360 DIAS
B6: ='RESUMO MODULO MINIMO'!$D$10 -> MOBILIZAÇÃO | C6: 1 | E6: =$C$6/11 -> 0.09090909091 | F6: 0.09090909091 | G6: 0.09090909091 | H6: 0.09090909091 | I6: 0.09090909091 | J6: 0.09090909091 | K6: 0.09090909091 | L6: 0.09090909091 | M6: 0.09090909091 | N6: 0.09090909091 | O6: 0.09090909091 | Q6: =SUM(D6:O6) -> 1
C7: =SUM('RESUMO MODULO MINIMO'!L11:L13) -> 9704.82933 | E7: =$C$7*E6 -> 882.2572118 | F7: 882.2572118 | G7: 882.2572118 | H7: 882.2572118 | I7: 882.2572118 | J7: 882.2572118 | K7: 882.2572118 | L7: 882.2572118 | M7: 882.2572118 | N7: 882.2572118 | O7: 882.2572118 | Q7: =SUM(D7:O7) -> 9704.82933 | R7: =C7 -> 9704.82933 | S7: =Q7-R7 -> 0
B8: ='RESUMO MODULO MINIMO'!D14 -> TERRAPLENAGEM | C8: 1 | F8: =$C$10/10 -> 0.1 | G8: 0.1 | H8: 0.1 | I8: 0.1 | J8: 0.1 | K8: 0.1 | L8: 0.1 | M8: 0.1 | N8: 0.1 | O8: 0.1 | Q8: =SUM(F8:O8) -> 1
C9: =SUM('RESUMO MODULO MINIMO'!L15:L17) -> 8556.6264 | F9: =$C$9*F8 -> 855.66264 | G9: 855.66264 | H9: 855.66264 | I9: 855.66264 | J9: 855.66264 | K9: 855.66264 | L9: 855.66264 | M9: 855.66264 | N9: 855.66264 | O9: 855.66264 | Q9: 8556.6264 | R9: =C9 -> 8556.6264 | S9: =Q9-R9 -> 0
B10: ='RESUMO MODULO MINIMO'!$D$18 -> PAVIMENTAÇÃO | C10: 1 | F10: =$C$10/10 -> 0.1 | G10: 0.1 | H10: 0.1 | I10: 0.1 | J10: 0.1 | K10: 0.1 | L10: 0.1 | M10: 0.1 | N10: 0.1 | O10: 0.1 | Q10: 1
C11: =SUM('RESUMO MODULO MINIMO'!L19:L21) -> 710515.1981 | F11: =$C$11*F10 -> 71051.51981 | G11: 71051.51981 | H11: 71051.51981 | I11: 71051.51981 | J11: 71051.51981 | K11: 71051.51981 | L11: 71051.51981 | M11: 71051.51981 | N11: 71051.51981 | O11: 71051.51981 | Q11: 710515.1981 | R11: =C11 -> 710515.1981 | S11: =Q11-R11 -> 0
B12: ='RESUMO MODULO MINIMO'!$D$22 -> SINALIZAÇÃO | C12: 1 | F12: =$C$12/10 -> 0.1 | G12: =(100%-$F$12)/9 -> 0.1 | H12: 0.1 | I12: 0.1 | J12: 0.1 | K12: 0.1 | L12: 0.1 | M12: 0.1 | N12: 0.1 | O12: 0.1 | Q12: 1
C13: =SUM('RESUMO MODULO MINIMO'!L23:L24) -> 288.715308 | F13: =$C$13*F12 -> 28.8715308 | G13: 28.8715308 | H13: 28.8715308 | I13: 28.8715308 | J13: 28.8715308 | K13: 28.8715308 | L13: 28.8715308 | M13: 28.8715308 | N13: 28.8715308 | O13: 28.8715308 | Q13: 288.715308 | R13: =C13 -> 288.715308 | S13: =Q13-R13 -> 0
B14: ='RESUMO MODULO MINIMO'!$D$25 -> DRENAGEM | C14: 1 | F14: =$C$14/10 -> 0.1 | G14: 0.1 | H14: 0.1 | I14: 0.1 | J14: 0.1 | K14: 0.1 | L14: 0.1 | M14: 0.1 | N14: 0.1 | O14: 0.1 | Q14: =SUM(D14:O14) -> 1
C15: =SUM('RESUMO MODULO MINIMO'!L26) -> 50817.618 | F15: =$C$15*F14 -> 5081.7618 | G15: 5081.7618 | H15: 5081.7618 | I15: 5081.7618 | J15: 5081.7618 | K15: 5081.7618 | L15: 5081.7618 | M15: 5081.7618 | N15: 5081.7618 | O15: 5081.7618 | Q15: 50817.618 | R15: =C15 -> 50817.618 | S15: =Q15-R15 -> 0
B16: ='RESUMO MODULO MINIMO'!$D$27 -> LIMPEZA GERAL | C16: 1 | F16: =100%/10 -> 0.1 | G16: 0.1 | H16: 0.1 | I16: 0.1 | J16: 0.1 | K16: 0.1 | L16: 0.1 | M16: 0.1 | N16: 0.1 | O16: 0.1 | Q16: 1
C17: =SUM('RESUMO MODULO MINIMO'!L28) -> 6729.135 | F17: =$C$17*F16 -> 672.9135 | G17: 672.9135 | H17: 672.9135 | I17: 672.9135 | J17: 672.9135 | K17: 672.9135 | L17: 672.9135 | M17: 672.9135 | N17: 672.9135 | O17: 672.9135 | Q17: 6729.135 | R17: =C17 -> 6729.135 | S17: =Q17-R17 -> 0
B18: ='RESUMO MODULO MINIMO'!D29 -> SERVIÇOS COMPLEMENTARES | C18: 1 | F18: =100%/10 -> 0.1 | G18: 0.1 | H18: 0.1 | I18: 0.1 | J18: 0.1 | K18: 0.1 | L18: 0.1 | M18: 0.1 | N18: 0.1 | O18: 0.1 | Q18: 1
C19: ='RESUMO MODULO MINIMO'!L30 -> 1764.7536 | F19: =$C$19*F18 -> 176.47536 | G19: 176.47536 | H19: 176.47536 | I19: 176.47536 | J19: 176.47536 | K19: 176.47536 | L19: 176.47536 | M19: 176.47536 | N19: 176.47536 | O19: 176.47536 | Q19: 1764.7536 | R19: =C19 -> 1764.7536 | S19: =Q19-R19 -> 0
B20: ='RESUMO MODULO MINIMO'!$D$31 -> PROJETO EXECUTIVO | C20: 1 | D20: 0.5 | E20: 0.5 | Q20: 1
C21: ='RESUMO MODULO MINIMO'!L32 -> 9408.261678 | D21: =$C$21*D20 -> 4704.130839 | E21: =$C$21*E20 -> 4704.130839 | Q21: 9408.261678 | R21: =C21 -> 9408.261678 | S21: =Q21-R21 -> 0
A23: Porcentagem | D23: =SUM(D7+D9+D11+D13+D15+D17+D19+D21)/$O$28 -> 0.005896488439 | E23: 0.007002371678 | F23: 0.09871011399 | G23: 0.09871011399 | H23: 0.09871011399 | I23: 0.09871011399 | J23: 0.09871011399 | K23: 0.09871011399 | L23: 0.09871011399 | M23: 0.09871011399 | N23: 0.09871011399 | O23: 0.09871011399
A24: Custo | D24: =$O$28*D23 -> 4704.130839 | E24: 5586.388051 | F24: 78749.46185 | G24: 78749.46185 | H24: 78749.46185 | I24: 78749.46185 | J24: 78749.46185 | K24: 78749.46185 | L24: 78749.46185 | M24: 78749.46185 | N24: 78749.46185 | O24: 78749.46185
A25: Porcentagem Acumulado | D25: =D23 -> 0.005896488439 | E25: =D25+E23 -> 0.01289886012 | F25: 0.1116089741 | G25: 0.2103190881 | H25: 0.3090292021 | I25: 0.4077393161 | J25: 0.5064494301 | K25: 0.605159544 | L25: 0.703869658 | M25: 0.802579772 | N25: 0.901289886 | O25: 1
A26: Custo Acumulado | D26: =D24 -> 4704.130839 | E26: =D26+E24 -> 10290.51889 | F26: 89039.98074 | G26: 167789.4426 | H26: 246538.9044 | I26: 325288.3663 | J26: 404037.8281 | K26: 482787.29 | L26: 561536.7518 | M26: 640286.2137 | N26: 719035.6755 | O26: 797785.1374
D28: Total Geral | N28: R$ | O28: ='RESUMO MODULO MINIMO'!L33 -> 797785.1374

Sheet Mob e Desmob
A5: ='RESUMO MODULO MINIMO'!A1 -> EXECUÇÃO DE SERVIÇOS DE IMPLANTAÇÃO DE PAVIMENTAÇÃO EM BLOCO DE CONCRETO INTERTRAVADO, EM VIAS URBANAS E RURAIS DE MUNÍCIPIOS DIVERSOS INSERIDOS NA ÁREA DE ATUAÇÃO DA CODEVASF, NO ESTADO DO GOIÁS
A7: MEMÓRIA DE CÁLCULO DOS MOMENTOS DE TRANSPORTE PARA MOBILIZAÇÃO E DESMOBILIZAÇÃO
A10: Deslocamento:
C11: Distancia méd. (Km) | D11: Qtde. | E11: Total (Km)
A12: Mobilização (entre os trechos de serviço): | C12: 1 | D12: 1 | E12: =C12*D12 -> 1
A13: Desmobilização (entre os trechos de serviço): | C13: 1 | D13: 1 | E13: =C13*D13 -> 1
A14: Mobilização inter-municipal (entre as localidades): | C14: 10 | D14: 1 | E14: =C14*D14 -> 10
A15: Desmobilização inter-municipal (entre as localidades): | C15: 10 | D15: 1 | E15: =C15*D15 -> 10
A16: Mobilização - Total (km) | E16: =E12+E14 -> 11
A17: Desmobilização - Total (km) | E17: =E13+E15 -> 11
A20: Peso das máquinas:
E21: Pá carregadeira | H21: 10.1 | I21: ton
E22: Motoniveladora | H22: 12.47 | I22: ton
E23: Trator de pneus | H23: 2.8 | I23: ton
E24: Rolo Compactador | H24: 15.33 | I24: ton
E25: Grade de disco | H25: 1 | I25: ton
E26: Usina misturadora | H26: 20 | I26: ton
E28: Total | H28: =ROUND(SUM(H20:H27),2) -> 61.7 | I28: ton
A30: Portanto: | B30: Portanto
A31: Mobilização - Total (km) | E31: =E16*H28 -> 678.7 | F31: t x km
A32: Desmobilização - Total (km) | E32: =E17*H28 -> 678.7 | F32: t x km
A39: E9010 | B39: Balança plataforma digital com mesa de 75 x 75 cm com capacidade de 500 kg | I39: Caminhão carroceria
A40: E9064 | B40: Transportador manual gerica com capacidade de 180 l | I40: Caminhão carroceria
A41: E9066 | B41: Grupo gerador - 13/14 kVA | I41: Caminhão carroceria
A42: E9071 | B42: Transportador manual carrinho de mão com capacidade de 80 l | I42: Caminhão carroceria
A43: E9076 | B43: Equipamento de pintura com cabine de 7,00 kW e estufa de 80.000 kCal para pintura eletrostática | I43: Caminhão carroceria
A44: E9519 | B44: Betoneira com motor a gasolina com capacidade de 600 l - 10 kW | I44: Caminhão carroceria
A45: E9521 | B45: Grupo gerador - 2,5/3 kVA | I45: Caminhão carroceria
A46: E9568 | B46: Furadeira de impacto de 12,5 mm - 0,8 kW | I46: Caminhão carroceria
A47: E9622 | B47: Máquina de bancada universal para corte de chapa - 1,5 kW | I47: Caminhão carroceria
A48: E9623 | B48: Máquina de bancada guilhotina - 4 kW | I48: Caminhão carroceria
A49: E9675 | B49: Martelete perfurador/rompedor elétrico - 1,5 kW | I49: Caminhão carroceria
A50: E9779 | B50: Grupo gerador - 100/110 kVA | I50: Caminhão carroceria
A53: E9506 | B53: Caminhão basculante com capacidade de 6 m³ - 136 kW | I53: Rodoviario
A54: E9571 | B54: Caminhão tanque com capacidade de 10.000 l - 188 kW | I54: Rodoviario
A55: E9579 | B55: Caminhão basculante com capacidade de 10 m³ - 188 kW | I55: Rodoviario
A56: E9592 | B56: Caminhão carroceria com capacidade de 15 t - 188 kW | I56: Rodoviario
A57: E9644 | B57: Caminhão demarcador de faixas com sistema de pintura a frio - 28 kW/115 kW | I57: Rodoviario
A58: E9686 | B58: Caminhão carroceria com guindauto com capacidade de 20 t.m - 136 kW | I58: Rodoviario
A59: E9687 | B59: Caminhão carroceria com capacidade de 5 t - 115 kW | I59: Rodoviario
A60: E9514 | B60: Distribuidor de agregados autopropelido - 130 kW | I60: Rodoviario
A62: E9511 | B62: Carregadeira de pneus com capacidade de 3,40 m³ - 195 kW | I62: TRANSPORTE COM CAVALO MECÂNICO COM SEMIRREBOQUE COM CAPACIDADE DE 30 T - RODOVIA PAVIMENTADA
A63: E9524 | B63: Motoniveladora - 93 kW | I63: TRANSPORTE COM CAVALO MECÂNICO COM SEMIRREBOQUE COM CAPACIDADE DE 30 T - RODOVIA PAVIMENTADA
A64: E9530 | B64: Rolo compactador liso autopropelido vibratório de 11 t - 97 kW | I64: TRANSPORTE COM CAVALO MECÂNICO COM SEMIRREBOQUE COM CAPACIDADE DE 30 T - RODOVIA PAVIMENTADA
A65: E9577 | B65: Trator agrícola - 77 kW | I65: TRANSPORTE COM CAVALO MECÂNICO COM SEMIRREBOQUE COM CAPACIDADE DE 30 T - RODOVIA PAVIMENTADA
A66: E9685 | B66: Rolo compactador pé de carneiro vibratório autopropelido de 11,6 t - 82 kW | I66: TRANSPORTE COM CAVALO MECÂNICO COM SEMIRREBOQUE COM CAPACIDADE DE 30 T - RODOVIA PAVIMENTADA
A67: E9762 | B67: Rolo compactador de pneus autopropelido de 27 t - 85 kW | I67: TRANSPORTE COM CAVALO MECÂNICO COM SEMIRREBOQUE COM CAPACIDADE DE 30 T - RODOVIA PAVIMENTADA
A68: E9518 | B68: Grade de 24 discos rebocável de 24" | I68: TRANSPORTE COM CAVALO MECÂNICO COM SEMIRREBOQUE COM CAPACIDADE DE 30 T - RODOVIA PAVIMENTADA
A69: E9615 | B69: Usina misturadora de solos com capacidade de 300 t/h | I69: TRANSPORTE COM CAVALO MECÂNICO COM SEMIRREBOQUE COM CAPACIDADE DE 30 T - RODOVIA PAVIMENTADA

Sheet SERVIÇOS PRELI
A4: ='RESUMO MODULO MINIMO'!A1 -> EXECUÇÃO DE SERVIÇOS DE IMPLANTAÇÃO DE PAVIMENTAÇÃO EM BLOCO DE CONCRETO INTERTRAVADO, EM VIAS URBANAS E RURAIS DE MUNÍCIPIOS DIVERSOS INSERIDOS NA ÁREA DE ATUAÇÃO DA CODEVASF, NO ESTADO DO GOIÁS
G5: BDI %: | H5: =BDI!H24 -> 0.2158381752
F6: Encargos Sociais: | H6: Horista | I6: Mensalista
H7: ='ENC. SOCIAIS'!$E$51/100 -> 1.147 | I7: ='ENC. SOCIAIS'!$F$51/100 -> 0.7266
A8: Anexo VI - Planilhas Orçamentárias
A10: ITEM | B10: CPUs | C10: Fonte | D10: Cód. | E10: DISCRIMINAÇÃO DOS SERVIÇOS | F10: UND | G10: QTDE. | H10: PREÇO UNITÁRIO (R$) | I10: TOTAL
A12: 1 | B12: IMPLANTAÇÃO DA OBRA
A13: 1.1 | B13: SERVIÇOS INICIAIS
A14: 1.1.1 | B14: CPU-02 | C14: CODEVASF | D14: 72840 | E14: MOBILIZAÇÃO E DESMOBILIZAÇÃO | F14: und | G14: 1 | H14: ='CPU CODEVASF'!$H$36 -> 1297.59 | I14: =ROUND(G14*H14,2) -> 1297.59
F15: ITEM 1: | H15: TOTAL | I15: =SUM(I14:I14) -> 1297.59
A17: 2 | B17: PLACA DE OBRA EM CHAPA DE ACO GALVANIZADO
A18: 2.1 | B18: CPU-01 | C18: CODEVASF | D18: 74209/1 | E18: PLACA DE OBRA EM CHAPA DE ACO GALVANIZADO | F18: und | G18: 1 | H18: ='CPU CODEVASF'!$H$24 -> 503.48 | I18: =ROUND(G18*H18,2) -> 503.48
F19: ITEM 1: | H19: TOTAL | I19: =SUM(I18:I18) -> 503.48
A21: 3 | B21: ADMINISTRAÇÃO DA OBRA
A22: 3.1 | B22: CPU-03 | C22: CODEVASF | D22: 2.1 | E22: ADMINISTRAÇÃO LOCAL | F22: % | G22: 1 | H22: ='CPU CODEVASF'!$H$49 -> 7477.31 | I22: =ROUND(G22*H22,2) -> 7477.31
A23: 3.2 | B23: CPU-04 | C23: CODEVASF | D23: 2.2 | E23: CANTEIRO DE OBRAS E ALMOXARIFADO | F23: MÊS | G23: 1 | H23: ='CPU CODEVASF'!$H$58 -> 312.32 | I23: =ROUND(G23*H23,2) -> 312.32
F24: ITEM 2: | H24: TOTAL | I24: =SUM(I22:I23) -> 7789.63

Sheet Projeto Executivo
A2: COMPOSIÇÃO PREÇO PROJETO EXECUTIVO (POR KM)
A4: DISCRIMINAÇÃO | F4: Pr. Unit. | G4: Pr. Total
A6: A· EQUIPE TÉCNICA | G6: =G7+G10 -> 2961.8
B7: A. 1 - Pessoal de Nível Superior | C7: Unidade | D7: Quantitativo | E7: Código SINAPI | G7: =G8+G9 -> 2392.8
B8: Engenheiro | C8: h | D8: 20 | E8: 34780 | F8: =VLOOKUP(E8,'INSUMOS SINAPI'!$A$8:$E$5212,5,0) -> 110,57 | G8: =F8*D8 -> 2211.4
B9: Topógrafo | C9: h | D9: 10 | E9: 7592 | F9: =VLOOKUP(E9,'INSUMOS SINAPI'!$A$8:$E$5212,5,0) -> 18,14 | G9: =F9*D9 -> 181.4
B10: A.2 - Pessoal de Nível Técnico e Aux. | G10: =G11+G12 -> 569
B11: Auxiliar de topógrafo | C11: h | D11: 10 | E11: 244 | F11: =VLOOKUP(E11,'INSUMOS SINAPI'!$A$8:$E$5212,5,0) -> 7,40 | G11: =F11*D11 -> 74
B12: Cadista/calculista | C12: h | D12: 20 | E12: 2359 | F12: =VLOOKUP(E12,'INSUMOS SINAPI'!$A$8:$E$5214,5,0) -> 24,75 | G12: =F12*D12 -> 495
A13: B - ENCARGOS SOCIAIS | G13: =G14 -> 0
B14: Taxas 72,23 % do item "A" | G14: 0
A15: C - DESPESAS GERAIS | G15: =G16+G17+G18+G19 -> 477.514
B16: C.1 - MATERIAIS DE CONSUMO | C16: Estimativa % como referência de equipe técnica com encargos sociais | D16: 0.03 | F16: =G6+G13 -> 2961.8 | G16: =F16*D16 -> 88.854
B17: C.2 - VEÍCULOS | C17: H | D17: 8 | E17: 92144 | F17: =VLOOKUP(E17,'COMP Sint. Sinapi'!$A$7:$E$6977,5,0) -> 42,88 | G17: =F17*D17 -> 343.04
B18: C.3 - COMBUSTÍVEL | C18: L | D18: 2 | E18: 4221 | F18: =VLOOKUP(E18,'INSUMOS SINAPI'!$A$8:$E$5182,5,0) -> 4,81 | G18: =F18*D18 -> 9.62
B19: C.3 - EQUIPAMENTOS, INSTALAÇÕES E MOBILIÁRIO | C19: H | D19: 16 | E19: 7247 | F19: =VLOOKUP(E19,'INSUMOS SINAPI'!$A$8:$E$5182,5,0) -> 2,25 | G19: =F19*D19 -> 36
A20: D - ENSAIOS | G20: =G21 -> 3440.42
B21: D.1 - ENSAIOS | C21: Composição Ensaios | F21: =[6]Ensaios!F20 -> 3440.42 | G21: =F21 -> 3440.42
A22: I - SOMA (A+B+C+D) | G22: =G6+G13+G15+G20 -> 6879.734
A23: II - CUSTOS ADMINISTRATIVOS (22,57 %) | D23: =[6]BDI!K22 -> 0.2257294717 | G23: =D23*G22 -> 1552.958722
A24: II - SOMA | G24: =SUM(G22:G23) -> 8432.692722
A25: VI - RELATÓRIOS | C25: Estimativa % como referência soma II | D25: 0.025 | F25: =G24 -> 8432.692722 | G25: =F25*D25 -> 210.817318
A26: V - DESPESAS DIRETAS (3,74%) | C26: Percentual VI | D26: 0.0374 | F26: =D26*G25 -> 7.884567695 | G26: =F26 -> 7.884567695
A27: VI - REMUNERAÇÃO DA EMPRESA
B28: Taxas 4,75% | D28: 0.0475 | F28: =D28*F26 -> 0.3745169655 | G28: =F28 -> 0.3745169655
A29: VII - CONTINGÊNCIAS | D29: 0.0577 | F29: =F25 -> 8432.692722 | G29: =F29*D29 -> 486.56637
A30: VIII - SOMA | G30: =SUM(G25:G29) -> 705.6427727
A31: IX - CUSTOS ADMINISTRATIVOS (22,57 %) | D31: =D23 -> 0.2257294717 | G31: =D31*G30 -> 159.2843703
A32: III - SOMA | G32: =SUM(G30:G31) -> 864.9271431
A33: X - TOTAL | G33: =G32+G24 -> 9297.619865

Sheet Ensaios
A1: SERVIÇOS GEOLÓGICOS/GEOTÉCNICOS
A3: NOME DA EMPRESA:
A5: PROJETO: | D5: CONTRATANTE: | F5: EDITAL:
D6: Codevasf (Sede)
A7: Cod. | B7: Insumos | C7: Uni | D7: Qde | E7: Preço Unitário (PU) | F7: Preço Total (PT)
A8: GT01 | B8: Ensaios em solos Umidade Natural | C8: un | D8: 1 | E8: 30 | F8: =ROUND(E8*D8,2) -> 30
A9: GT02 | B9: Densidade in situ - Frasco de Areia (in Situ) | C9: un | D9: 1 | E9: 45.03 | F9: 45.03
A10: GT03 | B10: Ensaios em solos Limite de Liquidez | C10: un | D10: 1 | E10: 50.04 | F10: 50.04
A11: GT04 | B11: Ensaios em solos Limite de Plasticidade | C11: un | D11: 1 | E11: 45.03 | F11: 45.03
A12: GT05 | B12: Granulometria por Peneiramento | C12: un | D12: 1 | E12: 80.06 | F12: 80.06
A13: GT06 | B13: Granulometria Completa (peneiramento e sedimentação) | C13: un | D13: 1 | E13: 80.06 | F13: 80.06
A14: GT07 | B14: Massa Específica Real dos Grãos | C14: un | D14: 1 | E14: 35.03 | F14: 35.03
A15: GT08 | B15: Compactação Proctor Normal | C15: un | D15: 2 | E15: 87.7 | F15: 175.4
A16: GT09 | B16: Abrasão "Los Angeles" | C16: un | D16: 1 | E16: 225 | F16: 225
A17: GT10 | B17: Índice de Suporte Califórnia (ISC/CBR) | C17: un | D17: 5 | E17: 166.4 | F17: 832
A18: GT11 | B18: Equivalente de Areia | C18: un | D18: 1 | E18: 50 | F18: 50
A19: GT12 | B19: Ensaio de Expansão | C19: un | D19: 1 | E19: 72.56 | F19: 72.56
A20: TOTAL SERVIÇOS GEOTÉCNICOS | F20: =SUM(F8:F19) -> 1720.21
A21: NOME DO INFORMANTE: | E21: QUALIFICAÇÃO:
A23: ASSINATURA: | E23: DATA:

Sheet CPU CODEVASF
A4: ='RESUMO MODULO MINIMO'!A1 -> EXECUÇÃO DE SERVIÇOS DE IMPLANTAÇÃO DE PAVIMENTAÇÃO EM BLOCO DE CONCRETO INTERTRAVADO, EM VIAS URBANAS E RURAIS DE MUNÍCIPIOS DIVERSOS INSERIDOS NA ÁREA DE ATUAÇÃO DA CODEVASF, NO ESTADO DO GOIÁS
F5: BDI %: | G5: =BDI!H24 -> 0.2158381752
E6: Encargos Sociais: | G6: Horista | H6: Mensalista
G7: ='ENC. SOCIAIS'!E51/100 -> 1.147 | H7: ='ENC. SOCIAIS'!F51/100 -> 0.7266
A8: COMPOSIÇÕES DE CUSTO UNITARIO
A9: CPU-01 | B9: CODEVASF | C9: 74209/1 | D9: PLACA DE OBRA EM CHAPA DE ACO GALVANIZADO | E9: M2 | F9: COEF. | G9: PRECO UNITÁRIO (R$) | H9: TOTAL (R$)
A11: INS. SINAPI | B11: SINAPI | C11: 5075 | D11: PREGO 18X30. | E11: kg | F11: 0.11 | G11: =VLOOKUP($C11,'INSUMOS SINAPI'!$A$8:$E$5286,5,0) -> 18,82 | H11: =ROUND(F11*G11,2) -> 2.07
A12: INS. SINAPI | B12: SINAPI | C12: 4491 | D12: PECA DE MADEIRA NATIVA / REGIONAL 7,5 X 7,5CM (3X3) NAO APARELHADA (P/FORMA) | E12: m | F12: 4 | G12: =VLOOKUP($C12,'INSUMOS SINAPI'!$A$8:$E$5286,5,0) -> 8,14 | H12: =ROUND(F12*G12,2) -> 32.56
A13: INS. SINAPI | B13: SINAPI | C13: 4417 | D13: PECA DE MADEIRA DE LEI *2,5 X 7,5* CM (1" X 3"), NÃO APARELHADA, (P/TELHADO) | E13: m | F13: 1 | G13: =VLOOKUP($C13,'INSUMOS SINAPI'!$A$8:$E$5286,5,0) -> 7,45 | H13: 7.45
A14: INS. SINAPI | B14: SINAPI | C14: 4813 | D14: PLACA DE OBRA (PARA CONSTRUCAO CIVIL) EM CHAPA GALVANIZADA *Nº 22*, DE *2,0 X 1,125* M | E14: m² | F14: 1 | G14: =VLOOKUP($C14,'INSUMOS SINAPI'!$A$8:$E$5286,5,0) -> 315,00 | H14: 315
A15: INS. SINAPI | B15: SINAPI | C15: 370 | D15: AREIA MÉDIA | E15: m³ | F15: 0.0049 | G15: =VLOOKUP($C15,'INSUMOS SINAPI'!$A$8:$E$5286,5,0) -> 124,95 | H15: 0.61
A16: INS. SINAPI | B16: SINAPI | C16: 1379 | D16: CIMENTO PORTLAND COMPOSTO CP II-32 | E16: kg | F16: 1.5 | G16: =VLOOKUP($C16,'INSUMOS SINAPI'!$A$8:$E$5286,5,0) -> 0,55 | H16: 0.83
A17: INS. SINAPI | B17: SINAPI | C17: 4718 | D17: PEDRA BRITADA Nº 2 | E17: m³ | F17: 0.0098 | G17: =VLOOKUP($C17,'INSUMOS SINAPI'!$A$8:$E$5286,5,0) -> 73,91 | H17: 0.72
A18: COMP. SINAPI | B18: SINAPI | C18: 87445 | D18: BETONEIRA CAPACIDADE NOMINAL 400 L, CAPACIDADE DE MISTURA 310 L, MOTOR A DIESEL POTÊNCIA 5,0 HP, SEM CARREGADOR MECANICO (LOCACAO) | E18: h | F18: 0.0065 | G18: =VLOOKUP($C18,'COMP Sint. Sinapi'!$A$7:$E$6679,5,0) -> 4,28 | H18: 0.03
A19: COMP. SINAPI | B19: SINAPI | C19: 88262 | D19: CARPINTEIRO DE FORMAS COM ENCARGOS COMPLEMENTARES | E19: h | F19: 1 | G19: =VLOOKUP($C19,'COMP Sint. Sinapi'!$A$7:$E$101460,5,0) -> 22,76 | H19: 22.76
A20: COMP. SINAPI | B20: SINAPI | C20: 88316 | D20: SERVENTE COM ENCARGOS COMPLEMENTARES | E20: h | F20: 2.06 | G20: =VLOOKUP($C20,'COMP Sint. Sinapi'!$A$7:$E$101460,5,0) -> 15,57 | H20: 32.07
E21: Sub total: | H21: =SUM(H11:H20) -> 414.1
F22: BDI | G22: =BDI!H24 -> 0.2158381752 | H22: =ROUND(H21*G22,2) -> 89.38
G23: Total Serviços: | H23: =H21+H22 -> 503.48
E24: =A9 -> CPU-01 | F24: PREÇO UNITÁRIO TOTAL: | H24: =H23 -> 503.48
A26: CPU-02 | B26: CODEVASF | C26: Propria | D26: MOBILIZAÇÃO E DESMOBILIZAÇÃO | E26: T X KM | F26: COEF. | G26: PRECO UNITÁRIO (R$) | H26: TOTAL (R$)
A28: COMP. SINAPI | B28: SINAPI | C28: 73340 | D28: CAMINHÃO TOCO, PBT 14.300 KG, CARGA ÚTIL MÁX. 9.710 KG, DIST. ENTRE EIXOS 3,56 M, POTÊNCIA 185 CV, INCLUSIVE CARROCERIA FIXA ABERTA DE MADEIRA P/ TR ANSPORTE GERAL DE CARGA SECA, DIMEN. APROX. 2,50 X 6,50 X 0,50 M - MATERIA IS NA OPERAÇÃO. AF_06/2014 | E28: H | F28: 2 | G28: =VLOOKUP($C28,'COMP Sint. Sinapi'!$A$7:$E$101460,5,0) -> 65,51 | H28: =ROUND(F28*G28,2) -> 131.02
A29: COMP. SINAPI | B29: SINAPI | C29: 67826 | D29: CAMINHÃO BASCULANTE 6 M3 TOCO, PESO BRUTO TOTAL 16.000 KG, CARGA ÚTIL MÁXI CHP MA 11.130 KG, DISTÂNCIA ENTRE EIXOS 5,36 M, POTÊNCIA 185 CV, INCLUSIVE CAÇAMBA METÁLICA - CHP DIURNO. AF_06/2014 | E29: CHP | F29: 2 | G29: =VLOOKUP($C29,'COMP Sint. Sinapi'!$A$7:$E$6679,5,0) -> 144,86 | H29: 289.72
A30: COMP. SINAPI | B30: SINAPI | C30: 6259 | D30: CAMINHÃO PIPA 6.000 L, PESO BRUTO TOTAL 13.000 KG, DISTÂNCIA ENTRE EIXOS 4 CHP ,80 M, POTÊNCIA 189 CV INCLUSIVE TANQUE DE AÇO PARA TRANSPORTE DE ÁGUA, CAPACIDADE 6 M3 - CHP DIURNO. AF_06/2014 | E30: CHP | F30: 2 | G30: =VLOOKUP($C30,'COMP Sint. Sinapi'!$A$7:$E$6679,5,0) -> 198,77 | H30: 397.54
A31: COMP. SICRO | B31: SICRO | C31: 5914640 | D31: TRANSPORTE COM CAVALO MECÂNICO COM SEMIRREBOQUE COM CAPACIDADE DE 30 T - RODOVIA PAVIMENTADA | E31: T x km | F31: ='Mob e Desmob'!E31 -> 678.7 | G31: =VLOOKUP($C31,'INSUMOS SICRO'!$B$1749:$E$1749,4,0) -> 0.33 | H31: 223.97
A32: INSUMO | B32: ORSE | C32: 5896 | D32: VEÍCULO TIPO SEDAN OU PICK-UP CAPACIDADE 0,6 TON | E32: h | F32: 3 | G32: =VLOOKUP(C32,'Relação Insumos'!C:F,4,0) -> 8.33 | H32: 24.99
E33: Sub total: | H33: =SUM(H28:H32) -> 1067.24
F34: BDI | G34: =BDI!H24 -> 0.2158381752 | H34: =ROUND(H33*G34,2) -> 230.35
G35: Total Serviços: | H35: =H33+H34 -> 1297.59
E36: =A26 -> CPU-02 | F36: PREÇO UNITÁRIO TOTAL: | H36: =H35 -> 1297.59
A38: CPU-03 | B38: CODEVASF | D38: ADMINISTRAÇÃO LOCAL | E38: % | F38: COEF. | G38: PRECO UNITÁRIO (R$) | H38: TOTAL (R$)
A40: COMP. SINAPI | B40: SINAPI | C40: 90777 | D40: ENGENHEIRO CIVIL DE OBRA JUNIOR COM ENCARGOS COMPLEMENTARES | E40: H | F40: 20 | G40: =VLOOKUP(C40,'COMP Sint. Sinapi'!A19:E101460,5,0) -> 98,79 | H40: =ROUND(F40*G40,2) -> 1975.8
A41: COMP. SINAPI | B41: SINAPI | C41: 90780 | D41: MESTRE DE OBRAS COM ENCARGOS COMPLEMENTARES | E41: H | F41: 40 | G41: =VLOOKUP(C41,'COMP Sint. Sinapi'!A20:E101461,5,0) -> 76,76 | H41: 3070.4
A42: COMP. SINAPI | B42: SINAPI | C42: 90772 | D42: AUXILIAR DE ESCRITORIO COM ENCARGOS COMPLEMENTARES | E42: H | F42: 40 | G42: =VLOOKUP(C42,'COMP Sint. Sinapi'!A21:E101462,5,0) -> 20,22 | H42: 808.8
A43: INS. SINAPI | B43: SINAPI | C43: 14250 | D43: ENERGIA | E43: KW/H | F43: 100 | G43: =VLOOKUP(C43,'Relação Insumos'!C:F,4,0) -> 1,00 | H43: 100
A44: INS. SINAPI | B44: SINAPI | C44: 14583 | D44: ÁGUA TARIFA "A" ENTRE 0 E 20M3 FORNECIMENTO D'AGUA | E44: M3 | F44: 1 | G44: =VLOOKUP(C44,'Relação Insumos'!C:F,4,0) -> 18,92 | H44: 18.92
A45: INSUMO | B45: ORSE | C45: 4415 | D45: VEÍCULO LEVE - VOLKSWAGEN:GOL 1000 - AUTOMÓVEL ATÉ 100 HP | E45: H | F45: 40 | G45: 4.4 | H45: =ROUND(F45*G45,2) -> 176
E46: ADM. LOCAL : | H46: =SUM(H40:H45) -> 6149.92
E47: Total para 6 meses:
E48: =BDI!H24 -> 0.2158381752 | H48: =ROUND(E48*H46,2) -> 1327.39
E49: =A38 -> CPU-03 | F49: PREÇO TOTAL: | H49: =H46+H48 -> 7477.31
A51: CPU-04 | B51: CODEVASF | D51: CANTEIRO DE OBRAS E ALMOXARIFADO | E51: MÊS | F51: COEF. | G51: PRECO UNITÁRIO (R$) | H51: TOTAL (R$)
A53: INS. SINAPI | B53: SINAPI | C53: 10775 | D53: LOCAÇÃO DE CONTAINER - ESCRITÓRIO COM BANHEIRO - 6,20 X 2,20M | E53: mês | F53: 0.2 | G53: =VLOOKUP(C53,'Relação Insumos'!C:F,4,0) -> 630,00 | H53: =ROUND(F53*G53,2) -> 126
A54: COMP. ORSE | B54: ORSE | C54: 4299 | D54: ALUGUEL DE CONTAINER - ALMOXARIFADO SEM BANHEIRO - 6,00 X 2,40M | E54: mês | F54: 0.2 | G54: =VLOOKUP(C54,'Relação Insumos'!C:F,4,0) -> 654.42 | H54: =ROUND(F54*G54,2) -> 130.88
E55: Sub total: | H55: =SUM(H53:H54) -> 256.88
F56: BDI | G56: =BDI!H24 -> 0.2158381752 | H56: =ROUND(H55*G56,2) -> 55.44
G57: Total Serviços: | H57: =H55+H56 -> 312.32
E58: =A51 -> CPU-04 | F58: PREÇO UNITÁRIO TOTAL: | H58: =H57 -> 312.32
A60: CPU-11 | B60: CODEVASF | D60: LIMPEZA GERAL | E60: UNID | F60: COEF. | G60: PRECO UNITÁRIO (R$) | H60: TOTAL (R$)
A62: COMP. SINAPI | B62: SINAPI | C62: 88316 | D62: SERVENTE COM ENCARGOS COMPLEMENTARES | E62: H | F62: 0.05 | G62: =VLOOKUP(C62,'COMP Sint. Sinapi'!A41:E101462,5,0) -> 15,57 | H62: =ROUND(F62*G62,2) -> 0.78
E63: Sub total: | H63: =SUM(H62:H62) -> 0.78
F64: BDI | G64: =BDI!H24 -> 0.2158381752 | H64: =ROUND(H63*G64,2) -> 0.17
G65: Total Serviços: | H65: =H63+H64 -> 0.95
E66: =A60 -> CPU-11 | F66: PREÇO UNITÁRIO TOTAL: | H66: =H65 -> 0.95
A67: CPU-12 | B67: CODEVASF | D67: Correção de vazamentos no ramal na rua sem pavimento com fornecimento do material hidráulico | E67: UNID | F67: COEF. | G67: PRECO UNITÁRIO (R$) | H67: TOTAL (R$)
A69: Composição Auxiliar | B69: SINAPI | C69: 88316 | D69: SERVENTE COM ENCARGOS COMPLEMENTARES | E69: H | F69: 0.2 | G69: =VLOOKUP(C69,'COMP Sint. Sinapi'!A41:E101462,5,0) -> 15,57 | H69: =ROUND(F69*G69,2) -> 3.11
A70: Composição Auxiliar | B70: SINAPI | C70: 88267 | D70: ENCANADOR OU BOMBEIRO HIDRÁULICO COM ENCARGOS COMPLEMENTARES | E70: H | F70: 0.1 | G70: =VLOOKUP(C70,'COMP Sint. Sinapi'!A42:E6714,5,0) -> 22,50 | H70: 2.25
A71: Insumo | B71: SINAPI | C71: 9867 | D71: TUBO PVC, SOLDAVEL, DN 20 MM, AGUA FRIA (NBR-5648) | E71: m | F71: 1 | G71: =VLOOKUP(C71,'INSUMOS SINAPI'!A:E,5,0) -> 3,53 | H71: 3.53
A72: Insumo | B72: ORSE | C72: 10585 | D72: Arco de serra | E72: un | F72: 0.1 | G72: 21.25 | H72: 2.13
A73: Insumo | B73: SINAPI | C73: 3859 | D73: LUVA SOLDAVEL COM ROSCA, PVC, 20 MM X 1/2", PARA AGUA FRIA PREDIAL | E73: un | F73: 2 | G73: =VLOOKUP(C73,'INSUMOS SINAPI'!A:E,5,0) -> 1,66 | H73: 3.32
E74: Sub total: | H74: =SUM(H69:H73) -> 14.34
F75: BDI | G75: =BDI!H24 -> 0.2158381752 | H75: =ROUND(H74*G75,2) -> 3.1
G76: Total Serviços: | H76: =H74+H75 -> 17.44
E77: =A67 -> CPU-12 | F77: PREÇO UNITÁRIO TOTAL: | H77: =H76 -> 17.44
A79: CPU-13 | B79: CODEVASF | D79: SERVIÇOS TOPOGRÁFICOS PARA PAVIMENTAÇÃO, INCLUSIVE NOTAS DE SERVIÇOS, ACOMPANHAMENTO E GREIDE | E79: UNID | F79: COEF. | G79: PRECO UNITÁRIO (R$) | H79: TOTAL (R$)
A81: Insumo | B81: SINAPI | C81: 20206 | D81: =VLOOKUP(C81,'INSUMOS SINAPI'!A:E,2,0) -> SARRAFO APARELHADO *2 X 10* CM, EM MACARANDUBA, ANGELIM OU EQUIVALENTE DA REGIAO | E81: m | F81: 0.002886 | G81: =VLOOKUP(C81,'INSUMOS SINAPI'!A:E,5,0) -> 9,41 | H81: =ROUND(F81*G81,2) -> 0.03
A82: Composição | B82: SINAPI | C82: 88253 | D82: =VLOOKUP(C82,'COMP Sint. Sinapi'!A:F,2,0) -> AUXILIAR DE TOPÓGRAFO COM ENCARGOS COMPLEMENTARES | E82: h | F82: 0.0025 | G82: =VLOOKUP(C82,'COMP Sint. Sinapi'!A:F,5,0) -> 8,63 | H82: 0.02
A83: Composição | B83: SINAPI | C83: 88288 | D83: =VLOOKUP(C83,'COMP Sint. Sinapi'!A:F,2,0) -> NIVELADOR COM ENCARGOS COMPLEMENTARES | E83: h | F83: 0.0025 | G83: =VLOOKUP(C83,'COMP Sint. Sinapi'!A:F,5,0) -> 10,55 | H83: 0.03
A84: Composição | B84: SINAPI | C84: 88316 | D84: =VLOOKUP(C84,'COMP Sint. Sinapi'!A:F,2,0) -> SERVENTE COM ENCARGOS COMPLEMENTARES | E84: h | F84: 0.0075 | G84: =VLOOKUP(C84,'COMP Sint. Sinapi'!A:F,5,0) -> 15,57 | H84: 0.12
A85: Composição | B85: SINAPI | C85: 88597 | D85: =VLOOKUP(C85,'COMP Sint. Sinapi'!A:F,2,0) -> DESENHISTA DETALHISTA COM ENCARGOS COMPLEMENTARES | E85: h | F85: 0.002 | G85: =VLOOKUP(C85,'COMP Sint. Sinapi'!A:F,5,0) -> 31,45 | H85: 0.06
A86: Composição | B86: SINAPI | C86: 92145 | D86: =VLOOKUP(C86,'COMP Sint. Sinapi'!A:F,2,0) -> CAMINHONETE CABINE SIMPLES COM MOTOR 1.6 FLEX, CÂMBIO MANUAL, POTÊNCIA 101/104 CV, 2 PORTAS - CHP DIURNO. AF_11/2015 | E86: chp | F86: 0.001 | G86: =VLOOKUP(C86,'COMP Sint. Sinapi'!A:F,5,0) -> 77,55 | H86: 0.08
E87: Sub total: | H87: =SUM(H81:H86) -> 0.34
F88: BDI | G88: =BDI!H24 -> 0.2158381752 | H88: =ROUND(H87*G88,2) -> 0.07
G89: Total Serviços: | H89: =H87+H88 -> 0.41
E90: =A79 -> CPU-13 | F90: PREÇO UNITÁRIO TOTAL: | H90: =H89 -> 0.41

Sheet CPU SINAPI
A1: SINAPI - SISTEMA NACIONAL DE PESQUISA DE CUSTOS E ÍNDICES DA CONSTRUÇÃO CIVIL | F1: Localidade: | G1: GO
A2: PCI.818.01 - COMPOSIÇÕES ATIVAS ANALÍTICAS COM CUSTO | C2: ABRANGENCIA: NACIONAL DATA DE PREÇO : 09/2021 | F2: DATA de REFERENCIA | G2: 09/2021
A3: * Composições constantes nos Relatórios publicados de Composições Analíticas para as 27 Unidades da Federação
A4: MACROCLASSE.CLASSE.GRUPO | B4: CÓDIGOS | C4: DESCRIÇÃO | D4: UNIDADE | E4: COEFICIENTE | F4: CADERNO TÉCNICO | G4: PREÇO UNITÁRIO
A5: 03.PAVI.INTE.004/001 | B5: 92394 | C5: EXECUÇÃO DE PAVIMENTO EM PISO INTERTRAVADO, COM BLOCO SEXTAVADO DE 25 X 25 CM, ESPESSURA 8 CM. AF_12/2015 | D5: M2 | F5: Pavimento Intertravado | G5: =G17 -> 77.78
A6: INSUMO | B6: 370 | C6: AREIA MEDIA - POSTO JAZIDA/FORNECEDOR (RETIRADO NA JAZIDA, SEM TRANSPORTE) | D6: M3 | E6: 0,0568000 | F6: =VLOOKUP($B6,'INSUMOS SINAPI'!$A$8:$E$5286,5,0) -> 124,95 | G6: =ROUND(E6*F6,2) -> 7.1
A7: INSUMO | B7: 712 | C7: BLOQUETE/PISO INTERTRAVADO DE CONCRETO - MODELO SEXTAVADO / HEXAGONAL, 25 CM X 25 CM, E = 8 CM, RESISTENCIA DE 35 MPA (NBR 9781), COR NATURAL | D7: M2 | E7: 1,0174000 | F7: =VLOOKUP($B7,'INSUMOS SINAPI'!$A$8:$E$5286,5,0) -> 48,15 | G7: =ROUND(E7*F7,2) -> 48.99
A8: INSUMO | B8: 4741 | C8: PO DE PEDRA (POSTO PEDREIRA/FORNECEDOR, SEM FRETE) | D8: M3 | E8: 0,0064000 | F8: =VLOOKUP($B8,'INSUMOS SINAPI'!$A$8:$E$5286,5,0) -> 69,45 | G8: 0.44
A9: COMPOSICAO | B9: 88260 | C9: CALCETEIRO COM ENCARGOS COMPLEMENTARES | D9: H | E9: 0,1853000 | F9: =VLOOKUP($B9,'COMP Sint. Sinapi'!A:F,5,0) -> 21,87 | G9: 4.05
A10: COMPOSICAO | B10: 88316 | C10: SERVENTE COM ENCARGOS COMPLEMENTARES | D10: H | E10: 0,1853000 | F10: =VLOOKUP($B10,'COMP Sint. Sinapi'!A:F,5,0) -> 15,57 | G10: 2.89
A11: COMPOSICAO | B11: 91277 | C11: PLACA VIBRATÓRIA REVERSÍVEL COM MOTOR 4 TEMPOS A GASOLINA, FORÇA CENTRÍFUGA DE 25 KN (2500 KGF), POTÊNCIA 5,5 CV - CHP DIURNO. AF_08/2015 | D11: CHP | E11: 0,0055000 | F11: =VLOOKUP($B11,'COMP Sint. Sinapi'!A:F,5,0) -> 10,24 | G11: 0.06
A12: COMPOSICAO | B12: 91278 | C12: PLACA VIBRATÓRIA REVERSÍVEL COM MOTOR 4 TEMPOS A GASOLINA, FORÇA CENTRÍFUGA DE 25 KN (2500 KGF), POTÊNCIA 5,5 CV - CHI DIURNO. AF_08/2015 | D12: CHI | E12: 0,0872000 | F12: =VLOOKUP($B12,'COMP Sint. Sinapi'!A:F,5,0) -> 0,54 | G12: 0.05
A13: COMPOSICAO | B13: 91283 | C13: CORTADORA DE PISO COM MOTOR 4 TEMPOS A GASOLINA, POTÊNCIA DE 13 HP, COM DISCO DE CORTE DIAMANTADO SEGMENTADO PARA CONCRETO, DIÂMETRO DE 350 MM, FURO DE 1" (14 X 1") - CHP DIURNO. AF_08/2015 | D13: CHP | E13: 0,0135000 | F13: =VLOOKUP($B13,'COMP Sint. Sinapi'!A:F,5,0) -> 23,52 | G13: 0.32
A14: COMPOSICAO | B14: 91285 | C14: CORTADORA DE PISO COM MOTOR 4 TEMPOS A GASOLINA, POTÊNCIA DE 13 HP, COM DISCO DE CORTE DIAMANTADO SEGMENTADO PARA CONCRETO, DIÂMETRO DE 350 MM, FURO DE 1" (14 X 1") - CHI DIURNO. AF_08/2015 | D14: CHI | E14: 0,0792000 | F14: =VLOOKUP($B14,'COMP Sint. Sinapi'!A:F,5,0) -> 0,83 | G14: 0.07
D15: Sub total: | G15: =SUM(G6:G14) -> 63.97
D16: BDI | F16: =BDI!H24 -> 0.2158381752 | G16: =ROUND(G15*F16,2) -> 13.81
D17: Total Serviços: | G17: =G15+G16 -> 77.78

Sheet BDI
A4: DETALHAMENTO DO BDI - SEM DESONERAÇÃO
A6: ÍTENS DE VALOR PERCENTUAL VARIÁVEL COM A ADMINISTRAÇÃO DA OBRA | G6: % SOBRE PV | H6: % SOBRE CD
A7: A | B7: ADMINISTRAÇÃO CENTRAL | C7: Váriável - f (CD) | G7: =H7/(1+$H$24) -> 0.04934867257 | H7: 0.06
A8: B | B8: CUSTOS FINANCEIROS | C8: 0,43% s/ PV - Lucro Operacional | G8: 0.0041 | H8: =G8*(1+$H$24) -> 0.004984936518
A9: C | B9: RISCOS | C9: 0,50% de CD | H9: =G9*(1+$H$24) -> 0
A10: D | B10: SEGUROS E GARANTIAS CONTRATUAIS | C10: 0,25% do PV | H10: =G10*(1+$H$24) -> 0
A11: SUBTOTAL | G11: =SUM(G7:G10) -> 0.05344867257 | H11: =SUM(H7:H10) -> 0.06498493652
A12: LUCRO | G12: % SOBRE PV | H12: % SOBRE CD
A13: E | B13: LUCRO OPERACIONAL | C13: Variável - f (CD) | G13: =H13/(1+$H$24) -> 0.05757345133 | H13: 0.07
A14: SUBTOTAL | G14: =SUM(G13) -> 0.05757345133 | H14: =SUM(H13) -> 0.07
A15: TAXAS E IMPOSTOS | G15: % SOBRE PV | H15: % SOBRE CD
A16: F | B16: PIS | C16: 0,65% de PV | G16: 0.0065 | H16: =G16*(1+$H$24) -> 0.007902948139
A17: G | B17: COFINS | C17: 3,00% de PV | G17: 0.03 | H17: =G17*(1+$H$24) -> 0.03647514526
A18: H | B18: ISSQN | C18: 3,00% de PV | G18: 0.03 | H18: =G18*(1+$H$24) -> 0.03647514526
A19: I | B19: Contribuição Previdenciária | C19: 0,00% de PV | G19: 0 | H19: =G19*(1+$H$21) -> 0
A20: SUBTOTAL | G20: =SUM(G16:G19) -> 0.0665 | H20: =SUM(H16:H19) -> 0.08085323865
A21: BDI COM IMPOSTOS | G21: =G20+G14+G11 -> 0.1775221239 | H21: =(1+(H7+H13))/(1-(G8+G9+G10+G16+G17+G18+G19))-1 -> 0.2158381752
A22: CUSTO DIRETO - CD | G22: =G23-G21 -> 0.8224778761
G23: 1
A24: BDI | H24: =H21 -> 0.2158381752
A25: Observação: O percentual de ISSQN aqui utilizado consiste apenas em um referencial médio. O valor real do ISSQN a ser adotado deve ser aquele proveniente das alíquotas dos municípios situados na área de influência das obras.

Sheet ENC. SOCIAIS
A6: NOME DA CONCORRENTE:
A7: EDITAL:
A8: FOLHA:
A9: ='RESUMO MODULO MINIMO'!A1 -> EXECUÇÃO DE SERVIÇOS DE IMPLANTAÇÃO DE PAVIMENTAÇÃO EM BLOCO DE CONCRETO INTERTRAVADO, EM VIAS URBANAS E RURAIS DE MUNÍCIPIOS DIVERSOS INSERIDOS NA ÁREA DE ATUAÇÃO DA CODEVASF, NO ESTADO DO GOIÁS
A11: DETALHAMENTO DOS ENCARGOS SOCIAIS (%)
A12: VIGÊNCIA A PARTIR DE 10/2020 | C12: COM DESONERAÇÃO | E12: SEM DESONERAÇÃO
C14: HORISTA | D14: MENSALISTA | E14: HORISTA | F14: MENSALISTA
A16: GRUPO A
A17: A1 | B17: INSS | C17: 0 | D17: 0 | E17: 20 | F17: 20
A18: A2 | B18: SESI | C18: 1.5 | D18: 1.5 | E18: 1.5 | F18: 1.5
A19: A3 | B19: SENAI | C19: 1 | D19: 1 | E19: 1 | F19: 1
A20: A4 | B20: INCRA | C20: 0.2 | D20: 0.2 | E20: 0.2 | F20: 0.2
A21: A5 | B21: SEBRAE | C21: 0.6 | D21: 0.6 | E21: 0.6 | F21: 0.6
A22: A6 | B22: Salário Educação | C22: 2.5 | D22: 2.5 | E22: 2.5 | F22: 2.5
A23: A7 | B23: Seguro Contra Acidentes de Trabalho | C23: 3 | D23: 3 | E23: 3 | F23: 3
A24: A8 | B24: FGTS | C24: 8 | D24: 8 | E24: 8 | F24: 8
A25: A9 | B25: SECONCI | C25: 1 | D25: 1 | E25: 1 | F25: 1
A26: A | B26: Total | C26: =SUM(C17:C25) -> 17.8 | D26: =SUM(D17:D25) -> 17.8 | E26: =SUM(E17:E25) -> 37.8 | F26: =SUM(F17:F25) -> 37.8
A27: GRUPO B
A28: B1 | B28: Repouso Semanal Remunerado | C28: 17.88 | D28: - | E28: 17.81 | F28: -
A29: B2 | B29: Feriados | C29: 3.94 | D29: - | E29: 3.7 | F29: -
A30: B3 | B30: Auxílio-enfermidade | C30: 0.91 | D30: 0.69 | E30: 0.87 | F30: 0.67
A31: B4 | B31: 13° salário | C31: 10.98 | D31: 8.33 | E31: 10.85 | F31: 8.33
A32: B5 | B32: Licença-paternidade | C32: 0.07 | D32: 0.06 | E32: 0.07 | F32: 0.06
A33: B6 | B33: Faltas Justificadas | C33: 0.73 | D33: 0.56 | E33: 0.72 | F33: 0.56
A34: B7 | B34: Dias de chuva | C34: 1.45 | D34: - | E34: 1.37 | F34: 0
A35: B8 | B35: Auxílio Acidente de Trabalho | C35: 0.11 | D35: 0.09 | E35: 0.11 | F35: 0.08
A36: B9 | B36: Férias Gozadas | C36: 11.35 | D36: 8.62 | E36: 9.82 | F36: 7.54
A37: B10 | B37: Salário Maternidade | C37: 0.03 | D37: 0.03 | E37: 0.03 | F37: 0.03
A38: B | B38: Total | C38: =SUM(C28:C37) -> 47.45 | D38: =SUM(D28:D37) -> 18.38 | E38: =SUM(E28:E37) -> 45.35 | F38: =SUM(F28:F37) -> 17.27
A39: GRUPO C
A40: C1 | B40: Aviso Prévio Indenizado | C40: 6.76 | D40: 5.14 | E40: 5.73 | F40: 4.4
A41: C2 | B41: Aviso Prévio Trabalhado | C41: 0.16 | D41: 0.12 | E41: 0.14 | F41: 0.1
A42: C3 | B42: Férias Indenizadas | C42: 2.28 | D42: 1.73 | E42: 3.86 | F42: 2.97
A43: C4 | B43: Depósito Rescisão Sem Justa Causa | C43: 3.81 | D43: 2.89 | E43: 3.69 | F43: 2.83
A44: C5 | B44: Indenização Adicional | C44: 0.57 | D44: 0.43 | E44: 0.48 | F44: 0.37
A45: C | B45: Total | C45: =SUM(C40:C44) -> 13.58 | D45: =SUM(D40:D44) -> 10.31 | E45: =SUM(E40:E44) -> 13.9 | F45: =SUM(F40:F44) -> 10.67
A46: GRUPO D
A47: D1 | B47: Reincidência de A sobre B | C47: 8.45 | D47: 3.27 | E47: 17.14 | F47: 6.53
A48: D2 | B48: Reincidência de Grupo A sobre Aviso Prévio Trabalhado e Reincidência do FGTS sobre Aviso Prévio Indenizado | C48: 0.57 | D48: 0.43 | E48: 0.51 | F48: 0.39
A49: D | B49: Total | C49: =SUM(C47:C48) -> 9.02 | D49: =SUM(D47:D48) -> 3.7 | E49: =SUM(E47:E48) -> 17.65 | F49: =SUM(F47:F48) -> 6.92
A51: T O T A L (%) | C51: =C26+C38+C45+C49 -> 87.85 | D51: =D26+D38+D45+D49 -> 50.19 | E51: =E26+E38+E45+E49 -> 114.7 | F51: =F26+F38+F45+F49 -> 72.66

Sheet CPU_SICRO
A2: CGCIT | I2: DNIT | K2: DMT | L2: 10
A3: SISTEMA DE CUSTOS REFERENCIAIS DE OBRAS - SICRO | D3: Goias
A4: Custo Unitário de Referência | D4: 2021-04-01 | G4: Produção da equipe | H4: 113.18 | I4: m³
A5: 4011276 | B5: Base ou sub-base de brita graduada com brita comercial | H5: Valores em reais (R$)
A6: A - EQUIPAMENTOS | C6: Quantidade | D6: Utilização | F6: Custo Horário | I6: Custo
D7: Operativa | E7: Improdutiva | F7: Produtivo | G7: Improdutivo | I7: Horário Total
A8: E9571 | B8: Caminhão tanque com capacidade de 10.000 l - 188 kW | C8: 1 | D8: 0.34 | E8: 0.66 | F8: 235.4425 | G8: 57.3837 | I8: =ROUND((C8*(D8*F8))+(C8*(E8*G8)),4) -> 117.9237
A9: E9514 | B9: Distribuidor de agregados autopropelido - 130 kW | C9: 1 | D9: 1 | E9: 0 | F9: 210.0497 | G9: 77.0749 | I9: =ROUND((C9*(D9*F9))+(C9*(E9*G9)),4) -> 210.0497
A10: E9762 | B10: Rolo compactador de pneus autopropelido de 27 t - 85 kW | C10: 1 | D10: 0.65 | E10: 0.35 | F10: 159.5327 | G10: 76.2209 | I10: =ROUND((C10*(D10*F10))+(C10*(E10*G10)),4) -> 130.3736
A11: E9530 | B11: Rolo compactador liso autopropelido vibratório de 11 t - 97 kW | C11: 1 | D11: 0.52 | E11: 0.48 | F11: 156.5249 | G11: 65.0023 | I11: =ROUND((C11*(D11*F11))+(C11*(E11*G11)),4) -> 112.5941
G12: Custo horário total de equipamentos | I12: =SUM(I8:I11) -> 570.9411
A13: B - MÃO DE OBRA | C13: Quantidade | D13: Unidade | E13: Custo Horário | G13: Custo Horário Total
A14: P9824 | B14: Servente | C14: 1 | D14: h | E14: 16.2822 | I14: =ROUND(C14*E14,4) -> 16.2822
C15: Custo horário total de mão de obra | H15: =SUM(I14) -> 16.2822
C16: Custo horário total de execução | I16: =SUM(H15,I12) -> 587.2233
C17: Custo unitário de execução | I17: =I16/H4 -> 5.188401661
G18: Custo do FIC | I18: 0.0471
G19: Custo do FIT | I19: -
A20: C - MATERIAL | C20: Quantidade | D20: Unidade | E20: Preço Unitário | G20: Custo Unitário
C21: Custo unitário total de material
A22: D - ATIVIDADES AUXILIARES | C22: Quantidade | D22: Unidade | E22: Custo Unitário | G22: Custo Unitário
A23: 6416040 | B23: Usinagem de brita graduada com brita comercial em usina de 300 t/h | C23: 1 | D23: m³ | F23: 108.23 | I23: =ROUND(C23*F23,4) -> 108.23
C24: Custo total de atividades auxiliares | I24: =SUM(I23) -> 108.23
G25: Subtotal | I25: =SUM(I24,I17,I18,I19) -> 113.4655017
A26: E - TEMPO FIXO | C26: Código | D26: Quantidade | E26: Unidade | F26: Custo Unitário | H26: Custo Unitário
A27: 6416040 | B27: Usinagem de brita graduada com brita comercial em usina de 300 t/h - Caminhão basculante 10 m³ | C27: 5914652 | D27: 2.2 | E27: t | G27: 2.18 | I27: =ROUND(D27*G27,4) -> 4.796
C28: Custo unitário total de tempo fixo | I28: =SUM(I27) -> 4.796
A29: F - MOMENTO DE TRANSPORTE | C29: Quantidade | D29: Unidade | E29: DMT | I29: Custo Unitário
E30: LN | F30: RP | G30: P
A31: 6416040 | B31: Usinagem de brita graduada com brita comercial em usina de 300 t/h - Caminhão basculante 10 m³ | C31: 2.2 | D31: tkm | E31: 5914359 | F31: 5914374 | G31: =L2 -> 10 | I31: =ROUND((C31*G31)*K31,4) -> 11.22 | J31: 5914389 | K31: 0.51
C32: Custo unitário total de transporte
E33: Custo unitário direto total | I33: =SUM(I32,I28,I25) -> 118.2615017
F34: BDI | G34: =BDI!H24 -> 0.2158381752 | I34: =ROUND(I33*G34,4) -> 25.5253
G35: Preço Unitário: | I35: =ROUND(SUM(I33,I34),2) -> 143.79
A36: Obs.
A39: CGCIT | I39: DNIT
A40: SISTEMA DE CUSTOS REFERENCIAIS DE OBRAS - SICRO | D40: Goias
A41: Custo Unitário de Referência | D41: =D4 -> 2021-04-01 | G41: Produção da equipe | H41: 1121.33 | I41: m²
A42: 4011209 | B42: Regularização do subleito | H42: Valores em reais (R$)
A43: A - EQUIPAMENTOS | C43: Quantidade | D43: Utilização | F43: Custo Horário | I43: Custo
D44: Operativa | E44: Improdutiva | F44: Produtivo | G44: Improdutivo | I44: Horário Total
A45: E9571 | B45: Caminhão tanque com capacidade de 10.000 l - 188 kW | C45: 2 | D45: 0.51 | E45: 0.49 | F45: 235.4425 | G45: 57.3837 | I45: =ROUND((C45*(D45*F45))+(C45*(E45*G45)),4) -> 296.3874
A46: E9518 | B46: Grade de 24 discos rebocável de 24" | C46: 1 | D46: 0.69 | E46: 0.31 | F46: 2.9715 | G46: 2.0111 | I46: 2.6738
A47: E9524 | B47: Motoniveladora - 93 kW | C47: 1 | D47: 0.71 | E47: 0.29 | F47: 190.8409 | G47: 81.3501 | I47: 159.0886
A48: E9762 | B48: Rolo compactador de pneus autopropelido de 27 t - 85 kW | C48: 1 | D48: 0.96 | E48: 0.04 | F48: 159.5327 | G48: 76.2209 | I48: 156.2002
A49: E9685 | B49: Rolo compactador pé de carneiro vibratório autopropelido de 11,6 t - 82 kW | C49: 1 | D49: 1 | E49: 0 | F49: 157.5089 | G49: 70.6868 | I49: 157.5089
A50: E9577 | B50: Trator agrícola - 77 kW | C50: 1 | D50: 0.69 | E50: 0.31 | F50: 97.7852 | G50: 32.9712 | I50: 77.6929
G51: Custo horário total de equipamentos | I51: =SUM(I45:I50) -> 849.5518
A52: B - MÃO DE OBRA | C52: Quantidade | D52: Unidade | E52: Custo Horário | G52: Custo Horário Total
A53: P9824 | B53: Servente | C53: 1 | D53: h | E53: 16.2822 | I53: 16.0638
C54: Custo horário total de mão de obra | H54: =SUM(I53) -> 16.0638
C55: Custo horário total de execução | I55: =SUM(H54,I51) -> 865.6156
C56: Custo unitário de execução | I56: 0.7721
G57: Custo do FIC | I57: 0.021
G58: Custo do FIT | I58: -
A59: C - MATERIAL | C59: Quantidade | D59: Unidade | E59: Preço Unitário | G59: Custo Unitário
C60: Custo unitário total de material
A61: D - ATIVIDADES AUXILIARES | C61: Quantidade | D61: Unidade | E61: Custo Unitário | G61: Custo Unitário
C62: Custo total de atividades auxiliares
G63: Subtotal | I63: =SUM(I56,I57,I58) -> 0.7931
A64: E - TEMPO FIXO | C64: Código | D64: Quantidade | E64: Unidade | F64: Custo Unitário | H64: Custo Unitário
C65: Custo unitário total de tempo fixo
A66: F - MOMENTO DE TRANSPORTE | C66: Quantidade | D66: Unidade | E66: DMT | I66: Custo Unitário
E67: LN | F67: RP | G67: P
C68: Custo unitário total de transporte | I68: -
E69: Custo unitário direto total | I69: =SUM(I63) -> 0.7931
F70: BDI | G70: =BDI!H24 -> 0.2158381752 | I70: =ROUND(I69*G70,4) -> 0.1712
G71: Preço Unitário: | I71: =ROUND(SUM(I69,I70),2) -> 0.96
A72: Obs.
A75: CGCIT | I75: DNIT
A76: SISTEMA DE CUSTOS REFERENCIAIS DE OBRAS - SICRO | D76: Goias
A77: Custo Unitário de Referência | D77: =D4 -> 2021-04-01 | G77: Produção da equipe | H77: 3 | I77: un
A78: 5213440 | B78: Fornecimento e implantação de placa de regulamentação em aço D = 0,60 m - película retrorrefletiva tipo I + SI | H78: Valores em reais (R$)
A79: A - EQUIPAMENTOS | C79: Quantidade | D79: Utilização | F79: Custo Horário | I79: Custo
D80: Operativa | E80: Improdutiva | F80: Produtivo | G80: Improdutivo | I80: Horário Total
A81: E9687 | B81: Caminhão carroceria com capacidade de 5 t - 115 kW | C81: 1 | D81: 0.3 | E81: 0.7 | F81: 107.0184 | G81: 41.5104 | I81: =ROUND((C81*(D81*F81))+(C81*(E81*G81)),4) -> 61.1628
G82: Custo horário total de equipamentos | I82: =SUM(I81) -> 61.1628
A83: B - MÃO DE OBRA | C83: Quantidade | D83: Unidade | E83: Custo Horário | G83: Custo Horário Total
A84: P9830 | B84: Montador | C84: 1 | D84: h | E84: 23.5058 | I84: =ROUND(C84*E84,4) -> 23.5058
A85: P9824 | B85: Servente | C85: 2 | D85: h | E85: 16.2822 | I85: =ROUND(C85*E85,4) -> 32.5644
C86: Custo horário total de mão de obra | H86: =SUM(I84:I85) -> 56.0702
C87: Custo horário total de execução | I87: =SUM(H86,I82) -> 117.233
C88: Custo unitário de execução | I88: =I87/H77 -> 39.07766667
G89: Custo do FIC | I89: -
G90: Custo do FIT | I90: -
A91: C - MATERIAL | C91: Quantidade | D91: Unidade | E91: Preço Unitário | G91: Custo Unitário
C92: Custo unitário total de material
A93: D - ATIVIDADES AUXILIARES | C93: Quantidade | D93: Unidade | E93: Custo Unitário | G93: Custo Unitário
A94: 5213414 | B94: Confecção de placa em aço nº 16 galvanizado, com película retrorrefletiva tipo I + SI | C94: 0.36 | D94: m² | F94: 431.57 | I94: =ROUND(C94*F94,4) -> 155.3652
C95: Custo total de atividades auxiliares | I95: =SUM(I94) -> 155.3652
G96: Subtotal | I96: =SUM(I95,I88,I89,I90) -> 194.4428667
A97: E - TEMPO FIXO | C97: Código | D97: Quantidade | E97: Unidade | F97: Custo Unitário | H97: Custo Unitário
I98: =ROUND(D98*G98,4) -> 0
C99: Custo unitário total de tempo fixo | I99: =SUM(I98) -> 0
A100: F - MOMENTO DE TRANSPORTE | C100: Quantidade | D100: Unidade | E100: DMT | I100: Custo Unitário
E101: LN | F101: RP | G101: P
C103: Custo unitário total de transporte
E104: Custo unitário direto total | I104: =SUM(I103,I99,I96) -> 194.4428667
F105: BDI | G105: =BDI!H24 -> 0.2158381752 | I105: =ROUND(I104*G105,4) -> 41.9682
G106: Preço Unitário: | I106: =ROUND(SUM(I104,I105),2) -> 236.41
A107: Obs.
A110: CGCIT | I110: DNIT
A111: SISTEMA DE CUSTOS REFERENCIAIS DE OBRAS - SICRO | D111: Goiás
A112: Custo Unitário de Referência | D112: =D4 -> 2021-04-01 | G112: Produção da equipe | H112: 5 | I112: un
A113: 5213863 | B113: Suporte metálico galvanizado para placa de advertência ou regulamentação - lado ou diâmetro de 0,60 m - fornecimento e implantação | H113: Valores em reais (R$)
A114: A - EQUIPAMENTOS | C114: Quantidade | D114: Utilização | F114: Custo Horário | I114: Custo
D115: Operativa | E115: Improdutiva | F115: Produtivo | G115: Improdutivo | I115: Horário Total
A116: E9687 | B116: Caminhão carroceria com capacidade de 5 t - 115 kW | C116: 1 | D116: 0.3 | E116: 0.7 | F116: 107.0184 | G116: 41.5104 | I116: =ROUND((C116*(D116*F116))+(C116*(E116*G116)),4) -> 61.1628
G117: Custo horário total de equipamentos | I117: =SUM(I116) -> 61.1628
A118: B - MÃO DE OBRA | C118: Quantidade | D118: Unidade | E118: Custo Horário | G118: Custo Horário Total
A119: P9830 | B119: Montador | C119: 1 | D119: h | E119: 23.5058 | I119: =ROUND(C119*E119,4) -> 23.5058
A120: P9824 | B120: Servente | C120: 1 | D120: h | E120: 16.2822 | I120: =ROUND(C120*E120,4) -> 16.2822
C121: Custo horário total de mão de obra | H121: =SUM(I119:I120) -> 39.788
C122: Custo horário total de execução | I122: =SUM(I117,H121) -> 100.9508
C123: Custo unitário de execução | I123: 24.6221
G124: Custo do FIC | I124: -
G125: Custo do FIT | I125: -
A126: C - MATERIAL | C126: Quantidade | D126: Unidade | E126: Preço Unitário | G126: Custo Unitário
A127: M0789 | B127: Conjunto de cantoneiras e parafusos galvanizados para fixação de placas | C127: 0.69622 | D127: kg | F127: 13.6225 | I127: =ROUND(C127*F127,4) -> 9.4843
A128: M0787 | B128: Suporte em aço carbono galvanizado perfil "C" | C128: 12.717 | D128: kg | F128: 17.6344 | I128: =ROUND(C128*F128,4) -> 224.2567
C129: Custo unitário total de material | I129: =SUM(I127:I128) -> 233.741
A130: D - ATIVIDADES AUXILIARES | C130: Quantidade | D130: Unidade | E130: Custo Unitário | G130: Custo Unitário
A131: 1107892 | B131: Concreto fck = 20 MPa - confecção em betoneira e lançamento manual - areia e brita comerciais | C131: 0.0503 | D131: m³ | F131: 288.4 | I131: =ROUND(C131*F131,4) -> 14.5065
A132: 4805750 | B132: Escavação manual em material de 1ª categoria na profundidade de até 1 m | C132: 0.0503 | D132: m³ | F132: 33.45 | I132: =ROUND(C132*F132,4) -> 1.6825
C133: Custo total de atividades auxiliares | I133: =SUM(I131:I132) -> 16.189
G134: Subtotal | I134: =SUM(I133,I129,I123,I124,I125) -> 274.5521
A135: E - TEMPO FIXO | C135: Código | D135: Quantidade | E135: Unidade | F135: Custo Unitário | H135: Custo Unitário
A136: M0789 | B136: Conjunto para fixação de placas em aço galvanizado composto por barra chata, abraçadeira, parafusos, porcas e arruelas - Caminhão carroceria 15t | C136: 5914655 | D136: 0.00106 | E136: t | G136: 24.22 | I136: 0.017
A137: M0787 | B137: Suporte em aço-carbono galvanizado tipo perfil C para placa de sinalização - Caminhão carroceria 15 t | C137: 5914655 | D137: 0.01178 | E137: t | G137: 24.22 | I137: 0.3081
C139: Custo unitário total de tempo fixo | I139: =SUM(I136:I138) -> 0.3251
A140: F - MOMENTO DE TRANSPORTE | C140: Quantidade | D140: Unidade | E140: DMT | I140: Custo Unitário
E141: LN | F141: RP | G141: P
A142: M0789 | B142: Conjunto para fixação de placas em aço galvanizado composto por barra chata, abraçadeira, parafusos, porcas e arruelas - Caminhão carroceria 15t | C142: 0.0007 | D142: tkm | E142: 5914449 | F142: 5914464 | G142: =L2 -> 10 | I142: =ROUND((C142*G142)*K142,4) -> 0.0035 | J142: 5914479 | K142: 0.5
A143: M0787 | B143: Suporte em aço-carbono galvanizado tipo perfil C para placa de sinalização - Caminhão carroceria 15 t | C143: 0.01272 | D143: tkm | E143: 5914449 | F143: 5914464 | G143: =L2 -> 10 | I143: =ROUND((C143*G143)*K143,4) -> 0.0636 | J143: 5914479 | K143: =K142 -> 0.5
C145: Custo unitário total de transporte
E146: Custo unitário direto total | I146: =SUM(I145,I139,I134) -> 274.8772
F147: BDI | G147: =BDI!H24 -> 0.2158381752 | I147: =ROUND(I146*G147,4) -> 59.329
G148: Preço Unitário: | I148: =ROUND(SUM(I146,I147),2) -> 334.21
A149: Obs.
A151: CGCIT | I151: DNIT
A152: SISTEMA DE CUSTOS REFERENCIAIS DE OBRAS - SICRO | D152: Goiás
A153: Custo Unitário de Referência | D153: =D4 -> 2021-04-01 | G153: Produção da equipe | H153: 1 | I153: m
A154: 2003373 | B154: Meio fio de concreto - MFC 03 - areia e brita comerciais - fôrma de madeira | H154: Valores em reais (R$)
A155: A - EQUIPAMENTOS | C155: Quantidade | D155: Utilização | F155: Custo Horário | I155: Custo
D156: Operativa | E156: Improdutiva | F156: Produtivo | G156: Improdutivo | I156: Horário Total
G157: Custo horário total de equipamentos
A158: B - MÃO DE OBRA | C158: Quantidade | D158: Unidade | E158: Custo Horário | G158: Custo Horário Total
C159: Custo horário total de mão de obra | H159: -
C160: Custo horário total de execução | I160: -
C161: Custo unitário de execução | I161: -
G162: Custo do FIC | I162: -
G163: Custo do FIT | I163: -
A164: C - MATERIAL | C164: Quantidade | D164: Unidade | E164: Preço Unitário | G164: Custo Unitário
C165: Custo unitário total de material
A166: D - ATIVIDADES AUXILIARES | C166: Quantidade | D166: Unidade | E166: Custo Unitário | G166: Custo Unitário
A167: 1107892 | B167: Concreto fck = 20 MPa - confecção em betoneira e lançamento manual - areia e brita comerciais | C167: 0.042 | D167: m³ | F167: 288.4 | I167: =ROUND(C167*F167,4) -> 12.1128
A168: 2003842 | B168: Enchimento de junta de concreto com argamassa asfáltica de densidade 1.700 kg/m³ - espessura de 1 cm | C168: 0.0595 | D168: kg | F168: 47.11 | I168: =ROUND(C168*F168,4) -> 2.803
A169: 4805751 | B169: Escavação manual em material de 1ª categoria na profundidade de 1 a 2 m | C169: 0.03 | D169: m³ | F169: 33.45 | I169: =ROUND(C169*F169,4) -> 1.0035
A170: 3103302 | B170: Formas de tábuas de pinho para dispositivos de drenagem - utilização de 3 vezes - confecção, instalação e retirada | C170: 0.0867 | D170: m² | F170: 54.6 | I170: =ROUND(C170*F170,4) -> 4.7338
C171: Custo total de atividades auxiliares | I171: =SUM(I167:I170) -> 20.6531
G172: Subtotal | I172: =SUM(I171,I161,I162,I163) -> 20.6531
A173: E - TEMPO FIXO | C173: Código | D173: Quantidade | E173: Unidade | F173: Custo Unitário | H173: Custo Unitário
C174: Custo unitário total de tempo fixo
A175: F - MOMENTO DE TRANSPORTE | C175: Quantidade | D175: Unidade | E175: DMT | I175: Custo Unitário
E176: LN | F176: RP | G176: P
C177: Custo unitário total de transporte | I177: -
E178: Custo unitário direto total | I178: =SUM(I172) -> 20.6531
F179: BDI | G179: =BDI!H24 -> 0.2158381752 | I179: =ROUND(I178*G179,4) -> 4.4577
G180: Preço Unitário: | I180: =ROUND(SUM(I178,I179),2) -> 25.11
A181: Obs.
A183: Obs.
A184: CGCIT | I184: DNIT
A185: SISTEMA DE CUSTOS REFERENCIAIS DE OBRAS - SICRO | D185: Goias
A186: Custo Unitário de Referência | D186: =D4 -> 2021-04-01 | G186: Produção da equipe | H186: 230.19 | I186: m³
A187: 5502114 | B187: Escavação, carga e transporte de material de 1ª categoria - DMT de 1.000 a 1.200 m - caminho de serviço em leito natural - com escavadeira e caminhão basculante de 14 m³ | H187: Valores em reais (R$)
A188: A - EQUIPAMENTOS | C188: Quantidade | D188: Utilização | F188: Custo Horário | I188: Custo
D189: Operativa | E189: Improdutiva | F189: Produtivo | G189: Improdutivo | I189: Horário Total
A190: E9667 | B190: Caminhão basculante com capacidade de 14 m³ - 188 Kw | C190: 5 | D190: 0.96 | E190: 0.04 | F190: 198.8547 | G190: 60.2879 | I190: =ROUND((C190*(D190*F190))+(C190*(E190*G190)),4) -> 966.5601
A191: E9515 | B191: Escavadeira hidráulica sobre esteiras com caçamba com capacidade de 1,56 m³ - 118 kW | C191: 1 | D191: 1 | E191: 0 | F191: 204.9012 | G191: 91.2976 | I191: =ROUND((C191*(D191*F191))+(C191*(E191*G191)),4) -> 204.9012
G192: Custo horário total de equipamentos | I192: =SUM(I190:I191) -> 1171.4613
A193: B - MÃO DE OBRA | C193: Quantidade | D193: Unidade | E193: Custo Horário | G193: Custo Horário Total
A194: P9824 | B194: Servente | C194: 1 | D194: h | E194: 16.2822 | I194: =ROUND(C194*E194,4) -> 16.2822
C195: Custo horário total de mão de obra | H195: =SUM(I194) -> 16.2822
C196: Custo horário total de execução | I196: =SUM(H195,I192) -> 1187.7435
C197: Custo unitário de execução | I197: =I196/H186 -> 5.159839698
G198: Custo do FIC | I198: 0.1406
G199: Custo do FIT | I199: -
A200: C - MATERIAL | C200: Quantidade | D200: Unidade | E200: Preço Unitário | G200: Custo Unitário
C201: Custo unitário total de material
A202: D - ATIVIDADES AUXILIARES | C202: Quantidade | D202: Unidade | E202: Custo Unitário | G202: Custo Unitário
C204: Custo total de atividades auxiliares
G205: Subtotal | I205: =SUM(I204,I197,I198,I199) -> 5.300439698
A206: E - TEMPO FIXO | C206: Código | D206: Quantidade | E206: Unidade | F206: Custo Unitário | H206: Custo Unitário
C208: Custo unitário total de tempo fixo
A209: F - MOMENTO DE TRANSPORTE | C209: Quantidade | D209: Unidade | E209: DMT | I209: Custo Unitário
E210: LN | F210: RP | G210: P
C212: Custo unitário total de transporte
E213: Custo unitário direto total | I213: =SUM(I212,I208,I205) -> 5.300439698
F214: BDI | G214: =BDI!H24 -> 0.2158381752 | I214: =ROUND($I$213*$G$214,4) -> 1.144
G215: Preço Unitário: | I215: =ROUND(SUM($I$213,$I$214),2) -> 6.44
... 29 more rows

Sheet MC MODULO
C8: Extensão | D8: = | E8: 1000 | F8: m | H8: QUANTIDADE DE MODULOS | I8: 78
C9: Largura | D9: = | E9: 7 | F9: m
C11: Extensão | D11: = | E11: 1 | F11: km
B13: MOBUILIZAÇÃO | L13: MOBUILIZAÇÃO
A14: 1 | B14: Implantação da obra | K14: 1 | L14: Implantação da obra
B16: Extensão (km) | D16: Extensão (km) | L16: Extensão (km) | N16: Extensão (km)
B17: =E11 -> 1 | C17: = | D17: =B17 -> 1 | L17: =E11*$I$8 -> 78 | M17: = | N17: =L17 -> 78
A19: 2 | B19: Administração da obra | K19: 2 | L19: Administração da obra
B21: Extensão (km) | D21: Extensão (km) | L21: Extensão (km) | N21: Extensão (km)
B22: =E11 -> 1 | C22: = | D22: =B22 -> 1 | L22: =E11*$I$8 -> 78 | M22: = | N22: =L22 -> 78
B24: TERRAPLENAGEM | L24: TERRAPLENAGEM
A26: 4 | B26: serviços topográficos para pavimentação, inclusive notas de serviços, acompanhamento e greide | K26: 4 | L26: serviços topográficos para pavimentação, inclusive notas de serviços, acompanhamento e greide
B28: Extensão (m) | D28: Largura (m) | F28: Área (m2) | L28: Extensão (m) | N28: Largura (m) | P28: Área (m2)
B29: =E8 -> 1000 | C29: x | D29: =$E$9 -> 7 | E29: = | F29: =B29*D29 -> 7000 | L29: =E8*I8 -> 78000 | M29: x | N29: =$E$9 -> 7 | O29: = | P29: =L29*N29 -> 546000
A31: 5 | B31: ='RESUMO MODULO MINIMO'!D16 -> Escavação, carga e transporte de material de 1ª categoria - DMT de 1.000 a 1.200 m - caminho de serviço em leito natural - com escavadeira e caminhão basculante de 14 m³ | K31: 5
B33: Extensão (m) | D33: Largura (m) | F33: Espessura (m) | H33: Volume (m3) | L33: Extensão (m) | N33: Largura (m) | P33: Espessura (m) | R33: Volume (m3)
B34: =E8 -> 1000 | C34: x | D34: =$E$9 -> 7 | E34: x | F34: 0.1 | G34: = | H34: =B34*D34*F34 -> 700 | L34: =E8*I8 -> 78000 | M34: x | N34: =$E$9 -> 7 | O34: x | P34: 0.1 | Q34: = | R34: =L34*N34*P34 -> 54600
A38: 6 | B38: ='RESUMO MODULO MINIMO'!D17 -> Espalhamento de material em bota-fora | K38: 6
B40: Extensão (m) | D40: Largura (m) | F40: Espessura (m) | H40: Volume (m3) | L40: Extensão (m) | N40: Largura (m) | P40: Espessura (m) | R40: Volume (m3)
B41: =$E$8 -> 1000 | C41: x | D41: =$E$9 -> 7 | E41: x | F41: 0.1 | G41: = | H41: =B41*D41*F41 -> 700 | L41: =$E$8*I8 -> 78000 | M41: x | N41: =$E$9 -> 7 | O41: x | P41: 0.1 | Q41: = | R41: =L41*N41*P41 -> 54600
B44: PAVIMENTAÇÃO | L44: PAVIMENTAÇÃO
A46: 7 | B46: Execução de pavimento em piso intertravado, com bloco sextavado de 25 x 25 cm, espessura 8 cm. af_12/2015 | K46: 7 | L46: Execução de pavimento em piso intertravado, com bloco sextavado de 25 x 25 cm, espessura 8 cm. af_12/2015
B48: Extensão (m) | D48: Largura (m) | F48: Área (m2) | L48: Extensão (m) | N48: Largura (m) | P48: Área (m2)
B49: =E8 -> 1000 | C49: x | D49: =$E$9 -> 7 | E49: = | F49: =B49*D49 -> 7000 | L49: =E8*I8 -> 78000 | M49: x | N49: =$E$9 -> 7 | O49: = | P49: =L49*N49 -> 546000
A52: 8 | B52: Base ou sub-base de brita graduada com brita comercial | K52: 8 | L52: Base ou sub-base de brita graduada com brita comercial
B54: Extensão (m) | D54: Largura (m) | F54: Espessura (m) | H54: Volume (m3) | L54: Extensão (m) | N54: Largura (m) | P54: Espessura (m) | R54: Volume (m3)
B55: =$E$8 -> 1000 | C55: x | D55: =$E$9 -> 7 | E55: x | F55: 0.15 | G55: = | H55: =B55*D55*F55 -> 1050 | L55: =$E$8*$I$8 -> 78000 | M55: x | N55: =$E$9 -> 7 | O55: x | P55: 0.15 | Q55: = | R55: =L55*N55*P55 -> 81900
A58: 9 | B58: Regularização do subleito | K58: 9 | L58: Regularização do subleito
B60: Extensão (m) | D60: Largura (m) | H60: Volume (m2) | L60: Extensão (m) | N60: Largura (m) | R60: Volume (m2)
B61: =$E$8 -> 1000 | C61: x | D61: =$E$9 -> 7 | G61: = | H61: =B61*D61 -> 7000 | L61: =$E$8*$I$8 -> 78000 | M61: x | N61: =$E$9 -> 7 | Q61: = | R61: =L61*N61 -> 546000
B64: SINALIZAÇÃO | L64: SINALIZAÇÃO
A66: 10 | B66: Fornecimento e implantação de placa de regulamentação em aço D = 0,60 m - película retrorrefletiva tipo I + SI | K66: 10 | L66: Fornecimento e implantação de placa de regulamentação em aço D = 0,60 m - película retrorrefletiva tipo I + SI
B68: Extensão (km) | D68: Quant. (un) | H68: Quant. (un) | L68: Extensão (km) | N68: Quant. (un) | R68: Quant. (un)
B69: =$E$11 -> 1 | C69: x | D69: 0.5 | G69: = | H69: =B69*D69 -> 0.5 | L69: =$E$11*$I$8 -> 78 | M69: x | N69: 0.5 | Q69: = | R69: =L69*N69 -> 39
A72: 11 | B72: Fornecimento e implantação de suporte metálico galvanizado para placa de regulamentação - D = 0,60 m | K72: 11 | L72: Fornecimento e implantação de suporte metálico galvanizado para placa de regulamentação - D = 0,60 m
B74: Extensão (km) | D74: Quant. (un) | H74: Quant. (un) | L74: Extensão (km) | N74: Quant. (un) | R74: Quant. (un)
B75: =$E$11 -> 1 | C75: x | D75: 0.5 | G75: = | H75: =B75*D75 -> 0.5 | L75: =$E$11*$I$8 -> 78 | M75: x | N75: 0.5 | Q75: = | R75: =L75*N75 -> 39
B78: DRENAGEM | L78: DRENAGEM
A79: 12 | B79: Meio fio de concreto - MFC 04 - areia e brita comerciais - fôrma de madeira | K79: 12 | L79: Meio fio de concreto - MFC 04 - areia e brita comerciais - fôrma de madeira
B81: Extensão (m) | D81: Quant. (un) | H81: Volume (m) | L81: Extensão (m) | N81: Quant. (un) | R81: Volume (m)
B82: =$E$8 -> 1000 | C82: x | D82: 2 | G82: = | H82: =B82*D82 -> 2000 | L82: =$E$8*$I$8 -> 78000 | M82: x | N82: 2 | Q82: = | R82: =L82*N82 -> 156000
B86: LIMPEZA GERAL | L86: LIMPEZA GERAL
A87: 13 | B87: Limpeza Geral | K87: 13 | L87: Limpeza Geral
B89: Extensão (m) | D89: Largura (m) | F89: Quant. (un) | H89: Volume (m2) | L89: Extensão (m) | N89: Largura (m) | P89: Quant. (un) | R89: Volume (m2)
B90: =$E$8 -> 1000 | C90: x | D90: 7 | E90: x | F90: 1 | G90: = | H90: =B90*D90*F90 -> 7000 | L90: =$E$8*$I$8 -> 78000 | M90: x | N90: 7 | O90: x | P90: 1 | Q90: = | R90: =L90*N90*P90 -> 546000
B93: SERVIÇOS COMPLEMENTARES | L93: SERVIÇOS COMPLEMENTARES
A94: 14 | B94: ='RESUMO MODULO MINIMO'!D30 -> Conserto de quebra no ramal na rua sem pavimento com fornecimento de material hidráulico | K94: 14 | L94: ='RESUMO MODULO MINIMO'!O30 -> 0
B96: Extensão (m) | D96: Largura (m) | G96: 0.1 | H96: extensão (m) | L96: Extensão (m) | N96: Largura (m) | Q96: 0.1 | R96: extensão (m)
B97: =$E$8 -> 1000 | C97: x | D97: 1 | E97: x | G97: = | H97: =G96*B97 -> 100 | L97: =$E$8*I8 -> 78000 | M97: x | N97: 1 | O97: x | Q97: = | R97: =Q96*L97 -> 7800
B100: PROJETO EXECUTIVO | L100: PROJETO EXECUTIVO
A101: 15 | B101: Projeto Executivo | K101: 15 | L101: Projeto Executivo
B103: Extensão (m) | D103: Largura (m) | F103: Quant. (un) | H103: Volume (Km) | L103: Extensão (m) | N103: Largura (m) | P103: Quant. (un) | R103: Volume (Km)
B104: =E11 -> 1 | C104: x | E104: x | F104: 1 | G104: = | H104: =B104*F104 -> 1 | L104: =E11*I8 -> 78 | M104: x | O104: x | P104: 1 | Q104: = | R104: =L104*P104 -> 78

Sheet Relação Insumos
A1: cls | B1: fonte | C1: cod | D1: descrição | E1: unid | F1: PRECO UNITÁRIO (R$)
A2: INS. SINAPI | B2: SINAPI | C2: 370 | D2: AREIA MEDIA - POSTO JAZIDA/FORNECEDOR (RETIRADO NA JAZIDA, SEM TRANSPORTE) | E2: M3 | F2: =IF(A2="INS. SINAPI",VLOOKUP(C2,'INSUMOS SINAPI'!A:E,5,0),IF(A2="COMP. SINAPI",VLOOKUP(C2,'COMPOSIÇÃO ANALI sinapi'!A:E,5,0),IF(A2="INS. SICRO",VLOOKUP(C2,'INSUMOS SICRO'!B:F,5,0),""))) -> 124,95
A3: INS. SINAPI | B3: SINAPI | C3: 1379 | D3: CIMENTO PORTLAND COMPOSTO CP II-32 | E3: KG | F3: =IF(A3="INS. SINAPI",VLOOKUP(C3,'INSUMOS SINAPI'!A:E,5,0),IF(A3="COMP. SINAPI",VLOOKUP(C3,'COMPOSIÇÃO ANALI sinapi'!A:E,5,0),IF(A3="INS. SICRO",VLOOKUP(C3,'INSUMOS SICRO'!B:F,5,0),""))) -> 0,55
A4: INS. SINAPI | B4: SINAPI | C4: 1518 | D4: CONCRETO BETUMINOSO USINADO A QUENTE (CBUQ) PARA PAVIMENTACAO ASFALTICA, PADRAO DNIT, FAIXA C, COM CAP 50/70 - AQUISICAO POSTO USINA | E4: T | F4: =IF(A4="INS. SINAPI",VLOOKUP(C4,'INSUMOS SINAPI'!A:E,5,0),IF(A4="COMP. SINAPI",VLOOKUP(C4,'COMPOSIÇÃO ANALI sinapi'!A:E,5,0),IF(A4="INS. SICRO",VLOOKUP(C4,'INSUMOS SICRO'!B:F,5,0),""))) -> 419,00
A5: INS. SINAPI | B5: SINAPI | C5: 4059 | D5: MEIO-FIO OU GUIA DE CONCRETO, PRE-MOLDADO, COMP 1 M, *30 X 15/ 12* CM (H X L1/L2) | E5: M | F5: =IF(A5="INS. SINAPI",VLOOKUP(C5,'INSUMOS SINAPI'!A:E,5,0),IF(A5="COMP. SINAPI",VLOOKUP(C5,'COMPOSIÇÃO ANALI sinapi'!A:E,5,0),IF(A5="INS. SICRO",VLOOKUP(C5,'INSUMOS SICRO'!B:F,5,0),""))) -> 23,63
A6: COMP. ORSE | B6: ORSE | C6: 4299 | D6: Aluguel de container - Almoxarifado sem banheiro - 6,00 x 2,40m | E6: mês | F6: 654.42
A7: INSUMO | B7: ORSE | C7: 4415 | D7: Veículo leve - Volkswagen:GOL 1000 - automóvel até 100 hp | E7: H | F7: 4.4
A8: INSUMO | B8: ORSE | C8: 5896 | D8: VEÍCULO TIPO SEDAN OU PICK-UP CAPACIDADE 0,6 TON | E8: h | F8: 8.33
A9: INS. SINAPI | B9: SINAPI | C9: 4417 | D9: Peca de madeira de lei *2,5 x 7,5* cm (1" x 3"), não aparelhada, (p/telhado) | E9: m | F9: =IF(A9="INS. SINAPI",VLOOKUP(C9,'INSUMOS SINAPI'!A:E,5,0),IF(A9="COMP. SINAPI",VLOOKUP(C9,'COMPOSIÇÃO ANALI sinapi'!A:E,5,0),IF(A9="INS. SICRO",VLOOKUP(C9,'INSUMOS SICRO'!B:F,5,0),""))) -> 7,45
A10: INS. SINAPI | B10: SINAPI | C10: 4491 | D10: Peca de madeira nativa / regional 7,5 x 7,5cm (3x3) nao aparelhada (p/forma) | E10: m | F10: =IF(A10="INS. SINAPI",VLOOKUP(C10,'INSUMOS SINAPI'!A:E,5,0),IF(A10="COMP. SINAPI",VLOOKUP(C10,'COMPOSIÇÃO ANALI sinapi'!A:E,5,0),IF(A10="INS. SICRO",VLOOKUP(C10,'INSUMOS SICRO'!B:F,5,0),""))) -> 8,14
A11: INS. SINAPI | B11: SINAPI | C11: 4718 | D11: Pedra Britada nº 2 | E11: m³ | F11: =IF(A11="INS. SINAPI",VLOOKUP(C11,'INSUMOS SINAPI'!A:E,5,0),IF(A11="COMP. SINAPI",VLOOKUP(C11,'COMPOSIÇÃO ANALI sinapi'!A:E,5,0),IF(A11="INS. SICRO",VLOOKUP(C11,'INSUMOS SICRO'!B:F,5,0),""))) -> 73,91
A12: INS. SINAPI | B12: SINAPI | C12: 4721 | D12: PEDRA BRITADA N. 1 (9,5 a 19 MM) POSTO PEDREIRA/FORNECEDOR, SEM FRETE | E12: M3 | F12: =IF(A12="INS. SINAPI",VLOOKUP(C12,'INSUMOS SINAPI'!A:E,5,0),IF(A12="COMP. SINAPI",VLOOKUP(C12,'COMPOSIÇÃO ANALI sinapi'!A:E,5,0),IF(A12="INS. SICRO",VLOOKUP(C12,'INSUMOS SICRO'!B:F,5,0),""))) -> 73,52
A13: INS. SINAPI | B13: SINAPI | C13: 4730 | D13: PEDRA DE MÃO | E13: m³ | F13: =IF(A13="INS. SINAPI",VLOOKUP(C13,'INSUMOS SINAPI'!A:E,5,0),IF(A13="COMP. SINAPI",VLOOKUP(C13,'COMPOSIÇÃO ANALI sinapi'!A:E,5,0),IF(A13="INS. SICRO",VLOOKUP(C13,'INSUMOS SICRO'!B:F,5,0),""))) -> 69,10
A14: INS. SINAPI | B14: SINAPI | C14: 4813 | D14: Placa de obra (para construcao civil) em chapa galvanizada *nº 22*, de *2,0 x 1,125* m | E14: m² | F14: =IF(A14="INS. SINAPI",VLOOKUP(C14,'INSUMOS SINAPI'!A:E,5,0),IF(A14="COMP. SINAPI",VLOOKUP(C14,'COMPOSIÇÃO ANALI sinapi'!A:E,5,0),IF(A14="INS. SICRO",VLOOKUP(C14,'INSUMOS SICRO'!B:F,5,0),""))) -> 315,00
A15: INS. SINAPI | B15: SINAPI | C15: 5075 | D15: Prego 18x30. | E15: kg | F15: =IF(A15="INS. SINAPI",VLOOKUP(C15,'INSUMOS SINAPI'!A:E,5,0),IF(A15="COMP. SINAPI",VLOOKUP(C15,'COMPOSIÇÃO ANALI sinapi'!A:E,5,0),IF(A15="INS. SICRO",VLOOKUP(C15,'INSUMOS SICRO'!B:F,5,0),""))) -> 18,82
A16: INS. SINAPI | B16: SINAPI | C16: 5318 | D16: SOLVENTE DILUENTE A BASE DE AGUARRAS | E16: L | F16: =IF(A16="INS. SINAPI",VLOOKUP(C16,'INSUMOS SINAPI'!A:E,5,0),IF(A16="COMP. SINAPI",VLOOKUP(C16,'COMPOSIÇÃO ANALI sinapi'!A:E,5,0),IF(A16="INS. SICRO",VLOOKUP(C16,'INSUMOS SICRO'!B:F,5,0),""))) -> 14,60
A17: COMP. SINAPI | B17: SINAPI | C17: 5689 | D17: GRADE DE 24 DISCOS REBOCÁVEL DE 24" | E17: CHP | F17: =IF(A17="INS. SINAPI",VLOOKUP(C17,'INSUMOS SINAPI'!A:E,5,0),IF(A17="COMP. SINAPI",VLOOKUP(C17,'COMP Sint. Sinapi'!A5:E6676,5,0),IF(A17="INS. SICRO",VLOOKUP(C17,'INSUMOS SICRO'!B:F,5,0),""))) -> 7,08
A18: COMP. SINAPI | B18: SINAPI | C18: 5690 | D18: GRADE DE 24 DISCOS REBOCÁVEL DE 24" | E18: CHI | F18: =IF(A18="INS. SINAPI",VLOOKUP(C18,'INSUMOS SINAPI'!A:E,5,0),IF(A18="COMP. SINAPI",VLOOKUP(C18,'COMP Sint. Sinapi'!A6:E6677,5,0),IF(A18="INS. SICRO",VLOOKUP(C18,'INSUMOS SICRO'!B:F,5,0),""))) -> 4,40
A19: COMP. SINAPI | B19: SINAPI | C19: 5795 | D19: MARTELETE PERFURADOR/ROMPEDOR A AR COMPRIMIDO DE 25 KG | E19: CHP | F19: =IF(A19="INS. SINAPI",VLOOKUP(C19,'INSUMOS SINAPI'!A:E,5,0),IF(A19="COMP. SINAPI",VLOOKUP(C19,'COMP Sint. Sinapi'!A7:E6678,5,0),IF(A19="INS. SICRO",VLOOKUP(C19,'INSUMOS SICRO'!B:F,5,0),""))) -> 22,51
A20: COMP. SINAPI | B20: SINAPI | C20: 5845 | D20: TRATOR AGRÍCOLA - 77 KW | E20: CHI | F20: =IF(A20="INS. SINAPI",VLOOKUP(C20,'INSUMOS SINAPI'!A:E,5,0),IF(A20="COMP. SINAPI",VLOOKUP(C20,'COMP Sint. Sinapi'!A8:E6679,5,0),IF(A20="INS. SICRO",VLOOKUP(C20,'INSUMOS SICRO'!B:F,5,0),""))) -> 44,67
A21: COMP. SINAPI | B21: SINAPI | C21: 5855 | D21: TRATOR DE ESTEIRAS COM LÂMINA - 259 KW | E21: CHP | F21: =IF(A21="INS. SINAPI",VLOOKUP(C21,'INSUMOS SINAPI'!A:E,5,0),IF(A21="COMP. SINAPI",VLOOKUP(C21,'COMP Sint. Sinapi'!A9:E6680,5,0),IF(A21="INS. SICRO",VLOOKUP(C21,'INSUMOS SICRO'!B:F,5,0),""))) -> 511,20
A22: COMP. SINAPI | B22: SINAPI | C22: 5875 | D22: RETROESCAVADEIRA DE PNEUS - 58 KW | E22: H | F22: =IF(A22="INS. SINAPI",VLOOKUP(C22,'INSUMOS SINAPI'!A:E,5,0),IF(A22="COMP. SINAPI",VLOOKUP(C22,'COMP Sint. Sinapi'!A10:E6681,5,0),IF(A22="INS. SICRO",VLOOKUP(C22,'INSUMOS SICRO'!B:F,5,0),""))) -> 111,41
A23: COMP. SINAPI | B23: SINAPI | C23: 5901 | D23: CAMINHÃO TANQUE COM CAPACIDADE DE 10.000 L - 188 KW | E23: CHP | F23: =IF(A23="INS. SINAPI",VLOOKUP(C23,'INSUMOS SINAPI'!A:E,5,0),IF(A23="COMP. SINAPI",VLOOKUP(C23,'COMP Sint. Sinapi'!A11:E6682,5,0),IF(A23="INS. SICRO",VLOOKUP(C23,'INSUMOS SICRO'!B:F,5,0),""))) -> 238,83
A24: COMP. SINAPI | B24: SINAPI | C24: 5903 | D24: CAMINHÃO TANQUE COM CAPACIDADE DE 10.000 L - 188 KW | E24: CHI | F24: =IF(A24="INS. SINAPI",VLOOKUP(C24,'INSUMOS SINAPI'!A:E,5,0),IF(A24="COMP. SINAPI",VLOOKUP(C24,'COMP Sint. Sinapi'!A12:E6683,5,0),IF(A24="INS. SICRO",VLOOKUP(C24,'INSUMOS SICRO'!B:F,5,0),""))) -> 50,40
A25: COMP. SINAPI | B25: SINAPI | C25: 5932 | D25: MOTONIVELADORA - 93 KW | E25: CHP | F25: =IF(A25="INS. SINAPI",VLOOKUP(C25,'INSUMOS SINAPI'!A:E,5,0),IF(A25="COMP. SINAPI",VLOOKUP(C25,'COMP Sint. Sinapi'!A13:E6684,5,0),IF(A25="INS. SICRO",VLOOKUP(C25,'INSUMOS SICRO'!B:F,5,0),""))) -> 203,03
A26: COMP. SINAPI | B26: SINAPI | C26: 5934 | D26: MOTONIVELADORA - 93 KW | E26: CHI | F26: =IF(A26="INS. SINAPI",VLOOKUP(C26,'INSUMOS SINAPI'!A:E,5,0),IF(A26="COMP. SINAPI",VLOOKUP(C26,'COMP Sint. Sinapi'!A14:E6685,5,0),IF(A26="INS. SICRO",VLOOKUP(C26,'INSUMOS SICRO'!B:F,5,0),""))) -> 78,39
A27: COMP. SINAPI | B27: SINAPI | C27: 5944 | D27: CARREGADEIRA DE PNEUS PARA ROCHA COM CAPACIDADE DE 2,9 M³ - 96 KW | E27: CHP | F27: =IF(A27="INS. SINAPI",VLOOKUP(C27,'INSUMOS SINAPI'!A:E,5,0),IF(A27="COMP. SINAPI",VLOOKUP(C27,'COMP Sint. Sinapi'!A15:E6686,5,0),IF(A27="INS. SICRO",VLOOKUP(C27,'INSUMOS SICRO'!B:F,5,0),""))) -> 180,12
A28: COMP. SINAPI | B28: SINAPI | C28: 5946 | D28: CARREGADEIRA DE PNEUS PARA ROCHA COM CAPACIDADE DE 2,9 M³ - 96 KW | E28: CHI | F28: =IF(A28="INS. SINAPI",VLOOKUP(C28,'INSUMOS SINAPI'!A:E,5,0),IF(A28="COMP. SINAPI",VLOOKUP(C28,'COMP Sint. Sinapi'!A16:E6687,5,0),IF(A28="INS. SICRO",VLOOKUP(C28,'INSUMOS SICRO'!B:F,5,0),""))) -> 72,70
A29: COMP. SINAPI | B29: SINAPI | C29: 5953 | D29: COMPRESSOR DE AR PORTÁTIL DE 124 PCM - 27 Kw | E29: CHP | F29: =IF(A29="INS. SINAPI",VLOOKUP(C29,'INSUMOS SINAPI'!A:E,5,0),IF(A29="COMP. SINAPI",VLOOKUP(C29,'COMP Sint. Sinapi'!A17:E6688,5,0),IF(A29="INS. SICRO",VLOOKUP(C29,'INSUMOS SICRO'!B:F,5,0),""))) -> 46,14
A30: COMP. SINAPI | B30: SINAPI | C30: 7049 | D30: ROLO COMP. PÉ DE CARNEIRO VIBR. AUTOP. DE 11,6 T - 82 KW | E30: H | F30: =IF(A30="INS. SINAPI",VLOOKUP(C30,'INSUMOS SINAPI'!A:E,5,0),IF(A30="COMP. SINAPI",VLOOKUP(C30,'COMP Sint. Sinapi'!A18:E6689,5,0),IF(A30="INS. SICRO",VLOOKUP(C30,'INSUMOS SICRO'!B:F,5,0),""))) -> 175,36
A31: INS. SINAPI | B31: SINAPI | C31: 7343 | D31: TINTA A BASE DE RESINA ACRILICA, PARA SINALIZACAO HORIZONTAL VIARIA (NBR 11862) | E31: L | F31: =IF(A31="INS. SINAPI",VLOOKUP(C31,'INSUMOS SINAPI'!A:E,5,0),IF(A31="COMP. SINAPI",VLOOKUP(C31,'COMP Sint. Sinapi'!A19:E6690,5,0),IF(A31="INS. SICRO",VLOOKUP(C31,'INSUMOS SICRO'!B:F,5,0),""))) -> 13,62
A32: INS. SINAPI | B32: SINAPI | C32: 7348 | D32: TINTA ACRILICA PREMIUM PARA PISO | E32: L | F32: =IF(A32="INS. SINAPI",VLOOKUP(C32,'INSUMOS SINAPI'!A:E,5,0),IF(A32="COMP. SINAPI",VLOOKUP(C32,'COMP Sint. Sinapi'!A20:E6691,5,0),IF(A32="INS. SICRO",VLOOKUP(C32,'INSUMOS SICRO'!B:F,5,0),""))) -> 16,03
A33: INS. SINAPI | B33: SINAPI | C33: 10775 | D33: Locação de container - Escritório com banheiro - 6,20 x 2,20m | E33: mês | F33: =IF(A33="INS. SINAPI",VLOOKUP(C33,'INSUMOS SINAPI'!A:E,5,0),IF(A33="COMP. SINAPI",VLOOKUP(C33,'COMP Sint. Sinapi'!A21:E6692,5,0),IF(A33="INS. SICRO",VLOOKUP(C33,'INSUMOS SICRO'!B:F,5,0),""))) -> 630,00
A34: INS. SINAPI | B34: SINAPI | C34: 14250 | D34: ENERGIA | E34: KW/H | F34: =IF(A34="INS. SINAPI",VLOOKUP(C34,'INSUMOS SINAPI'!A:E,5,0),IF(A34="COMP. SINAPI",VLOOKUP(C34,'COMP Sint. Sinapi'!A22:E6693,5,0),IF(A34="INS. SICRO",VLOOKUP(C34,'INSUMOS SICRO'!B:F,5,0),""))) -> 1,00
A35: INS. SINAPI | B35: SINAPI | C35: 14583 | D35: ÁGUA | E35: M3 | F35: =IF(A35="INS. SINAPI",VLOOKUP(C35,'INSUMOS SINAPI'!A:E,5,0),IF(A35="COMP. SINAPI",VLOOKUP(C35,'COMP Sint. Sinapi'!A23:E6694,5,0),IF(A35="INS. SICRO",VLOOKUP(C35,'INSUMOS SICRO'!B:F,5,0),""))) -> 18,92
A36: INS. SINAPI | B36: SINAPI | C36: 25972 | D36: MICROESFERAS DE VIDRO PARA SINALIZACAO HORIZONTAL VIARIA, TIPO I-B (PREMIX) - NBR 16184 | E36: KG | F36: =IF(A36="INS. SINAPI",VLOOKUP(C36,'INSUMOS SINAPI'!A:E,5,0),IF(A36="COMP. SINAPI",VLOOKUP(C36,'COMP Sint. Sinapi'!A24:E6695,5,0),IF(A36="INS. SICRO",VLOOKUP(C36,'INSUMOS SICRO'!B:F,5,0),""))) -> 13,33
A37: INS. SINAPI | B37: SINAPI | C37: 41899 | D37: CIMENTO ASFÁLTICO CAP 50/70 | E37: T | F37: =IF(A37="INS. SINAPI",VLOOKUP(C37,'INSUMOS SINAPI'!A:E,5,0),IF(A37="COMP. SINAPI",VLOOKUP(C37,'COMP Sint. Sinapi'!A25:E6696,5,0),IF(A37="INS. SICRO",VLOOKUP(C37,'INSUMOS SICRO'!B:F,5,0),""))) -> 4.644,61
A38: INS. SINAPI | B38: SINAPI | C38: 41903 | D38: EMULSAO ASFALTICA CATIONICA RR-2C PARA USO EM PAVIMENTACAO ASFALTICA (COLETADO CAIXA NA ANP ACRESCIDO DE ICMS) | E38: KG | F38: =IF(A38="INS. SINAPI",VLOOKUP(C38,'INSUMOS SINAPI'!A:E,5,0),IF(A38="COMP. SINAPI",VLOOKUP(C38,'COMP Sint. Sinapi'!A26:E6697,5,0),IF(A38="INS. SICRO",VLOOKUP(C38,'INSUMOS SICRO'!B:F,5,0),""))) -> 3,61
A39: COMP. SINAPI | B39: SINAPI | C39: 100574 | D39: ESPALHAMENTO DE MATERIAL COM TRATOR DE ESTEIRAS. AF_11/2019 | E39: M³ | F39: =IF(A39="INS. SINAPI",VLOOKUP(C39,'INSUMOS SINAPI'!A:E,5,0),IF(A39="COMP. SINAPI",VLOOKUP(C39,'COMP Sint. Sinapi'!A27:E6698,5,0),IF(A39="INS. SICRO",VLOOKUP(C39,'INSUMOS SICRO'!B:F,5,0),""))) -> 1,12
A40: COMP. SINAPI | B40: SINAPI | C40: 83356 | D40: TRANSPORTE PEDRA DE MAO | E40: m² X KM
A41: COMP. SINAPI | B41: SINAPI | C41: 87445 | D41: Betoneira 320 l, diesel, potencia de 5,5 hp, sem carregador mecanico (locacao) | E41: h | F41: =IF(A41="INS. SINAPI",VLOOKUP(C41,'INSUMOS SINAPI'!A:E,5,0),IF(A41="COMP. SINAPI",VLOOKUP(C41,'COMP Sint. Sinapi'!A29:E6700,5,0),IF(A41="INS. SICRO",VLOOKUP(C41,'INSUMOS SICRO'!B:F,5,0),""))) -> 4,28
A42: COMP. SINAPI | B42: SINAPI | C42: 88257 | D42: BLASTER | E42: H | F42: =IF(A42="INS. SINAPI",VLOOKUP(C42,'INSUMOS SINAPI'!A:E,5,0),IF(A42="COMP. SINAPI",VLOOKUP(C42,'COMP Sint. Sinapi'!A30:E6701,5,0),IF(A42="INS. SICRO",VLOOKUP(C42,'INSUMOS SICRO'!B:F,5,0),""))) -> 25,97
A43: COMP. SINAPI | B43: SINAPI | C43: 88262 | D43: CARPINTEIRO DE FORMAS COM ENCARGOS COMPLEMENTARES | E43: h | F43: =IF(A43="INS. SINAPI",VLOOKUP(C43,'INSUMOS SINAPI'!A:E,5,0),IF(A43="COMP. SINAPI",VLOOKUP(C43,'COMP Sint. Sinapi'!A31:E6702,5,0),IF(A43="INS. SICRO",VLOOKUP(C43,'INSUMOS SICRO'!B:F,5,0),""))) -> 22,76
A44: COMP. SINAPI | B44: SINAPI | C44: 88309 | D44: PEDREIRO COM ENCARGOS COMPLEMENTARES | E44: H
A45: COMP. SINAPI | B45: SINAPI | C45: 88377 | D45: OPERADOR DE BETONEIRA ESTACIONÁRIA/MISTURADOR COM ENCARGOS COMPLEMENTARES | E45: H
A46: COMP. SINAPI | B46: SINAPI | C46: 88629 | D46: ARGAMASSA TRAÇO 1:3 (EM VOLUME DE CIMENTO E AREIA MÉDIA ÚMIDA), PREPARO MANUAL. AF_08/2019 | E46: M3 | F46: =IF(A46="INS. SINAPI",VLOOKUP(C46,'INSUMOS SINAPI'!A:E,5,0),IF(A46="COMP. SINAPI",VLOOKUP(C46,'COMP Sint. Sinapi'!A34:E6705,5,0),IF(A46="INS. SICRO",VLOOKUP(C46,'INSUMOS SICRO'!B:F,5,0),""))) -> 532,74
A47: COMP. SINAPI | B47: SINAPI | C47: 88830 | D47: BETONEIRA CAPACIDADE NOMINAL DE 400 L, CAPACIDADE DE MISTURA 280 L, MOTOR ELÉTRICO TRIFÁSICO POTÊNCIA DE 2 CV, SEM CARREGADOR - CHP DIURNO. AF_10/2014 | E47: CHP | F47: =IF(A47="INS. SINAPI",VLOOKUP(C47,'INSUMOS SINAPI'!A:E,5,0),IF(A47="COMP. SINAPI",VLOOKUP(C47,'COMP Sint. Sinapi'!A35:E6706,5,0),IF(A47="INS. SICRO",VLOOKUP(C47,'INSUMOS SICRO'!B:F,5,0),""))) -> 1,85
A48: COMP. SINAPI | B48: SINAPI | C48: 88831 | D48: BETONEIRA CAPACIDADE NOMINAL DE 400 L, CAPACIDADE DE MISTURA 280 L, MOTOR ELÉTRICO TRIFÁSICO POTÊNCIA DE 2 CV, SEM CARREGADOR - CHI DIURNO. AF_10/2014 | E48: CHI | F48: =IF(A48="INS. SINAPI",VLOOKUP(C48,'INSUMOS SINAPI'!A:E,5,0),IF(A48="COMP. SINAPI",VLOOKUP(C48,'COMP Sint. Sinapi'!A36:E6707,5,0),IF(A48="INS. SICRO",VLOOKUP(C48,'INSUMOS SICRO'!B:F,5,0),""))) -> 0,34
A49: COMP. SINAPI | B49: SINAPI | C49: 88843 | D49: TRATOR DE ESTEIRAS COM LÂMINA - 112 KW | E49: CHP | F49: =IF(A49="INS. SINAPI",VLOOKUP(C49,'INSUMOS SINAPI'!A:E,5,0),IF(A49="COMP. SINAPI",VLOOKUP(C49,'COMP Sint. Sinapi'!A37:E6708,5,0),IF(A49="INS. SICRO",VLOOKUP(C49,'INSUMOS SICRO'!B:F,5,0),""))) -> 166,11
A50: COMP. SINAPI | B50: SINAPI | C50: 88844 | D50: TRATOR DE ESTEIRAS COM LÂMINA - 112 KW | E50: CHI | F50: =IF(A50="INS. SINAPI",VLOOKUP(C50,'INSUMOS SINAPI'!A:E,5,0),IF(A50="COMP. SINAPI",VLOOKUP(C50,'COMP Sint. Sinapi'!A38:E6709,5,0),IF(A50="INS. SICRO",VLOOKUP(C50,'INSUMOS SICRO'!B:F,5,0),""))) -> 57,97
A51: COMP. SINAPI | B51: SINAPI | C51: 89035 | D51: TRATOR AGRÍCOLA - 77 KW | E51: CHP | F51: =IF(A51="INS. SINAPI",VLOOKUP(C51,'INSUMOS SINAPI'!A:E,5,0),IF(A51="COMP. SINAPI",VLOOKUP(C51,'COMP Sint. Sinapi'!A39:E6710,5,0),IF(A51="INS. SICRO",VLOOKUP(C51,'INSUMOS SICRO'!B:F,5,0),""))) -> 148,72
A52: COMP. SINAPI | B52: SINAPI | C52: 89876 | D52: CAMINHÃO BASCULANTE COM CAPACIDADE DE 14 M³ - 323 KW | E52: CHP | F52: =IF(A52="INS. SINAPI",VLOOKUP(C52,'INSUMOS SINAPI'!A:E,5,0),IF(A52="COMP. SINAPI",VLOOKUP(C52,'COMP Sint. Sinapi'!A40:E6711,5,0),IF(A52="INS. SICRO",VLOOKUP(C52,'INSUMOS SICRO'!B:F,5,0),""))) -> 256,84
A53: COMP. SINAPI | B53: SINAPI | C53: 89877 | D53: CAMINHÃO BASCULANTE COM CAPACIDADE DE 14 M³ - 323 KW | E53: CHI | F53: =IF(A53="INS. SINAPI",VLOOKUP(C53,'INSUMOS SINAPI'!A:E,5,0),IF(A53="COMP. SINAPI",VLOOKUP(C53,'COMP Sint. Sinapi'!A41:E6712,5,0),IF(A53="INS. SICRO",VLOOKUP(C53,'INSUMOS SICRO'!B:F,5,0),""))) -> 61,65
A54: COMP. SINAPI | B54: SINAPI | C54: 90772 | D54: AUXILIAR DE ESCRITORIO COM ENCARGOS COMPLEMENTARES | E54: H
A55: COMP. SINAPI | B55: SINAPI | C55: 90777 | D55: ENGENHEIRO CIVIL DE OBRA JUNIOR COM ENCARGOS COMPLEMENTARES | E55: H
A56: COMP. SINAPI | B56: SINAPI | C56: 90780 | D56: MESTRE DE OBRAS COM ENCARGOS COMPLEMENTARES | E56: H
A57: COMP. SINAPI | B57: SINAPI | C57: 94964 | D57: CONCRETO FCK = 20 MPA - CONFECÇÃO EM BETONEIRA E LANÇAMENTO MANUAL - AREIA E BRITA COMERCIAIS | E57: M3 | F57: =IF(A57="INS. SINAPI",VLOOKUP(C57,'INSUMOS SINAPI'!A:E,5,0),IF(A57="COMP. SINAPI",VLOOKUP(C57,'COMP Sint. Sinapi'!A45:E6716,5,0),IF(A57="INS. SICRO",VLOOKUP(C57,'INSUMOS SICRO'!B:F,5,0),""))) -> 395,24
A58: COMP.SICRO | B58: DNIT | C58: 4816126 | D58: CONFECÇÃO DE TUBOS DE CONCRETO D = 0,60 M - AREIA E BRITA COMERCIAIS | E58: m | F58: =IF(A58="INS. SINAPI",VLOOKUP(C58,'INSUMOS SINAPI'!A:E,5,0),IF(A58="COMP. SINAPI",VLOOKUP(C58,'COMP Sint. Sinapi'!A46:E6717,5,0),IF(A58="INS. SICRO",VLOOKUP(C58,'INSUMOS SICRO'!B:F,5,0),""))) -> 
A59: COMP. SINAPI | B59: SINAPI | C59: 95708 | D59: PERFURATRIZ SOBRE ESTEIRAS - 145 KW | E59: CHP | F59: =IF(A59="INS. SINAPI",VLOOKUP(C59,'INSUMOS SINAPI'!A:E,5,0),IF(A59="COMP. SINAPI",VLOOKUP(C59,'COMP Sint. Sinapi'!A47:E6718,5,0),IF(A59="INS. SICRO",VLOOKUP(C59,'INSUMOS SICRO'!B:F,5,0),""))) -> 138,51
A60: COMP. SINAPI | B60: SINAPI | C60: 95720 | D60: ESCAVADEIRA HIDRÁULICA SOBRE ESTEIRA COM CAÇAMBA COM CAPACIDADE DE 1,5 M³ - 110 KW | E60: CHP | F60: =IF(A60="INS. SINAPI",VLOOKUP(C60,'INSUMOS SINAPI'!A:E,5,0),IF(A60="COMP. SINAPI",VLOOKUP(C60,'COMP Sint. Sinapi'!A48:E6719,5,0),IF(A60="INS. SICRO",VLOOKUP(C60,'INSUMOS SICRO'!B:F,5,0),""))) -> 195,13
A61: COMP. SINAPI | B61: SINAPI | C61: 96035 | D61: CAMINHÃO BASCULANTE PARA ROCHA COM CAPACIDADE DE 12 M³ - 188 KW | E61: CHI | F61: =IF(A61="INS. SINAPI",VLOOKUP(C61,'INSUMOS SINAPI'!A:E,5,0),IF(A61="COMP. SINAPI",VLOOKUP(C61,'COMP Sint. Sinapi'!A49:E6720,5,0),IF(A61="INS. SICRO",VLOOKUP(C61,'INSUMOS SICRO'!B:F,5,0),""))) -> 213,90
A62: COMP.SICRO | B62: DNIT | C62: 407820 | D62: ARMAÇÃO EM AÇO CA-60 - FORNECIMENTO, PREPARO E COLOCAÇÃO | E62: kg | F62: =IF(A62="INS. SINAPI",VLOOKUP(C62,'INSUMOS SINAPI'!A:E,5,0),IF(A62="COMP. SINAPI",VLOOKUP(C62,'COMP Sint. Sinapi'!A50:E6721,5,0),IF(A62="INS. SICRO",VLOOKUP(C62,'INSUMOS SICRO'!B:F,5,0),""))) -> 
A63: COMP.SICRO | B63: DNIT | C63: 1506055 | D63: PEDRA ARGAMASSADA COM CIMENTO E AREIA 1:3 - AREIA E PEDRA DE MÃO COMERCIAL - FORNECIMENTO E ASSENTAMENTO | E63: m² | F63: =IF(A63="INS. SINAPI",VLOOKUP(C63,'INSUMOS SINAPI'!A:E,5,0),IF(A63="COMP. SINAPI",VLOOKUP(C63,'COMP Sint. Sinapi'!A51:E6722,5,0),IF(A63="INS. SICRO",VLOOKUP(C63,'INSUMOS SICRO'!B:F,5,0),""))) -> 
A64: COMP.SICRO | B64: DNIT | C64: 2003842 | D64: ENCHIMENTO DE JUNTA DE CONCRETO COM ARGAMASSA ASFÁLTICA DE DENSIDADE 1.700 KG/M³ - ESPESSURA DE 1 CM | E64: kg | F64: =IF(A64="INS. SINAPI",VLOOKUP(C64,'INSUMOS SINAPI'!A:E,5,0),IF(A64="COMP. SINAPI",VLOOKUP(C64,'COMP Sint. Sinapi'!A52:E6723,5,0),IF(A64="INS. SICRO",VLOOKUP(C64,'INSUMOS SICRO'!B:F,5,0),""))) -> 
A65: COMP.SICRO | B65: DNIT | C65: 4805751 | D65: ESCAVAÇÃO MANUAL EM MATERIAL DE 1ª CATEGORIA NA PROFUNDIDADE DE ATÉ 2M | E65: m³ | F65: =IF(A65="INS. SINAPI",VLOOKUP(C65,'INSUMOS SINAPI'!A:E,5,0),IF(A65="COMP. SINAPI",VLOOKUP(C65,'COMP Sint. Sinapi'!A53:E6724,5,0),IF(A65="INS. SICRO",VLOOKUP(C65,'INSUMOS SICRO'!B:F,5,0),""))) -> 
A66: COMP.SICRO | B66: DNIT | C66: 3103302 | D66: FORMAS DE TÁBUAS DE PINHO PARA DISPOSITIVOS DE DRENAGEM - UTILIZAÇÃO DE 3 VEZES - CONFECÇÃO, INSTALAÇÃO E RETIRADA | E66: m² | F66: =IF(A66="INS. SINAPI",VLOOKUP(C66,'INSUMOS SINAPI'!A:E,5,0),IF(A66="COMP. SINAPI",VLOOKUP(C66,'COMP Sint. Sinapi'!A54:E6725,5,0),IF(A66="INS. SICRO",VLOOKUP(C66,'INSUMOS SICRO'!B:F,5,0),""))) -> 
A67: COMP.SICRO | B67: DNIT | C67: 3108022 | D67: GUIA DE MADEIRA DE 2,5 X 8,0 CM - CONFECÇÃO E INSTALAÇÃO | E67: m | F67: =IF(A67="INS. SINAPI",VLOOKUP(C67,'INSUMOS SINAPI'!A:E,5,0),IF(A67="COMP. SINAPI",VLOOKUP(C67,'COMP Sint. Sinapi'!A55:E6726,5,0),IF(A67="INS. SICRO",VLOOKUP(C67,'INSUMOS SICRO'!B:F,5,0),""))) -> 
A68: COMP.SICRO | B68: DNIT | C68: 4413996 | D68: ENLEIVAMENTO | E68: M² | F68: =IF(A68="INS. SINAPI",VLOOKUP(C68,'INSUMOS SINAPI'!A:E,5,0),IF(A68="COMP. SINAPI",VLOOKUP(C68,'COMP Sint. Sinapi'!A56:E6727,5,0),IF(A68="INS. SICRO",VLOOKUP(C68,'INSUMOS SICRO'!B:F,5,0),""))) -> 
A69: COMP. SICRO | B69: DNIT | C69: 5213414 | D69: CONFECÇÃO DE PLACA EM AÇO Nº 16 GALVANIZADO, COM PELÍCULA RETRORREFLETIVA TIPO I + SI | E69: M² | F69: =IF(A69="INS. SINAPI",VLOOKUP(C69,'INSUMOS SINAPI'!A:E,5,0),IF(A69="COMP. SINAPI",VLOOKUP(C69,'COMP Sint. Sinapi'!A57:E6728,5,0),IF(A69="INS. SICRO",VLOOKUP(C69,'INSUMOS SICRO'!B:F,5,0),""))) -> 
A70: COMP. ORSE | B70: ORSE | C70: 12651/ORSE | D70: APILOAMENTO MANUAL | E70: m³ | F70: =IF(A70="INS. SINAPI",VLOOKUP(C70,'INSUMOS SINAPI'!A:E,5,0),IF(A70="COMP. SINAPI",VLOOKUP(C70,'COMP Sint. Sinapi'!A58:E6729,5,0),IF(A70="INS. SICRO",VLOOKUP(C70,'INSUMOS SICRO'!B:F,5,0),""))) -> 
A71: COMP. SINAPI | B71: SINAPI | C71: 5824 | D71: CAMINHÃO TOCO, PBT 16.000 KG, CARGA ÚTIL MÁX. 10.685 KG, DIST. ENTRE EIXOS 4,8 M, POTÊNCIA 189 CV, INCLUSIVE CARROCERIA FIXA ABERTA DE MADEIRA P/ TRANSPORTE GERAL DE CARGA SECA, DIMEN. APROX. 2,5 X 7,00 X 0,50 M - CHP DIURNO. AF_06/2014 | E71: CHP | F71: =IF(A71="INS. SINAPI",VLOOKUP(C71,'INSUMOS SINAPI'!A:E,5,0),IF(A71="COMP. SINAPI",VLOOKUP(C71,'COMP Sint. Sinapi'!A59:E6730,5,0),IF(A71="INS. SICRO",VLOOKUP(C71,'INSUMOS SICRO'!B:F,5,0),""))) -> 155,92
A72: COMP. SINAPI | B72: SINAPI | C72: 5835 | D72: VIBROACABADORA DE ASFALTO SOBRE ESTEIRAS, LARGURA DE PAVIMENTAÇÃO 1,90 M A 5,30 M, POTÊNCIA 105 HP CAPACIDADE 450 T/H - CHP DIURNO. AF_11/2014 | E72: CHP | F72: =IF(A72="INS. SINAPI",VLOOKUP(C72,'INSUMOS SINAPI'!A:E,5,0),IF(A72="COMP. SINAPI",VLOOKUP(C72,'COMP Sint. Sinapi'!A60:E6731,5,0),IF(A72="INS. SICRO",VLOOKUP(C72,'INSUMOS SICRO'!B:F,5,0),""))) -> 353,69
A73: COMP. SINAPI | B73: SINAPI | C73: 5837 | D73: VIBROACABADORA DE ASFALTO SOBRE ESTEIRAS, LARGURA DE PAVIMENTAÇÃO 1,90 M A 5,30 M, POTÊNCIA 105 HP CAPACIDADE 450 T/H - CHI DIURNO. AF_11/2014 | E73: CHI | F73: =IF(A73="INS. SINAPI",VLOOKUP(C73,'INSUMOS SINAPI'!A:E,5,0),IF(A73="COMP. SINAPI",VLOOKUP(C73,'COMP Sint. Sinapi'!A61:E6732,5,0),IF(A73="INS. SICRO",VLOOKUP(C73,'INSUMOS SICRO'!B:F,5,0),""))) -> 137,36
A74: COMP. ORSE | B74: ORSE | C74: 4 | D74: Limpeza mecanizada do terreno c/ trator esteira (vegetação rasteira) inclusive carga e transporte - dmt até 1 km | E74: M2 | F74: =IF(A74="INS. SINAPI",VLOOKUP(C74,'INSUMOS SINAPI'!A:E,5,0),IF(A74="COMP. SINAPI",VLOOKUP(C74,'COMP Sint. Sinapi'!A62:E6733,5,0),IF(A74="INS. SICRO",VLOOKUP(C74,'INSUMOS SICRO'!B:F,5,0),""))) -> 
A75: COMP. SINAPI | B75: SINAPI | C75: 83362 | D75: ESPARGIDOR DE ASFALTO PRESSURIZADO, TANQUE 6 M3 COM ISOLAÇÃO TÉRMICA, AQUECIDO COM 2 MAÇARICOS, COM BARRA ESPARGIDORA 3,60 M, MONTADO SOBRE CAMINHÃO TOCO, PBT 14.300 KG, POTÊNCIA 185 CV - CHP DIURNO. AF_08/2015 | E75: CHP | F75: =IF(A75="INS. SINAPI",VLOOKUP(C75,'INSUMOS SINAPI'!A:E,5,0),IF(A75="COMP. SINAPI",VLOOKUP(C75,'COMP Sint. Sinapi'!A63:E6734,5,0),IF(A75="INS. SICRO",VLOOKUP(C75,'INSUMOS SICRO'!B:F,5,0),""))) -> 239,89
A76: COMP. SINAPI | B76: SINAPI | C76: 88278 | D76: Montador | E76: H | F76: =IF(A76="INS. SINAPI",VLOOKUP(C76,'INSUMOS SINAPI'!A:E,5,0),IF(A76="COMP. SINAPI",VLOOKUP(C76,'COMP Sint. Sinapi'!A64:E6735,5,0),IF(A76="INS. SICRO",VLOOKUP(C76,'INSUMOS SICRO'!B:F,5,0),""))) -> 26,41
A77: COMP. SINAPI | B77: SINAPI | C77: 88314 | D77: RASTELEIRO COM ENCARGOS COMPLEMENTARES | E77: H | F77: =IF(A77="INS. SINAPI",VLOOKUP(C77,'INSUMOS SINAPI'!A:E,5,0),IF(A77="COMP. SINAPI",VLOOKUP(C77,'COMP Sint. Sinapi'!A65:E6736,5,0),IF(A77="INS. SICRO",VLOOKUP(C77,'INSUMOS SICRO'!B:F,5,0),""))) -> 22,19
A78: COMP. SINAPI | B78: SINAPI | C78: 88316 | D78: SERVENTE COM ENCARGOS COMPLEMENTARES | E78: H | F78: =IF(A78="INS. SINAPI",VLOOKUP(C78,'INSUMOS SINAPI'!A:E,5,0),IF(A78="COMP. SINAPI",VLOOKUP(C78,'COMP Sint. Sinapi'!A66:E6737,5,0),IF(A78="INS. SICRO",VLOOKUP(C78,'INSUMOS SICRO'!B:F,5,0),""))) -> 15,57
A79: COMP. SINAPI | B79: SINAPI | C79: 91386 | D79: CAMINHÃO BASCULANTE 10 M3, TRUCADO CABINE SIMPLES, PESO BRUTO TOTAL 23.000 KG, CARGA ÚTIL MÁXIMA 15.935 KG, DISTÂNCIA ENTRE EIXOS 4,80 M, POTÊNCIA 230 CV INCLUSIVE CAÇAMBA METÁLICA - CHP DIURNO. AF_06/2014 | E79: CHP | F79: =IF(A79="INS. SINAPI",VLOOKUP(C79,'INSUMOS SINAPI'!A:E,5,0),IF(A79="COMP. SINAPI",VLOOKUP(C79,'COMP Sint. Sinapi'!A67:E6738,5,0),IF(A79="INS. SICRO",VLOOKUP(C79,'INSUMOS SICRO'!B:F,5,0),""))) -> 203,25
A80: COMP. SINAPI | B80: SINAPI | C80: 94970 | D80: Concreto fck = 20 MPa - confecção em betoneira e lançamento manual - areia e brita comerciais | E80: M³ | F80: =IF(A80="INS. SINAPI",VLOOKUP(C80,'INSUMOS SINAPI'!A:E,5,0),IF(A80="COMP. SINAPI",VLOOKUP(C80,'COMP Sint. Sinapi'!A68:E6739,5,0),IF(A80="INS. SICRO",VLOOKUP(C80,'INSUMOS SICRO'!B:F,5,0),""))) -> 383,97
A81: COMP. SINAPI | B81: SINAPI | C81: 95133 | D81: MÁQUINA DEMARCADORA DE FAIXA DE TRÁFEGO À FRIO, AUTOPROPELIDA, POTÊNCIA 38 HP - CHP DIURNO. AF_07/2016 | E81: CHP | F81: =IF(A81="INS. SINAPI",VLOOKUP(C81,'INSUMOS SINAPI'!A:E,5,0),IF(A81="COMP. SINAPI",VLOOKUP(C81,'COMP Sint. Sinapi'!A69:E6740,5,0),IF(A81="INS. SICRO",VLOOKUP(C81,'INSUMOS SICRO'!B:F,5,0),""))) -> 147,45
A82: COMP. SINAPI | B82: SINAPI | C82: 95631 | D82: ROLO COMPACTADOR VIBRATORIO TANDEM, ACO LISO, POTENCIA 125 HP, PESO SEM/COM LASTRO 10,20/11,65 T, LARGURA DE TRABALHO 1,73 M - CHP DIURNO. AF_11/2016 | E82: CHP | F82: =IF(A82="INS. SINAPI",VLOOKUP(C82,'INSUMOS SINAPI'!A:E,5,0),IF(A82="COMP. SINAPI",VLOOKUP(C82,'COMP Sint. Sinapi'!A70:E6741,5,0),IF(A82="INS. SICRO",VLOOKUP(C82,'INSUMOS SICRO'!B:F,5,0),""))) -> 181,51
A83: COMP. SINAPI | B83: SINAPI | C83: 95632 | D83: ROLO COMPACTADOR VIBRATORIO TANDEM, ACO LISO, POTENCIA 125 HP, PESO SEM/COM LASTRO 10,20/11,65 T, LARGURA DE TRABALHO 1,73 M - CHI DIURNO. AF_11/2016 | E83: CHI | F83: =IF(A83="INS. SINAPI",VLOOKUP(C83,'INSUMOS SINAPI'!A:E,5,0),IF(A83="COMP. SINAPI",VLOOKUP(C83,'COMP Sint. Sinapi'!A71:E6742,5,0),IF(A83="INS. SICRO",VLOOKUP(C83,'INSUMOS SICRO'!B:F,5,0),""))) -> 65,80
A84: COMP. SINAPI | B84: SINAPI | C84: 96013 | D84: TRATOR DE PNEUS COM POTÊNCIA DE 122 CV, TRAÇÃO 4X4, COM VASSOURA MECÂNICA ACOPLADA - CHP DIURNO. AF_02/2017 | E84: CHP | F84: =IF(A84="INS. SINAPI",VLOOKUP(C84,'INSUMOS SINAPI'!A:E,5,0),IF(A84="COMP. SINAPI",VLOOKUP(C84,'COMP Sint. Sinapi'!A72:E6743,5,0),IF(A84="INS. SICRO",VLOOKUP(C84,'INSUMOS SICRO'!B:F,5,0),""))) -> 209,41
A85: COMP. SINAPI | B85: SINAPI | C85: 96014 | D85: TRATOR DE PNEUS COM POTÊNCIA DE 122 CV, TRAÇÃO 4X4, COM VASSOURA MECÂNICA ACOPLADA - CHI DIURNO. AF_02/2017 | E85: CHI | F85: =IF(A85="INS. SINAPI",VLOOKUP(C85,'INSUMOS SINAPI'!A:E,5,0),IF(A85="COMP. SINAPI",VLOOKUP(C85,'COMP Sint. Sinapi'!A73:E6744,5,0),IF(A85="INS. SICRO",VLOOKUP(C85,'INSUMOS SICRO'!B:F,5,0),""))) -> 49,51
A86: COMP. SINAPI | B86: SINAPI | C86: 96155 | D86: TRATOR DE PNEUS COM POTÊNCIA DE 85 CV, TRAÇÃO 4X4, COM VASSOURA MECÂNICA ACOPLADA - CHI DIURNO. AF_02/2017 | E86: CHI | F86: =IF(A86="INS. SINAPI",VLOOKUP(C86,'INSUMOS SINAPI'!A:E,5,0),IF(A86="COMP. SINAPI",VLOOKUP(C86,'COMP Sint. Sinapi'!A74:E6745,5,0),IF(A86="INS. SICRO",VLOOKUP(C86,'INSUMOS SICRO'!B:F,5,0),""))) -> 44,77
A87: COMP. SINAPI | B87: SINAPI | C87: 96157 | D87: TRATOR DE PNEUS COM POTÊNCIA DE 85 CV, TRAÇÃO 4X4, COM VASSOURA MECÂNICA ACOPLADA - CHP DIURNO. AF_03/2017 | E87: CHP | F87: =IF(A87="INS. SINAPI",VLOOKUP(C87,'INSUMOS SINAPI'!A:E,5,0),IF(A87="COMP. SINAPI",VLOOKUP(C87,'COMP Sint. Sinapi'!A75:E6746,5,0),IF(A87="INS. SICRO",VLOOKUP(C87,'INSUMOS SICRO'!B:F,5,0),""))) -> 158,21
A88: COMP. SINAPI | B88: SINAPI | C88: 96463 | D88: ROLO COMPACTADOR DE PNEUS, ESTATICO, PRESSAO VARIAVEL, POTENCIA 110 HP, PESO SEM/COM LASTRO 10,8/27 T, LARGURA DE ROLAGEM 2,30 M - CHP DIURNO. AF_06/2017 | E88: CHP | F88: =IF(A88="INS. SINAPI",VLOOKUP(C88,'INSUMOS SINAPI'!A:E,5,0),IF(A88="COMP. SINAPI",VLOOKUP(C88,'COMP Sint. Sinapi'!A76:E6747,5,0),IF(A88="INS. SICRO",VLOOKUP(C88,'INSUMOS SICRO'!B:F,5,0),""))) -> 170,23
A89: COMP. SINAPI | B89: SINAPI | C89: 96464 | D89: ROLO COMPACTADOR DE PNEUS, ESTATICO, PRESSAO VARIAVEL, POTENCIA 110 HP, PESO SEM/COM LASTRO 10,8/27 T, LARGURA DE ROLAGEM 2,30 M - CHI DIURNO. AF_06/2017 | E89: CHI | F89: =IF(A89="INS. SINAPI",VLOOKUP(C89,'INSUMOS SINAPI'!A:E,5,0),IF(A89="COMP. SINAPI",VLOOKUP(C89,'COMP Sint. Sinapi'!A77:E6748,5,0),IF(A89="INS. SICRO",VLOOKUP(C89,'INSUMOS SICRO'!B:F,5,0),""))) -> 70,16
A90: COMP.SICRO | B90: DNIT | C90: E9647 | D90: COMPACTADOR MANUAL COM SOQUETE VIBRATÓRIO - 4,1 KW | E90: H | F90: =IF(A90="INS. SINAPI",VLOOKUP(C90,'INSUMOS SINAPI'!A:E,5,0),IF(A90="COMP. SINAPI",VLOOKUP(C90,'COMP Sint. Sinapi'!A78:E6749,5,0),IF(A90="INS. SICRO",VLOOKUP(C90,'INSUMOS SICRO'!B:F,5,0),""))) -> 
A91: COMP. SICRO | B91: DNIT | C91: E9687 | D91: Caminhão carroceria com capacidade de 5 t - 115 kW | E91: CHP | F91: =IF(A91="INS. SINAPI",VLOOKUP(C91,'INSUMOS SINAPI'!A:E,5,0),IF(A91="COMP. SINAPI",VLOOKUP(C91,'COMP Sint. Sinapi'!A79:E6750,5,0),IF(A91="INS. SICRO",VLOOKUP(C91,'INSUMOS SICRO'!B:F,5,0),""))) -> 
A92: COMP. SICRO | B92: DNIT | C92: E9687 | D92: Caminhão carroceria com capacidade de 5 t - 115 kW | E92: CHI | F92: =IF(A92="INS. SINAPI",VLOOKUP(C92,'INSUMOS SINAPI'!A:E,5,0),IF(A92="COMP. SINAPI",VLOOKUP(C92,'COMP Sint. Sinapi'!A80:E6751,5,0),IF(A92="INS. SICRO",VLOOKUP(C92,'INSUMOS SICRO'!B:F,5,0),""))) -> 
A93: INS. SICRO | B93: DNIT | C93: M0787 | D93: Suporte em aço carbono galvanizado perfil "C" | E93: kg | F93: =IF(A93="INS. SINAPI",VLOOKUP(C93,'INSUMOS SINAPI'!A:E,5,0),IF(A93="COMP. SINAPI",VLOOKUP(C93,'COMP Sint. Sinapi'!A81:E6752,5,0),IF(A93="INS. SICRO",VLOOKUP(C93,'INSUMOS SICRO'!B:F,5,0),""))) -> 14.0262
A94: INS. SICRO | B94: DNIT | C94: M0789 | D94: Conjunto de cantoneiras e parafusos galvanizados para fixação de placas | E94: kg | F94: =IF(A94="INS. SINAPI",VLOOKUP(C94,'INSUMOS SINAPI'!A:E,5,0),IF(A94="COMP. SINAPI",VLOOKUP(C94,'COMP Sint. Sinapi'!A82:E6753,5,0),IF(A94="INS. SICRO",VLOOKUP(C94,'INSUMOS SICRO'!B:F,5,0),""))) -> 9.9071
A95: INS. SICRO | B95: DNIT | C95: M2042 | D95: EMULSÃO EXPLOSIVA ENCARTUCHADA | E95: kg | F95: =IF(A95="INS. SINAPI",VLOOKUP(C95,'INSUMOS SINAPI'!A:E,5,0),IF(A95="COMP. SINAPI",VLOOKUP(C95,'COMP Sint. Sinapi'!A83:E6754,5,0),IF(A95="INS. SICRO",VLOOKUP(C95,'INSUMOS SICRO'!B:F,5,0),""))) -> 10.1513
A96: INS. SICRO | B96: DNIT | C96: M2062 | D96: COROA PARA PERFURATRIZ T38 - D = 2 1/2" | E96: und | F96: =IF(A96="INS. SINAPI",VLOOKUP(C96,'INSUMOS SINAPI'!A:E,5,0),IF(A96="COMP. SINAPI",VLOOKUP(C96,'COMP Sint. Sinapi'!A84:E6755,5,0),IF(A96="INS. SICRO",VLOOKUP(C96,'INSUMOS SICRO'!B:F,5,0),""))) -> 559.8072
A97: INS. SICRO | B97: DNIT | C97: M2065 | D97: HASTE PARA PERFURATRIZ DE ESTEIRA T38 DE 1 1/2" X 3 M | E97: und | F97: =IF(A97="INS. SINAPI",VLOOKUP(C97,'INSUMOS SINAPI'!A:E,5,0),IF(A97="COMP. SINAPI",VLOOKUP(C97,'COMP Sint. Sinapi'!A85:E6756,5,0),IF(A97="INS. SICRO",VLOOKUP(C97,'INSUMOS SICRO'!B:F,5,0),""))) -> 1232.135
A98: INS. SICRO | B98: DNIT | C98: M2066 | D98: LUVA PARA PERFURATRIZ DE ESTEIRA T38 - D = 1 1/2" | E98: und | F98: =IF(A98="INS. SINAPI",VLOOKUP(C98,'INSUMOS SINAPI'!A:E,5,0),IF(A98="COMP. SINAPI",VLOOKUP(C98,'COMP Sint. Sinapi'!A86:E6757,5,0),IF(A98="INS. SICRO",VLOOKUP(C98,'INSUMOS SICRO'!B:F,5,0),""))) -> 220.8036
A99: INS. SICRO | B99: DNIT | C99: M2067 | D99: PUNHO PARA PERFURATRIZ DE ESTEIRA T38 - D = 1 1/2" | E99: und | F99: =IF(A99="INS. SINAPI",VLOOKUP(C99,'INSUMOS SINAPI'!A:E,5,0),IF(A99="COMP. SINAPI",VLOOKUP(C99,'COMP Sint. Sinapi'!A87:E6758,5,0),IF(A99="INS. SICRO",VLOOKUP(C99,'INSUMOS SICRO'!B:F,5,0),""))) -> 998.1907
A100: INS. SICRO | B100: DNIT | C100: M2141 | D100: NONEL DE INICIAÇÃO PARA FOGACHO COM 6 M | E100: und | F100: =IF(A100="INS. SINAPI",VLOOKUP(C100,'INSUMOS SINAPI'!A:E,5,0),IF(A100="COMP. SINAPI",VLOOKUP(C100,'COMP Sint. Sinapi'!A88:E6759,5,0),IF(A100="INS. SICRO",VLOOKUP(C100,'INSUMOS SICRO'!B:F,5,0),""))) -> 13.4415
A101: INS. SICRO | B101: DNIT | C101: M2143 | D101: NONEL DE LIGAÇÃO | E101: und | F101: =IF(A101="INS. SINAPI",VLOOKUP(C101,'INSUMOS SINAPI'!A:E,5,0),IF(A101="COMP. SINAPI",VLOOKUP(C101,'COMP Sint. Sinapi'!A89:E6760,5,0),IF(A101="INS. SICRO",VLOOKUP(C101,'INSUMOS SICRO'!B:F,5,0),""))) -> 10.7075
A102: INS. SICRO | B102: DNIT | C102: M2144 | D102: NONEL DE COLUNA COM 6 M | E102: und | F102: =IF(A102="INS. SINAPI",VLOOKUP(C102,'INSUMOS SINAPI'!A:E,5,0),IF(A102="COMP. SINAPI",VLOOKUP(C102,'COMP Sint. Sinapi'!A90:E6761,5,0),IF(A102="INS. SICRO",VLOOKUP(C102,'INSUMOS SICRO'!B:F,5,0),""))) -> 15.6128
A103: INS. SICRO | B103: DNIT | C103: M2145 | D103: SÉRIE DE BROCAS S-12 - D = 22 MM | E103: und | F103: =IF(A103="INS. SINAPI",VLOOKUP(C103,'INSUMOS SINAPI'!A:E,5,0),IF(A103="COMP. SINAPI",VLOOKUP(C103,'COMP Sint. Sinapi'!A91:E6762,5,0),IF(A103="INS. SICRO",VLOOKUP(C103,'INSUMOS SICRO'!B:F,5,0),""))) -> 548.5352
A104: INS. SICRO | B104: DNIT | C104: M2146 | D104: NONEL INICIADOR COM 150 M | E104: und | F104: =IF(A104="INS. SINAPI",VLOOKUP(C104,'INSUMOS SINAPI'!A:E,5,0),IF(A104="COMP. SINAPI",VLOOKUP(C104,'COMP Sint. Sinapi'!A92:E6763,5,0),IF(A104="INS. SICRO",VLOOKUP(C104,'INSUMOS SICRO'!B:F,5,0),""))) -> 153.4275

Sheet INSUMOS SINAPI
A1: PRECOS DE INSUMOS
A3: MES DE COLETA: 09/2021
A4: LOCALIDADE: 4260 - GOIANIA
A5: ENCARGOS SOCIAIS (%) HORISTA 114,70 MENSALISTA 72,66
A7: CODIGO | B7: DESCRICAO DO INSUMO | C7: UNIDADE | D7: ORIGEM DO PRECO | E7: PRECO MEDIANO R$
A8: 1344 | B8: !EM PROCESSO DE DESATIVACAO! CHAPA DE MADEIRA COMPENSADA PLASTIFICADA PARA FORMA DE CONCRETO, DE 2,20 x 1,10 M, E = 6 MM | C8: UN | D8: CR | E8: 41,57
A9: 1342 | B9: !EM PROCESSO DE DESATIVACAO! CHAPA DE MADEIRA COMPENSADA PLASTIFICADA PARA FORMA DE CONCRETO, DE 2,20 X 1,10 m, E = 14 MM | C9: UN | D9: CR | E9: 73,49
A10: 1349 | B10: !EM PROCESSO DE DESATIVACAO! CHAPA DE MADEIRA COMPENSADA PLASTIFICADA PARA FORMA DE CONCRETO, DE 2,20 X 1,10 M, E = 20 MM | C10: UN | D10: CR | E10: 104,81
A11: 1350 | B11: !EM PROCESSO DE DESATIVACAO! CHAPA DE MADEIRA COMPENSADA RESINADA PARA FORMA DE CONCRETO, DE *2,2 X 1,1* M, E = 10 MM | C11: UN | D11: C | E11: 39,95
A12: 1359 | B12: !EM PROCESSO DE DESATIVACAO! CHAPA DE MADEIRA COMPENSADA RESINADA PARA FORMA DE CONCRETO, DE *2,2 X 1,1* M, E = 20 MM | C12: UN | D12: CR | E12: 78,62
A13: 1351 | B13: !EM PROCESSO DE DESATIVACAO! CHAPA DE MADEIRA COMPENSADA RESINADA PARA FORMA DE CONCRETO, DE *2,2 X 1,1* M, E = 6 MM | C13: UN | D13: CR | E13: 25,33
A14: 2418 | B14: !EM PROCESSO DE DESATIVACAO! DOBRADICA EM ACO/FERRO, 3" X 2 1/2", E= 1,2 A 1,8 MM, SEM ANEL, CROMADO OU ZINCADO, TAMPA BOLA, COM PARAFUSOS | C14: UN | D14: C | E14: 10,11
A15: 6086 | B15: !EM PROCESSO DE DESATIVACAO! FUNDO SINTETICO NIVELADOR BRANCO FOSCO PARA MADEIRA | C15: GL | D15: CR | E15: 46,95
A16: 3378 | B16: !EM PROCESSO DE DESATIVACAO! HASTE DE ATERRAMENTO EM ACO COM 3,00 M DE COMPRIMENTO E DN = 3/4", REVESTIDA COM BAIXA CAMADA DE COBRE, SEM CONECTOR | C16: UN | D16: CR | E16: 48,57
A17: 3380 | B17: !EM PROCESSO DE DESATIVACAO! HASTE DE ATERRAMENTO EM ACO COM 3,00 M DE COMPRIMENTO E DN = 5/8", REVESTIDA COM BAIXA CAMADA DE COBRE, COM CONECTOR TIPO GRAMPO | C17: UN | D17: C | E17: 34,00
A18: 3379 | B18: !EM PROCESSO DE DESATIVACAO! HASTE DE ATERRAMENTO EM ACO COM 3,00 M DE COMPRIMENTO E DN = 5/8", REVESTIDA COM BAIXA CAMADA DE COBRE, SEM CONECTOR | C18: UN | D18: CR | E18: 32,82
A19: 615 | B19: !EM PROCESSO DE DESATIVACAO! JANELA BASCULANTE, ACO, COM BATENTE/REQUADRO, 60 X 80 CM (SEM VIDROS) | C19: M2 | D19: AS | E19: 521,64
A20: 606 | B20: !EM PROCESSO DE DESATIVACAO! JANELA DE CORRER, ACO, BATENTE/REQUADRO DE 6 A 14 CM, QUADRICULADA, PINTURA ANTICORROSIVA, SEM VIDRO, BANDEIRA COM BASCULA, 4 FLS, 120 X 150 CM (A X L) | C20: M2 | D20: AS | E20: 819,43
A21: 13382 | B21: !EM PROCESSO DE DESATIVACAO! LUMINARIA FECHADA P/ ILUMINACAO PUBLICA, TIPO ABL 50/F OU EQUIV, P/ LAMPADA A VAPOR DE MERCURIO 400W | C21: UN | D21: AS | E21: 373,96
A22: 4047 | B22: !EM PROCESSO DE DESATIVACAO! MASSA CORRIDA PVA PARA PAREDES INTERNAS | C22: GL | D22: C | E22: 9,50
A23: 7344 | B23: !EM PROCESSO DE DESATIVACAO! TINTA LATEX PVA PREMIUM, COR BRANCA | C23: GL | D23: C | E23: 74,79
A24: 40514 | B24: !EM PROCESSO DE DESATIVACAO! VERNIZ POLIURETANO BRILHANTE PARA MADEIRA, SEM FILTRO SOLAR, USO INTERNO E EXTERNO | C24: L | D24: C | E24: 23,59
A25: 11199 | B25: !EM PROCESSO DE DESATIVACAO!JANELA DE CORRER, ACO, BATENTE/REQUADRO DE 6 A 14 CM, COM DIVISAO HORIZ , PINT ANTICORROSIVA, SEM VIDRO, BANDEIRA COM BASCULA, 4 FLS, 120 X 150 CM (A X L) | C25: UN | D25: AS | E25: 1.175,81
A26: 4053 | B26: !EM PROCESSO DE DESATIVACAO!MASSA A OLEO PARA MADEIRA | C26: GL | D26: CR | E26: 36,19
A27: 4056 | B27: !EM PROCESSO DE DESATIVACAO!MASSA ACRILICA PARA PAREDES INTERIOR/EXTERIOR | C27: GL | D27: CR | E27: 19,03
A28: 21136 | B28: !EM PROCESSO DESATIVACAO! ELETRODUTO EM ACO GALVANIZADO ELETROLITICO, LEVE, DIAMETRO 1", PAREDE DE 0,90 MM | C28: M | D28: CR | E28: 11,60
A29: 21128 | B29: !EM PROCESSO DESATIVACAO! ELETRODUTO EM ACO GALVANIZADO ELETROLITICO, LEVE, DIAMETRO 3/4", PAREDE DE 0,90 MM | C29: M | D29: C | E29: 8,98
A30: 21130 | B30: !EM PROCESSO DESATIVACAO! ELETRODUTO EM ACO GALVANIZADO ELETROLITICO, SEMI-PESADO, DIAMETRO 1 1/2", PAREDE DE 1,20 MM | C30: M | D30: CR | E30: 22,68
A31: 21135 | B31: !EM PROCESSO DESATIVACAO! ELETRODUTO EM ACO GALVANIZADO ELETROLITICO, SEMI-PESADO, DIAMETRO 1 1/4", PAREDE DE 1,20 MM | C31: M | D31: CR | E31: 22,33
A32: 38605 | B32: ABERTURA PARA ENCAIXE DE CUBA OU LAVATORIO EM BANCADA DE MARMORE/ GRANITO OU OUTRO TIPO DE PEDRA NATURAL | C32: UN | D32: CR | E32: 113,72
A33: 11270 | B33: ABRACADEIRA DE LATAO PARA FIXACAO DE CABO PARA-RAIO, DIMENSOES 32 X 24 X 24 MM | C33: UN | D33: CR | E33: 1,80
A34: 412 | B34: ABRACADEIRA DE NYLON PARA AMARRACAO DE CABOS, COMPRIMENTO DE *230* X *7,6* MM | C34: UN | D34: AS | E34: 1,13
A35: 414 | B35: ABRACADEIRA DE NYLON PARA AMARRACAO DE CABOS, COMPRIMENTO DE 100 X 2,5 MM | C35: UN | D35: AS | E35: 0,07
A36: 410 | B36: ABRACADEIRA DE NYLON PARA AMARRACAO DE CABOS, COMPRIMENTO DE 150 X *3,6* MM | C36: UN | D36: AS | E36: 0,17
A37: 411 | B37: ABRACADEIRA DE NYLON PARA AMARRACAO DE CABOS, COMPRIMENTO DE 200 X *4,6* MM | C37: UN | D37: AS | E37: 0,22
A38: 408 | B38: ABRACADEIRA DE NYLON PARA AMARRACAO DE CABOS, COMPRIMENTO DE 390 X *4,6* MM | C38: UN | D38: AS | E38: 1,09
A39: 39131 | B39: ABRACADEIRA EM ACO PARA AMARRACAO DE ELETRODUTOS, TIPO D, COM 1 1/2" E CUNHA DE FIXACAO | C39: UN | D39: AS | E39: 1,95
A40: 394 | B40: ABRACADEIRA EM ACO PARA AMARRACAO DE ELETRODUTOS, TIPO D, COM 1 1/2" E PARAFUSO DE FIXACAO | C40: UN | D40: AS | E40: 1,98
A41: 39130 | B41: ABRACADEIRA EM ACO PARA AMARRACAO DE ELETRODUTOS, TIPO D, COM 1 1/4" E CUNHA DE FIXACAO | C41: UN | D41: AS | E41: 1,78
A42: 395 | B42: ABRACADEIRA EM ACO PARA AMARRACAO DE ELETRODUTOS, TIPO D, COM 1 1/4" E PARAFUSO DE FIXACAO | C42: UN | D42: AS | E42: 1,90
A43: 39127 | B43: ABRACADEIRA EM ACO PARA AMARRACAO DE ELETRODUTOS, TIPO D, COM 1/2" E CUNHA DE FIXACAO | C43: UN | D43: AS | E43: 0,94
A44: 392 | B44: ABRACADEIRA EM ACO PARA AMARRACAO DE ELETRODUTOS, TIPO D, COM 1/2" E PARAFUSO DE FIXACAO | C44: UN | D44: AS | E44: 0,96
A45: 39129 | B45: ABRACADEIRA EM ACO PARA AMARRACAO DE ELETRODUTOS, TIPO D, COM 1" E CUNHA DE FIXACAO | C45: UN | D45: AS | E45: 1,10
A46: 393 | B46: ABRACADEIRA EM ACO PARA AMARRACAO DE ELETRODUTOS, TIPO D, COM 1" E PARAFUSO DE FIXACAO | C46: UN | D46: AS | E46: 1,15
A47: 39133 | B47: ABRACADEIRA EM ACO PARA AMARRACAO DE ELETRODUTOS, TIPO D, COM 2 1/2" E CUNHA DE FIXACAO | C47: UN | D47: AS | E47: 2,56
A48: 397 | B48: ABRACADEIRA EM ACO PARA AMARRACAO DE ELETRODUTOS, TIPO D, COM 2 1/2" E PARAFUSO DE FIXACAO | C48: UN | D48: AS | E48: 2,83
A49: 39132 | B49: ABRACADEIRA EM ACO PARA AMARRACAO DE ELETRODUTOS, TIPO D, COM 2" E CUNHA DE FIXACAO | C49: UN | D49: AS | E49: 2,05
A50: 396 | B50: ABRACADEIRA EM ACO PARA AMARRACAO DE ELETRODUTOS, TIPO D, COM 2" E PARAFUSO DE FIXACAO | C50: UN | D50: AS | E50: 2,20
A51: 39135 | B51: ABRACADEIRA EM ACO PARA AMARRACAO DE ELETRODUTOS, TIPO D, COM 3 1/2" E CUNHA DE FIXACAO | C51: UN | D51: AS | E51: 4,11
A52: 39128 | B52: ABRACADEIRA EM ACO PARA AMARRACAO DE ELETRODUTOS, TIPO D, COM 3/4" E CUNHA DE FIXACAO | C52: UN | D52: AS | E52: 1,02
A53: 400 | B53: ABRACADEIRA EM ACO PARA AMARRACAO DE ELETRODUTOS, TIPO D, COM 3/4" E PARAFUSO DE FIXACAO | C53: UN | D53: AS | E53: 1,00
A54: 39125 | B54: ABRACADEIRA EM ACO PARA AMARRACAO DE ELETRODUTOS, TIPO D, COM 3/8" E PARAFUSO DE FIXACAO | C54: UN | D54: AS | E54: 1,02
A55: 39134 | B55: ABRACADEIRA EM ACO PARA AMARRACAO DE ELETRODUTOS, TIPO D, COM 3" E CUNHA DE FIXACAO | C55: UN | D55: AS | E55: 3,42
A56: 398 | B56: ABRACADEIRA EM ACO PARA AMARRACAO DE ELETRODUTOS, TIPO D, COM 3" E PARAFUSO DE FIXACAO | C56: UN | D56: AS | E56: 3,15
A57: 39126 | B57: ABRACADEIRA EM ACO PARA AMARRACAO DE ELETRODUTOS, TIPO D, COM 4" E CUNHA DE FIXACAO | C57: UN | D57: AS | E57: 4,62
A58: 399 | B58: ABRACADEIRA EM ACO PARA AMARRACAO DE ELETRODUTOS, TIPO D, COM 4" E PARAFUSO DE FIXACAO | C58: UN | D58: AS | E58: 4,07
A59: 39158 | B59: ABRACADEIRA EM ACO PARA AMARRACAO DE ELETRODUTOS, TIPO ECONOMICA (GOTA), COM 8" | C59: UN | D59: AS | E59: 10,93
A60: 39141 | B60: ABRACADEIRA EM ACO PARA AMARRACAO DE ELETRODUTOS, TIPO U SIMPLES, COM 1 1/2" | C60: UN | D60: AS | E60: 0,79
A61: 39140 | B61: ABRACADEIRA EM ACO PARA AMARRACAO DE ELETRODUTOS, TIPO U SIMPLES, COM 1 1/4" | C61: UN | D61: AS | E61: 0,72
A62: 39137 | B62: ABRACADEIRA EM ACO PARA AMARRACAO DE ELETRODUTOS, TIPO U SIMPLES, COM 1/2" | C62: UN | D62: AS | E62: 0,41
A63: 39139 | B63: ABRACADEIRA EM ACO PARA AMARRACAO DE ELETRODUTOS, TIPO U SIMPLES, COM 1" | C63: UN | D63: AS | E63: 0,59
A64: 39143 | B64: ABRACADEIRA EM ACO PARA AMARRACAO DE ELETRODUTOS, TIPO U SIMPLES, COM 2 1/2" | C64: UN | D64: AS | E64: 1,63
A65: 39142 | B65: ABRACADEIRA EM ACO PARA AMARRACAO DE ELETRODUTOS, TIPO U SIMPLES, COM 2" | C65: UN | D65: AS | E65: 1,17
A66: 39138 | B66: ABRACADEIRA EM ACO PARA AMARRACAO DE ELETRODUTOS, TIPO U SIMPLES, COM 3/4" | C66: UN | D66: AS | E66: 0,44
A67: 39136 | B67: ABRACADEIRA EM ACO PARA AMARRACAO DE ELETRODUTOS, TIPO U SIMPLES, COM 3/8" | C67: UN | D67: AS | E67: 0,29
A68: 39144 | B68: ABRACADEIRA EM ACO PARA AMARRACAO DE ELETRODUTOS, TIPO U SIMPLES, COM 3" | C68: UN | D68: AS | E68: 1,90
A69: 39145 | B69: ABRACADEIRA EM ACO PARA AMARRACAO DE ELETRODUTOS, TIPO U SIMPLES, COM 4" | C69: UN | D69: AS | E69: 3,14
A70: 12615 | B70: ABRACADEIRA PVC, PARA CALHA PLUVIAL, DIAMETRO ENTRE 80 E 100 MM, PARA DRENAGEM PREDIAL | C70: UN | D70: AS | E70: 4,76
A71: 11927 | B71: ABRACADEIRA, GALVANIZADA/ZINCADA, ROSCA SEM FIM, PARAFUSO INOX, LARGURA FITA *12,6 A *14 MM, D = 2" A 2 1/2" | C71: UN | D71: CR | E71: 5,37
A72: 11928 | B72: ABRACADEIRA, GALVANIZADA/ZINCADA, ROSCA SEM FIM, PARAFUSO INOX, LARGURA FITA *12,6 A *14 MM, D = 3" A 3 3/4" | C72: UN | D72: CR | E72: 6,15
A73: 11929 | B73: ABRACADEIRA, GALVANIZADA/ZINCADA, ROSCA SEM FIM, PARAFUSO INOX, LARGURA FITA *12,6 A *14 MM, D = 4" A 4 3/4" | C73: UN | D73: CR | E73: 9,52
A74: 36801 | B74: ACABAMENTO CROMADO PARA REGISTRO PEQUENO, DE PAREDE, 1/2 " OU 3/4 " | C74: UN | D74: CR | E74: 26,04
A75: 36246 | B75: ACABAMENTO SIMPLES/CONVENCIONAL PARA FORRO PVC, TIPO "U" OU "C", COR BRANCA, COMPRIMENTO 6 M | C75: M | D75: CR | E75: 4,08
A76: 37600 | B76: ACESSORIO DE LIGACAO NAO ELETRICO PARA CARGAS EXPLOSIVAS, TUBO DE 6 M | C76: UN | D76: AS | E76: 93,16
A77: 37599 | B77: ACESSORIO INICIADOR NAO ELETRICO, TUBO DE 6 M, TEMPO DE RETARDO DE *160* MS | C77: UN | D77: AS | E77: 86,71
A78: 1 | B78: ACETILENO (RECARGA PARA CILINDRO DE CONJUNTO OXICORTE GRANDE) | C78: KG | D78: C | E78: 51,67
A79: 3 | B79: ACIDO CLORIDRICO / ACIDO MURIATICO, DILUICAO 10% A 12% PARA USO EM LIMPEZA | C79: L | D79: CR | E79: 11,08
A80: 43054 | B80: ACO CA-25, 10,0 MM, OU 12,5 MM, OU 16,0 MM, OU 20,0 MM, OU 25,0 MM, VERGALHAO | C80: KG | D80: CR | E80: 11,04
A81: 42402 | B81: ACO CA-25, 16,0 MM, BARRA DE TRANSFERENCIA | C81: KG | D81: CR | E81: 10,55
A82: 42403 | B82: ACO CA-25, 20,0 MM, BARRA DE TRANSFERENCIA | C82: KG | D82: CR | E82: 13,53
A83: 42404 | B83: ACO CA-25, 25,0 MM, BARRA DE TRANSFERENCIA | C83: KG | D83: CR | E83: 13,46
A84: 42405 | B84: ACO CA-25, 32,0 MM, BARRA DE TRANSFERENCIA | C84: KG | D84: CR | E84: 14,34
A85: 34341 | B85: ACO CA-25, 32,0 MM, VERGALHAO | C85: KG | D85: CR | E85: 12,44
A86: 43053 | B86: ACO CA-25, 6,3 MM OU 8,0 MM, VERGALHAO | C86: KG | D86: CR | E86: 9,86
A87: 43058 | B87: ACO CA-50, 10,0 MM, OU 12,5 MM, OU 16,0 MM, OU 20,0 MM, DOBRADO E CORTADO | C87: KG | D87: CR | E87: 10,22
A88: 34 | B88: ACO CA-50, 10,0 MM, VERGALHAO | C88: KG | D88: CR | E88: 10,27
A89: 43055 | B89: ACO CA-50, 12,5 MM OU 16,0 MM, VERGALHAO | C89: KG | D89: C | E89: 8,90
A90: 43056 | B90: ACO CA-50, 20,0 MM OU 25,0 MM, VERGALHAO | C90: KG | D90: CR | E90: 10,26
A91: 43057 | B91: ACO CA-50, 32,0 MM, VERGALHAO | C91: KG | D91: CR | E91: 11,28
A92: 34449 | B92: ACO CA-50, 6,3 MM, DOBRADO E CORTADO | C92: KG | D92: CR | E92: 12,05
A93: 32 | B93: ACO CA-50, 6,3 MM, VERGALHAO | C93: KG | D93: CR | E93: 10,84
A94: 33 | B94: ACO CA-50, 8,0 MM, VERGALHAO | C94: KG | D94: CR | E94: 10,90
A95: 43061 | B95: ACO CA-60, 4,2 MM OU 5,0 MM, DOBRADO E CORTADO | C95: KG | D95: CR | E95: 10,19
A96: 43059 | B96: ACO CA-60, 4,2 MM, OU 5,0 MM, OU 6,0 MM, OU 7,0 MM, VERGALHAO | C96: KG | D96: CR | E96: 9,72
A97: 43062 | B97: ACO CA-60, 6,0 MM OU 7,0 MM, DOBRADO E CORTADO | C97: KG | D97: CR | E97: 10,78
A98: 43060 | B98: ACO CA-60, 8,0 MM OU 9,5 MM, VERGALHAO | C98: KG | D98: CR | E98: 8,47
A99: 20063 | B99: ACOPLAMENTO DE CONDUTOR PLUVIAL, EM PVC, DIAMETRO ENTRE 80 E 100 MM, PARA DRENAGEM PREDIAL | C99: UN | D99: AS | E99: 4,74
A100: 40410 | B100: ACOPLAMENTO RIGIDO EM FERRO FUNDIDO PARA SISTEMA DE TUBULACAO RANHURADA, DN 50 MM (2") | C100: UN | D100: AS | E100: 24,76
A101: 40411 | B101: ACOPLAMENTO RIGIDO EM FERRO FUNDIDO PARA SISTEMA DE TUBULACAO RANHURADA, DN 65 MM (2 1/2") | C101: UN | D101: AS | E101: 26,87
A102: 40412 | B102: ACOPLAMENTO RIGIDO EM FERRO FUNDIDO PARA SISTEMA DE TUBULACAO RANHURADA, DN 80 MM (3") | C102: UN | D102: AS | E102: 30,16
A103: 38838 | B103: ADAPTADOR DE COBRE PARA TUBULACAO PEX, DN 16 X 15 MM | C103: UN | D103: AS | E103: 11,26
A104: 38839 | B104: ADAPTADOR DE COBRE PARA TUBULACAO PEX, DN 20 X 22 MM | C104: UN | D104: AS | E104: 13,26
A105: 55 | B105: ADAPTADOR DE COMPRESSAO EM POLIPROPILENO (PP), PARA TUBO EM PEAD, 20 MM X 1/2", PARA LIGACAO PREDIAL DE AGUA (NTS 179) | C105: UN | D105: AS | E105: 4,80
A106: 61 | B106: ADAPTADOR DE COMPRESSAO EM POLIPROPILENO (PP), PARA TUBO EM PEAD, 20 MM X 3/4", PARA LIGACAO PREDIAL DE AGUA (NTS 179) | C106: UN | D106: AS | E106: 4,54
A107: 62 | B107: ADAPTADOR DE COMPRESSAO EM POLIPROPILENO (PP), PARA TUBO EM PEAD, 32 MM X 1", PARA LIGACAO PREDIAL DE AGUA (NTS 179) | C107: UN | D107: AS | E107: 9,41
A108: 77 | B108: ADAPTADOR PVC PARA SIFAO METALICO, SOLDAVEL, COM ANEL BORRACHA (JE), 40 MM X 1 1/2" | C108: UN | D108: CR | E108: 1,39
A109: 76 | B109: ADAPTADOR PVC PARA SIFAO, ROSCAVEL, 40 MM X 1 1/4" | C109: UN | D109: CR | E109: 1,41
A110: 67 | B110: ADAPTADOR PVC ROSCAVEL, COM FLANGES E ANEL DE VEDACAO, 1/2", PARA CAIXA D' AGUA | C110: UN | D110: CR | E110: 13,63
A111: 71 | B111: ADAPTADOR PVC ROSCAVEL, COM FLANGES E ANEL DE VEDACAO, 1", PARA CAIXA D' AGUA | C111: UN | D111: CR | E111: 25,04
A112: 73 | B112: ADAPTADOR PVC ROSCAVEL, COM FLANGES E ANEL DE VEDACAO, 3/4", PARA CAIXA D' AGUA | C112: UN | D112: CR | E112: 18,70
A113: 103 | B113: ADAPTADOR PVC SOLDAVEL CURTO COM BOLSA E ROSCA, 110 MM X 4", PARA AGUA FRIA | C113: UN | D113: CR | E113: 55,62
A114: 107 | B114: ADAPTADOR PVC SOLDAVEL CURTO COM BOLSA E ROSCA, 20 MM X 1/2", PARA AGUA FRIA | C114: UN | D114: CR | E114: 0,87
A115: 65 | B115: ADAPTADOR PVC SOLDAVEL CURTO COM BOLSA E ROSCA, 25 MM X 3/4", PARA AGUA FRIA | C115: UN | D115: CR | E115: 1,07
A116: 108 | B116: ADAPTADOR PVC SOLDAVEL CURTO COM BOLSA E ROSCA, 32 MM X 1", PARA AGUA FRIA | C116: UN | D116: CR | E116: 2,22
A117: 110 | B117: ADAPTADOR PVC SOLDAVEL CURTO COM BOLSA E ROSCA, 40 MM X 1 1/2", PARA AGUA FRIA | C117: UN | D117: CR | E117: 8,59
A118: 109 | B118: ADAPTADOR PVC SOLDAVEL CURTO COM BOLSA E ROSCA, 40 MM X 1 1/4", PARA AGUA FRIA | C118: UN | D118: CR | E118: 4,23
A119: 111 | B119: ADAPTADOR PVC SOLDAVEL CURTO COM BOLSA E ROSCA, 50 MM X 1 1/4", PARA AGUA FRIA | C119: UN | D119: CR | E119: 9,90
A120: 112 | B120: ADAPTADOR PVC SOLDAVEL CURTO COM BOLSA E ROSCA, 50 MM X1 1/2", PARA AGUA FRIA | C120: UN | D120: CR | E120: 5,39
A121: 113 | B121: ADAPTADOR PVC SOLDAVEL CURTO COM BOLSA E ROSCA, 60 MM X 2", PARA AGUA FRIA | C121: UN | D121: CR | E121: 14,63
A122: 104 | B122: ADAPTADOR PVC SOLDAVEL CURTO COM BOLSA E ROSCA, 75 MM X 2 1/2", PARA AGUA FRIA | C122: UN | D122: CR | E122: 21,28
A123: 102 | B123: ADAPTADOR PVC SOLDAVEL CURTO COM BOLSA E ROSCA, 85 MM X 3", PARA AGUA FRIA | C123: UN | D123: CR | E123: 34,93
A124: 95 | B124: ADAPTADOR PVC SOLDAVEL, COM FLANGE E ANEL DE VEDACAO, 20 MM X 1/2", PARA CAIXA D'AGUA | C124: UN | D124: CR | E124: 11,82
A125: 96 | B125: ADAPTADOR PVC SOLDAVEL, COM FLANGE E ANEL DE VEDACAO, 25 MM X 3/4", PARA CAIXA D'AGUA | C125: UN | D125: CR | E125: 13,60
A126: 97 | B126: ADAPTADOR PVC SOLDAVEL, COM FLANGE E ANEL DE VEDACAO, 32 MM X 1", PARA CAIXA D'AGUA | C126: UN | D126: CR | E126: 17,66
A127: 98 | B127: ADAPTADOR PVC SOLDAVEL, COM FLANGE E ANEL DE VEDACAO, 40 MM X 1 1/4", PARA CAIXA D'AGUA | C127: UN | D127: CR | E127: 23,80
A128: 99 | B128: ADAPTADOR PVC SOLDAVEL, COM FLANGE E ANEL DE VEDACAO, 50 MM X 1 1/2", PARA CAIXA D'AGUA | C128: UN | D128: CR | E128: 28,86
A129: 100 | B129: ADAPTADOR PVC SOLDAVEL, COM FLANGES E ANEL DE VEDACAO, 60 MM X 2", PARA CAIXA D' AGUA | C129: UN | D129: CR | E129: 40,27
A130: 75 | B130: ADAPTADOR PVC SOLDAVEL, COM FLANGES LIVRES, 110 MM X 4", PARA CAIXA D' AGUA | C130: UN | D130: CR | E130: 419,69
A131: 114 | B131: ADAPTADOR PVC SOLDAVEL, COM FLANGES LIVRES, 25 MM X 3/4", PARA CAIXA D' AGUA | C131: UN | D131: CR | E131: 15,29
A132: 68 | B132: ADAPTADOR PVC SOLDAVEL, COM FLANGES LIVRES, 32 MM X 1", PARA CAIXA D' AGUA | C132: UN | D132: CR | E132: 23,38
A133: 86 | B133: ADAPTADOR PVC SOLDAVEL, COM FLANGES LIVRES, 40 MM X 1 1/4", PARA CAIXA D' AGUA | C133: UN | D133: CR | E133: 43,47
A134: 66 | B134: ADAPTADOR PVC SOLDAVEL, COM FLANGES LIVRES, 50 MM X 1 1/2", PARA CAIXA D' AGUA | C134: UN | D134: CR | E134: 43,63
A135: 69 | B135: ADAPTADOR PVC SOLDAVEL, COM FLANGES LIVRES, 60 MM X 2", PARA CAIXA D' AGUA | C135: UN | D135: CR | E135: 66,69
A136: 83 | B136: ADAPTADOR PVC SOLDAVEL, COM FLANGES LIVRES, 75 MM X 2 1/2", PARA CAIXA D' AGUA | C136: UN | D136: CR | E136: 212,99
A137: 74 | B137: ADAPTADOR PVC SOLDAVEL, COM FLANGES LIVRES, 85 MM X 3", PARA CAIXA D' AGUA | C137: UN | D137: CR | E137: 297,35
A138: 106 | B138: ADAPTADOR PVC SOLDAVEL, LONGO, COM FLANGE LIVRE, 110 MM X 4", PARA CAIXA D' AGUA | C138: UN | D138: CR | E138: 451,73
A139: 87 | B139: ADAPTADOR PVC SOLDAVEL, LONGO, COM FLANGE LIVRE, 25 MM X 3/4", PARA CAIXA D' AGUA | C139: UN | D139: CR | E139: 21,47
A140: 88 | B140: ADAPTADOR PVC SOLDAVEL, LONGO, COM FLANGE LIVRE, 32 MM X 1", PARA CAIXA D' AGUA | C140: UN | D140: CR | E140: 23,96
A141: 89 | B141: ADAPTADOR PVC SOLDAVEL, LONGO, COM FLANGE LIVRE, 40 MM X 1 1/4", PARA CAIXA D' AGUA | C141: UN | D141: CR | E141: 35,43
A142: 90 | B142: ADAPTADOR PVC SOLDAVEL, LONGO, COM FLANGE LIVRE, 50 MM X 1 1/2", PARA CAIXA D' AGUA | C142: UN | D142: CR | E142: 40,59
A143: 81 | B143: ADAPTADOR PVC SOLDAVEL, LONGO, COM FLANGE LIVRE, 60 MM X 2", PARA CAIXA D' AGUA | C143: UN | D143: CR | E143: 69,43
A144: 82 | B144: ADAPTADOR PVC SOLDAVEL, LONGO, COM FLANGE LIVRE, 75 MM X 2 1/2", PARA CAIXA D' AGUA | C144: UN | D144: CR | E144: 269,53
A145: 105 | B145: ADAPTADOR PVC SOLDAVEL, LONGO, COM FLANGE LIVRE, 85 MM X 3", PARA CAIXA D' AGUA | C145: UN | D145: CR | E145: 315,56
A146: 60 | B146: ADAPTADOR PVC, COM REGISTRO, PARA PEAD, 20 MM X 3/4", PARA LIGACAO PREDIAL DE AGUA | C146: UN | D146: AS | E146: 6,23
A147: 72 | B147: ADAPTADOR PVC, ROSCAVEL, COM FLANGES E ANEL DE VEDACAO, 1 1/2", PARA CAIXA D'AGUA | C147: UN | D147: CR | E147: 42,44
A148: 70 | B148: ADAPTADOR PVC, ROSCAVEL, COM FLANGES E ANEL DE VEDACAO, 1 1/4", PARA CAIXA D' AGUA | C148: UN | D148: CR | E148: 35,49
A149: 85 | B149: ADAPTADOR PVC, ROSCAVEL, COM FLANGES E ANEL DE VEDACAO, 2", PARA CAIXA D' AGUA | C149: UN | D149: CR | E149: 51,51
A150: 84 | B150: ADAPTADOR PVC, ROSCAVEL, PARA VALVULA PIA OU LAVATORIO, 40 MM | C150: UN | D150: CR | E150: 0,59
A151: 37997 | B151: ADAPTADOR, CPVC, SOLDAVEL, 15 MM, PARA AGUA QUENTE | C151: UN | D151: AS | E151: 5,65
A152: 37998 | B152: ADAPTADOR, CPVC, SOLDAVEL, 22 MM, PARA AGUA QUENTE | C152: UN | D152: AS | E152: 5,85
A153: 10899 | B153: ADAPTADOR, EM LATAO, ENGATE RAPIDO 2 1/2" X ROSCA INTERNA 5 FIOS 2 1/2", PARA INSTALACAO PREDIAL DE COMBATE A INCENDIO | C153: UN | D153: CR | E153: 83,89
A154: 10900 | B154: ADAPTADOR, EM LATAO, ENGATE RAPIDO1 1/2" X ROSCA INTERNA 5 FIOS 2 1/2", PARA INSTALACAO PREDIAL DE COMBATE A INCENDIO | C154: UN | D154: CR | E154: 65,65
A155: 46 | B155: ADAPTADOR, PVC PBA, BOLSA/ROSCA, JE, DN 75 / DE 85 MM | C155: UN | D155: AS | E155: 53,07
A156: 51 | B156: ADAPTADOR, PVC PBA, A BOLSA DEFOFO, JE, DN 100 / DE 110 MM | C156: UN | D156: AS | E156: 146,41
A157: 12863 | B157: ADAPTADOR, PVC PBA, A BOLSA DEFOFO, JE, DN 50 / DE 60 MM | C157: UN | D157: AS | E157: 33,72
A158: 50 | B158: ADAPTADOR, PVC PBA, A BOLSA DEFOFO, JE, DN 75 / DE 85 MM | C158: UN | D158: AS | E158: 76,45
A159: 47 | B159: ADAPTADOR, PVC PBA, BOLSA/ROSCA, JE, DN 100 / DE 110 MM | C159: UN | D159: AS | E159: 90,74
A160: 48 | B160: ADAPTADOR, PVC PBA, BOLSA/ROSCA, JE, DN 50 / DE 60 MM | C160: UN | D160: AS | E160: 23,67
A161: 52 | B161: ADAPTADOR, PVC PBA, PONTA/ROSCA, JE, DN 50 / DE 60 MM | C161: UN | D161: AS | E161: 17,98
A162: 43 | B162: ADAPTADOR, PVC PBA, PONTA/ROSCA, JE, DN 75 / DE 85 MM | C162: UN | D162: AS | E162: 60,69
A163: 39719 | B163: ADESIVO / COLA DE CONTATO LIQUIDO, A BASE DE RESINAS, PARA COLAGEM DE ESPUMA PARA ISOLAMENTO TERMICO FLEXIVEL | C163: L | D163: CR | E163: 145,11
A164: 3410 | B164: ADESIVO / COLA PARA EPS (ISOPOR) E OUTROS MATERIAIS | C164: KG | D164: CR | E164: 32,64
A165: 4791 | B165: ADESIVO ACRILICO DE BASE AQUOSA / COLA DE CONTATO | C165: KG | D165: CR | E165: 35,93
A166: 157 | B166: ADESIVO ESTRUTURAL A BASE DE RESINA EPOXI PARA INJECAO EM TRINCAS, BICOMPONENTE, BAIXA VISCOSIDADE | C166: KG | D166: CR | E166: 135,72
A167: 156 | B167: ADESIVO ESTRUTURAL A BASE DE RESINA EPOXI, BICOMPONENTE, FLUIDO | C167: KG | D167: CR | E167: 48,32
A168: 131 | B168: ADESIVO ESTRUTURAL A BASE DE RESINA EPOXI, BICOMPONENTE, PASTOSO (TIXOTROPICO) | C168: KG | D168: CR | E168: 41,32
A169: 21114 | B169: ADESIVO PARA TUBOS CPVC, *75* G | C169: UN | D169: CR | E169: 28,60
A170: 119 | B170: ADESIVO PLASTICO PARA PVC, BISNAGA COM 75 GR | C170: UN | D170: C | E170: 7,25
A171: 122 | B171: ADESIVO PLASTICO PARA PVC, FRASCO COM *850* GR | C171: UN | D171: CR | E171: 55,78
A172: 20080 | B172: ADESIVO PLASTICO PARA PVC, FRASCO COM 175 GR | C172: UN | D172: CR | E172: 18,20
A173: 124 | B173: ADITIVO ACELERADOR DE PEGA E ENDURECIMENTO PARA ARGAMASSAS E CONCRETOS, LIQUIDO E ISENTO DE CLORETOS | C173: L | D173: CR | E173: 15,93
A174: 7334 | B174: ADITIVO ADESIVO LIQUIDO PARA ARGAMASSAS DE REVESTIMENTOS CIMENTICIOS | C174: L | D174: AS | E174: 12,29
A175: 123 | B175: ADITIVO IMPERMEABILIZANTE DE PEGA NORMAL PARA ARGAMASSAS E CONCRETOS SEM ARMACAO, LIQUIDO E ISENTO DE CLORETOS | C175: L | D175: C | E175: 6,52
A176: 127 | B176: ADITIVO IMPERMEABILIZANTE DE PEGA ULTRARRAPIDA, LIQUIDO E ISENTO DE CLORETOS | C176: L | D176: CR | E176: 15,56
A177: 41373 | B177: ADITIVO LIQUIDO IMPERMEABILIZANTE CRISTALIZANTE | C177: L | D177: CR | E177: 21,69
A178: 133 | B178: ADITIVO LIQUIDO INCORPORADOR DE AR PARA CONCRETO E ARGAMASSA, LIQUIDO E ISENTO DE CLORETOS | C178: L | D178: CR | E178: 6,46
A179: 43617 | B179: ADITIVO PLASTIFICANTE E ESTABILIZADOR PARA ARGAMASSAS DE ASSENTAMENTO E REBOCO, LIQUIDO E ISENTO DE CLORETOS | C179: L | D179: CR | E179: 7,22
A180: 132 | B180: ADITIVO PLASTIFICANTE RETARDADOR DE PEGA E REDUTOR DE AGUA PARA CONCRETO, LIQUIDO E ISENTO DE CLORETOS | C180: L | D180: CR | E180: 6,70
A181: 43618 | B181: ADITIVO SUPERPLASTIFICANTE DE PEGA NORMAL PARA CONCRETO, LIQUIDO E ISENTO DE CLORETOS | C181: KG | D181: CR | E181: 16,87
A182: 37476 | B182: ADUELA/ GALERIA PRE-MOLDADA DE CONCRETO ARMADO, SECAO QUADRADA INTERNA DE 1,50 X 1,50 M (L X A), MISULA DE 20 X 20 CM, C = 1,00 M, ESPESSURA MIN = 15 CM, TB-45 E FCK DO CONCRETO = 30 MPA | C182: UN | D182: AS | E182: 2.915,92
A183: 37478 | B183: ADUELA/ GALERIA PRE-MOLDADA DE CONCRETO ARMADO, SECAO RETANGULAR INTERNA DE 2,00 X 2,00 M (L X A), MISULA DE 20 X 20 CM, C = 1,00 M, ESPESSURA MIN = 15 CM, TB-45 E FCK DO CONCRETO = 30 MPA | C183: UN | D183: AS | E183: 3.652,26
A184: 37477 | B184: ADUELA/ GALERIA PRE-MOLDADA DE CONCRETO ARMADO, SECAO RETANGULAR INTERNA DE 2,50 X 2,50 M (L X A), MISULA DE 20 X 20 CM, C = 1,00 M, ESPESSURA MIN = 15 CM, TB-45 E FCK DO CONCRETO = 30 MPA | C184: UN | D184: AS | E184: 4.948,23
A185: 37479 | B185: ADUELA/ GALERIA PRE-MOLDADA DE CONCRETO ARMADO, SECAO RETANGULAR INTERNA DE 3,00 X 3,00 M (L X A), MISULA DE 20 X 20 CM, C = 1.00 M, ESPESSURA MIN = 20 CM, TB-45 E FCK DO CONCRETO = 30 MPA | C185: UN | D185: AS | E185: 5.868,66
A186: 4319 | B186: AFASTADOR PARA TELHA DE FIBROCIMENTO CANALETE 90 OU KALHETAO | C186: UN | D186: CR | E186: 1,02
A187: 42409 | B187: AGENTE DE CURA, PROTETOR DA EVAPORACAO DA AGUA DE HIDRATACAO DO CONCRETO | C187: KG | D187: CR | E187: 10,62
A188: 40553 | B188: AGREGADO RECICLADO, TIPO RACHAO RECICLADO CINZA, CLASSE A | C188: M3 | D188: AS | E188: 36,50
A189: 6114 | B189: AJUDANTE DE ARMADOR | C189: H | D189: CR | E189: 12,64
A190: 40912 | B190: AJUDANTE DE ARMADOR (MENSALISTA) | C190: MES | D190: CR | E190: 2.239,03
A191: 247 | B191: AJUDANTE DE ELETRICISTA | C191: H | D191: CR | E191: 12,75
A192: 40919 | B192: AJUDANTE DE ELETRICISTA (MENSALISTA) | C192: MES | D192: CR | E192: 2.257,89
A193: 25958 | B193: AJUDANTE DE ESTRUTURAS METALICAS | C193: H | D193: CR | E193: 16,12
A194: 40984 | B194: AJUDANTE DE ESTRUTURAS METALICAS (MENSALISTA) | C194: MES | D194: CR | E194: 2.855,53
A195: 248 | B195: AJUDANTE DE OPERACAO EM GERAL | C195: H | D195: CR | E195: 13,07
A196: 41086 | B196: AJUDANTE DE OPERACAO EM GERAL (MENSALISTA) | C196: MES | D196: CR | E196: 2.316,87
A197: 34466 | B197: AJUDANTE DE PINTOR | C197: H | D197: CR | E197: 13,07
A198: 41083 | B198: AJUDANTE DE PINTOR (MENSALISTA) | C198: MES | D198: CR | E198: 2.316,87
A199: 252 | B199: AJUDANTE DE SERRALHEIRO | C199: H | D199: CR | E199: 13,56
A200: 40909 | B200: AJUDANTE DE SERRALHEIRO (MENSALISTA) | C200: MES | D200: CR | E200: 2.401,57
A201: 242 | B201: AJUDANTE ESPECIALIZADO | C201: H | D201: CR | E201: 14,19
A202: 41085 | B202: AJUDANTE ESPECIALIZADO (MENSALISTA) | C202: MES | D202: CR | E202: 2.514,29
... 5011 more rows

Sheet COMPOSIÇÃO ANALI sinapi
A1: PCI.818.01 - CUSTOS DE COMPOSIÇÕES ANALÍTICO DATA DE EMISSÃO:16/10/2021 00:02:24 DATA DE RT: 15/10/2021
A2: ENCARGOS SOCIAIS SOBRE PREÇOS DA MÃO-DE-OBRA: 114,70%(HORA) 72,66%(MÊS)
A3: ABRANGENCIA: NACIONAL DATA REFERENCIA TECNICA: 15/10/2021 LOCALIDADE : GOIANIA DATA DE PREÇO : 09/2021
A4: REFERÊNCIA DE COLETA: MEDIANO
A6: DESCRICAO DA CLASSE | B6: SIGLA DA CLASSE | C6: DESCRICAO DO TIPO 1 | D6: SIGLA DO TIPO 1 | E6: CODIGO DO AGRUPADOR | F6: DESCRICAO DO AGRUPADOR | G6: CODIGO DA COMPOSICAO | H6: DESCRICAO DA COMPOSICAO | I6: UNIDADE | J6: ORIGEM DE PREÇO | K6: CUSTO TOTAL | L6: TIPO ITEM | M6: CODIGO ITEM | N6: DESCRIÇÃO ITEM | O6: UNIDADE ITEM | P6: ORIGEM DE PREÇO ITEM | Q6: COEFICIENTE | R6: PRECO UNITARIO | S6: CUSTO TOTAL | T6: CUSTO MAO DE OBRA | U6: % MAO DE OBRA | V6: CUSTO MATERIAL | W6: % MATERIAL | X6: CUSTO EQUIPAMENTO | Y6: % EQUIPAMENTO | Z6: CUSTO SERVICOS TERCEIROS | AA6: % SERVICOS TERCEIROS | AB6: CUSTO OUTROS | AC6: % OUTROS | AD6: % ATRIBUÍDO SÃO PAULO | AE6: VINCULO
A8: ASSENTAMENTO DE TUBOS E PECAS | B8: ASTU | C8: FORNEC E/OU ASSENT DE TUBO DE FERRO FUNDIDO JUNTA | D8: 45 | G8: 97141 | H8: ASSENTAMENTO DE TUBO DE FERRO FUNDIDO PARA REDE DE ÁGUA, DN 80 MM, JUNTA ELÁSTICA, INSTALADO EM LOCAL COM NÍVEL ALTO DE INTERFERÊNCIAS (NÃO INCLUI FORNECIMENTO). AF_11/2017 | I8: M | J8: ATRIBUÍDO SÃO PAULO | K8: 7,93 | T8: 5,13 | U8: 64,4787646 | V8: 1,37 | W8: 17,3745173 | X8: 1,43 | Y8: 18,1467181 | Z8: 0,00 | AA8: 0,0000000 | AB8: 0,00 | AC8: 0,0000000 | AD8: 0.17907 | AE8: CAIXA REFERENCIAL
A9: ASSENTAMENTO DE TUBOS E PECAS | B9: ASTU | C9: FORNEC E/OU ASSENT DE TUBO DE FERRO FUNDIDO JUNTA | D9: 45 | G9: 97141 | H9: ASSENTAMENTO DE TUBO DE FERRO FUNDIDO PARA REDE DE ÁGUA, DN 80 MM, JUNTA ELÁSTICA, INSTALADO EM LOCAL COM NÍVEL ALTO DE INTERFERÊNCIAS (NÃO INCLUI FORNECIMENTO). AF_11/2017 | I9: M | J9: ATRIBUÍDO SÃO PAULO | K9: 7,93 | L9: COMPOSICAO | M9: 5678 | N9: RETROESCAVADEIRA SOBRE RODAS COM CARREGADEIRA, TRAÇÃO 4X4, POTÊNCIA LÍQ. 88 HP, CAÇAMBA CARREG. CAP. MÍN. 1 M3, CAÇAMBA RETRO CAP. 0,26 M3, PESO OPERACIONAL MÍN. 6.674 KG, PROFUNDIDADE ESCAVAÇÃO MÁX. 4,37 M - CHP DIURNO. AF_06/2014 | O9: CHP | P9: ATRIBUÍDO SÃO PAULO | Q9: 0,0099000 | R9: 119,51 | S9: 1,18 | AE9: CAIXA REFERENCIAL
A10: ASSENTAMENTO DE TUBOS E PECAS | B10: ASTU | C10: FORNEC E/OU ASSENT DE TUBO DE FERRO FUNDIDO JUNTA | D10: 45 | G10: 97141 | H10: ASSENTAMENTO DE TUBO DE FERRO FUNDIDO PARA REDE DE ÁGUA, DN 80 MM, JUNTA ELÁSTICA, INSTALADO EM LOCAL COM NÍVEL ALTO DE INTERFERÊNCIAS (NÃO INCLUI FORNECIMENTO). AF_11/2017 | I10: M | J10: ATRIBUÍDO SÃO PAULO | K10: 7,93 | L10: COMPOSICAO | M10: 5679 | N10: RETROESCAVADEIRA SOBRE RODAS COM CARREGADEIRA, TRAÇÃO 4X4, POTÊNCIA LÍQ. 88 HP, CAÇAMBA CARREG. CAP. MÍN. 1 M3, CAÇAMBA RETRO CAP. 0,26 M3, PESO OPERACIONAL MÍN. 6.674 KG, PROFUNDIDADE ESCAVAÇÃO MÁX. 4,37 M - CHI DIURNO. AF_06/2014 | O10: CHI | P10: ATRIBUÍDO SÃO PAULO | Q10: 0,0477000 | R10: 53,43 | S10: 2,54 | AE10: CAIXA REFERENCIAL
A11: ASSENTAMENTO DE TUBOS E PECAS | B11: ASTU | C11: FORNEC E/OU ASSENT DE TUBO DE FERRO FUNDIDO JUNTA | D11: 45 | G11: 97141 | H11: ASSENTAMENTO DE TUBO DE FERRO FUNDIDO PARA REDE DE ÁGUA, DN 80 MM, JUNTA ELÁSTICA, INSTALADO EM LOCAL COM NÍVEL ALTO DE INTERFERÊNCIAS (NÃO INCLUI FORNECIMENTO). AF_11/2017 | I11: M | J11: ATRIBUÍDO SÃO PAULO | K11: 7,93 | L11: INSUMO | M11: 20078 | N11: PASTA LUBRIFICANTE PARA TUBOS E CONEXOES COM JUNTA ELASTICA, EMBALAGEM DE *400* GR (USO EM PVC, ACO, POLIETILENO E OUTROS) | O11: UN | P11: COEFICIENTE DE REPRESENTATIVIDADE | Q11: 0,0046000 | R11: 23,02 | S11: 0,10 | AE11: CAIXA REFERENCIAL
A12: ASSENTAMENTO DE TUBOS E PECAS | B12: ASTU | C12: FORNEC E/OU ASSENT DE TUBO DE FERRO FUNDIDO JUNTA | D12: 45 | G12: 97141 | H12: ASSENTAMENTO DE TUBO DE FERRO FUNDIDO PARA REDE DE ÁGUA, DN 80 MM, JUNTA ELÁSTICA, INSTALADO EM LOCAL COM NÍVEL ALTO DE INTERFERÊNCIAS (NÃO INCLUI FORNECIMENTO). AF_11/2017 | I12: M | J12: ATRIBUÍDO SÃO PAULO | K12: 7,93 | L12: COMPOSICAO | M12: 88246 | N12: ASSENTADOR DE TUBOS COM ENCARGOS COMPLEMENTARES | O12: H | P12: COEFICIENTE DE REPRESENTATIVIDADE | Q12: 0,0905000 | R12: 30,02 | S12: 2,71 | AE12: CAIXA REFERENCIAL
A13: ASSENTAMENTO DE TUBOS E PECAS | B13: ASTU | C13: FORNEC E/OU ASSENT DE TUBO DE FERRO FUNDIDO JUNTA | D13: 45 | G13: 97141 | H13: ASSENTAMENTO DE TUBO DE FERRO FUNDIDO PARA REDE DE ÁGUA, DN 80 MM, JUNTA ELÁSTICA, INSTALADO EM LOCAL COM NÍVEL ALTO DE INTERFERÊNCIAS (NÃO INCLUI FORNECIMENTO). AF_11/2017 | I13: M | J13: ATRIBUÍDO SÃO PAULO | K13: 7,93 | L13: COMPOSICAO | M13: 88316 | N13: SERVENTE COM ENCARGOS COMPLEMENTARES | O13: H | P13: COLETADO | Q13: 0,0905000 | R13: 15,57 | S13: 1,40 | AE13: CAIXA REFERENCIAL
A14: ASSENTAMENTO DE TUBOS E PECAS | B14: ASTU | C14: FORNEC E/OU ASSENT DE TUBO DE FERRO FUNDIDO JUNTA | D14: 45 | G14: 97142 | H14: ASSENTAMENTO DE TUBO DE FERRO FUNDIDO PARA REDE DE ÁGUA, DN 100 MM, JUNTA ELÁSTICA, INSTALADO EM LOCAL COM NÍVEL ALTO DE INTERFERÊNCIAS (NÃO INCLUI FORNECIMENTO). AF_11/2017 | I14: M | J14: ATRIBUÍDO SÃO PAULO | K14: 8,85 | T14: 5,77 | U14: 65,0172614 | V14: 1,55 | W14: 17,6064441 | X14: 1,53 | Y14: 17,3762945 | Z14: 0,00 | AA14: 0,0000000 | AB14: 0,00 | AC14: 0,0000000 | AD14: 0.17062 | AE14: CAIXA REFERENCIAL
A15: ASSENTAMENTO DE TUBOS E PECAS | B15: ASTU | C15: FORNEC E/OU ASSENT DE TUBO DE FERRO FUNDIDO JUNTA | D15: 45 | G15: 97142 | H15: ASSENTAMENTO DE TUBO DE FERRO FUNDIDO PARA REDE DE ÁGUA, DN 100 MM, JUNTA ELÁSTICA, INSTALADO EM LOCAL COM NÍVEL ALTO DE INTERFERÊNCIAS (NÃO INCLUI FORNECIMENTO). AF_11/2017 | I15: M | J15: ATRIBUÍDO SÃO PAULO | K15: 8,85 | L15: COMPOSICAO | M15: 5678 | N15: RETROESCAVADEIRA SOBRE RODAS COM CARREGADEIRA, TRAÇÃO 4X4, POTÊNCIA LÍQ. 88 HP, CAÇAMBA CARREG. CAP. MÍN. 1 M3, CAÇAMBA RETRO CAP. 0,26 M3, PESO OPERACIONAL MÍN. 6.674 KG, PROFUNDIDADE ESCAVAÇÃO MÁX. 4,37 M - CHP DIURNO. AF_06/2014 | O15: CHP | P15: ATRIBUÍDO SÃO PAULO | Q15: 0,0106000 | R15: 119,51 | S15: 1,26 | AE15: CAIXA REFERENCIAL
A16: ASSENTAMENTO DE TUBOS E PECAS | B16: ASTU | C16: FORNEC E/OU ASSENT DE TUBO DE FERRO FUNDIDO JUNTA | D16: 45 | G16: 97142 | H16: ASSENTAMENTO DE TUBO DE FERRO FUNDIDO PARA REDE DE ÁGUA, DN 100 MM, JUNTA ELÁSTICA, INSTALADO EM LOCAL COM NÍVEL ALTO DE INTERFERÊNCIAS (NÃO INCLUI FORNECIMENTO). AF_11/2017 | I16: M | J16: ATRIBUÍDO SÃO PAULO | K16: 8,85 | L16: COMPOSICAO | M16: 5679 | N16: RETROESCAVADEIRA SOBRE RODAS COM CARREGADEIRA, TRAÇÃO 4X4, POTÊNCIA LÍQ. 88 HP, CAÇAMBA CARREG. CAP. MÍN. 1 M3, CAÇAMBA RETRO CAP. 0,26 M3, PESO OPERACIONAL MÍN. 6.674 KG, PROFUNDIDADE ESCAVAÇÃO MÁX. 4,37 M - CHI DIURNO. AF_06/2014 | O16: CHI | P16: ATRIBUÍDO SÃO PAULO | Q16: 0,0510000 | R16: 53,43 | S16: 2,72 | AE16: CAIXA REFERENCIAL
A17: ASSENTAMENTO DE TUBOS E PECAS | B17: ASTU | C17: FORNEC E/OU ASSENT DE TUBO DE FERRO FUNDIDO JUNTA | D17: 45 | G17: 97142 | H17: ASSENTAMENTO DE TUBO DE FERRO FUNDIDO PARA REDE DE ÁGUA, DN 100 MM, JUNTA ELÁSTICA, INSTALADO EM LOCAL COM NÍVEL ALTO DE INTERFERÊNCIAS (NÃO INCLUI FORNECIMENTO). AF_11/2017 | I17: M | J17: ATRIBUÍDO SÃO PAULO | K17: 8,85 | L17: INSUMO | M17: 20078 | N17: PASTA LUBRIFICANTE PARA TUBOS E CONEXOES COM JUNTA ELASTICA, EMBALAGEM DE *400* GR (USO EM PVC, ACO, POLIETILENO E OUTROS) | O17: UN | P17: COEFICIENTE DE REPRESENTATIVIDADE | Q17: 0,0054000 | R17: 23,02 | S17: 0,12 | AE17: CAIXA REFERENCIAL
A18: ASSENTAMENTO DE TUBOS E PECAS | B18: ASTU | C18: FORNEC E/OU ASSENT DE TUBO DE FERRO FUNDIDO JUNTA | D18: 45 | G18: 97142 | H18: ASSENTAMENTO DE TUBO DE FERRO FUNDIDO PARA REDE DE ÁGUA, DN 100 MM, JUNTA ELÁSTICA, INSTALADO EM LOCAL COM NÍVEL ALTO DE INTERFERÊNCIAS (NÃO INCLUI FORNECIMENTO). AF_11/2017 | I18: M | J18: ATRIBUÍDO SÃO PAULO | K18: 8,85 | L18: COMPOSICAO | M18: 88246 | N18: ASSENTADOR DE TUBOS COM ENCARGOS COMPLEMENTARES | O18: H | P18: COEFICIENTE DE REPRESENTATIVIDADE | Q18: 0,1045000 | R18: 30,02 | S18: 3,13 | AE18: CAIXA REFERENCIAL
A19: ASSENTAMENTO DE TUBOS E PECAS | B19: ASTU | C19: FORNEC E/OU ASSENT DE TUBO DE FERRO FUNDIDO JUNTA | D19: 45 | G19: 97142 | H19: ASSENTAMENTO DE TUBO DE FERRO FUNDIDO PARA REDE DE ÁGUA, DN 100 MM, JUNTA ELÁSTICA, INSTALADO EM LOCAL COM NÍVEL ALTO DE INTERFERÊNCIAS (NÃO INCLUI FORNECIMENTO). AF_11/2017 | I19: M | J19: ATRIBUÍDO SÃO PAULO | K19: 8,85 | L19: COMPOSICAO | M19: 88316 | N19: SERVENTE COM ENCARGOS COMPLEMENTARES | O19: H | P19: COLETADO | Q19: 0,1045000 | R19: 15,57 | S19: 1,62 | AE19: CAIXA REFERENCIAL
A20: ASSENTAMENTO DE TUBOS E PECAS | B20: ASTU | C20: FORNEC E/OU ASSENT DE TUBO DE FERRO FUNDIDO JUNTA | D20: 45 | G20: 97143 | H20: ASSENTAMENTO DE TUBO DE FERRO FUNDIDO PARA REDE DE ÁGUA, DN 150 MM, JUNTA ELÁSTICA, INSTALADO EM LOCAL COM NÍVEL ALTO DE INTERFERÊNCIAS (NÃO INCLUI FORNECIMENTO). AF_11/2017 | I20: M | J20: ATRIBUÍDO SÃO PAULO | K20: 11,17 | T20: 7,37 | U20: 65,9090910 | V20: 2,01 | W20: 18,0000000 | X20: 1,79 | Y20: 16,0909090 | Z20: 0,00 | AA20: 0,0000000 | AB20: 0,00 | AC20: 0,0000000 | AD20: 0.15846 | AE20: CAIXA REFERENCIAL
A21: ASSENTAMENTO DE TUBOS E PECAS | B21: ASTU | C21: FORNEC E/OU ASSENT DE TUBO DE FERRO FUNDIDO JUNTA | D21: 45 | G21: 97143 | H21: ASSENTAMENTO DE TUBO DE FERRO FUNDIDO PARA REDE DE ÁGUA, DN 150 MM, JUNTA ELÁSTICA, INSTALADO EM LOCAL COM NÍVEL ALTO DE INTERFERÊNCIAS (NÃO INCLUI FORNECIMENTO). AF_11/2017 | I21: M | J21: ATRIBUÍDO SÃO PAULO | K21: 11,17 | L21: COMPOSICAO | M21: 5678 | N21: RETROESCAVADEIRA SOBRE RODAS COM CARREGADEIRA, TRAÇÃO 4X4, POTÊNCIA LÍQ. 88 HP, CAÇAMBA CARREG. CAP. MÍN. 1 M3, CAÇAMBA RETRO CAP. 0,26 M3, PESO OPERACIONAL MÍN. 6.674 KG, PROFUNDIDADE ESCAVAÇÃO MÁX. 4,37 M - CHP DIURNO. AF_06/2014 | O21: CHP | P21: ATRIBUÍDO SÃO PAULO | Q21: 0,0124000 | R21: 119,51 | S21: 1,48 | AE21: CAIXA REFERENCIAL
A22: ASSENTAMENTO DE TUBOS E PECAS | B22: ASTU | C22: FORNEC E/OU ASSENT DE TUBO DE FERRO FUNDIDO JUNTA | D22: 45 | G22: 97143 | H22: ASSENTAMENTO DE TUBO DE FERRO FUNDIDO PARA REDE DE ÁGUA, DN 150 MM, JUNTA ELÁSTICA, INSTALADO EM LOCAL COM NÍVEL ALTO DE INTERFERÊNCIAS (NÃO INCLUI FORNECIMENTO). AF_11/2017 | I22: M | J22: ATRIBUÍDO SÃO PAULO | K22: 11,17 | L22: COMPOSICAO | M22: 5679 | N22: RETROESCAVADEIRA SOBRE RODAS COM CARREGADEIRA, TRAÇÃO 4X4, POTÊNCIA LÍQ. 88 HP, CAÇAMBA CARREG. CAP. MÍN. 1 M3, CAÇAMBA RETRO CAP. 0,26 M3, PESO OPERACIONAL MÍN. 6.674 KG, PROFUNDIDADE ESCAVAÇÃO MÁX. 4,37 M - CHI DIURNO. AF_06/2014 | O22: CHI | P22: ATRIBUÍDO SÃO PAULO | Q22: 0,0594000 | R22: 53,43 | S22: 3,17 | AE22: CAIXA REFERENCIAL
A23: ASSENTAMENTO DE TUBOS E PECAS | B23: ASTU | C23: FORNEC E/OU ASSENT DE TUBO DE FERRO FUNDIDO JUNTA | D23: 45 | G23: 97143 | H23: ASSENTAMENTO DE TUBO DE FERRO FUNDIDO PARA REDE DE ÁGUA, DN 150 MM, JUNTA ELÁSTICA, INSTALADO EM LOCAL COM NÍVEL ALTO DE INTERFERÊNCIAS (NÃO INCLUI FORNECIMENTO). AF_11/2017 | I23: M | J23: ATRIBUÍDO SÃO PAULO | K23: 11,17 | L23: INSUMO | M23: 20078 | N23: PASTA LUBRIFICANTE PARA TUBOS E CONEXOES COM JUNTA ELASTICA, EMBALAGEM DE *400* GR (USO EM PVC, ACO, POLIETILENO E OUTROS) | O23: UN | P23: COEFICIENTE DE REPRESENTATIVIDADE | Q23: 0,0071000 | R23: 23,02 | S23: 0,16 | AE23: CAIXA REFERENCIAL
A24: ASSENTAMENTO DE TUBOS E PECAS | B24: ASTU | C24: FORNEC E/OU ASSENT DE TUBO DE FERRO FUNDIDO JUNTA | D24: 45 | G24: 97143 | H24: ASSENTAMENTO DE TUBO DE FERRO FUNDIDO PARA REDE DE ÁGUA, DN 150 MM, JUNTA ELÁSTICA, INSTALADO EM LOCAL COM NÍVEL ALTO DE INTERFERÊNCIAS (NÃO INCLUI FORNECIMENTO). AF_11/2017 | I24: M | J24: ATRIBUÍDO SÃO PAULO | K24: 11,17 | L24: COMPOSICAO | M24: 88246 | N24: ASSENTADOR DE TUBOS COM ENCARGOS COMPLEMENTARES | O24: H | P24: COEFICIENTE DE REPRESENTATIVIDADE | Q24: 0,1396000 | R24: 30,02 | S24: 4,19 | AE24: CAIXA REFERENCIAL
A25: ASSENTAMENTO DE TUBOS E PECAS | B25: ASTU | C25: FORNEC E/OU ASSENT DE TUBO DE FERRO FUNDIDO JUNTA | D25: 45 | G25: 97143 | H25: ASSENTAMENTO DE TUBO DE FERRO FUNDIDO PARA REDE DE ÁGUA, DN 150 MM, JUNTA ELÁSTICA, INSTALADO EM LOCAL COM NÍVEL ALTO DE INTERFERÊNCIAS (NÃO INCLUI FORNECIMENTO). AF_11/2017 | I25: M | J25: ATRIBUÍDO SÃO PAULO | K25: 11,17 | L25: COMPOSICAO | M25: 88316 | N25: SERVENTE COM ENCARGOS COMPLEMENTARES | O25: H | P25: COLETADO | Q25: 0,1396000 | R25: 15,57 | S25: 2,17 | AE25: CAIXA REFERENCIAL
A26: ASSENTAMENTO DE TUBOS E PECAS | B26: ASTU | C26: FORNEC E/OU ASSENT DE TUBO DE FERRO FUNDIDO JUNTA | D26: 45 | G26: 97144 | H26: ASSENTAMENTO DE TUBO DE FERRO FUNDIDO PARA REDE DE ÁGUA, DN 200 MM, JUNTA ELÁSTICA, INSTALADO EM LOCAL COM NÍVEL ALTO DE INTERFERÊNCIAS (NÃO INCLUI FORNECIMENTO). AF_11/2017 | I26: M | J26: ATRIBUÍDO SÃO PAULO | K26: 13,46 | T26: 8,95 | U26: 66,4414415 | V26: 2,46 | W26: 18,3183183 | X26: 2,05 | Y26: 15,2402402 | Z26: 0,00 | AA26: 0,0000000 | AB26: 0,00 | AC26: 0,0000000 | AD26: 0.15082 | AE26: CAIXA REFERENCIAL
A27: ASSENTAMENTO DE TUBOS E PECAS | B27: ASTU | C27: FORNEC E/OU ASSENT DE TUBO DE FERRO FUNDIDO JUNTA | D27: 45 | G27: 97144 | H27: ASSENTAMENTO DE TUBO DE FERRO FUNDIDO PARA REDE DE ÁGUA, DN 200 MM, JUNTA ELÁSTICA, INSTALADO EM LOCAL COM NÍVEL ALTO DE INTERFERÊNCIAS (NÃO INCLUI FORNECIMENTO). AF_11/2017 | I27: M | J27: ATRIBUÍDO SÃO PAULO | K27: 13,46 | L27: COMPOSICAO | M27: 5678 | N27: RETROESCAVADEIRA SOBRE RODAS COM CARREGADEIRA, TRAÇÃO 4X4, POTÊNCIA LÍQ. 88 HP, CAÇAMBA CARREG. CAP. MÍN. 1 M3, CAÇAMBA RETRO CAP. 0,26 M3, PESO OPERACIONAL MÍN. 6.674 KG, PROFUNDIDADE ESCAVAÇÃO MÁX. 4,37 M - CHP DIURNO. AF_06/2014 | O27: CHP | P27: ATRIBUÍDO SÃO PAULO | Q27: 0,0141000 | R27: 119,51 | S27: 1,68 | AE27: CAIXA REFERENCIAL
A28: ASSENTAMENTO DE TUBOS E PECAS | B28: ASTU | C28: FORNEC E/OU ASSENT DE TUBO DE FERRO FUNDIDO JUNTA | D28: 45 | G28: 97144 | H28: ASSENTAMENTO DE TUBO DE FERRO FUNDIDO PARA REDE DE ÁGUA, DN 200 MM, JUNTA ELÁSTICA, INSTALADO EM LOCAL COM NÍVEL ALTO DE INTERFERÊNCIAS (NÃO INCLUI FORNECIMENTO). AF_11/2017 | I28: M | J28: ATRIBUÍDO SÃO PAULO | K28: 13,46 | L28: COMPOSICAO | M28: 5679 | N28: RETROESCAVADEIRA SOBRE RODAS COM CARREGADEIRA, TRAÇÃO 4X4, POTÊNCIA LÍQ. 88 HP, CAÇAMBA CARREG. CAP. MÍN. 1 M3, CAÇAMBA RETRO CAP. 0,26 M3, PESO OPERACIONAL MÍN. 6.674 KG, PROFUNDIDADE ESCAVAÇÃO MÁX. 4,37 M - CHI DIURNO. AF_06/2014 | O28: CHI | P28: ATRIBUÍDO SÃO PAULO | Q28: 0,0678000 | R28: 53,43 | S28: 3,62 | AE28: CAIXA REFERENCIAL
A29: ASSENTAMENTO DE TUBOS E PECAS | B29: ASTU | C29: FORNEC E/OU ASSENT DE TUBO DE FERRO FUNDIDO JUNTA | D29: 45 | G29: 97144 | H29: ASSENTAMENTO DE TUBO DE FERRO FUNDIDO PARA REDE DE ÁGUA, DN 200 MM, JUNTA ELÁSTICA, INSTALADO EM LOCAL COM NÍVEL ALTO DE INTERFERÊNCIAS (NÃO INCLUI FORNECIMENTO). AF_11/2017 | I29: M | J29: ATRIBUÍDO SÃO PAULO | K29: 13,46 | L29: INSUMO | M29: 20078 | N29: PASTA LUBRIFICANTE PARA TUBOS E CONEXOES COM JUNTA ELASTICA, EMBALAGEM DE *400* GR (USO EM PVC, ACO, POLIETILENO E OUTROS) | O29: UN | P29: COEFICIENTE DE REPRESENTATIVIDADE | Q29: 0,0087000 | R29: 23,02 | S29: 0,20 | AE29: CAIXA REFERENCIAL
A30: ASSENTAMENTO DE TUBOS E PECAS | B30: ASTU | C30: FORNEC E/OU ASSENT DE TUBO DE FERRO FUNDIDO JUNTA | D30: 45 | G30: 97144 | H30: ASSENTAMENTO DE TUBO DE FERRO FUNDIDO PARA REDE DE ÁGUA, DN 200 MM, JUNTA ELÁSTICA, INSTALADO EM LOCAL COM NÍVEL ALTO DE INTERFERÊNCIAS (NÃO INCLUI FORNECIMENTO). AF_11/2017 | I30: M | J30: ATRIBUÍDO SÃO PAULO | K30: 13,46 | L30: COMPOSICAO | M30: 88246 | N30: ASSENTADOR DE TUBOS COM ENCARGOS COMPLEMENTARES | O30: H | P30: COEFICIENTE DE REPRESENTATIVIDADE | Q30: 0,1747000 | R30: 30,02 | S30: 5,24 | AE30: CAIXA REFERENCIAL
A31: ASSENTAMENTO DE TUBOS E PECAS | B31: ASTU | C31: FORNEC E/OU ASSENT DE TUBO DE FERRO FUNDIDO JUNTA | D31: 45 | G31: 97144 | H31: ASSENTAMENTO DE TUBO DE FERRO FUNDIDO PARA REDE DE ÁGUA, DN 200 MM, JUNTA ELÁSTICA, INSTALADO EM LOCAL COM NÍVEL ALTO DE INTERFERÊNCIAS (NÃO INCLUI FORNECIMENTO). AF_11/2017 | I31: M | J31: ATRIBUÍDO SÃO PAULO | K31: 13,46 | L31: COMPOSICAO | M31: 88316 | N31: SERVENTE COM ENCARGOS COMPLEMENTARES | O31: H | P31: COLETADO | Q31: 0,1747000 | R31: 15,57 | S31: 2,72 | AE31: CAIXA REFERENCIAL
A32: ASSENTAMENTO DE TUBOS E PECAS | B32: ASTU | C32: FORNEC E/OU ASSENT DE TUBO DE FERRO FUNDIDO JUNTA | D32: 45 | G32: 97145 | H32: ASSENTAMENTO DE TUBO DE FERRO FUNDIDO PARA REDE DE ÁGUA, DN 250 MM, JUNTA ELÁSTICA, INSTALADO EM LOCAL COM NÍVEL ALTO DE INTERFERÊNCIAS (NÃO INCLUI FORNECIMENTO). AF_11/2017 | I32: M | J32: ATRIBUÍDO SÃO PAULO | K32: 15,78 | T32: 10,56 | U32: 66,8586054 | V32: 2,92 | W32: 18,5540626 | X32: 2,30 | Y32: 14,5873320 | Z32: 0,00 | AA32: 0,0000000 | AB32: 0,00 | AC32: 0,0000000 | AD32: 0.14512 | AE32: CAIXA REFERENCIAL
A33: ASSENTAMENTO DE TUBOS E PECAS | B33: ASTU | C33: FORNEC E/OU ASSENT DE TUBO DE FERRO FUNDIDO JUNTA | D33: 45 | G33: 97145 | H33: ASSENTAMENTO DE TUBO DE FERRO FUNDIDO PARA REDE DE ÁGUA, DN 250 MM, JUNTA ELÁSTICA, INSTALADO EM LOCAL COM NÍVEL ALTO DE INTERFERÊNCIAS (NÃO INCLUI FORNECIMENTO). AF_11/2017 | I33: M | J33: ATRIBUÍDO SÃO PAULO | K33: 15,78 | L33: COMPOSICAO | M33: 5678 | N33: RETROESCAVADEIRA SOBRE RODAS COM CARREGADEIRA, TRAÇÃO 4X4, POTÊNCIA LÍQ. 88 HP, CAÇAMBA CARREG. CAP. MÍN. 1 M3, CAÇAMBA RETRO CAP. 0,26 M3, PESO OPERACIONAL MÍN. 6.674 KG, PROFUNDIDADE ESCAVAÇÃO MÁX. 4,37 M - CHP DIURNO. AF_06/2014 | O33: CHP | P33: ATRIBUÍDO SÃO PAULO | Q33: 0,0159000 | R33: 119,51 | S33: 1,90 | AE33: CAIXA REFERENCIAL
A34: ASSENTAMENTO DE TUBOS E PECAS | B34: ASTU | C34: FORNEC E/OU ASSENT DE TUBO DE FERRO FUNDIDO JUNTA | D34: 45 | G34: 97145 | H34: ASSENTAMENTO DE TUBO DE FERRO FUNDIDO PARA REDE DE ÁGUA, DN 250 MM, JUNTA ELÁSTICA, INSTALADO EM LOCAL COM NÍVEL ALTO DE INTERFERÊNCIAS (NÃO INCLUI FORNECIMENTO). AF_11/2017 | I34: M | J34: ATRIBUÍDO SÃO PAULO | K34: 15,78 | L34: COMPOSICAO | M34: 5679 | N34: RETROESCAVADEIRA SOBRE RODAS COM CARREGADEIRA, TRAÇÃO 4X4, POTÊNCIA LÍQ. 88 HP, CAÇAMBA CARREG. CAP. MÍN. 1 M3, CAÇAMBA RETRO CAP. 0,26 M3, PESO OPERACIONAL MÍN. 6.674 KG, PROFUNDIDADE ESCAVAÇÃO MÁX. 4,37 M - CHI DIURNO. AF_06/2014 | O34: CHI | P34: ATRIBUÍDO SÃO PAULO | Q34: 0,0762000 | R34: 53,43 | S34: 4,07 | AE34: CAIXA REFERENCIAL
A35: ASSENTAMENTO DE TUBOS E PECAS | B35: ASTU | C35: FORNEC E/OU ASSENT DE TUBO DE FERRO FUNDIDO JUNTA | D35: 45 | G35: 97145 | H35: ASSENTAMENTO DE TUBO DE FERRO FUNDIDO PARA REDE DE ÁGUA, DN 250 MM, JUNTA ELÁSTICA, INSTALADO EM LOCAL COM NÍVEL ALTO DE INTERFERÊNCIAS (NÃO INCLUI FORNECIMENTO). AF_11/2017 | I35: M | J35: ATRIBUÍDO SÃO PAULO | K35: 15,78 | L35: INSUMO | M35: 20078 | N35: PASTA LUBRIFICANTE PARA TUBOS E CONEXOES COM JUNTA ELASTICA, EMBALAGEM DE *400* GR (USO EM PVC, ACO, POLIETILENO E OUTROS) | O35: UN | P35: COEFICIENTE DE REPRESENTATIVIDADE | Q35: 0,0113000 | R35: 23,02 | S35: 0,26 | AE35: CAIXA REFERENCIAL
A36: ASSENTAMENTO DE TUBOS E PECAS | B36: ASTU | C36: FORNEC E/OU ASSENT DE TUBO DE FERRO FUNDIDO JUNTA | D36: 45 | G36: 97145 | H36: ASSENTAMENTO DE TUBO DE FERRO FUNDIDO PARA REDE DE ÁGUA, DN 250 MM, JUNTA ELÁSTICA, INSTALADO EM LOCAL COM NÍVEL ALTO DE INTERFERÊNCIAS (NÃO INCLUI FORNECIMENTO). AF_11/2017 | I36: M | J36: ATRIBUÍDO SÃO PAULO | K36: 15,78 | L36: COMPOSICAO | M36: 88246 | N36: ASSENTADOR DE TUBOS COM ENCARGOS COMPLEMENTARES | O36: H | P36: COEFICIENTE DE REPRESENTATIVIDADE | Q36: 0,2097000 | R36: 30,02 | S36: 6,29 | AE36: CAIXA REFERENCIAL
A37: ASSENTAMENTO DE TUBOS E PECAS | B37: ASTU | C37: FORNEC E/OU ASSENT DE TUBO DE FERRO FUNDIDO JUNTA | D37: 45 | G37: 97145 | H37: ASSENTAMENTO DE TUBO DE FERRO FUNDIDO PARA REDE DE ÁGUA, DN 250 MM, JUNTA ELÁSTICA, INSTALADO EM LOCAL COM NÍVEL ALTO DE INTERFERÊNCIAS (NÃO INCLUI FORNECIMENTO). AF_11/2017 | I37: M | J37: ATRIBUÍDO SÃO PAULO | K37: 15,78 | L37: COMPOSICAO | M37: 88316 | N37: SERVENTE COM ENCARGOS COMPLEMENTARES | O37: H | P37: COLETADO | Q37: 0,2097000 | R37: 15,57 | S37: 3,26 | AE37: CAIXA REFERENCIAL
A38: ASSENTAMENTO DE TUBOS E PECAS | B38: ASTU | C38: FORNEC E/OU ASSENT DE TUBO DE FERRO FUNDIDO JUNTA | D38: 45 | G38: 97146 | H38: ASSENTAMENTO DE TUBO DE FERRO FUNDIDO PARA REDE DE ÁGUA, DN 300 MM, JUNTA ELÁSTICA, INSTALADO EM LOCAL COM NÍVEL ALTO DE INTERFERÊNCIAS (NÃO INCLUI FORNECIMENTO). AF_11/2017 | I38: M | J38: ATRIBUÍDO SÃO PAULO | K38: 18,08 | T38: 12,17 | U38: 67,2625699 | V38: 3,36 | W38: 18,6033519 | X38: 2,55 | Y38: 14,1340782 | Z38: 0,00 | AA38: 0,0000000 | AB38: 0,00 | AC38: 0,0000000 | AD38: 0.13993 | AE38: CAIXA REFERENCIAL
A39: ASSENTAMENTO DE TUBOS E PECAS | B39: ASTU | C39: FORNEC E/OU ASSENT DE TUBO DE FERRO FUNDIDO JUNTA | D39: 45 | G39: 97146 | H39: ASSENTAMENTO DE TUBO DE FERRO FUNDIDO PARA REDE DE ÁGUA, DN 300 MM, JUNTA ELÁSTICA, INSTALADO EM LOCAL COM NÍVEL ALTO DE INTERFERÊNCIAS (NÃO INCLUI FORNECIMENTO). AF_11/2017 | I39: M | J39: ATRIBUÍDO SÃO PAULO | K39: 18,08 | L39: COMPOSICAO | M39: 5678 | N39: RETROESCAVADEIRA SOBRE RODAS COM CARREGADEIRA, TRAÇÃO 4X4, POTÊNCIA LÍQ. 88 HP, CAÇAMBA CARREG. CAP. MÍN. 1 M3, CAÇAMBA RETRO CAP. 0,26 M3, PESO OPERACIONAL MÍN. 6.674 KG, PROFUNDIDADE ESCAVAÇÃO MÁX. 4,37 M - CHP DIURNO. AF_06/2014 | O39: CHP | P39: ATRIBUÍDO SÃO PAULO | Q39: 0,0176000 | R39: 119,51 | S39: 2,10 | AE39: CAIXA REFERENCIAL
A40: ASSENTAMENTO DE TUBOS E PECAS | B40: ASTU | C40: FORNEC E/OU ASSENT DE TUBO DE FERRO FUNDIDO JUNTA | D40: 45 | G40: 97146 | H40: ASSENTAMENTO DE TUBO DE FERRO FUNDIDO PARA REDE DE ÁGUA, DN 300 MM, JUNTA ELÁSTICA, INSTALADO EM LOCAL COM NÍVEL ALTO DE INTERFERÊNCIAS (NÃO INCLUI FORNECIMENTO). AF_11/2017 | I40: M | J40: ATRIBUÍDO SÃO PAULO | K40: 18,08 | L40: COMPOSICAO | M40: 5679 | N40: RETROESCAVADEIRA SOBRE RODAS COM CARREGADEIRA, TRAÇÃO 4X4, POTÊNCIA LÍQ. 88 HP, CAÇAMBA CARREG. CAP. MÍN. 1 M3, CAÇAMBA RETRO CAP. 0,26 M3, PESO OPERACIONAL MÍN. 6.674 KG, PROFUNDIDADE ESCAVAÇÃO MÁX. 4,37 M - CHI DIURNO. AF_06/2014 | O40: CHI | P40: ATRIBUÍDO SÃO PAULO | Q40: 0,0846000 | R40: 53,43 | S40: 4,52 | AE40: CAIXA REFERENCIAL
A41: ASSENTAMENTO DE TUBOS E PECAS | B41: ASTU | C41: FORNEC E/OU ASSENT DE TUBO DE FERRO FUNDIDO JUNTA | D41: 45 | G41: 97146 | H41: ASSENTAMENTO DE TUBO DE FERRO FUNDIDO PARA REDE DE ÁGUA, DN 300 MM, JUNTA ELÁSTICA, INSTALADO EM LOCAL COM NÍVEL ALTO DE INTERFERÊNCIAS (NÃO INCLUI FORNECIMENTO). AF_11/2017 | I41: M | J41: ATRIBUÍDO SÃO PAULO | K41: 18,08 | L41: INSUMO | M41: 20078 | N41: PASTA LUBRIFICANTE PARA TUBOS E CONEXOES COM JUNTA ELASTICA, EMBALAGEM DE *400* GR (USO EM PVC, ACO, POLIETILENO E OUTROS) | O41: UN | P41: COEFICIENTE DE REPRESENTATIVIDADE | Q41: 0,0138000 | R41: 23,02 | S41: 0,31 | AE41: CAIXA REFERENCIAL
A42: ASSENTAMENTO DE TUBOS E PECAS | B42: ASTU | C42: FORNEC E/OU ASSENT DE TUBO DE FERRO FUNDIDO JUNTA | D42: 45 | G42: 97146 | H42: ASSENTAMENTO DE TUBO DE FERRO FUNDIDO PARA REDE DE ÁGUA, DN 300 MM, JUNTA ELÁSTICA, INSTALADO EM LOCAL COM NÍVEL ALTO DE INTERFERÊNCIAS (NÃO INCLUI FORNECIMENTO). AF_11/2017 | I42: M | J42: ATRIBUÍDO SÃO PAULO | K42: 18,08 | L42: COMPOSICAO | M42: 88246 | N42: ASSENTADOR DE TUBOS COM ENCARGOS COMPLEMENTARES | O42: H | P42: COEFICIENTE DE REPRESENTATIVIDADE | Q42: 0,2448000 | R42: 30,02 | S42: 7,34 | AE42: CAIXA REFERENCIAL
A43: ASSENTAMENTO DE TUBOS E PECAS | B43: ASTU | C43: FORNEC E/OU ASSENT DE TUBO DE FERRO FUNDIDO JUNTA | D43: 45 | G43: 97146 | H43: ASSENTAMENTO DE TUBO DE FERRO FUNDIDO PARA REDE DE ÁGUA, DN 300 MM, JUNTA ELÁSTICA, INSTALADO EM LOCAL COM NÍVEL ALTO DE INTERFERÊNCIAS (NÃO INCLUI FORNECIMENTO). AF_11/2017 | I43: M | J43: ATRIBUÍDO SÃO PAULO | K43: 18,08 | L43: COMPOSICAO | M43: 88316 | N43: SERVENTE COM ENCARGOS COMPLEMENTARES | O43: H | P43: COLETADO | Q43: 0,2448000 | R43: 15,57 | S43: 3,81 | AE43: CAIXA REFERENCIAL
A44: ASSENTAMENTO DE TUBOS E PECAS | B44: ASTU | C44: FORNEC E/OU ASSENT DE TUBO DE FERRO FUNDIDO JUNTA | D44: 45 | G44: 97147 | H44: ASSENTAMENTO DE TUBO DE FERRO FUNDIDO PARA REDE DE ÁGUA, DN 350 MM, JUNTA ELÁSTICA, INSTALADO EM LOCAL COM NÍVEL ALTO DE INTERFERÊNCIAS (NÃO INCLUI FORNECIMENTO). AF_11/2017 | I44: M | J44: ATRIBUÍDO SÃO PAULO | K44: 20,39 | T44: 13,78 | U44: 67,5061730 | V44: 3,82 | W44: 18,7654320 | X44: 2,79 | Y44: 13,7283950 | Z44: 0,00 | AA44: 0,0000000 | AB44: 0,00 | AC44: 0,0000000 | AD44: 0.13634 | AE44: CAIXA REFERENCIAL
A45: ASSENTAMENTO DE TUBOS E PECAS | B45: ASTU | C45: FORNEC E/OU ASSENT DE TUBO DE FERRO FUNDIDO JUNTA | D45: 45 | G45: 97147 | H45: ASSENTAMENTO DE TUBO DE FERRO FUNDIDO PARA REDE DE ÁGUA, DN 350 MM, JUNTA ELÁSTICA, INSTALADO EM LOCAL COM NÍVEL ALTO DE INTERFERÊNCIAS (NÃO INCLUI FORNECIMENTO). AF_11/2017 | I45: M | J45: ATRIBUÍDO SÃO PAULO | K45: 20,39 | L45: COMPOSICAO | M45: 5678 | N45: RETROESCAVADEIRA SOBRE RODAS COM CARREGADEIRA, TRAÇÃO 4X4, POTÊNCIA LÍQ. 88 HP, CAÇAMBA CARREG. CAP. MÍN. 1 M3, CAÇAMBA RETRO CAP. 0,26 M3, PESO OPERACIONAL MÍN. 6.674 KG, PROFUNDIDADE ESCAVAÇÃO MÁX. 4,37 M - CHP DIURNO. AF_06/2014 | O45: CHP | P45: ATRIBUÍDO SÃO PAULO | Q45: 0,0194000 | R45: 119,51 | S45: 2,31 | AE45: CAIXA REFERENCIAL
A46: ASSENTAMENTO DE TUBOS E PECAS | B46: ASTU | C46: FORNEC E/OU ASSENT DE TUBO DE FERRO FUNDIDO JUNTA | D46: 45 | G46: 97147 | H46: ASSENTAMENTO DE TUBO DE FERRO FUNDIDO PARA REDE DE ÁGUA, DN 350 MM, JUNTA ELÁSTICA, INSTALADO EM LOCAL COM NÍVEL ALTO DE INTERFERÊNCIAS (NÃO INCLUI FORNECIMENTO). AF_11/2017 | I46: M | J46: ATRIBUÍDO SÃO PAULO | K46: 20,39 | L46: COMPOSICAO | M46: 5679 | N46: RETROESCAVADEIRA SOBRE RODAS COM CARREGADEIRA, TRAÇÃO 4X4, POTÊNCIA LÍQ. 88 HP, CAÇAMBA CARREG. CAP. MÍN. 1 M3, CAÇAMBA RETRO CAP. 0,26 M3, PESO OPERACIONAL MÍN. 6.674 KG, PROFUNDIDADE ESCAVAÇÃO MÁX. 4,37 M - CHI DIURNO. AF_06/2014 | O46: CHI | P46: ATRIBUÍDO SÃO PAULO | Q46: 0,0930000 | R46: 53,43 | S46: 4,96 | AE46: CAIXA REFERENCIAL
A47: ASSENTAMENTO DE TUBOS E PECAS | B47: ASTU | C47: FORNEC E/OU ASSENT DE TUBO DE FERRO FUNDIDO JUNTA | D47: 45 | G47: 97147 | H47: ASSENTAMENTO DE TUBO DE FERRO FUNDIDO PARA REDE DE ÁGUA, DN 350 MM, JUNTA ELÁSTICA, INSTALADO EM LOCAL COM NÍVEL ALTO DE INTERFERÊNCIAS (NÃO INCLUI FORNECIMENTO). AF_11/2017 | I47: M | J47: ATRIBUÍDO SÃO PAULO | K47: 20,39 | L47: INSUMO | M47: 20078 | N47: PASTA LUBRIFICANTE PARA TUBOS E CONEXOES COM JUNTA ELASTICA, EMBALAGEM DE *400* GR (USO EM PVC, ACO, POLIETILENO E OUTROS) | O47: UN | P47: COEFICIENTE DE REPRESENTATIVIDADE | Q47: 0,0163000 | R47: 23,02 | S47: 0,37 | AE47: CAIXA REFERENCIAL
A48: ASSENTAMENTO DE TUBOS E PECAS | B48: ASTU | C48: FORNEC E/OU ASSENT DE TUBO DE FERRO FUNDIDO JUNTA | D48: 45 | G48: 97147 | H48: ASSENTAMENTO DE TUBO DE FERRO FUNDIDO PARA REDE DE ÁGUA, DN 350 MM, JUNTA ELÁSTICA, INSTALADO EM LOCAL COM NÍVEL ALTO DE INTERFERÊNCIAS (NÃO INCLUI FORNECIMENTO). AF_11/2017 | I48: M | J48: ATRIBUÍDO SÃO PAULO | K48: 20,39 | L48: COMPOSICAO | M48: 88246 | N48: ASSENTADOR DE TUBOS COM ENCARGOS COMPLEMENTARES | O48: H | P48: COEFICIENTE DE REPRESENTATIVIDADE | Q48: 0,2799000 | R48: 30,02 | S48: 8,40 | AE48: CAIXA REFERENCIAL
A49: ASSENTAMENTO DE TUBOS E PECAS | B49: ASTU | C49: FORNEC E/OU ASSENT DE TUBO DE FERRO FUNDIDO JUNTA | D49: 45 | G49: 97147 | H49: ASSENTAMENTO DE TUBO DE FERRO FUNDIDO PARA REDE DE ÁGUA, DN 350 MM, JUNTA ELÁSTICA, INSTALADO EM LOCAL COM NÍVEL ALTO DE INTERFERÊNCIAS (NÃO INCLUI FORNECIMENTO). AF_11/2017 | I49: M | J49: ATRIBUÍDO SÃO PAULO | K49: 20,39 | L49: COMPOSICAO | M49: 88316 | N49: SERVENTE COM ENCARGOS COMPLEMENTARES | O49: H | P49: COLETADO | Q49: 0,2799000 | R49: 15,57 | S49: 4,35 | AE49: CAIXA REFERENCIAL
A50: ASSENTAMENTO DE TUBOS E PECAS | B50: ASTU | C50: FORNEC E/OU ASSENT DE TUBO DE FERRO FUNDIDO JUNTA | D50: 45 | G50: 97148 | H50: ASSENTAMENTO DE TUBO DE FERRO FUNDIDO PARA REDE DE ÁGUA, DN 400 MM, JUNTA ELÁSTICA, INSTALADO EM LOCAL COM NÍVEL ALTO DE INTERFERÊNCIAS (NÃO INCLUI FORNECIMENTO). AF_11/2017 | I50: M | J50: ATRIBUÍDO SÃO PAULO | K50: 22,71 | T50: 15,38 | U50: 67,7161864 | V50: 4,27 | W50: 18,8026607 | X50: 3,06 | Y50: 13,4811529 | Z50: 0,00 | AA50: 0,0000000 | AB50: 0,00 | AC50: 0,0000000 | AD50: 0.1343 | AE50: CAIXA REFERENCIAL
A51: ASSENTAMENTO DE TUBOS E PECAS | B51: ASTU | C51: FORNEC E/OU ASSENT DE TUBO DE FERRO FUNDIDO JUNTA | D51: 45 | G51: 97148 | H51: ASSENTAMENTO DE TUBO DE FERRO FUNDIDO PARA REDE DE ÁGUA, DN 400 MM, JUNTA ELÁSTICA, INSTALADO EM LOCAL COM NÍVEL ALTO DE INTERFERÊNCIAS (NÃO INCLUI FORNECIMENTO). AF_11/2017 | I51: M | J51: ATRIBUÍDO SÃO PAULO | K51: 22,71 | L51: COMPOSICAO | M51: 5678 | N51: RETROESCAVADEIRA SOBRE RODAS COM CARREGADEIRA, TRAÇÃO 4X4, POTÊNCIA LÍQ. 88 HP, CAÇAMBA CARREG. CAP. MÍN. 1 M3, CAÇAMBA RETRO CAP. 0,26 M3, PESO OPERACIONAL MÍN. 6.674 KG, PROFUNDIDADE ESCAVAÇÃO MÁX. 4,37 M - CHP DIURNO. AF_06/2014 | O51: CHP | P51: ATRIBUÍDO SÃO PAULO | Q51: 0,0211000 | R51: 119,51 | S51: 2,52 | AE51: CAIXA REFERENCIAL
A52: ASSENTAMENTO DE TUBOS E PECAS | B52: ASTU | C52: FORNEC E/OU ASSENT DE TUBO DE FERRO FUNDIDO JUNTA | D52: 45 | G52: 97148 | H52: ASSENTAMENTO DE TUBO DE FERRO FUNDIDO PARA REDE DE ÁGUA, DN 400 MM, JUNTA ELÁSTICA, INSTALADO EM LOCAL COM NÍVEL ALTO DE INTERFERÊNCIAS (NÃO INCLUI FORNECIMENTO). AF_11/2017 | I52: M | J52: ATRIBUÍDO SÃO PAULO | K52: 22,71 | L52: COMPOSICAO | M52: 5679 | N52: RETROESCAVADEIRA SOBRE RODAS COM CARREGADEIRA, TRAÇÃO 4X4, POTÊNCIA LÍQ. 88 HP, CAÇAMBA CARREG. CAP. MÍN. 1 M3, CAÇAMBA RETRO CAP. 0,26 M3, PESO OPERACIONAL MÍN. 6.674 KG, PROFUNDIDADE ESCAVAÇÃO MÁX. 4,37 M - CHI DIURNO. AF_06/2014 | O52: CHI | P52: ATRIBUÍDO SÃO PAULO | Q52: 0,1014000 | R52: 53,43 | S52: 5,41 | AE52: CAIXA REFERENCIAL
A53: ASSENTAMENTO DE TUBOS E PECAS | B53: ASTU | C53: FORNEC E/OU ASSENT DE TUBO DE FERRO FUNDIDO JUNTA | D53: 45 | G53: 97148 | H53: ASSENTAMENTO DE TUBO DE FERRO FUNDIDO PARA REDE DE ÁGUA, DN 400 MM, JUNTA ELÁSTICA, INSTALADO EM LOCAL COM NÍVEL ALTO DE INTERFERÊNCIAS (NÃO INCLUI FORNECIMENTO). AF_11/2017 | I53: M | J53: ATRIBUÍDO SÃO PAULO | K53: 22,71 | L53: INSUMO | M53: 20078 | N53: PASTA LUBRIFICANTE PARA TUBOS E CONEXOES COM JUNTA ELASTICA, EMBALAGEM DE *400* GR (USO EM PVC, ACO, POLIETILENO E OUTROS) | O53: UN | P53: COEFICIENTE DE REPRESENTATIVIDADE | Q53: 0,0188000 | R53: 23,02 | S53: 0,43 | AE53: CAIXA REFERENCIAL
A54: ASSENTAMENTO DE TUBOS E PECAS | B54: ASTU | C54: FORNEC E/OU ASSENT DE TUBO DE FERRO FUNDIDO JUNTA | D54: 45 | G54: 97148 | H54: ASSENTAMENTO DE TUBO DE FERRO FUNDIDO PARA REDE DE ÁGUA, DN 400 MM, JUNTA ELÁSTICA, INSTALADO EM LOCAL COM NÍVEL ALTO DE INTERFERÊNCIAS (NÃO INCLUI FORNECIMENTO). AF_11/2017 | I54: M | J54: ATRIBUÍDO SÃO PAULO | K54: 22,71 | L54: COMPOSICAO | M54: 88246 | N54: ASSENTADOR DE TUBOS COM ENCARGOS COMPLEMENTARES | O54: H | P54: COEFICIENTE DE REPRESENTATIVIDADE | Q54: 0,3150000 | R54: 30,02 | S54: 9,45 | AE54: CAIXA REFERENCIAL
A55: ASSENTAMENTO DE TUBOS E PECAS | B55: ASTU | C55: FORNEC E/OU ASSENT DE TUBO DE FERRO FUNDIDO JUNTA | D55: 45 | G55: 97148 | H55: ASSENTAMENTO DE TUBO DE FERRO FUNDIDO PARA REDE DE ÁGUA, DN 400 MM, JUNTA ELÁSTICA, INSTALADO EM LOCAL COM NÍVEL ALTO DE INTERFERÊNCIAS (NÃO INCLUI FORNECIMENTO). AF_11/2017 | I55: M | J55: ATRIBUÍDO SÃO PAULO | K55: 22,71 | L55: COMPOSICAO | M55: 88316 | N55: SERVENTE COM ENCARGOS COMPLEMENTARES | O55: H | P55: COLETADO | Q55: 0,3150000 | R55: 15,57 | S55: 4,90 | AE55: CAIXA REFERENCIAL
A56: ASSENTAMENTO DE TUBOS E PECAS | B56: ASTU | C56: FORNEC E/OU ASSENT DE TUBO DE FERRO FUNDIDO JUNTA | D56: 45 | G56: 97149 | H56: ASSENTAMENTO DE TUBO DE FERRO FUNDIDO PARA REDE DE ÁGUA, DN 450 MM, JUNTA ELÁSTICA, INSTALADO EM LOCAL COM NÍVEL ALTO DE INTERFERÊNCIAS (NÃO INCLUI FORNECIMENTO). AF_11/2017 | I56: M | J56: ATRIBUÍDO SÃO PAULO | K56: 25,05 | T56: 16,99 | U56: 67,7639504 | V56: 4,75 | W56: 18,9883580 | X56: 3,31 | Y56: 13,2476916 | Z56: 0,00 | AA56: 0,0000000 | AB56: 0,00 | AC56: 0,0000000 | AD56: 0.13174 | AE56: CAIXA REFERENCIAL
A57: ASSENTAMENTO DE TUBOS E PECAS | B57: ASTU | C57: FORNEC E/OU ASSENT DE TUBO DE FERRO FUNDIDO JUNTA | D57: 45 | G57: 97149 | H57: ASSENTAMENTO DE TUBO DE FERRO FUNDIDO PARA REDE DE ÁGUA, DN 450 MM, JUNTA ELÁSTICA, INSTALADO EM LOCAL COM NÍVEL ALTO DE INTERFERÊNCIAS (NÃO INCLUI FORNECIMENTO). AF_11/2017 | I57: M | J57: ATRIBUÍDO SÃO PAULO | K57: 25,05 | L57: COMPOSICAO | M57: 5678 | N57: RETROESCAVADEIRA SOBRE RODAS COM CARREGADEIRA, TRAÇÃO 4X4, POTÊNCIA LÍQ. 88 HP, CAÇAMBA CARREG. CAP. MÍN. 1 M3, CAÇAMBA RETRO CAP. 0,26 M3, PESO OPERACIONAL MÍN. 6.674 KG, PROFUNDIDADE ESCAVAÇÃO MÁX. 4,37 M - CHP DIURNO. AF_06/2014 | O57: CHP | P57: ATRIBUÍDO SÃO PAULO | Q57: 0,0229000 | R57: 119,51 | S57: 2,73 | AE57: CAIXA REFERENCIAL
A58: ASSENTAMENTO DE TUBOS E PECAS | B58: ASTU | C58: FORNEC E/OU ASSENT DE TUBO DE FERRO FUNDIDO JUNTA | D58: 45 | G58: 97149 | H58: ASSENTAMENTO DE TUBO DE FERRO FUNDIDO PARA REDE DE ÁGUA, DN 450 MM, JUNTA ELÁSTICA, INSTALADO EM LOCAL COM NÍVEL ALTO DE INTERFERÊNCIAS (NÃO INCLUI FORNECIMENTO). AF_11/2017 | I58: M | J58: ATRIBUÍDO SÃO PAULO | K58: 25,05 | L58: COMPOSICAO | M58: 5679 | N58: RETROESCAVADEIRA SOBRE RODAS COM CARREGADEIRA, TRAÇÃO 4X4, POTÊNCIA LÍQ. 88 HP, CAÇAMBA CARREG. CAP. MÍN. 1 M3, CAÇAMBA RETRO CAP. 0,26 M3, PESO OPERACIONAL MÍN. 6.674 KG, PROFUNDIDADE ESCAVAÇÃO MÁX. 4,37 M - CHI DIURNO. AF_06/2014 | O58: CHI | P58: ATRIBUÍDO SÃO PAULO | Q58: 0,1098000 | R58: 53,43 | S58: 5,86 | AE58: CAIXA REFERENCIAL
A59: ASSENTAMENTO DE TUBOS E PECAS | B59: ASTU | C59: FORNEC E/OU ASSENT DE TUBO DE FERRO FUNDIDO JUNTA | D59: 45 | G59: 97149 | H59: ASSENTAMENTO DE TUBO DE FERRO FUNDIDO PARA REDE DE ÁGUA, DN 450 MM, JUNTA ELÁSTICA, INSTALADO EM LOCAL COM NÍVEL ALTO DE INTERFERÊNCIAS (NÃO INCLUI FORNECIMENTO). AF_11/2017 | I59: M | J59: ATRIBUÍDO SÃO PAULO | K59: 25,05 | L59: INSUMO | M59: 20078 | N59: PASTA LUBRIFICANTE PARA TUBOS E CONEXOES COM JUNTA ELASTICA, EMBALAGEM DE *400* GR (USO EM PVC, ACO, POLIETILENO E OUTROS) | O59: UN | P59: COEFICIENTE DE REPRESENTATIVIDADE | Q59: 0,0221000 | R59: 23,02 | S59: 0,50 | AE59: CAIXA REFERENCIAL
A60: ASSENTAMENTO DE TUBOS E PECAS | B60: ASTU | C60: FORNEC E/OU ASSENT DE TUBO DE FERRO FUNDIDO JUNTA | D60: 45 | G60: 97149 | H60: ASSENTAMENTO DE TUBO DE FERRO FUNDIDO PARA REDE DE ÁGUA, DN 450 MM, JUNTA ELÁSTICA, INSTALADO EM LOCAL COM NÍVEL ALTO DE INTERFERÊNCIAS (NÃO INCLUI FORNECIMENTO). AF_11/2017 | I60: M | J60: ATRIBUÍDO SÃO PAULO | K60: 25,05 | L60: COMPOSICAO | M60: 88246 | N60: ASSENTADOR DE TUBOS COM ENCARGOS COMPLEMENTARES | O60: H | P60: COEFICIENTE DE REPRESENTATIVIDADE | Q60: 0,3501000 | R60: 30,02 | S60: 10,51 | AE60: CAIXA REFERENCIAL
A61: ASSENTAMENTO DE TUBOS E PECAS | B61: ASTU | C61: FORNEC E/OU ASSENT DE TUBO DE FERRO FUNDIDO JUNTA | D61: 45 | G61: 97149 | H61: ASSENTAMENTO DE TUBO DE FERRO FUNDIDO PARA REDE DE ÁGUA, DN 450 MM, JUNTA ELÁSTICA, INSTALADO EM LOCAL COM NÍVEL ALTO DE INTERFERÊNCIAS (NÃO INCLUI FORNECIMENTO). AF_11/2017 | I61: M | J61: ATRIBUÍDO SÃO PAULO | K61: 25,05 | L61: COMPOSICAO | M61: 88316 | N61: SERVENTE COM ENCARGOS COMPLEMENTARES | O61: H | P61: COLETADO | Q61: 0,3501000 | R61: 15,57 | S61: 5,45 | AE61: CAIXA REFERENCIAL
A62: ASSENTAMENTO DE TUBOS E PECAS | B62: ASTU | C62: FORNEC E/OU ASSENT DE TUBO DE FERRO FUNDIDO JUNTA | D62: 45 | G62: 97150 | H62: ASSENTAMENTO DE TUBO DE FERRO FUNDIDO PARA REDE DE ÁGUA, DN 500 MM, JUNTA ELÁSTICA, INSTALADO EM LOCAL COM NÍVEL ALTO DE INTERFERÊNCIAS (NÃO INCLUI FORNECIMENTO). AF_11/2017 | I62: M | J62: ATRIBUÍDO SÃO PAULO | K62: 30,49 | T62: 18,58 | U62: 60,8896212 | V62: 5,43 | W62: 17,8253706 | X62: 6,48 | Y62: 21,2850082 | Z62: 0,00 | AA62: 0,0000000 | AB62: 0,00 | AC62: 0,0000000 | AD62: 0.21187 | AE62: CAIXA REFERENCIAL
A63: ASSENTAMENTO DE TUBOS E PECAS | B63: ASTU | C63: FORNEC E/OU ASSENT DE TUBO DE FERRO FUNDIDO JUNTA | D63: 45 | G63: 97150 | H63: ASSENTAMENTO DE TUBO DE FERRO FUNDIDO PARA REDE DE ÁGUA, DN 500 MM, JUNTA ELÁSTICA, INSTALADO EM LOCAL COM NÍVEL ALTO DE INTERFERÊNCIAS (NÃO INCLUI FORNECIMENTO). AF_11/2017 | I63: M | J63: ATRIBUÍDO SÃO PAULO | K63: 30,49 | L63: COMPOSICAO | M63: 5631 | N63: ESCAVADEIRA HIDRÁULICA SOBRE ESTEIRAS, CAÇAMBA 0,80 M3, PESO OPERACIONAL 17 T, POTENCIA BRUTA 111 HP - CHP DIURNO. AF_06/2014 | O63: CHP | P63: ATRIBUÍDO SÃO PAULO | Q63: 0,0246000 | R63: 164,34 | S63: 4,04 | AE63: CAIXA REFERENCIAL
A64: ASSENTAMENTO DE TUBOS E PECAS | B64: ASTU | C64: FORNEC E/OU ASSENT DE TUBO DE FERRO FUNDIDO JUNTA | D64: 45 | G64: 97150 | H64: ASSENTAMENTO DE TUBO DE FERRO FUNDIDO PARA REDE DE ÁGUA, DN 500 MM, JUNTA ELÁSTICA, INSTALADO EM LOCAL COM NÍVEL ALTO DE INTERFERÊNCIAS (NÃO INCLUI FORNECIMENTO). AF_11/2017 | I64: M | J64: ATRIBUÍDO SÃO PAULO | K64: 30,49 | L64: COMPOSICAO | M64: 5632 | N64: ESCAVADEIRA HIDRÁULICA SOBRE ESTEIRAS, CAÇAMBA 0,80 M3, PESO OPERACIONAL 17 T, POTENCIA BRUTA 111 HP - CHI DIURNO. AF_06/2014 | O64: CHI | P64: ATRIBUÍDO SÃO PAULO | Q64: 0,1182000 | R64: 70,54 | S64: 8,33 | AE64: CAIXA REFERENCIAL
A65: ASSENTAMENTO DE TUBOS E PECAS | B65: ASTU | C65: FORNEC E/OU ASSENT DE TUBO DE FERRO FUNDIDO JUNTA | D65: 45 | G65: 97150 | H65: ASSENTAMENTO DE TUBO DE FERRO FUNDIDO PARA REDE DE ÁGUA, DN 500 MM, JUNTA ELÁSTICA, INSTALADO EM LOCAL COM NÍVEL ALTO DE INTERFERÊNCIAS (NÃO INCLUI FORNECIMENTO). AF_11/2017 | I65: M | J65: ATRIBUÍDO SÃO PAULO | K65: 30,49 | L65: INSUMO | M65: 20078 | N65: PASTA LUBRIFICANTE PARA TUBOS E CONEXOES COM JUNTA ELASTICA, EMBALAGEM DE *400* GR (USO EM PVC, ACO, POLIETILENO E OUTROS) | O65: UN | P65: COEFICIENTE DE REPRESENTATIVIDADE | Q65: 0,0248000 | R65: 23,02 | S65: 0,57 | AE65: CAIXA REFERENCIAL
A66: ASSENTAMENTO DE TUBOS E PECAS | B66: ASTU | C66: FORNEC E/OU ASSENT DE TUBO DE FERRO FUNDIDO JUNTA | D66: 45 | G66: 97150 | H66: ASSENTAMENTO DE TUBO DE FERRO FUNDIDO PARA REDE DE ÁGUA, DN 500 MM, JUNTA ELÁSTICA, INSTALADO EM LOCAL COM NÍVEL ALTO DE INTERFERÊNCIAS (NÃO INCLUI FORNECIMENTO). AF_11/2017 | I66: M | J66: ATRIBUÍDO SÃO PAULO | K66: 30,49 | L66: COMPOSICAO | M66: 88246 | N66: ASSENTADOR DE TUBOS COM ENCARGOS COMPLEMENTARES | O66: H | P66: COEFICIENTE DE REPRESENTATIVIDADE | Q66: 0,3851000 | R66: 30,02 | S66: 11,56 | AE66: CAIXA REFERENCIAL
A67: ASSENTAMENTO DE TUBOS E PECAS | B67: ASTU | C67: FORNEC E/OU ASSENT DE TUBO DE FERRO FUNDIDO JUNTA | D67: 45 | G67: 97150 | H67: ASSENTAMENTO DE TUBO DE FERRO FUNDIDO PARA REDE DE ÁGUA, DN 500 MM, JUNTA ELÁSTICA, INSTALADO EM LOCAL COM NÍVEL ALTO DE INTERFERÊNCIAS (NÃO INCLUI FORNECIMENTO). AF_11/2017 | I67: M | J67: ATRIBUÍDO SÃO PAULO | K67: 30,49 | L67: COMPOSICAO | M67: 88316 | N67: SERVENTE COM ENCARGOS COMPLEMENTARES | O67: H | P67: COLETADO | Q67: 0,3851000 | R67: 15,57 | S67: 5,99 | AE67: CAIXA REFERENCIAL
A68: ASSENTAMENTO DE TUBOS E PECAS | B68: ASTU | C68: FORNEC E/OU ASSENT DE TUBO DE FERRO FUNDIDO JUNTA | D68: 45 | G68: 97151 | H68: ASSENTAMENTO DE TUBO DE FERRO FUNDIDO PARA REDE DE ÁGUA, DN 600 MM, JUNTA ELÁSTICA, INSTALADO EM LOCAL COM NÍVEL ALTO DE INTERFERÊNCIAS (NÃO INCLUI FORNECIMENTO). AF_11/2017 | I68: M | J68: ATRIBUÍDO SÃO PAULO | K68: 35,59 | T68: 21,79 | U68: 61,2020317 | V68: 6,39 | W68: 17,9740406 | X68: 7,41 | Y68: 20,8239277 | Z68: 0,00 | AA68: 0,0000000 | AB68: 0,00 | AC68: 0,0000000 | AD68: 0.20736 | AE68: CAIXA REFERENCIAL
A69: ASSENTAMENTO DE TUBOS E PECAS | B69: ASTU | C69: FORNEC E/OU ASSENT DE TUBO DE FERRO FUNDIDO JUNTA | D69: 45 | G69: 97151 | H69: ASSENTAMENTO DE TUBO DE FERRO FUNDIDO PARA REDE DE ÁGUA, DN 600 MM, JUNTA ELÁSTICA, INSTALADO EM LOCAL COM NÍVEL ALTO DE INTERFERÊNCIAS (NÃO INCLUI FORNECIMENTO). AF_11/2017 | I69: M | J69: ATRIBUÍDO SÃO PAULO | K69: 35,59 | L69: COMPOSICAO | M69: 5631 | N69: ESCAVADEIRA HIDRÁULICA SOBRE ESTEIRAS, CAÇAMBA 0,80 M3, PESO OPERACIONAL 17 T, POTENCIA BRUTA 111 HP - CHP DIURNO. AF_06/2014 | O69: CHP | P69: ATRIBUÍDO SÃO PAULO | Q69: 0,0281000 | R69: 164,34 | S69: 4,61 | AE69: CAIXA REFERENCIAL
A70: ASSENTAMENTO DE TUBOS E PECAS | B70: ASTU | C70: FORNEC E/OU ASSENT DE TUBO DE FERRO FUNDIDO JUNTA | D70: 45 | G70: 97151 | H70: ASSENTAMENTO DE TUBO DE FERRO FUNDIDO PARA REDE DE ÁGUA, DN 600 MM, JUNTA ELÁSTICA, INSTALADO EM LOCAL COM NÍVEL ALTO DE INTERFERÊNCIAS (NÃO INCLUI FORNECIMENTO). AF_11/2017 | I70: M | J70: ATRIBUÍDO SÃO PAULO | K70: 35,59 | L70: COMPOSICAO | M70: 5632 | N70: ESCAVADEIRA HIDRÁULICA SOBRE ESTEIRAS, CAÇAMBA 0,80 M3, PESO OPERACIONAL 17 T, POTENCIA BRUTA 111 HP - CHI DIURNO. AF_06/2014 | O70: CHI | P70: ATRIBUÍDO SÃO PAULO | Q70: 0,1350000 | R70: 70,54 | S70: 9,52 | AE70: CAIXA REFERENCIAL
A71: ASSENTAMENTO DE TUBOS E PECAS | B71: ASTU | C71: FORNEC E/OU ASSENT DE TUBO DE FERRO FUNDIDO JUNTA | D71: 45 | G71: 97151 | H71: ASSENTAMENTO DE TUBO DE FERRO FUNDIDO PARA REDE DE ÁGUA, DN 600 MM, JUNTA ELÁSTICA, INSTALADO EM LOCAL COM NÍVEL ALTO DE INTERFERÊNCIAS (NÃO INCLUI FORNECIMENTO). AF_11/2017 | I71: M | J71: ATRIBUÍDO SÃO PAULO | K71: 35,59 | L71: INSUMO | M71: 20078 | N71: PASTA LUBRIFICANTE PARA TUBOS E CONEXOES COM JUNTA ELASTICA, EMBALAGEM DE *400* GR (USO EM PVC, ACO, POLIETILENO E OUTROS) | O71: UN | P71: COEFICIENTE DE REPRESENTATIVIDADE | Q71: 0,0313000 | R71: 23,02 | S71: 0,72 | AE71: CAIXA REFERENCIAL
A72: ASSENTAMENTO DE TUBOS E PECAS | B72: ASTU | C72: FORNEC E/OU ASSENT DE TUBO DE FERRO FUNDIDO JUNTA | D72: 45 | G72: 97151 | H72: ASSENTAMENTO DE TUBO DE FERRO FUNDIDO PARA REDE DE ÁGUA, DN 600 MM, JUNTA ELÁSTICA, INSTALADO EM LOCAL COM NÍVEL ALTO DE INTERFERÊNCIAS (NÃO INCLUI FORNECIMENTO). AF_11/2017 | I72: M | J72: ATRIBUÍDO SÃO PAULO | K72: 35,59 | L72: COMPOSICAO | M72: 88246 | N72: ASSENTADOR DE TUBOS COM ENCARGOS COMPLEMENTARES | O72: H | P72: COEFICIENTE DE REPRESENTATIVIDADE | Q72: 0,4553000 | R72: 30,02 | S72: 13,66 | AE72: CAIXA REFERENCIAL
A73: ASSENTAMENTO DE TUBOS E PECAS | B73: ASTU | C73: FORNEC E/OU ASSENT DE TUBO DE FERRO FUNDIDO JUNTA | D73: 45 | G73: 97151 | H73: ASSENTAMENTO DE TUBO DE FERRO FUNDIDO PARA REDE DE ÁGUA, DN 600 MM, JUNTA ELÁSTICA, INSTALADO EM LOCAL COM NÍVEL ALTO DE INTERFERÊNCIAS (NÃO INCLUI FORNECIMENTO). AF_11/2017 | I73: M | J73: ATRIBUÍDO SÃO PAULO | K73: 35,59 | L73: COMPOSICAO | M73: 88316 | N73: SERVENTE COM ENCARGOS COMPLEMENTARES | O73: H | P73: COLETADO | Q73: 0,4553000 | R73: 15,57 | S73: 7,08 | AE73: CAIXA REFERENCIAL
A74: ASSENTAMENTO DE TUBOS E PECAS | B74: ASTU | C74: FORNEC E/OU ASSENT DE TUBO DE FERRO FUNDIDO JUNTA | D74: 45 | G74: 97152 | H74: ASSENTAMENTO DE TUBO DE FERRO FUNDIDO PARA REDE DE ÁGUA, DN 700 MM, JUNTA ELÁSTICA, INSTALADO EM LOCAL COM NÍVEL ALTO DE INTERFERÊNCIAS (NÃO INCLUI FORNECIMENTO). AF_11/2017 | I74: M | J74: ATRIBUÍDO SÃO PAULO | K74: 40,49 | T74: 24,99 | U74: 61,6852541 | V74: 7,17 | W74: 17,7199504 | X74: 8,33 | Y74: 20,5947955 | Z74: 0,00 | AA74: 0,0000000 | AB74: 0,00 | AC74: 0,0000000 | AD74: 0.20524 | AE74: CAIXA REFERENCIAL
A75: ASSENTAMENTO DE TUBOS E PECAS | B75: ASTU | C75: FORNEC E/OU ASSENT DE TUBO DE FERRO FUNDIDO JUNTA | D75: 45 | G75: 97152 | H75: ASSENTAMENTO DE TUBO DE FERRO FUNDIDO PARA REDE DE ÁGUA, DN 700 MM, JUNTA ELÁSTICA, INSTALADO EM LOCAL COM NÍVEL ALTO DE INTERFERÊNCIAS (NÃO INCLUI FORNECIMENTO). AF_11/2017 | I75: M | J75: ATRIBUÍDO SÃO PAULO | K75: 40,49 | L75: COMPOSICAO | M75: 5631 | N75: ESCAVADEIRA HIDRÁULICA SOBRE ESTEIRAS, CAÇAMBA 0,80 M3, PESO OPERACIONAL 17 T, POTENCIA BRUTA 111 HP - CHP DIURNO. AF_06/2014 | O75: CHP | P75: ATRIBUÍDO SÃO PAULO | Q75: 0,0316000 | R75: 164,34 | S75: 5,19 | AE75: CAIXA REFERENCIAL
A76: ASSENTAMENTO DE TUBOS E PECAS | B76: ASTU | C76: FORNEC E/OU ASSENT DE TUBO DE FERRO FUNDIDO JUNTA | D76: 45 | G76: 97152 | H76: ASSENTAMENTO DE TUBO DE FERRO FUNDIDO PARA REDE DE ÁGUA, DN 700 MM, JUNTA ELÁSTICA, INSTALADO EM LOCAL COM NÍVEL ALTO DE INTERFERÊNCIAS (NÃO INCLUI FORNECIMENTO). AF_11/2017 | I76: M | J76: ATRIBUÍDO SÃO PAULO | K76: 40,49 | L76: COMPOSICAO | M76: 5632 | N76: ESCAVADEIRA HIDRÁULICA SOBRE ESTEIRAS, CAÇAMBA 0,80 M3, PESO OPERACIONAL 17 T, POTENCIA BRUTA 111 HP - CHI DIURNO. AF_06/2014 | O76: CHI | P76: ATRIBUÍDO SÃO PAULO | Q76: 0,1518000 | R76: 70,54 | S76: 10,70 | AE76: CAIXA REFERENCIAL
A77: ASSENTAMENTO DE TUBOS E PECAS | B77: ASTU | C77: FORNEC E/OU ASSENT DE TUBO DE FERRO FUNDIDO JUNTA | D77: 45 | G77: 97152 | H77: ASSENTAMENTO DE TUBO DE FERRO FUNDIDO PARA REDE DE ÁGUA, DN 700 MM, JUNTA ELÁSTICA, INSTALADO EM LOCAL COM NÍVEL ALTO DE INTERFERÊNCIAS (NÃO INCLUI FORNECIMENTO). AF_11/2017 | I77: M | J77: ATRIBUÍDO SÃO PAULO | K77: 40,49 | L77: INSUMO | M77: 20078 | N77: PASTA LUBRIFICANTE PARA TUBOS E CONEXOES COM JUNTA ELASTICA, EMBALAGEM DE *400* GR (USO EM PVC, ACO, POLIETILENO E OUTROS) | O77: UN | P77: COEFICIENTE DE REPRESENTATIVIDADE | Q77: 0,0284000 | R77: 23,02 | S77: 0,65 | AE77: CAIXA REFERENCIAL
A78: ASSENTAMENTO DE TUBOS E PECAS | B78: ASTU | C78: FORNEC E/OU ASSENT DE TUBO DE FERRO FUNDIDO JUNTA | D78: 45 | G78: 97152 | H78: ASSENTAMENTO DE TUBO DE FERRO FUNDIDO PARA REDE DE ÁGUA, DN 700 MM, JUNTA ELÁSTICA, INSTALADO EM LOCAL COM NÍVEL ALTO DE INTERFERÊNCIAS (NÃO INCLUI FORNECIMENTO). AF_11/2017 | I78: M | J78: ATRIBUÍDO SÃO PAULO | K78: 40,49 | L78: COMPOSICAO | M78: 88246 | N78: ASSENTADOR DE TUBOS COM ENCARGOS COMPLEMENTARES | O78: H | P78: COEFICIENTE DE REPRESENTATIVIDADE | Q78: 0,5255000 | R78: 30,02 | S78: 15,77 | AE78: CAIXA REFERENCIAL
A79: ASSENTAMENTO DE TUBOS E PECAS | B79: ASTU | C79: FORNEC E/OU ASSENT DE TUBO DE FERRO FUNDIDO JUNTA | D79: 45 | G79: 97152 | H79: ASSENTAMENTO DE TUBO DE FERRO FUNDIDO PARA REDE DE ÁGUA, DN 700 MM, JUNTA ELÁSTICA, INSTALADO EM LOCAL COM NÍVEL ALTO DE INTERFERÊNCIAS (NÃO INCLUI FORNECIMENTO). AF_11/2017 | I79: M | J79: ATRIBUÍDO SÃO PAULO | K79: 40,49 | L79: COMPOSICAO | M79: 88316 | N79: SERVENTE COM ENCARGOS COMPLEMENTARES | O79: H | P79: COLETADO | Q79: 0,5255000 | R79: 15,57 | S79: 8,18 | AE79: CAIXA REFERENCIAL
A80: ASSENTAMENTO DE TUBOS E PECAS | B80: ASTU | C80: FORNEC E/OU ASSENT DE TUBO DE FERRO FUNDIDO JUNTA | D80: 45 | G80: 97153 | H80: ASSENTAMENTO DE TUBO DE FERRO FUNDIDO PARA REDE DE ÁGUA, DN 800 MM, JUNTA ELÁSTICA, INSTALADO EM LOCAL COM NÍVEL ALTO DE INTERFERÊNCIAS (NÃO INCLUI FORNECIMENTO). AF_11/2017 | I80: M | J80: ATRIBUÍDO SÃO PAULO | K80: 45,51 | T80: 28,21 | U80: 61,9677919 | V80: 8,05 | W80: 17,6924773 | X80: 9,25 | Y80: 20,3397308 | Z80: 0,00 | AA80: 0,0000000 | AB80: 0,00 | AC80: 0,0000000 | AD80: 0.20259 | AE80: CAIXA REFERENCIAL
A81: ASSENTAMENTO DE TUBOS E PECAS | B81: ASTU | C81: FORNEC E/OU ASSENT DE TUBO DE FERRO FUNDIDO JUNTA | D81: 45 | G81: 97153 | H81: ASSENTAMENTO DE TUBO DE FERRO FUNDIDO PARA REDE DE ÁGUA, DN 800 MM, JUNTA ELÁSTICA, INSTALADO EM LOCAL COM NÍVEL ALTO DE INTERFERÊNCIAS (NÃO INCLUI FORNECIMENTO). AF_11/2017 | I81: M | J81: ATRIBUÍDO SÃO PAULO | K81: 45,51 | L81: COMPOSICAO | M81: 5631 | N81: ESCAVADEIRA HIDRÁULICA SOBRE ESTEIRAS, CAÇAMBA 0,80 M3, PESO OPERACIONAL 17 T, POTENCIA BRUTA 111 HP - CHP DIURNO. AF_06/2014 | O81: CHP | P81: ATRIBUÍDO SÃO PAULO | Q81: 0,0351000 | R81: 164,34 | S81: 5,76 | AE81: CAIXA REFERENCIAL
A82: ASSENTAMENTO DE TUBOS E PECAS | B82: ASTU | C82: FORNEC E/OU ASSENT DE TUBO DE FERRO FUNDIDO JUNTA | D82: 45 | G82: 97153 | H82: ASSENTAMENTO DE TUBO DE FERRO FUNDIDO PARA REDE DE ÁGUA, DN 800 MM, JUNTA ELÁSTICA, INSTALADO EM LOCAL COM NÍVEL ALTO DE INTERFERÊNCIAS (NÃO INCLUI FORNECIMENTO). AF_11/2017 | I82: M | J82: ATRIBUÍDO SÃO PAULO | K82: 45,51 | L82: COMPOSICAO | M82: 5632 | N82: ESCAVADEIRA HIDRÁULICA SOBRE ESTEIRAS, CAÇAMBA 0,80 M3, PESO OPERACIONAL 17 T, POTENCIA BRUTA 111 HP - CHI DIURNO. AF_06/2014 | O82: CHI | P82: ATRIBUÍDO SÃO PAULO | Q82: 0,1686000 | R82: 70,54 | S82: 11,89 | AE82: CAIXA REFERENCIAL
A83: ASSENTAMENTO DE TUBOS E PECAS | B83: ASTU | C83: FORNEC E/OU ASSENT DE TUBO DE FERRO FUNDIDO JUNTA | D83: 45 | G83: 97153 | H83: ASSENTAMENTO DE TUBO DE FERRO FUNDIDO PARA REDE DE ÁGUA, DN 800 MM, JUNTA ELÁSTICA, INSTALADO EM LOCAL COM NÍVEL ALTO DE INTERFERÊNCIAS (NÃO INCLUI FORNECIMENTO). AF_11/2017 | I83: M | J83: ATRIBUÍDO SÃO PAULO | K83: 45,51 | L83: INSUMO | M83: 20078 | N83: PASTA LUBRIFICANTE PARA TUBOS E CONEXOES COM JUNTA ELASTICA, EMBALAGEM DE *400* GR (USO EM PVC, ACO, POLIETILENO E OUTROS) | O83: UN | P83: COEFICIENTE DE REPRESENTATIVIDADE | Q83: 0,0314000 | R83: 23,02 | S83: 0,72 | AE83: CAIXA REFERENCIAL
A84: ASSENTAMENTO DE TUBOS E PECAS | B84: ASTU | C84: FORNEC E/OU ASSENT DE TUBO DE FERRO FUNDIDO JUNTA | D84: 45 | G84: 97153 | H84: ASSENTAMENTO DE TUBO DE FERRO FUNDIDO PARA REDE DE ÁGUA, DN 800 MM, JUNTA ELÁSTICA, INSTALADO EM LOCAL COM NÍVEL ALTO DE INTERFERÊNCIAS (NÃO INCLUI FORNECIMENTO). AF_11/2017 | I84: M | J84: ATRIBUÍDO SÃO PAULO | K84: 45,51 | L84: COMPOSICAO | M84: 88246 | N84: ASSENTADOR DE TUBOS COM ENCARGOS COMPLEMENTARES | O84: H | P84: COEFICIENTE DE REPRESENTATIVIDADE | Q84: 0,5956000 | R84: 30,02 | S84: 17,87 | AE84: CAIXA REFERENCIAL
A85: ASSENTAMENTO DE TUBOS E PECAS | B85: ASTU | C85: FORNEC E/OU ASSENT DE TUBO DE FERRO FUNDIDO JUNTA | D85: 45 | G85: 97153 | H85: ASSENTAMENTO DE TUBO DE FERRO FUNDIDO PARA REDE DE ÁGUA, DN 800 MM, JUNTA ELÁSTICA, INSTALADO EM LOCAL COM NÍVEL ALTO DE INTERFERÊNCIAS (NÃO INCLUI FORNECIMENTO). AF_11/2017 | I85: M | J85: ATRIBUÍDO SÃO PAULO | K85: 45,51 | L85: COMPOSICAO | M85: 88316 | N85: SERVENTE COM ENCARGOS COMPLEMENTARES | O85: H | P85: COLETADO | Q85: 0,5956000 | R85: 15,57 | S85: 9,27 | AE85: CAIXA REFERENCIAL
A86: ASSENTAMENTO DE TUBOS E PECAS | B86: ASTU | C86: FORNEC E/OU ASSENT DE TUBO DE FERRO FUNDIDO JUNTA | D86: 45 | G86: 97154 | H86: ASSENTAMENTO DE TUBO DE FERRO FUNDIDO PARA REDE DE ÁGUA, DN 900 MM, JUNTA ELÁSTICA, INSTALADO EM LOCAL COM NÍVEL ALTO DE INTERFERÊNCIAS (NÃO INCLUI FORNECIMENTO). AF_11/2017 | I86: M | J86: ATRIBUÍDO SÃO PAULO | K86: 50,56 | T86: 31,41 | U86: 62,1154992 | V86: 8,98 | W86: 17,7614606 | X86: 10,17 | Y86: 20,1230402 | Z86: 0,00 | AA86: 0,0000000 | AB86: 0,00 | AC86: 0,0000000 | AD86: 0.20055 | AE86: CAIXA REFERENCIAL
A87: ASSENTAMENTO DE TUBOS E PECAS | B87: ASTU | C87: FORNEC E/OU ASSENT DE TUBO DE FERRO FUNDIDO JUNTA | D87: 45 | G87: 97154 | H87: ASSENTAMENTO DE TUBO DE FERRO FUNDIDO PARA REDE DE ÁGUA, DN 900 MM, JUNTA ELÁSTICA, INSTALADO EM LOCAL COM NÍVEL ALTO DE INTERFERÊNCIAS (NÃO INCLUI FORNECIMENTO). AF_11/2017 | I87: M | J87: ATRIBUÍDO SÃO PAULO | K87: 50,56 | L87: COMPOSICAO | M87: 5631 | N87: ESCAVADEIRA HIDRÁULICA SOBRE ESTEIRAS, CAÇAMBA 0,80 M3, PESO OPERACIONAL 17 T, POTENCIA BRUTA 111 HP - CHP DIURNO. AF_06/2014 | O87: CHP | P87: ATRIBUÍDO SÃO PAULO | Q87: 0,0386000 | R87: 164,34 | S87: 6,34 | AE87: CAIXA REFERENCIAL
A88: ASSENTAMENTO DE TUBOS E PECAS | B88: ASTU | C88: FORNEC E/OU ASSENT DE TUBO DE FERRO FUNDIDO JUNTA | D88: 45 | G88: 97154 | H88: ASSENTAMENTO DE TUBO DE FERRO FUNDIDO PARA REDE DE ÁGUA, DN 900 MM, JUNTA ELÁSTICA, INSTALADO EM LOCAL COM NÍVEL ALTO DE INTERFERÊNCIAS (NÃO INCLUI FORNECIMENTO). AF_11/2017 | I88: M | J88: ATRIBUÍDO SÃO PAULO | K88: 50,56 | L88: COMPOSICAO | M88: 5632 | N88: ESCAVADEIRA HIDRÁULICA SOBRE ESTEIRAS, CAÇAMBA 0,80 M3, PESO OPERACIONAL 17 T, POTENCIA BRUTA 111 HP - CHI DIURNO. AF_06/2014 | O88: CHI | P88: ATRIBUÍDO SÃO PAULO | Q88: 0,1854000 | R88: 70,54 | S88: 13,07 | AE88: CAIXA REFERENCIAL
A89: ASSENTAMENTO DE TUBOS E PECAS | B89: ASTU | C89: FORNEC E/OU ASSENT DE TUBO DE FERRO FUNDIDO JUNTA | D89: 45 | G89: 97154 | H89: ASSENTAMENTO DE TUBO DE FERRO FUNDIDO PARA REDE DE ÁGUA, DN 900 MM, JUNTA ELÁSTICA, INSTALADO EM LOCAL COM NÍVEL ALTO DE INTERFERÊNCIAS (NÃO INCLUI FORNECIMENTO). AF_11/2017 | I89: M | J89: ATRIBUÍDO SÃO PAULO | K89: 50,56 | L89: INSUMO | M89: 20078 | N89: PASTA LUBRIFICANTE PARA TUBOS E CONEXOES COM JUNTA ELASTICA, EMBALAGEM DE *400* GR (USO EM PVC, ACO, POLIETILENO E OUTROS) | O89: UN | P89: COEFICIENTE DE REPRESENTATIVIDADE | Q89: 0,0355000 | R89: 23,02 | S89: 0,81 | AE89: CAIXA REFERENCIAL
A90: ASSENTAMENTO DE TUBOS E PECAS | B90: ASTU | C90: FORNEC E/OU ASSENT DE TUBO DE FERRO FUNDIDO JUNTA | D90: 45 | G90: 97154 | H90: ASSENTAMENTO DE TUBO DE FERRO FUNDIDO PARA REDE DE ÁGUA, DN 900 MM, JUNTA ELÁSTICA, INSTALADO EM LOCAL COM NÍVEL ALTO DE INTERFERÊNCIAS (NÃO INCLUI FORNECIMENTO). AF_11/2017 | I90: M | J90: ATRIBUÍDO SÃO PAULO | K90: 50,56 | L90: COMPOSICAO | M90: 88246 | N90: ASSENTADOR DE TUBOS COM ENCARGOS COMPLEMENTARES | O90: H | P90: COEFICIENTE DE REPRESENTATIVIDADE | Q90: 0,6658000 | R90: 30,02 | S90: 19,98 | AE90: CAIXA REFERENCIAL
A91: ASSENTAMENTO DE TUBOS E PECAS | B91: ASTU | C91: FORNEC E/OU ASSENT DE TUBO DE FERRO FUNDIDO JUNTA | D91: 45 | G91: 97154 | H91: ASSENTAMENTO DE TUBO DE FERRO FUNDIDO PARA REDE DE ÁGUA, DN 900 MM, JUNTA ELÁSTICA, INSTALADO EM LOCAL COM NÍVEL ALTO DE INTERFERÊNCIAS (NÃO INCLUI FORNECIMENTO). AF_11/2017 | I91: M | J91: ATRIBUÍDO SÃO PAULO | K91: 50,56 | L91: COMPOSICAO | M91: 88316 | N91: SERVENTE COM ENCARGOS COMPLEMENTARES | O91: H | P91: COLETADO | Q91: 0,6658000 | R91: 15,57 | S91: 10,36 | AE91: CAIXA REFERENCIAL
A92: ASSENTAMENTO DE TUBOS E PECAS | B92: ASTU | C92: FORNEC E/OU ASSENT DE TUBO DE FERRO FUNDIDO JUNTA | D92: 45 | G92: 97155 | H92: ASSENTAMENTO DE TUBO DE FERRO FUNDIDO PARA REDE DE ÁGUA, DN 1000 MM, JUNTA ELÁSTICA, INSTALADO EM LOCAL COM NÍVEL ALTO DE INTERFERÊNCIAS (NÃO INCLUI FORNECIMENTO). AF_11/2017 | I92: M | J92: ATRIBUÍDO SÃO PAULO | K92: 55,62 | T92: 34,60 | U92: 62,1845711 | V92: 9,93 | W92: 17,8622927 | X92: 11,09 | Y92: 19,9531362 | Z92: 0,00 | AA92: 0,0000000 | AB92: 0,00 | AC92: 0,0000000 | AD92: 0.19903 | AE92: CAIXA REFERENCIAL
A93: ASSENTAMENTO DE TUBOS E PECAS | B93: ASTU | C93: FORNEC E/OU ASSENT DE TUBO DE FERRO FUNDIDO JUNTA | D93: 45 | G93: 97155 | H93: ASSENTAMENTO DE TUBO DE FERRO FUNDIDO PARA REDE DE ÁGUA, DN 1000 MM, JUNTA ELÁSTICA, INSTALADO EM LOCAL COM NÍVEL ALTO DE INTERFERÊNCIAS (NÃO INCLUI FORNECIMENTO). AF_11/2017 | I93: M | J93: ATRIBUÍDO SÃO PAULO | K93: 55,62 | L93: COMPOSICAO | M93: 5631 | N93: ESCAVADEIRA HIDRÁULICA SOBRE ESTEIRAS, CAÇAMBA 0,80 M3, PESO OPERACIONAL 17 T, POTENCIA BRUTA 111 HP - CHP DIURNO. AF_06/2014 | O93: CHP | P93: ATRIBUÍDO SÃO PAULO | Q93: 0,0421000 | R93: 164,34 | S93: 6,91 | AE93: CAIXA REFERENCIAL
A94: ASSENTAMENTO DE TUBOS E PECAS | B94: ASTU | C94: FORNEC E/OU ASSENT DE TUBO DE FERRO FUNDIDO JUNTA | D94: 45 | G94: 97155 | H94: ASSENTAMENTO DE TUBO DE FERRO FUNDIDO PARA REDE DE ÁGUA, DN 1000 MM, JUNTA ELÁSTICA, INSTALADO EM LOCAL COM NÍVEL ALTO DE INTERFERÊNCIAS (NÃO INCLUI FORNECIMENTO). AF_11/2017 | I94: M | J94: ATRIBUÍDO SÃO PAULO | K94: 55,62 | L94: COMPOSICAO | M94: 5632 | N94: ESCAVADEIRA HIDRÁULICA SOBRE ESTEIRAS, CAÇAMBA 0,80 M3, PESO OPERACIONAL 17 T, POTENCIA BRUTA 111 HP - CHI DIURNO. AF_06/2014 | O94: CHI | P94: ATRIBUÍDO SÃO PAULO | Q94: 0,2021000 | R94: 70,54 | S94: 14,25 | AE94: CAIXA REFERENCIAL
A95: ASSENTAMENTO DE TUBOS E PECAS | B95: ASTU | C95: FORNEC E/OU ASSENT DE TUBO DE FERRO FUNDIDO JUNTA | D95: 45 | G95: 97155 | H95: ASSENTAMENTO DE TUBO DE FERRO FUNDIDO PARA REDE DE ÁGUA, DN 1000 MM, JUNTA ELÁSTICA, INSTALADO EM LOCAL COM NÍVEL ALTO DE INTERFERÊNCIAS (NÃO INCLUI FORNECIMENTO). AF_11/2017 | I95: M | J95: ATRIBUÍDO SÃO PAULO | K95: 55,62 | L95: INSUMO | M95: 20078 | N95: PASTA LUBRIFICANTE PARA TUBOS E CONEXOES COM JUNTA ELASTICA, EMBALAGEM DE *400* GR (USO EM PVC, ACO, POLIETILENO E OUTROS) | O95: UN | P95: COEFICIENTE DE REPRESENTATIVIDADE | Q95: 0,0403000 | R95: 23,02 | S95: 0,92 | AE95: CAIXA REFERENCIAL
A96: ASSENTAMENTO DE TUBOS E PECAS | B96: ASTU | C96: FORNEC E/OU ASSENT DE TUBO DE FERRO FUNDIDO JUNTA | D96: 45 | G96: 97155 | H96: ASSENTAMENTO DE TUBO DE FERRO FUNDIDO PARA REDE DE ÁGUA, DN 1000 MM, JUNTA ELÁSTICA, INSTALADO EM LOCAL COM NÍVEL ALTO DE INTERFERÊNCIAS (NÃO INCLUI FORNECIMENTO). AF_11/2017 | I96: M | J96: ATRIBUÍDO SÃO PAULO | K96: 55,62 | L96: COMPOSICAO | M96: 88246 | N96: ASSENTADOR DE TUBOS COM ENCARGOS COMPLEMENTARES | O96: H | P96: COEFICIENTE DE REPRESENTATIVIDADE | Q96: 0,7359000 | R96: 30,02 | S96: 22,09 | AE96: CAIXA REFERENCIAL
A97: ASSENTAMENTO DE TUBOS E PECAS | B97: ASTU | C97: FORNEC E/OU ASSENT DE TUBO DE FERRO FUNDIDO JUNTA | D97: 45 | G97: 97155 | H97: ASSENTAMENTO DE TUBO DE FERRO FUNDIDO PARA REDE DE ÁGUA, DN 1000 MM, JUNTA ELÁSTICA, INSTALADO EM LOCAL COM NÍVEL ALTO DE INTERFERÊNCIAS (NÃO INCLUI FORNECIMENTO). AF_11/2017 | I97: M | J97: ATRIBUÍDO SÃO PAULO | K97: 55,62 | L97: COMPOSICAO | M97: 88316 | N97: SERVENTE COM ENCARGOS COMPLEMENTARES | O97: H | P97: COLETADO | Q97: 0,7359000 | R97: 15,57 | S97: 11,45 | AE97: CAIXA REFERENCIAL
A98: ASSENTAMENTO DE TUBOS E PECAS | B98: ASTU | C98: FORNEC E/OU ASSENT DE TUBO DE FERRO FUNDIDO JUNTA | D98: 45 | G98: 97156 | H98: ASSENTAMENTO DE TUBO DE FERRO FUNDIDO PARA REDE DE ÁGUA, DN 1200 MM, JUNTA ELÁSTICA, INSTALADO EM LOCAL COM NÍVEL ALTO DE INTERFERÊNCIAS (NÃO INCLUI FORNECIMENTO). AF_11/2017 | I98: M | J98: ATRIBUÍDO SÃO PAULO | K98: 66,10 | T98: 41,04 | U98: 62,0809951 | V98: 12,13 | W98: 18,3527984 | X98: 12,93 | Y98: 19,5662065 | Z98: 0,00 | AA98: 0,0000000 | AB98: 0,00 | AC98: 0,0000000 | AD98: 0.19516 | AE98: CAIXA REFERENCIAL
A99: ASSENTAMENTO DE TUBOS E PECAS | B99: ASTU | C99: FORNEC E/OU ASSENT DE TUBO DE FERRO FUNDIDO JUNTA | D99: 45 | G99: 97156 | H99: ASSENTAMENTO DE TUBO DE FERRO FUNDIDO PARA REDE DE ÁGUA, DN 1200 MM, JUNTA ELÁSTICA, INSTALADO EM LOCAL COM NÍVEL ALTO DE INTERFERÊNCIAS (NÃO INCLUI FORNECIMENTO). AF_11/2017 | I99: M | J99: ATRIBUÍDO SÃO PAULO | K99: 66,10 | L99: COMPOSICAO | M99: 5631 | N99: ESCAVADEIRA HIDRÁULICA SOBRE ESTEIRAS, CAÇAMBA 0,80 M3, PESO OPERACIONAL 17 T, POTENCIA BRUTA 111 HP - CHP DIURNO. AF_06/2014 | O99: CHP | P99: ATRIBUÍDO SÃO PAULO | Q99: 0,0491000 | R99: 164,34 | S99: 8,06 | AE99: CAIXA REFERENCIAL
A100: ASSENTAMENTO DE TUBOS E PECAS | B100: ASTU | C100: FORNEC E/OU ASSENT DE TUBO DE FERRO FUNDIDO JUNTA | D100: 45 | G100: 97156 | H100: ASSENTAMENTO DE TUBO DE FERRO FUNDIDO PARA REDE DE ÁGUA, DN 1200 MM, JUNTA ELÁSTICA, INSTALADO EM LOCAL COM NÍVEL ALTO DE INTERFERÊNCIAS (NÃO INCLUI FORNECIMENTO). AF_11/2017 | I100: M | J100: ATRIBUÍDO SÃO PAULO | K100: 66,10 | L100: COMPOSICAO | M100: 5632 | N100: ESCAVADEIRA HIDRÁULICA SOBRE ESTEIRAS, CAÇAMBA 0,80 M3, PESO OPERACIONAL 17 T, POTENCIA BRUTA 111 HP - CHI DIURNO. AF_06/2014 | O100: CHI | P100: ATRIBUÍDO SÃO PAULO | Q100: 0,2357000 | R100: 70,54 | S100: 16,62 | AE100: CAIXA REFERENCIAL
A101: ASSENTAMENTO DE TUBOS E PECAS | B101: ASTU | C101: FORNEC E/OU ASSENT DE TUBO DE FERRO FUNDIDO JUNTA | D101: 45 | G101: 97156 | H101: ASSENTAMENTO DE TUBO DE FERRO FUNDIDO PARA REDE DE ÁGUA, DN 1200 MM, JUNTA ELÁSTICA, INSTALADO EM LOCAL COM NÍVEL ALTO DE INTERFERÊNCIAS (NÃO INCLUI FORNECIMENTO). AF_11/2017 | I101: M | J101: ATRIBUÍDO SÃO PAULO | K101: 66,10 | L101: INSUMO | M101: 20078 | N101: PASTA LUBRIFICANTE PARA TUBOS E CONEXOES COM JUNTA ELASTICA, EMBALAGEM DE *400* GR (USO EM PVC, ACO, POLIETILENO E OUTROS) | O101: UN | P101: COEFICIENTE DE REPRESENTATIVIDADE | Q101: 0,0646000 | R101: 23,02 | S101: 1,48 | AE101: CAIXA REFERENCIAL
A102: ASSENTAMENTO DE TUBOS E PECAS | B102: ASTU | C102: FORNEC E/OU ASSENT DE TUBO DE FERRO FUNDIDO JUNTA | D102: 45 | G102: 97156 | H102: ASSENTAMENTO DE TUBO DE FERRO FUNDIDO PARA REDE DE ÁGUA, DN 1200 MM, JUNTA ELÁSTICA, INSTALADO EM LOCAL COM NÍVEL ALTO DE INTERFERÊNCIAS (NÃO INCLUI FORNECIMENTO). AF_11/2017 | I102: M | J102: ATRIBUÍDO SÃO PAULO | K102: 66,10 | L102: COMPOSICAO | M102: 88246 | N102: ASSENTADOR DE TUBOS COM ENCARGOS COMPLEMENTARES | O102: H | P102: COEFICIENTE DE REPRESENTATIVIDADE | Q102: 0,8762000 | R102: 30,02 | S102: 26,30 | AE102: CAIXA REFERENCIAL
A103: ASSENTAMENTO DE TUBOS E PECAS | B103: ASTU | C103: FORNEC E/OU ASSENT DE TUBO DE FERRO FUNDIDO JUNTA | D103: 45 | G103: 97156 | H103: ASSENTAMENTO DE TUBO DE FERRO FUNDIDO PARA REDE DE ÁGUA, DN 1200 MM, JUNTA ELÁSTICA, INSTALADO EM LOCAL COM NÍVEL ALTO DE INTERFERÊNCIAS (NÃO INCLUI FORNECIMENTO). AF_11/2017 | I103: M | J103: ATRIBUÍDO SÃO PAULO | K103: 66,10 | L103: COMPOSICAO | M103: 88316 | N103: SERVENTE COM ENCARGOS COMPLEMENTARES | O103: H | P103: COLETADO | Q103: 0,8762000 | R103: 15,57 | S103: 13,64 | AE103: CAIXA REFERENCIAL
A104: ASSENTAMENTO DE TUBOS E PECAS | B104: ASTU | C104: FORNEC E/OU ASSENT DE TUBO DE FERRO FUNDIDO JUNTA | D104: 45 | G104: 97157 | H104: ASSENTAMENTO DE TUBO DE FERRO FUNDIDO PARA REDE DE ÁGUA, DN 80 MM, JUNTA ELÁSTICA, INSTALADO EM LOCAL COM NÍVEL BAIXO DE INTERFERÊNCIAS (NÃO INCLUI FORNECIMENTO). AF_11/2017 | I104: M | J104: ATRIBUÍDO SÃO PAULO | K104: 4,78 | T104: 2,94 | U104: 61,2068967 | V104: 1,01 | W104: 21,3362068 | X104: 0,83 | Y104: 17,4568965 | Z104: 0,00 | AA104: 0,0000000 | AB104: 0,00 | AC104: 0,0000000 | AD104: 0.16946 | AE104: CAIXA REFERENCIAL
A105: ASSENTAMENTO DE TUBOS E PECAS | B105: ASTU | C105: FORNEC E/OU ASSENT DE TUBO DE FERRO FUNDIDO JUNTA | D105: 45 | G105: 97157 | H105: ASSENTAMENTO DE TUBO DE FERRO FUNDIDO PARA REDE DE ÁGUA, DN 80 MM, JUNTA ELÁSTICA, INSTALADO EM LOCAL COM NÍVEL BAIXO DE INTERFERÊNCIAS (NÃO INCLUI FORNECIMENTO). AF_11/2017 | I105: M | J105: ATRIBUÍDO SÃO PAULO | K105: 4,78 | L105: COMPOSICAO | M105: 5678 | N105: RETROESCAVADEIRA SOBRE RODAS COM CARREGADEIRA, TRAÇÃO 4X4, POTÊNCIA LÍQ. 88 HP, CAÇAMBA CARREG. CAP. MÍN. 1 M3, CAÇAMBA RETRO CAP. 0,26 M3, PESO OPERACIONAL MÍN. 6.674 KG, PROFUNDIDADE ESCAVAÇÃO MÁX. 4,37 M - CHP DIURNO. AF_06/2014 | O105: CHP | P105: ATRIBUÍDO SÃO PAULO | Q105: 0,0099000 | R105: 119,51 | S105: 1,18 | AE105: CAIXA REFERENCIAL
A106: ASSENTAMENTO DE TUBOS E PECAS | B106: ASTU | C106: FORNEC E/OU ASSENT DE TUBO DE FERRO FUNDIDO JUNTA | D106: 45 | G106: 97157 | H106: ASSENTAMENTO DE TUBO DE FERRO FUNDIDO PARA REDE DE ÁGUA, DN 80 MM, JUNTA ELÁSTICA, INSTALADO EM LOCAL COM NÍVEL BAIXO DE INTERFERÊNCIAS (NÃO INCLUI FORNECIMENTO). AF_11/2017 | I106: M | J106: ATRIBUÍDO SÃO PAULO | K106: 4,78 | L106: COMPOSICAO | M106: 5679 | N106: RETROESCAVADEIRA SOBRE RODAS COM CARREGADEIRA, TRAÇÃO 4X4, POTÊNCIA LÍQ. 88 HP, CAÇAMBA CARREG. CAP. MÍN. 1 M3, CAÇAMBA RETRO CAP. 0,26 M3, PESO OPERACIONAL MÍN. 6.674 KG, PROFUNDIDADE ESCAVAÇÃO MÁX. 4,37 M - CHI DIURNO. AF_06/2014 | O106: CHI | P106: ATRIBUÍDO SÃO PAULO | Q106: 0,0190000 | R106: 53,43 | S106: 1,01 | AE106: CAIXA REFERENCIAL
A107: ASSENTAMENTO DE TUBOS E PECAS | B107: ASTU | C107: FORNEC E/OU ASSENT DE TUBO DE FERRO FUNDIDO JUNTA | D107: 45 | G107: 97157 | H107: ASSENTAMENTO DE TUBO DE FERRO FUNDIDO PARA REDE DE ÁGUA, DN 80 MM, JUNTA ELÁSTICA, INSTALADO EM LOCAL COM NÍVEL BAIXO DE INTERFERÊNCIAS (NÃO INCLUI FORNECIMENTO). AF_11/2017 | I107: M | J107: ATRIBUÍDO SÃO PAULO | K107: 4,78 | L107: INSUMO | M107: 20078 | N107: PASTA LUBRIFICANTE PARA TUBOS E CONEXOES COM JUNTA ELASTICA, EMBALAGEM DE *400* GR (USO EM PVC, ACO, POLIETILENO E OUTROS) | O107: UN | P107: COEFICIENTE DE REPRESENTATIVIDADE | Q107: 0,0046000 | R107: 23,02 | S107: 0,10 | AE107: CAIXA REFERENCIAL
A108: ASSENTAMENTO DE TUBOS E PECAS | B108: ASTU | C108: FORNEC E/OU ASSENT DE TUBO DE FERRO FUNDIDO JUNTA | D108: 45 | G108: 97157 | H108: ASSENTAMENTO DE TUBO DE FERRO FUNDIDO PARA REDE DE ÁGUA, DN 80 MM, JUNTA ELÁSTICA, INSTALADO EM LOCAL COM NÍVEL BAIXO DE INTERFERÊNCIAS (NÃO INCLUI FORNECIMENTO). AF_11/2017 | I108: M | J108: ATRIBUÍDO SÃO PAULO | K108: 4,78 | L108: COMPOSICAO | M108: 88246 | N108: ASSENTADOR DE TUBOS COM ENCARGOS COMPLEMENTARES | O108: H | P108: COEFICIENTE DE REPRESENTATIVIDADE | Q108: 0,0548000 | R108: 30,02 | S108: 1,64 | AE108: CAIXA REFERENCIAL
A109: ASSENTAMENTO DE TUBOS E PECAS | B109: ASTU | C109: FORNEC E/OU ASSENT DE TUBO DE FERRO FUNDIDO JUNTA | D109: 45 | G109: 97157 | H109: ASSENTAMENTO DE TUBO DE FERRO FUNDIDO PARA REDE DE ÁGUA, DN 80 MM, JUNTA ELÁSTICA, INSTALADO EM LOCAL COM NÍVEL BAIXO DE INTERFERÊNCIAS (NÃO INCLUI FORNECIMENTO). AF_11/2017 | I109: M | J109: ATRIBUÍDO SÃO PAULO | K109: 4,78 | L109: COMPOSICAO | M109: 88316 | N109: SERVENTE COM ENCARGOS COMPLEMENTARES | O109: H | P109: COLETADO | Q109: 0,0548000 | R109: 15,57 | S109: 0,85 | AE109: CAIXA REFERENCIAL
A110: ASSENTAMENTO DE TUBOS E PECAS | B110: ASTU | C110: FORNEC E/OU ASSENT DE TUBO DE FERRO FUNDIDO JUNTA | D110: 45 | G110: 97158 | H110: ASSENTAMENTO DE TUBO DE FERRO FUNDIDO PARA REDE DE ÁGUA, DN 100 MM, JUNTA ELÁSTICA, INSTALADO EM LOCAL COM NÍVEL BAIXO DE INTERFERÊNCIAS (NÃO INCLUI FORNECIMENTO). AF_11/2017 | I110: M | J110: ATRIBUÍDO SÃO PAULO | K110: 5,34 | T110: 3,32 | U110: 61,9961613 | V110: 1,13 | W110: 21,3051823 | X110: 0,89 | Y110: 16,6986564 | Z110: 0,00 | AA110: 0,0000000 | AB110: 0,00 | AC110: 0,0000000 | AD110: 0.16292 | AE110: CAIXA REFERENCIAL
A111: ASSENTAMENTO DE TUBOS E PECAS | B111: ASTU | C111: FORNEC E/OU ASSENT DE TUBO DE FERRO FUNDIDO JUNTA | D111: 45 | G111: 97158 | H111: ASSENTAMENTO DE TUBO DE FERRO FUNDIDO PARA REDE DE ÁGUA, DN 100 MM, JUNTA ELÁSTICA, INSTALADO EM LOCAL COM NÍVEL BAIXO DE INTERFERÊNCIAS (NÃO INCLUI FORNECIMENTO). AF_11/2017 | I111: M | J111: ATRIBUÍDO SÃO PAULO | K111: 5,34 | L111: COMPOSICAO | M111: 5678 | N111: RETROESCAVADEIRA SOBRE RODAS COM CARREGADEIRA, TRAÇÃO 4X4, POTÊNCIA LÍQ. 88 HP, CAÇAMBA CARREG. CAP. MÍN. 1 M3, CAÇAMBA RETRO CAP. 0,26 M3, PESO OPERACIONAL MÍN. 6.674 KG, PROFUNDIDADE ESCAVAÇÃO MÁX. 4,37 M - CHP DIURNO. AF_06/2014 | O111: CHP | P111: ATRIBUÍDO SÃO PAULO | Q111: 0,0106000 | R111: 119,51 | S111: 1,26 | AE111: CAIXA REFERENCIAL
A112: ASSENTAMENTO DE TUBOS E PECAS | B112: ASTU | C112: FORNEC E/OU ASSENT DE TUBO DE FERRO FUNDIDO JUNTA | D112: 45 | G112: 97158 | H112: ASSENTAMENTO DE TUBO DE FERRO FUNDIDO PARA REDE DE ÁGUA, DN 100 MM, JUNTA ELÁSTICA, INSTALADO EM LOCAL COM NÍVEL BAIXO DE INTERFERÊNCIAS (NÃO INCLUI FORNECIMENTO). AF_11/2017 | I112: M | J112: ATRIBUÍDO SÃO PAULO | K112: 5,34 | L112: COMPOSICAO | M112: 5679 | N112: RETROESCAVADEIRA SOBRE RODAS COM CARREGADEIRA, TRAÇÃO 4X4, POTÊNCIA LÍQ. 88 HP, CAÇAMBA CARREG. CAP. MÍN. 1 M3, CAÇAMBA RETRO CAP. 0,26 M3, PESO OPERACIONAL MÍN. 6.674 KG, PROFUNDIDADE ESCAVAÇÃO MÁX. 4,37 M - CHI DIURNO. AF_06/2014 | O112: CHI | P112: ATRIBUÍDO SÃO PAULO | Q112: 0,0204000 | R112: 53,43 | S112: 1,08 | AE112: CAIXA REFERENCIAL
A113: ASSENTAMENTO DE TUBOS E PECAS | B113: ASTU | C113: FORNEC E/OU ASSENT DE TUBO DE FERRO FUNDIDO JUNTA | D113: 45 | G113: 97158 | H113: ASSENTAMENTO DE TUBO DE FERRO FUNDIDO PARA REDE DE ÁGUA, DN 100 MM, JUNTA ELÁSTICA, INSTALADO EM LOCAL COM NÍVEL BAIXO DE INTERFERÊNCIAS (NÃO INCLUI FORNECIMENTO). AF_11/2017 | I113: M | J113: ATRIBUÍDO SÃO PAULO | K113: 5,34 | L113: INSUMO | M113: 20078 | N113: PASTA LUBRIFICANTE PARA TUBOS E CONEXOES COM JUNTA ELASTICA, EMBALAGEM DE *400* GR (USO EM PVC, ACO, POLIETILENO E OUTROS) | O113: UN | P113: COEFICIENTE DE REPRESENTATIVIDADE | Q113: 0,0054000 | R113: 23,02 | S113: 0,12 | AE113: CAIXA REFERENCIAL
A114: ASSENTAMENTO DE TUBOS E PECAS | B114: ASTU | C114: FORNEC E/OU ASSENT DE TUBO DE FERRO FUNDIDO JUNTA | D114: 45 | G114: 97158 | H114: ASSENTAMENTO DE TUBO DE FERRO FUNDIDO PARA REDE DE ÁGUA, DN 100 MM, JUNTA ELÁSTICA, INSTALADO EM LOCAL COM NÍVEL BAIXO DE INTERFERÊNCIAS (NÃO INCLUI FORNECIMENTO). AF_11/2017 | I114: M | J114: ATRIBUÍDO SÃO PAULO | K114: 5,34 | L114: COMPOSICAO | M114: 88246 | N114: ASSENTADOR DE TUBOS COM ENCARGOS COMPLEMENTARES | O114: H | P114: COEFICIENTE DE REPRESENTATIVIDADE | Q114: 0,0633000 | R114: 30,02 | S114: 1,90 | AE114: CAIXA REFERENCIAL
A115: ASSENTAMENTO DE TUBOS E PECAS | B115: ASTU | C115: FORNEC E/OU ASSENT DE TUBO DE FERRO FUNDIDO JUNTA | D115: 45 | G115: 97158 | H115: ASSENTAMENTO DE TUBO DE FERRO FUNDIDO PARA REDE DE ÁGUA, DN 100 MM, JUNTA ELÁSTICA, INSTALADO EM LOCAL COM NÍVEL BAIXO DE INTERFERÊNCIAS (NÃO INCLUI FORNECIMENTO). AF_11/2017 | I115: M | J115: ATRIBUÍDO SÃO PAULO | K115: 5,34 | L115: COMPOSICAO | M115: 88316 | N115: SERVENTE COM ENCARGOS COMPLEMENTARES | O115: H | P115: COLETADO | Q115: 0,0633000 | R115: 15,57 | S115: 0,98 | AE115: CAIXA REFERENCIAL
A116: ASSENTAMENTO DE TUBOS E PECAS | B116: ASTU | C116: FORNEC E/OU ASSENT DE TUBO DE FERRO FUNDIDO JUNTA | D116: 45 | G116: 97159 | H116: ASSENTAMENTO DE TUBO DE FERRO FUNDIDO PARA REDE DE ÁGUA, DN 150 MM, JUNTA ELÁSTICA, INSTALADO EM LOCAL COM NÍVEL BAIXO DE INTERFERÊNCIAS (NÃO INCLUI FORNECIMENTO). AF_11/2017 | I116: M | J116: ATRIBUÍDO SÃO PAULO | K116: 6,74 | T116: 4,28 | U116: 63,3738603 | V116: 1,43 | W116: 21,2765957 | X116: 1,03 | Y116: 15,3495440 | Z116: 0,00 | AA116: 0,0000000 | AB116: 0,00 | AC116: 0,0000000 | AD116: 0.14985 | AE116: CAIXA REFERENCIAL
A117: ASSENTAMENTO DE TUBOS E PECAS | B117: ASTU | C117: FORNEC E/OU ASSENT DE TUBO DE FERRO FUNDIDO JUNTA | D117: 45 | G117: 97159 | H117: ASSENTAMENTO DE TUBO DE FERRO FUNDIDO PARA REDE DE ÁGUA, DN 150 MM, JUNTA ELÁSTICA, INSTALADO EM LOCAL COM NÍVEL BAIXO DE INTERFERÊNCIAS (NÃO INCLUI FORNECIMENTO). AF_11/2017 | I117: M | J117: ATRIBUÍDO SÃO PAULO | K117: 6,74 | L117: COMPOSICAO | M117: 5678 | N117: RETROESCAVADEIRA SOBRE RODAS COM CARREGADEIRA, TRAÇÃO 4X4, POTÊNCIA LÍQ. 88 HP, CAÇAMBA CARREG. CAP. MÍN. 1 M3, CAÇAMBA RETRO CAP. 0,26 M3, PESO OPERACIONAL MÍN. 6.674 KG, PROFUNDIDADE ESCAVAÇÃO MÁX. 4,37 M - CHP DIURNO. AF_06/2014 | O117: CHP | P117: ATRIBUÍDO SÃO PAULO | Q117: 0,0124000 | R117: 119,51 | S117: 1,48 | AE117: CAIXA REFERENCIAL
A118: ASSENTAMENTO DE TUBOS E PECAS | B118: ASTU | C118: FORNEC E/OU ASSENT DE TUBO DE FERRO FUNDIDO JUNTA | D118: 45 | G118: 97159 | H118: ASSENTAMENTO DE TUBO DE FERRO FUNDIDO PARA REDE DE ÁGUA, DN 150 MM, JUNTA ELÁSTICA, INSTALADO EM LOCAL COM NÍVEL BAIXO DE INTERFERÊNCIAS (NÃO INCLUI FORNECIMENTO). AF_11/2017 | I118: M | J118: ATRIBUÍDO SÃO PAULO | K118: 6,74 | L118: COMPOSICAO | M118: 5679 | N118: RETROESCAVADEIRA SOBRE RODAS COM CARREGADEIRA, TRAÇÃO 4X4, POTÊNCIA LÍQ. 88 HP, CAÇAMBA CARREG. CAP. MÍN. 1 M3, CAÇAMBA RETRO CAP. 0,26 M3, PESO OPERACIONAL MÍN. 6.674 KG, PROFUNDIDADE ESCAVAÇÃO MÁX. 4,37 M - CHI DIURNO. AF_06/2014 | O118: CHI | P118: ATRIBUÍDO SÃO PAULO | Q118: 0,0237000 | R118: 53,43 | S118: 1,26 | AE118: CAIXA REFERENCIAL
A119: ASSENTAMENTO DE TUBOS E PECAS | B119: ASTU | C119: FORNEC E/OU ASSENT DE TUBO DE FERRO FUNDIDO JUNTA | D119: 45 | G119: 97159 | H119: ASSENTAMENTO DE TUBO DE FERRO FUNDIDO PARA REDE DE ÁGUA, DN 150 MM, JUNTA ELÁSTICA, INSTALADO EM LOCAL COM NÍVEL BAIXO DE INTERFERÊNCIAS (NÃO INCLUI FORNECIMENTO). AF_11/2017 | I119: M | J119: ATRIBUÍDO SÃO PAULO | K119: 6,74 | L119: INSUMO | M119: 20078 | N119: PASTA LUBRIFICANTE PARA TUBOS E CONEXOES COM JUNTA ELASTICA, EMBALAGEM DE *400* GR (USO EM PVC, ACO, POLIETILENO E OUTROS) | O119: UN | P119: COEFICIENTE DE REPRESENTATIVIDADE | Q119: 0,0071000 | R119: 23,02 | S119: 0,16 | AE119: CAIXA REFERENCIAL
A120: ASSENTAMENTO DE TUBOS E PECAS | B120: ASTU | C120: FORNEC E/OU ASSENT DE TUBO DE FERRO FUNDIDO JUNTA | D120: 45 | G120: 97159 | H120: ASSENTAMENTO DE TUBO DE FERRO FUNDIDO PARA REDE DE ÁGUA, DN 150 MM, JUNTA ELÁSTICA, INSTALADO EM LOCAL COM NÍVEL BAIXO DE INTERFERÊNCIAS (NÃO INCLUI FORNECIMENTO). AF_11/2017 | I120: M | J120: ATRIBUÍDO SÃO PAULO | K120: 6,74 | L120: COMPOSICAO | M120: 88246 | N120: ASSENTADOR DE TUBOS COM ENCARGOS COMPLEMENTARES | O120: H | P120: COEFICIENTE DE REPRESENTATIVIDADE | Q120: 0,0845000 | R120: 30,02 | S120: 2,53 | AE120: CAIXA REFERENCIAL
A121: ASSENTAMENTO DE TUBOS E PECAS | B121: ASTU | C121: FORNEC E/OU ASSENT DE TUBO DE FERRO FUNDIDO JUNTA | D121: 45 | G121: 97159 | H121: ASSENTAMENTO DE TUBO DE FERRO FUNDIDO PARA REDE DE ÁGUA, DN 150 MM, JUNTA ELÁSTICA, INSTALADO EM LOCAL COM NÍVEL BAIXO DE INTERFERÊNCIAS (NÃO INCLUI FORNECIMENTO). AF_11/2017 | I121: M | J121: ATRIBUÍDO SÃO PAULO | K121: 6,74 | L121: COMPOSICAO | M121: 88316 | N121: SERVENTE COM ENCARGOS COMPLEMENTARES | O121: H | P121: COLETADO | Q121: 0,0845000 | R121: 15,57 | S121: 1,31 | AE121: CAIXA REFERENCIAL
A122: ASSENTAMENTO DE TUBOS E PECAS | B122: ASTU | C122: FORNEC E/OU ASSENT DE TUBO DE FERRO FUNDIDO JUNTA | D122: 45 | G122: 97160 | H122: ASSENTAMENTO DE TUBO DE FERRO FUNDIDO PARA REDE DE ÁGUA, DN 200 MM, JUNTA ELÁSTICA, INSTALADO EM LOCAL COM NÍVEL BAIXO DE INTERFERÊNCIAS (NÃO INCLUI FORNECIMENTO). AF_11/2017 | I122: M | J122: ATRIBUÍDO SÃO PAULO | K122: 8,13 | T122: 5,20 | U122: 63,8644920 | V122: 1,74 | W122: 21,4554579 | X122: 1,19 | Y122: 14,6800501 | Z122: 0,00 | AA122: 0,0000000 | AB122: 0,00 | AC122: 0,0000000 | AD122: 0.14391 | AE122: CAIXA REFERENCIAL
A123: ASSENTAMENTO DE TUBOS E PECAS | B123: ASTU | C123: FORNEC E/OU ASSENT DE TUBO DE FERRO FUNDIDO JUNTA | D123: 45 | G123: 97160 | H123: ASSENTAMENTO DE TUBO DE FERRO FUNDIDO PARA REDE DE ÁGUA, DN 200 MM, JUNTA ELÁSTICA, INSTALADO EM LOCAL COM NÍVEL BAIXO DE INTERFERÊNCIAS (NÃO INCLUI FORNECIMENTO). AF_11/2017 | I123: M | J123: ATRIBUÍDO SÃO PAULO | K123: 8,13 | L123: COMPOSICAO | M123: 5678 | N123: RETROESCAVADEIRA SOBRE RODAS COM CARREGADEIRA, TRAÇÃO 4X4, POTÊNCIA LÍQ. 88 HP, CAÇAMBA CARREG. CAP. MÍN. 1 M3, CAÇAMBA RETRO CAP. 0,26 M3, PESO OPERACIONAL MÍN. 6.674 KG, PROFUNDIDADE ESCAVAÇÃO MÁX. 4,37 M - CHP DIURNO. AF_06/2014 | O123: CHP | P123: ATRIBUÍDO SÃO PAULO | Q123: 0,0141000 | R123: 119,51 | S123: 1,68 | AE123: CAIXA REFERENCIAL
A124: ASSENTAMENTO DE TUBOS E PECAS | B124: ASTU | C124: FORNEC E/OU ASSENT DE TUBO DE FERRO FUNDIDO JUNTA | D124: 45 | G124: 97160 | H124: ASSENTAMENTO DE TUBO DE FERRO FUNDIDO PARA REDE DE ÁGUA, DN 200 MM, JUNTA ELÁSTICA, INSTALADO EM LOCAL COM NÍVEL BAIXO DE INTERFERÊNCIAS (NÃO INCLUI FORNECIMENTO). AF_11/2017 | I124: M | J124: ATRIBUÍDO SÃO PAULO | K124: 8,13 | L124: COMPOSICAO | M124: 5679 | N124: RETROESCAVADEIRA SOBRE RODAS COM CARREGADEIRA, TRAÇÃO 4X4, POTÊNCIA LÍQ. 88 HP, CAÇAMBA CARREG. CAP. MÍN. 1 M3, CAÇAMBA RETRO CAP. 0,26 M3, PESO OPERACIONAL MÍN. 6.674 KG, PROFUNDIDADE ESCAVAÇÃO MÁX. 4,37 M - CHI DIURNO. AF_06/2014 | O124: CHI | P124: ATRIBUÍDO SÃO PAULO | Q124: 0,0270000 | R124: 53,43 | S124: 1,44 | AE124: CAIXA REFERENCIAL
A125: ASSENTAMENTO DE TUBOS E PECAS | B125: ASTU | C125: FORNEC E/OU ASSENT DE TUBO DE FERRO FUNDIDO JUNTA | D125: 45 | G125: 97160 | H125: ASSENTAMENTO DE TUBO DE FERRO FUNDIDO PARA REDE DE ÁGUA, DN 200 MM, JUNTA ELÁSTICA, INSTALADO EM LOCAL COM NÍVEL BAIXO DE INTERFERÊNCIAS (NÃO INCLUI FORNECIMENTO). AF_11/2017 | I125: M | J125: ATRIBUÍDO SÃO PAULO | K125: 8,13 | L125: INSUMO | M125: 20078 | N125: PASTA LUBRIFICANTE PARA TUBOS E CONEXOES COM JUNTA ELASTICA, EMBALAGEM DE *400* GR (USO EM PVC, ACO, POLIETILENO E OUTROS) | O125: UN | P125: COEFICIENTE DE REPRESENTATIVIDADE | Q125: 0,0087000 | R125: 23,02 | S125: 0,20 | AE125: CAIXA REFERENCIAL
A126: ASSENTAMENTO DE TUBOS E PECAS | B126: ASTU | C126: FORNEC E/OU ASSENT DE TUBO DE FERRO FUNDIDO JUNTA | D126: 45 | G126: 97160 | H126: ASSENTAMENTO DE TUBO DE FERRO FUNDIDO PARA REDE DE ÁGUA, DN 200 MM, JUNTA ELÁSTICA, INSTALADO EM LOCAL COM NÍVEL BAIXO DE INTERFERÊNCIAS (NÃO INCLUI FORNECIMENTO). AF_11/2017 | I126: M | J126: ATRIBUÍDO SÃO PAULO | K126: 8,13 | L126: COMPOSICAO | M126: 88246 | N126: ASSENTADOR DE TUBOS COM ENCARGOS COMPLEMENTARES | O126: H | P126: COEFICIENTE DE REPRESENTATIVIDADE | Q126: 0,1057000 | R126: 30,02 | S126: 3,17 | AE126: CAIXA REFERENCIAL
A127: ASSENTAMENTO DE TUBOS E PECAS | B127: ASTU | C127: FORNEC E/OU ASSENT DE TUBO DE FERRO FUNDIDO JUNTA | D127: 45 | G127: 97160 | H127: ASSENTAMENTO DE TUBO DE FERRO FUNDIDO PARA REDE DE ÁGUA, DN 200 MM, JUNTA ELÁSTICA, INSTALADO EM LOCAL COM NÍVEL BAIXO DE INTERFERÊNCIAS (NÃO INCLUI FORNECIMENTO). AF_11/2017 | I127: M | J127: ATRIBUÍDO SÃO PAULO | K127: 8,13 | L127: COMPOSICAO | M127: 88316 | N127: SERVENTE COM ENCARGOS COMPLEMENTARES | O127: H | P127: COLETADO | Q127: 0,1057000 | R127: 15,57 | S127: 1,64 | AE127: CAIXA REFERENCIAL
A128: ASSENTAMENTO DE TUBOS E PECAS | B128: ASTU | C128: FORNEC E/OU ASSENT DE TUBO DE FERRO FUNDIDO JUNTA | D128: 45 | G128: 97161 | H128: ASSENTAMENTO DE TUBO DE FERRO FUNDIDO PARA REDE DE ÁGUA, DN 250 MM, JUNTA ELÁSTICA, INSTALADO EM LOCAL COM NÍVEL BAIXO DE INTERFERÊNCIAS (NÃO INCLUI FORNECIMENTO). AF_11/2017 | I128: M | J128: ATRIBUÍDO SÃO PAULO | K128: 9,56 | T128: 6,17 | U128: 64,3923242 | V128: 2,06 | W128: 21,6417910 | X128: 1,33 | Y128: 13,9658848 | Z128: 0,00 | AA128: 0,0000000 | AB128: 0,00 | AC128: 0,0000000 | AD128: 0.13808 | AE128: CAIXA REFERENCIAL
A129: ASSENTAMENTO DE TUBOS E PECAS | B129: ASTU | C129: FORNEC E/OU ASSENT DE TUBO DE FERRO FUNDIDO JUNTA | D129: 45 | G129: 97161 | H129: ASSENTAMENTO DE TUBO DE FERRO FUNDIDO PARA REDE DE ÁGUA, DN 250 MM, JUNTA ELÁSTICA, INSTALADO EM LOCAL COM NÍVEL BAIXO DE INTERFERÊNCIAS (NÃO INCLUI FORNECIMENTO). AF_11/2017 | I129: M | J129: ATRIBUÍDO SÃO PAULO | K129: 9,56 | L129: COMPOSICAO | M129: 5678 | N129: RETROESCAVADEIRA SOBRE RODAS COM CARREGADEIRA, TRAÇÃO 4X4, POTÊNCIA LÍQ. 88 HP, CAÇAMBA CARREG. CAP. MÍN. 1 M3, CAÇAMBA RETRO CAP. 0,26 M3, PESO OPERACIONAL MÍN. 6.674 KG, PROFUNDIDADE ESCAVAÇÃO MÁX. 4,37 M - CHP DIURNO. AF_06/2014 | O129: CHP | P129: ATRIBUÍDO SÃO PAULO | Q129: 0,0159000 | R129: 119,51 | S129: 1,90 | AE129: CAIXA REFERENCIAL
A130: ASSENTAMENTO DE TUBOS E PECAS | B130: ASTU | C130: FORNEC E/OU ASSENT DE TUBO DE FERRO FUNDIDO JUNTA | D130: 45 | G130: 97161 | H130: ASSENTAMENTO DE TUBO DE FERRO FUNDIDO PARA REDE DE ÁGUA, DN 250 MM, JUNTA ELÁSTICA, INSTALADO EM LOCAL COM NÍVEL BAIXO DE INTERFERÊNCIAS (NÃO INCLUI FORNECIMENTO). AF_11/2017 | I130: M | J130: ATRIBUÍDO SÃO PAULO | K130: 9,56 | L130: COMPOSICAO | M130: 5679 | N130: RETROESCAVADEIRA SOBRE RODAS COM CARREGADEIRA, TRAÇÃO 4X4, POTÊNCIA LÍQ. 88 HP, CAÇAMBA CARREG. CAP. MÍN. 1 M3, CAÇAMBA RETRO CAP. 0,26 M3, PESO OPERACIONAL MÍN. 6.674 KG, PROFUNDIDADE ESCAVAÇÃO MÁX. 4,37 M - CHI DIURNO. AF_06/2014 | O130: CHI | P130: ATRIBUÍDO SÃO PAULO | Q130: 0,0304000 | R130: 53,43 | S130: 1,62 | AE130: CAIXA REFERENCIAL
A131: ASSENTAMENTO DE TUBOS E PECAS | B131: ASTU | C131: FORNEC E/OU ASSENT DE TUBO DE FERRO FUNDIDO JUNTA | D131: 45 | G131: 97161 | H131: ASSENTAMENTO DE TUBO DE FERRO FUNDIDO PARA REDE DE ÁGUA, DN 250 MM, JUNTA ELÁSTICA, INSTALADO EM LOCAL COM NÍVEL BAIXO DE INTERFERÊNCIAS (NÃO INCLUI FORNECIMENTO). AF_11/2017 | I131: M | J131: ATRIBUÍDO SÃO PAULO | K131: 9,56 | L131: INSUMO | M131: 20078 | N131: PASTA LUBRIFICANTE PARA TUBOS E CONEXOES COM JUNTA ELASTICA, EMBALAGEM DE *400* GR (USO EM PVC, ACO, POLIETILENO E OUTROS) | O131: UN | P131: COEFICIENTE DE REPRESENTATIVIDADE | Q131: 0,0113000 | R131: 23,02 | S131: 0,26 | AE131: CAIXA REFERENCIAL
A132: ASSENTAMENTO DE TUBOS E PECAS | B132: ASTU | C132: FORNEC E/OU ASSENT DE TUBO DE FERRO FUNDIDO JUNTA | D132: 45 | G132: 97161 | H132: ASSENTAMENTO DE TUBO DE FERRO FUNDIDO PARA REDE DE ÁGUA, DN 250 MM, JUNTA ELÁSTICA, INSTALADO EM LOCAL COM NÍVEL BAIXO DE INTERFERÊNCIAS (NÃO INCLUI FORNECIMENTO). AF_11/2017 | I132: M | J132: ATRIBUÍDO SÃO PAULO | K132: 9,56 | L132: COMPOSICAO | M132: 88246 | N132: ASSENTADOR DE TUBOS COM ENCARGOS COMPLEMENTARES | O132: H | P132: COEFICIENTE DE REPRESENTATIVIDADE | Q132: 0,1270000 | R132: 30,02 | S132: 3,81 | AE132: CAIXA REFERENCIAL
A133: ASSENTAMENTO DE TUBOS E PECAS | B133: ASTU | C133: FORNEC E/OU ASSENT DE TUBO DE FERRO FUNDIDO JUNTA | D133: 45 | G133: 97161 | H133: ASSENTAMENTO DE TUBO DE FERRO FUNDIDO PARA REDE DE ÁGUA, DN 250 MM, JUNTA ELÁSTICA, INSTALADO EM LOCAL COM NÍVEL BAIXO DE INTERFERÊNCIAS (NÃO INCLUI FORNECIMENTO). AF_11/2017 | I133: M | J133: ATRIBUÍDO SÃO PAULO | K133: 9,56 | L133: COMPOSICAO | M133: 88316 | N133: SERVENTE COM ENCARGOS COMPLEMENTARES | O133: H | P133: COLETADO | Q133: 0,1270000 | R133: 15,57 | S133: 1,97 | AE133: CAIXA REFERENCIAL
A134: ASSENTAMENTO DE TUBOS E PECAS | B134: ASTU | C134: FORNEC E/OU ASSENT DE TUBO DE FERRO FUNDIDO JUNTA | D134: 45 | G134: 97162 | H134: ASSENTAMENTO DE TUBO DE FERRO FUNDIDO PARA REDE DE ÁGUA, DN 300 MM, JUNTA ELÁSTICA, INSTALADO EM LOCAL COM NÍVEL BAIXO DE INTERFERÊNCIAS (NÃO INCLUI FORNECIMENTO). AF_11/2017 | I134: M | J134: ATRIBUÍDO SÃO PAULO | K134: 10,95 | T134: 7,09 | U134: 64,6025879 | V134: 2,39 | W134: 21,9038817 | X134: 1,47 | Y134: 13,4935304 | Z134: 0,00 | AA134: 0,0000000 | AB134: 0,00 | AC134: 0,0000000 | AD134: 0.13333 | AE134: CAIXA REFERENCIAL
A135: ASSENTAMENTO DE TUBOS E PECAS | B135: ASTU | C135: FORNEC E/OU ASSENT DE TUBO DE FERRO FUNDIDO JUNTA | D135: 45 | G135: 97162 | H135: ASSENTAMENTO DE TUBO DE FERRO FUNDIDO PARA REDE DE ÁGUA, DN 300 MM, JUNTA ELÁSTICA, INSTALADO EM LOCAL COM NÍVEL BAIXO DE INTERFERÊNCIAS (NÃO INCLUI FORNECIMENTO). AF_11/2017 | I135: M | J135: ATRIBUÍDO SÃO PAULO | K135: 10,95 | L135: COMPOSICAO | M135: 5678 | N135: RETROESCAVADEIRA SOBRE RODAS COM CARREGADEIRA, TRAÇÃO 4X4, POTÊNCIA LÍQ. 88 HP, CAÇAMBA CARREG. CAP. MÍN. 1 M3, CAÇAMBA RETRO CAP. 0,26 M3, PESO OPERACIONAL MÍN. 6.674 KG, PROFUNDIDADE ESCAVAÇÃO MÁX. 4,37 M - CHP DIURNO. AF_06/2014 | O135: CHP | P135: ATRIBUÍDO SÃO PAULO | Q135: 0,0176000 | R135: 119,51 | S135: 2,10 | AE135: CAIXA REFERENCIAL
A136: ASSENTAMENTO DE TUBOS E PECAS | B136: ASTU | C136: FORNEC E/OU ASSENT DE TUBO DE FERRO FUNDIDO JUNTA | D136: 45 | G136: 97162 | H136: ASSENTAMENTO DE TUBO DE FERRO FUNDIDO PARA REDE DE ÁGUA, DN 300 MM, JUNTA ELÁSTICA, INSTALADO EM LOCAL COM NÍVEL BAIXO DE INTERFERÊNCIAS (NÃO INCLUI FORNECIMENTO). AF_11/2017 | I136: M | J136: ATRIBUÍDO SÃO PAULO | K136: 10,95 | L136: COMPOSICAO | M136: 5679 | N136: RETROESCAVADEIRA SOBRE RODAS COM CARREGADEIRA, TRAÇÃO 4X4, POTÊNCIA LÍQ. 88 HP, CAÇAMBA CARREG. CAP. MÍN. 1 M3, CAÇAMBA RETRO CAP. 0,26 M3, PESO OPERACIONAL MÍN. 6.674 KG, PROFUNDIDADE ESCAVAÇÃO MÁX. 4,37 M - CHI DIURNO. AF_06/2014 | O136: CHI | P136: ATRIBUÍDO SÃO PAULO | Q136: 0,0337000 | R136: 53,43 | S136: 1,80 | AE136: CAIXA REFERENCIAL
A137: ASSENTAMENTO DE TUBOS E PECAS | B137: ASTU | C137: FORNEC E/OU ASSENT DE TUBO DE FERRO FUNDIDO JUNTA | D137: 45 | G137: 97162 | H137: ASSENTAMENTO DE TUBO DE FERRO FUNDIDO PARA REDE DE ÁGUA, DN 300 MM, JUNTA ELÁSTICA, INSTALADO EM LOCAL COM NÍVEL BAIXO DE INTERFERÊNCIAS (NÃO INCLUI FORNECIMENTO). AF_11/2017 | I137: M | J137: ATRIBUÍDO SÃO PAULO | K137: 10,95 | L137: INSUMO | M137: 20078 | N137: PASTA LUBRIFICANTE PARA TUBOS E CONEXOES COM JUNTA ELASTICA, EMBALAGEM DE *400* GR (USO EM PVC, ACO, POLIETILENO E OUTROS) | O137: UN | P137: COEFICIENTE DE REPRESENTATIVIDADE | Q137: 0,0138000 | R137: 23,02 | S137: 0,31 | AE137: CAIXA REFERENCIAL
A138: ASSENTAMENTO DE TUBOS E PECAS | B138: ASTU | C138: FORNEC E/OU ASSENT DE TUBO DE FERRO FUNDIDO JUNTA | D138: 45 | G138: 97162 | H138: ASSENTAMENTO DE TUBO DE FERRO FUNDIDO PARA REDE DE ÁGUA, DN 300 MM, JUNTA ELÁSTICA, INSTALADO EM LOCAL COM NÍVEL BAIXO DE INTERFERÊNCIAS (NÃO INCLUI FORNECIMENTO). AF_11/2017 | I138: M | J138: ATRIBUÍDO SÃO PAULO | K138: 10,95 | L138: COMPOSICAO | M138: 88246 | N138: ASSENTADOR DE TUBOS COM ENCARGOS COMPLEMENTARES | O138: H | P138: COEFICIENTE DE REPRESENTATIVIDADE | Q138: 0,1482000 | R138: 30,02 | S138: 4,44 | AE138: CAIXA REFERENCIAL
A139: ASSENTAMENTO DE TUBOS E PECAS | B139: ASTU | C139: FORNEC E/OU ASSENT DE TUBO DE FERRO FUNDIDO JUNTA | D139: 45 | G139: 97162 | H139: ASSENTAMENTO DE TUBO DE FERRO FUNDIDO PARA REDE DE ÁGUA, DN 300 MM, JUNTA ELÁSTICA, INSTALADO EM LOCAL COM NÍVEL BAIXO DE INTERFERÊNCIAS (NÃO INCLUI FORNECIMENTO). AF_11/2017 | I139: M | J139: ATRIBUÍDO SÃO PAULO | K139: 10,95 | L139: COMPOSICAO | M139: 88316 | N139: SERVENTE COM ENCARGOS COMPLEMENTARES | O139: H | P139: COLETADO | Q139: 0,1482000 | R139: 15,57 | S139: 2,30 | AE139: CAIXA REFERENCIAL
A140: ASSENTAMENTO DE TUBOS E PECAS | B140: ASTU | C140: FORNEC E/OU ASSENT DE TUBO DE FERRO FUNDIDO JUNTA | D140: 45 | G140: 97163 | H140: ASSENTAMENTO DE TUBO DE FERRO FUNDIDO PARA REDE DE ÁGUA, DN 350 MM, JUNTA ELÁSTICA, INSTALADO EM LOCAL COM NÍVEL BAIXO DE INTERFERÊNCIAS (NÃO INCLUI FORNECIMENTO). AF_11/2017 | I140: M | J140: ATRIBUÍDO SÃO PAULO | K140: 12,37 | T140: 8,02 | U140: 64,7058824 | V140: 2,74 | W140: 22,2222222 | X140: 1,61 | Y140: 13,0718954 | Z140: 0,00 | AA140: 0,0000000 | AB140: 0,00 | AC140: 0,0000000 | AD140: 0.12935 | AE140: CAIXA REFERENCIAL
A141: ASSENTAMENTO DE TUBOS E PECAS | B141: ASTU | C141: FORNEC E/OU ASSENT DE TUBO DE FERRO FUNDIDO JUNTA | D141: 45 | G141: 97163 | H141: ASSENTAMENTO DE TUBO DE FERRO FUNDIDO PARA REDE DE ÁGUA, DN 350 MM, JUNTA ELÁSTICA, INSTALADO EM LOCAL COM NÍVEL BAIXO DE INTERFERÊNCIAS (NÃO INCLUI FORNECIMENTO). AF_11/2017 | I141: M | J141: ATRIBUÍDO SÃO PAULO | K141: 12,37 | L141: COMPOSICAO | M141: 5678 | N141: RETROESCAVADEIRA SOBRE RODAS COM CARREGADEIRA, TRAÇÃO 4X4, POTÊNCIA LÍQ. 88 HP, CAÇAMBA CARREG. CAP. MÍN. 1 M3, CAÇAMBA RETRO CAP. 0,26 M3, PESO OPERACIONAL MÍN. 6.674 KG, PROFUNDIDADE ESCAVAÇÃO MÁX. 4,37 M - CHP DIURNO. AF_06/2014 | O141: CHP | P141: ATRIBUÍDO SÃO PAULO | Q141: 0,0194000 | R141: 119,51 | S141: 2,31 | AE141: CAIXA REFERENCIAL
A142: ASSENTAMENTO DE TUBOS E PECAS | B142: ASTU | C142: FORNEC E/OU ASSENT DE TUBO DE FERRO FUNDIDO JUNTA | D142: 45 | G142: 97163 | H142: ASSENTAMENTO DE TUBO DE FERRO FUNDIDO PARA REDE DE ÁGUA, DN 350 MM, JUNTA ELÁSTICA, INSTALADO EM LOCAL COM NÍVEL BAIXO DE INTERFERÊNCIAS (NÃO INCLUI FORNECIMENTO). AF_11/2017 | I142: M | J142: ATRIBUÍDO SÃO PAULO | K142: 12,37 | L142: COMPOSICAO | M142: 5679 | N142: RETROESCAVADEIRA SOBRE RODAS COM CARREGADEIRA, TRAÇÃO 4X4, POTÊNCIA LÍQ. 88 HP, CAÇAMBA CARREG. CAP. MÍN. 1 M3, CAÇAMBA RETRO CAP. 0,26 M3, PESO OPERACIONAL MÍN. 6.674 KG, PROFUNDIDADE ESCAVAÇÃO MÁX. 4,37 M - CHI DIURNO. AF_06/2014 | O142: CHI | P142: ATRIBUÍDO SÃO PAULO | Q142: 0,0371000 | R142: 53,43 | S142: 1,98 | AE142: CAIXA REFERENCIAL
A143: ASSENTAMENTO DE TUBOS E PECAS | B143: ASTU | C143: FORNEC E/OU ASSENT DE TUBO DE FERRO FUNDIDO JUNTA | D143: 45 | G143: 97163 | H143: ASSENTAMENTO DE TUBO DE FERRO FUNDIDO PARA REDE DE ÁGUA, DN 350 MM, JUNTA ELÁSTICA, INSTALADO EM LOCAL COM NÍVEL BAIXO DE INTERFERÊNCIAS (NÃO INCLUI FORNECIMENTO). AF_11/2017 | I143: M | J143: ATRIBUÍDO SÃO PAULO | K143: 12,37 | L143: INSUMO | M143: 20078 | N143: PASTA LUBRIFICANTE PARA TUBOS E CONEXOES COM JUNTA ELASTICA, EMBALAGEM DE *400* GR (USO EM PVC, ACO, POLIETILENO E OUTROS) | O143: UN | P143: COEFICIENTE DE REPRESENTATIVIDADE | Q143: 0,0163000 | R143: 23,02 | S143: 0,37 | AE143: CAIXA REFERENCIAL
A144: ASSENTAMENTO DE TUBOS E PECAS | B144: ASTU | C144: FORNEC E/OU ASSENT DE TUBO DE FERRO FUNDIDO JUNTA | D144: 45 | G144: 97163 | H144: ASSENTAMENTO DE TUBO DE FERRO FUNDIDO PARA REDE DE ÁGUA, DN 350 MM, JUNTA ELÁSTICA, INSTALADO EM LOCAL COM NÍVEL BAIXO DE INTERFERÊNCIAS (NÃO INCLUI FORNECIMENTO). AF_11/2017 | I144: M | J144: ATRIBUÍDO SÃO PAULO | K144: 12,37 | L144: COMPOSICAO | M144: 88246 | N144: ASSENTADOR DE TUBOS COM ENCARGOS COMPLEMENTARES | O144: H | P144: COEFICIENTE DE REPRESENTATIVIDADE | Q144: 0,1694000 | R144: 30,02 | S144: 5,08 | AE144: CAIXA REFERENCIAL
A145: ASSENTAMENTO DE TUBOS E PECAS | B145: ASTU | C145: FORNEC E/OU ASSENT DE TUBO DE FERRO FUNDIDO JUNTA | D145: 45 | G145: 97163 | H145: ASSENTAMENTO DE TUBO DE FERRO FUNDIDO PARA REDE DE ÁGUA, DN 350 MM, JUNTA ELÁSTICA, INSTALADO EM LOCAL COM NÍVEL BAIXO DE INTERFERÊNCIAS (NÃO INCLUI FORNECIMENTO). AF_11/2017 | I145: M | J145: ATRIBUÍDO SÃO PAULO | K145: 12,37 | L145: COMPOSICAO | M145: 88316 | N145: SERVENTE COM ENCARGOS COMPLEMENTARES | O145: H | P145: COLETADO | Q145: 0,1694000 | R145: 15,57 | S145: 2,63 | AE145: CAIXA REFERENCIAL
A146: ASSENTAMENTO DE TUBOS E PECAS | B146: ASTU | C146: FORNEC E/OU ASSENT DE TUBO DE FERRO FUNDIDO JUNTA | D146: 45 | G146: 97164 | H146: ASSENTAMENTO DE TUBO DE FERRO FUNDIDO PARA REDE DE ÁGUA, DN 400 MM, JUNTA ELÁSTICA, INSTALADO EM LOCAL COM NÍVEL BAIXO DE INTERFERÊNCIAS (NÃO INCLUI FORNECIMENTO). AF_11/2017 | I146: M | J146: ATRIBUÍDO SÃO PAULO | K146: 13,78 | T146: 8,96 | U146: 64,9560118 | V146: 3,05 | W146: 22,1407624 | X146: 1,77 | Y146: 12,9032258 | Z146: 0,00 | AA146: 0,0000000 | AB146: 0,00 | AC146: 0,0000000 | AD146: 0.12772 | AE146: CAIXA REFERENCIAL
A147: ASSENTAMENTO DE TUBOS E PECAS | B147: ASTU | C147: FORNEC E/OU ASSENT DE TUBO DE FERRO FUNDIDO JUNTA | D147: 45 | G147: 97164 | H147: ASSENTAMENTO DE TUBO DE FERRO FUNDIDO PARA REDE DE ÁGUA, DN 400 MM, JUNTA ELÁSTICA, INSTALADO EM LOCAL COM NÍVEL BAIXO DE INTERFERÊNCIAS (NÃO INCLUI FORNECIMENTO). AF_11/2017 | I147: M | J147: ATRIBUÍDO SÃO PAULO | K147: 13,78 | L147: COMPOSICAO | M147: 5678 | N147: RETROESCAVADEIRA SOBRE RODAS COM CARREGADEIRA, TRAÇÃO 4X4, POTÊNCIA LÍQ. 88 HP, CAÇAMBA CARREG. CAP. MÍN. 1 M3, CAÇAMBA RETRO CAP. 0,26 M3, PESO OPERACIONAL MÍN. 6.674 KG, PROFUNDIDADE ESCAVAÇÃO MÁX. 4,37 M - CHP DIURNO. AF_06/2014 | O147: CHP | P147: ATRIBUÍDO SÃO PAULO | Q147: 0,0211000 | R147: 119,51 | S147: 2,52 | AE147: CAIXA REFERENCIAL
A148: ASSENTAMENTO DE TUBOS E PECAS | B148: ASTU | C148: FORNEC E/OU ASSENT DE TUBO DE FERRO FUNDIDO JUNTA | D148: 45 | G148: 97164 | H148: ASSENTAMENTO DE TUBO DE FERRO FUNDIDO PARA REDE DE ÁGUA, DN 400 MM, JUNTA ELÁSTICA, INSTALADO EM LOCAL COM NÍVEL BAIXO DE INTERFERÊNCIAS (NÃO INCLUI FORNECIMENTO). AF_11/2017 | I148: M | J148: ATRIBUÍDO SÃO PAULO | K148: 13,78 | L148: COMPOSICAO | M148: 5679 | N148: RETROESCAVADEIRA SOBRE RODAS COM CARREGADEIRA, TRAÇÃO 4X4, POTÊNCIA LÍQ. 88 HP, CAÇAMBA CARREG. CAP. MÍN. 1 M3, CAÇAMBA RETRO CAP. 0,26 M3, PESO OPERACIONAL MÍN. 6.674 KG, PROFUNDIDADE ESCAVAÇÃO MÁX. 4,37 M - CHI DIURNO. AF_06/2014 | O148: CHI | P148: ATRIBUÍDO SÃO PAULO | Q148: 0,0404000 | R148: 53,43 | S148: 2,15 | AE148: CAIXA REFERENCIAL
A149: ASSENTAMENTO DE TUBOS E PECAS | B149: ASTU | C149: FORNEC E/OU ASSENT DE TUBO DE FERRO FUNDIDO JUNTA | D149: 45 | G149: 97164 | H149: ASSENTAMENTO DE TUBO DE FERRO FUNDIDO PARA REDE DE ÁGUA, DN 400 MM, JUNTA ELÁSTICA, INSTALADO EM LOCAL COM NÍVEL BAIXO DE INTERFERÊNCIAS (NÃO INCLUI FORNECIMENTO). AF_11/2017 | I149: M | J149: ATRIBUÍDO SÃO PAULO | K149: 13,78 | L149: INSUMO | M149: 20078 | N149: PASTA LUBRIFICANTE PARA TUBOS E CONEXOES COM JUNTA ELASTICA, EMBALAGEM DE *400* GR (USO EM PVC, ACO, POLIETILENO E OUTROS) | O149: UN | P149: COEFICIENTE DE REPRESENTATIVIDADE | Q149: 0,0188000 | R149: 23,02 | S149: 0,43 | AE149: CAIXA REFERENCIAL
A150: ASSENTAMENTO DE TUBOS E PECAS | B150: ASTU | C150: FORNEC E/OU ASSENT DE TUBO DE FERRO FUNDIDO JUNTA | D150: 45 | G150: 97164 | H150: ASSENTAMENTO DE TUBO DE FERRO FUNDIDO PARA REDE DE ÁGUA, DN 400 MM, JUNTA ELÁSTICA, INSTALADO EM LOCAL COM NÍVEL BAIXO DE INTERFERÊNCIAS (NÃO INCLUI FORNECIMENTO). AF_11/2017 | I150: M | J150: ATRIBUÍDO SÃO PAULO | K150: 13,78 | L150: COMPOSICAO | M150: 88246 | N150: ASSENTADOR DE TUBOS COM ENCARGOS COMPLEMENTARES | O150: H | P150: COEFICIENTE DE REPRESENTATIVIDADE | Q150: 0,1907000 | R150: 30,02 | S150: 5,72 | AE150: CAIXA REFERENCIAL
A151: ASSENTAMENTO DE TUBOS E PECAS | B151: ASTU | C151: FORNEC E/OU ASSENT DE TUBO DE FERRO FUNDIDO JUNTA | D151: 45 | G151: 97164 | H151: ASSENTAMENTO DE TUBO DE FERRO FUNDIDO PARA REDE DE ÁGUA, DN 400 MM, JUNTA ELÁSTICA, INSTALADO EM LOCAL COM NÍVEL BAIXO DE INTERFERÊNCIAS (NÃO INCLUI FORNECIMENTO). AF_11/2017 | I151: M | J151: ATRIBUÍDO SÃO PAULO | K151: 13,78 | L151: COMPOSICAO | M151: 88316 | N151: SERVENTE COM ENCARGOS COMPLEMENTARES | O151: H | P151: COLETADO | Q151: 0,1907000 | R151: 15,57 | S151: 2,96 | AE151: CAIXA REFERENCIAL
A152: ASSENTAMENTO DE TUBOS E PECAS | B152: ASTU | C152: FORNEC E/OU ASSENT DE TUBO DE FERRO FUNDIDO JUNTA | D152: 45 | G152: 97165 | H152: ASSENTAMENTO DE TUBO DE FERRO FUNDIDO PARA REDE DE ÁGUA, DN 450 MM, JUNTA ELÁSTICA, INSTALADO EM LOCAL COM NÍVEL BAIXO DE INTERFERÊNCIAS (NÃO INCLUI FORNECIMENTO). AF_11/2017 | I152: M | J152: ATRIBUÍDO SÃO PAULO | K152: 15,22 | T152: 9,91 | U152: 65,0530505 | V152: 3,39 | W152: 22,2811671 | X152: 1,92 | Y152: 12,6657824 | Z152: 0,00 | AA152: 0,0000000 | AB152: 0,00 | AC152: 0,0000000 | AD152: 0.12615 | AE152: CAIXA REFERENCIAL
A153: ASSENTAMENTO DE TUBOS E PECAS | B153: ASTU | C153: FORNEC E/OU ASSENT DE TUBO DE FERRO FUNDIDO JUNTA | D153: 45 | G153: 97165 | H153: ASSENTAMENTO DE TUBO DE FERRO FUNDIDO PARA REDE DE ÁGUA, DN 450 MM, JUNTA ELÁSTICA, INSTALADO EM LOCAL COM NÍVEL BAIXO DE INTERFERÊNCIAS (NÃO INCLUI FORNECIMENTO). AF_11/2017 | I153: M | J153: ATRIBUÍDO SÃO PAULO | K153: 15,22 | L153: COMPOSICAO | M153: 5678 | N153: RETROESCAVADEIRA SOBRE RODAS COM CARREGADEIRA, TRAÇÃO 4X4, POTÊNCIA LÍQ. 88 HP, CAÇAMBA CARREG. CAP. MÍN. 1 M3, CAÇAMBA RETRO CAP. 0,26 M3, PESO OPERACIONAL MÍN. 6.674 KG, PROFUNDIDADE ESCAVAÇÃO MÁX. 4,37 M - CHP DIURNO. AF_06/2014 | O153: CHP | P153: ATRIBUÍDO SÃO PAULO | Q153: 0,0229000 | R153: 119,51 | S153: 2,73 | AE153: CAIXA REFERENCIAL
A154: ASSENTAMENTO DE TUBOS E PECAS | B154: ASTU | C154: FORNEC E/OU ASSENT DE TUBO DE FERRO FUNDIDO JUNTA | D154: 45 | G154: 97165 | H154: ASSENTAMENTO DE TUBO DE FERRO FUNDIDO PARA REDE DE ÁGUA, DN 450 MM, JUNTA ELÁSTICA, INSTALADO EM LOCAL COM NÍVEL BAIXO DE INTERFERÊNCIAS (NÃO INCLUI FORNECIMENTO). AF_11/2017 | I154: M | J154: ATRIBUÍDO SÃO PAULO | K154: 15,22 | L154: COMPOSICAO | M154: 5679 | N154: RETROESCAVADEIRA SOBRE RODAS COM CARREGADEIRA, TRAÇÃO 4X4, POTÊNCIA LÍQ. 88 HP, CAÇAMBA CARREG. CAP. MÍN. 1 M3, CAÇAMBA RETRO CAP. 0,26 M3, PESO OPERACIONAL MÍN. 6.674 KG, PROFUNDIDADE ESCAVAÇÃO MÁX. 4,37 M - CHI DIURNO. AF_06/2014 | O154: CHI | P154: ATRIBUÍDO SÃO PAULO | Q154: 0,0438000 | R154: 53,43 | S154: 2,34 | AE154: CAIXA REFERENCIAL
A155: ASSENTAMENTO DE TUBOS E PECAS | B155: ASTU | C155: FORNEC E/OU ASSENT DE TUBO DE FERRO FUNDIDO JUNTA | D155: 45 | G155: 97165 | H155: ASSENTAMENTO DE TUBO DE FERRO FUNDIDO PARA REDE DE ÁGUA, DN 450 MM, JUNTA ELÁSTICA, INSTALADO EM LOCAL COM NÍVEL BAIXO DE INTERFERÊNCIAS (NÃO INCLUI FORNECIMENTO). AF_11/2017 | I155: M | J155: ATRIBUÍDO SÃO PAULO | K155: 15,22 | L155: INSUMO | M155: 20078 | N155: PASTA LUBRIFICANTE PARA TUBOS E CONEXOES COM JUNTA ELASTICA, EMBALAGEM DE *400* GR (USO EM PVC, ACO, POLIETILENO E OUTROS) | O155: UN | P155: COEFICIENTE DE REPRESENTATIVIDADE | Q155: 0,0221000 | R155: 23,02 | S155: 0,50 | AE155: CAIXA REFERENCIAL
A156: ASSENTAMENTO DE TUBOS E PECAS | B156: ASTU | C156: FORNEC E/OU ASSENT DE TUBO DE FERRO FUNDIDO JUNTA | D156: 45 | G156: 97165 | H156: ASSENTAMENTO DE TUBO DE FERRO FUNDIDO PARA REDE DE ÁGUA, DN 450 MM, JUNTA ELÁSTICA, INSTALADO EM LOCAL COM NÍVEL BAIXO DE INTERFERÊNCIAS (NÃO INCLUI FORNECIMENTO). AF_11/2017 | I156: M | J156: ATRIBUÍDO SÃO PAULO | K156: 15,22 | L156: COMPOSICAO | M156: 88246 | N156: ASSENTADOR DE TUBOS COM ENCARGOS COMPLEMENTARES | O156: H | P156: COEFICIENTE DE REPRESENTATIVIDADE | Q156: 0,2119000 | R156: 30,02 | S156: 6,36 | AE156: CAIXA REFERENCIAL
A157: ASSENTAMENTO DE TUBOS E PECAS | B157: ASTU | C157: FORNEC E/OU ASSENT DE TUBO DE FERRO FUNDIDO JUNTA | D157: 45 | G157: 97165 | H157: ASSENTAMENTO DE TUBO DE FERRO FUNDIDO PARA REDE DE ÁGUA, DN 450 MM, JUNTA ELÁSTICA, INSTALADO EM LOCAL COM NÍVEL BAIXO DE INTERFERÊNCIAS (NÃO INCLUI FORNECIMENTO). AF_11/2017 | I157: M | J157: ATRIBUÍDO SÃO PAULO | K157: 15,22 | L157: COMPOSICAO | M157: 88316 | N157: SERVENTE COM ENCARGOS COMPLEMENTARES | O157: H | P157: COLETADO | Q157: 0,2119000 | R157: 15,57 | S157: 3,29 | AE157: CAIXA REFERENCIAL
A158: ASSENTAMENTO DE TUBOS E PECAS | B158: ASTU | C158: FORNEC E/OU ASSENT DE TUBO DE FERRO FUNDIDO JUNTA | D158: 45 | G158: 97166 | H158: ASSENTAMENTO DE TUBO DE FERRO FUNDIDO PARA REDE DE ÁGUA, DN 500 MM, JUNTA ELÁSTICA, INSTALADO EM LOCAL COM NÍVEL BAIXO DE INTERFERÊNCIAS (NÃO INCLUI FORNECIMENTO). AF_11/2017 | I158: M | J158: ATRIBUÍDO SÃO PAULO | K158: 18,54 | T158: 10,86 | U158: 58,4782610 | V158: 3,91 | W158: 21,1413043 | X158: 3,77 | Y158: 20,3804347 | Z158: 0,00 | AA158: 0,0000000 | AB158: 0,00 | AC158: 0,0000000 | AD158: 0.20227 | AE158: CAIXA REFERENCIAL
A159: ASSENTAMENTO DE TUBOS E PECAS | B159: ASTU | C159: FORNEC E/OU ASSENT DE TUBO DE FERRO FUNDIDO JUNTA | D159: 45 | G159: 97166 | H159: ASSENTAMENTO DE TUBO DE FERRO FUNDIDO PARA REDE DE ÁGUA, DN 500 MM, JUNTA ELÁSTICA, INSTALADO EM LOCAL COM NÍVEL BAIXO DE INTERFERÊNCIAS (NÃO INCLUI FORNECIMENTO). AF_11/2017 | I159: M | J159: ATRIBUÍDO SÃO PAULO | K159: 18,54 | L159: COMPOSICAO | M159: 5631 | N159: ESCAVADEIRA HIDRÁULICA SOBRE ESTEIRAS, CAÇAMBA 0,80 M3, PESO OPERACIONAL 17 T, POTENCIA BRUTA 111 HP - CHP DIURNO. AF_06/2014 | O159: CHP | P159: ATRIBUÍDO SÃO PAULO | Q159: 0,0246000 | R159: 164,34 | S159: 4,04 | AE159: CAIXA REFERENCIAL
A160: ASSENTAMENTO DE TUBOS E PECAS | B160: ASTU | C160: FORNEC E/OU ASSENT DE TUBO DE FERRO FUNDIDO JUNTA | D160: 45 | G160: 97166 | H160: ASSENTAMENTO DE TUBO DE FERRO FUNDIDO PARA REDE DE ÁGUA, DN 500 MM, JUNTA ELÁSTICA, INSTALADO EM LOCAL COM NÍVEL BAIXO DE INTERFERÊNCIAS (NÃO INCLUI FORNECIMENTO). AF_11/2017 | I160: M | J160: ATRIBUÍDO SÃO PAULO | K160: 18,54 | L160: COMPOSICAO | M160: 5632 | N160: ESCAVADEIRA HIDRÁULICA SOBRE ESTEIRAS, CAÇAMBA 0,80 M3, PESO OPERACIONAL 17 T, POTENCIA BRUTA 111 HP - CHI DIURNO. AF_06/2014 | O160: CHI | P160: ATRIBUÍDO SÃO PAULO | Q160: 0,0471000 | R160: 70,54 | S160: 3,32 | AE160: CAIXA REFERENCIAL
A161: ASSENTAMENTO DE TUBOS E PECAS | B161: ASTU | C161: FORNEC E/OU ASSENT DE TUBO DE FERRO FUNDIDO JUNTA | D161: 45 | G161: 97166 | H161: ASSENTAMENTO DE TUBO DE FERRO FUNDIDO PARA REDE DE ÁGUA, DN 500 MM, JUNTA ELÁSTICA, INSTALADO EM LOCAL COM NÍVEL BAIXO DE INTERFERÊNCIAS (NÃO INCLUI FORNECIMENTO). AF_11/2017 | I161: M | J161: ATRIBUÍDO SÃO PAULO | K161: 18,54 | L161: INSUMO | M161: 20078 | N161: PASTA LUBRIFICANTE PARA TUBOS E CONEXOES COM JUNTA ELASTICA, EMBALAGEM DE *400* GR (USO EM PVC, ACO, POLIETILENO E OUTROS) | O161: UN | P161: COEFICIENTE DE REPRESENTATIVIDADE | Q161: 0,0248000 | R161: 23,02 | S161: 0,57 | AE161: CAIXA REFERENCIAL
A162: ASSENTAMENTO DE TUBOS E PECAS | B162: ASTU | C162: FORNEC E/OU ASSENT DE TUBO DE FERRO FUNDIDO JUNTA | D162: 45 | G162: 97166 | H162: ASSENTAMENTO DE TUBO DE FERRO FUNDIDO PARA REDE DE ÁGUA, DN 500 MM, JUNTA ELÁSTICA, INSTALADO EM LOCAL COM NÍVEL BAIXO DE INTERFERÊNCIAS (NÃO INCLUI FORNECIMENTO). AF_11/2017 | I162: M | J162: ATRIBUÍDO SÃO PAULO | K162: 18,54 | L162: COMPOSICAO | M162: 88246 | N162: ASSENTADOR DE TUBOS COM ENCARGOS COMPLEMENTARES | O162: H | P162: COEFICIENTE DE REPRESENTATIVIDADE | Q162: 0,2331000 | R162: 30,02 | S162: 6,99 | AE162: CAIXA REFERENCIAL
A163: ASSENTAMENTO DE TUBOS E PECAS | B163: ASTU | C163: FORNEC E/OU ASSENT DE TUBO DE FERRO FUNDIDO JUNTA | D163: 45 | G163: 97166 | H163: ASSENTAMENTO DE TUBO DE FERRO FUNDIDO PARA REDE DE ÁGUA, DN 500 MM, JUNTA ELÁSTICA, INSTALADO EM LOCAL COM NÍVEL BAIXO DE INTERFERÊNCIAS (NÃO INCLUI FORNECIMENTO). AF_11/2017 | I163: M | J163: ATRIBUÍDO SÃO PAULO | K163: 18,54 | L163: COMPOSICAO | M163: 88316 | N163: SERVENTE COM ENCARGOS COMPLEMENTARES | O163: H | P163: COLETADO | Q163: 0,2331000 | R163: 15,57 | S163: 3,62 | AE163: CAIXA REFERENCIAL
A164: ASSENTAMENTO DE TUBOS E PECAS | B164: ASTU | C164: FORNEC E/OU ASSENT DE TUBO DE FERRO FUNDIDO JUNTA | D164: 45 | G164: 97167 | H164: ASSENTAMENTO DE TUBO DE FERRO FUNDIDO PARA REDE DE ÁGUA, DN 600 MM, JUNTA ELÁSTICA, INSTALADO EM LOCAL COM NÍVEL BAIXO DE INTERFERÊNCIAS (NÃO INCLUI FORNECIMENTO). AF_11/2017 | I164: M | J164: ATRIBUÍDO SÃO PAULO | K164: 21,68 | T164: 12,73 | U164: 58,6895912 | V164: 4,64 | W164: 21,4219330 | X164: 4,31 | Y164: 19,8884758 | Z164: 0,00 | AA164: 0,0000000 | AB164: 0,00 | AC164: 0,0000000 | AD164: 0.19742 | AE164: CAIXA REFERENCIAL
A165: ASSENTAMENTO DE TUBOS E PECAS | B165: ASTU | C165: FORNEC E/OU ASSENT DE TUBO DE FERRO FUNDIDO JUNTA | D165: 45 | G165: 97167 | H165: ASSENTAMENTO DE TUBO DE FERRO FUNDIDO PARA REDE DE ÁGUA, DN 600 MM, JUNTA ELÁSTICA, INSTALADO EM LOCAL COM NÍVEL BAIXO DE INTERFERÊNCIAS (NÃO INCLUI FORNECIMENTO). AF_11/2017 | I165: M | J165: ATRIBUÍDO SÃO PAULO | K165: 21,68 | L165: COMPOSICAO | M165: 5631 | N165: ESCAVADEIRA HIDRÁULICA SOBRE ESTEIRAS, CAÇAMBA 0,80 M3, PESO OPERACIONAL 17 T, POTENCIA BRUTA 111 HP - CHP DIURNO. AF_06/2014 | O165: CHP | P165: ATRIBUÍDO SÃO PAULO | Q165: 0,0281000 | R165: 164,34 | S165: 4,61 | AE165: CAIXA REFERENCIAL
A166: ASSENTAMENTO DE TUBOS E PECAS | B166: ASTU | C166: FORNEC E/OU ASSENT DE TUBO DE FERRO FUNDIDO JUNTA | D166: 45 | G166: 97167 | H166: ASSENTAMENTO DE TUBO DE FERRO FUNDIDO PARA REDE DE ÁGUA, DN 600 MM, JUNTA ELÁSTICA, INSTALADO EM LOCAL COM NÍVEL BAIXO DE INTERFERÊNCIAS (NÃO INCLUI FORNECIMENTO). AF_11/2017 | I166: M | J166: ATRIBUÍDO SÃO PAULO | K166: 21,68 | L166: COMPOSICAO | M166: 5632 | N166: ESCAVADEIRA HIDRÁULICA SOBRE ESTEIRAS, CAÇAMBA 0,80 M3, PESO OPERACIONAL 17 T, POTENCIA BRUTA 111 HP - CHI DIURNO. AF_06/2014 | O166: CHI | P166: ATRIBUÍDO SÃO PAULO | Q166: 0,0538000 | R166: 70,54 | S166: 3,79 | AE166: CAIXA REFERENCIAL
A167: ASSENTAMENTO DE TUBOS E PECAS | B167: ASTU | C167: FORNEC E/OU ASSENT DE TUBO DE FERRO FUNDIDO JUNTA | D167: 45 | G167: 97167 | H167: ASSENTAMENTO DE TUBO DE FERRO FUNDIDO PARA REDE DE ÁGUA, DN 600 MM, JUNTA ELÁSTICA, INSTALADO EM LOCAL COM NÍVEL BAIXO DE INTERFERÊNCIAS (NÃO INCLUI FORNECIMENTO). AF_11/2017 | I167: M | J167: ATRIBUÍDO SÃO PAULO | K167: 21,68 | L167: INSUMO | M167: 20078 | N167: PASTA LUBRIFICANTE PARA TUBOS E CONEXOES COM JUNTA ELASTICA, EMBALAGEM DE *400* GR (USO EM PVC, ACO, POLIETILENO E OUTROS) | O167: UN | P167: COEFICIENTE DE REPRESENTATIVIDADE | Q167: 0,0313000 | R167: 23,02 | S167: 0,72 | AE167: CAIXA REFERENCIAL
A168: ASSENTAMENTO DE TUBOS E PECAS | B168: ASTU | C168: FORNEC E/OU ASSENT DE TUBO DE FERRO FUNDIDO JUNTA | D168: 45 | G168: 97167 | H168: ASSENTAMENTO DE TUBO DE FERRO FUNDIDO PARA REDE DE ÁGUA, DN 600 MM, JUNTA ELÁSTICA, INSTALADO EM LOCAL COM NÍVEL BAIXO DE INTERFERÊNCIAS (NÃO INCLUI FORNECIMENTO). AF_11/2017 | I168: M | J168: ATRIBUÍDO SÃO PAULO | K168: 21,68 | L168: COMPOSICAO | M168: 88246 | N168: ASSENTADOR DE TUBOS COM ENCARGOS COMPLEMENTARES | O168: H | P168: COEFICIENTE DE REPRESENTATIVIDADE | Q168: 0,2756000 | R168: 30,02 | S168: 8,27 | AE168: CAIXA REFERENCIAL
A169: ASSENTAMENTO DE TUBOS E PECAS | B169: ASTU | C169: FORNEC E/OU ASSENT DE TUBO DE FERRO FUNDIDO JUNTA | D169: 45 | G169: 97167 | H169: ASSENTAMENTO DE TUBO DE FERRO FUNDIDO PARA REDE DE ÁGUA, DN 600 MM, JUNTA ELÁSTICA, INSTALADO EM LOCAL COM NÍVEL BAIXO DE INTERFERÊNCIAS (NÃO INCLUI FORNECIMENTO). AF_11/2017 | I169: M | J169: ATRIBUÍDO SÃO PAULO | K169: 21,68 | L169: COMPOSICAO | M169: 88316 | N169: SERVENTE COM ENCARGOS COMPLEMENTARES | O169: H | P169: COLETADO | Q169: 0,2756000 | R169: 15,57 | S169: 4,29 | AE169: CAIXA REFERENCIAL
A170: ASSENTAMENTO DE TUBOS E PECAS | B170: ASTU | C170: FORNEC E/OU ASSENT DE TUBO DE FERRO FUNDIDO JUNTA | D170: 45 | G170: 97168 | H170: ASSENTAMENTO DE TUBO DE FERRO FUNDIDO PARA REDE DE ÁGUA, DN 700 MM, JUNTA ELÁSTICA, INSTALADO EM LOCAL COM NÍVEL BAIXO DE INTERFERÊNCIAS (NÃO INCLUI FORNECIMENTO). AF_11/2017 | I170: M | J170: ATRIBUÍDO SÃO PAULO | K170: 24,59 | T170: 14,61 | U170: 59,3698856 | V170: 5,14 | W170: 20,9083469 | X170: 4,84 | Y170: 19,7217675 | Z170: 0,00 | AA170: 0,0000000 | AB170: 0,00 | AC170: 0,0000000 | AD170: 0.19601 | AE170: CAIXA REFERENCIAL
A171: ASSENTAMENTO DE TUBOS E PECAS | B171: ASTU | C171: FORNEC E/OU ASSENT DE TUBO DE FERRO FUNDIDO JUNTA | D171: 45 | G171: 97168 | H171: ASSENTAMENTO DE TUBO DE FERRO FUNDIDO PARA REDE DE ÁGUA, DN 700 MM, JUNTA ELÁSTICA, INSTALADO EM LOCAL COM NÍVEL BAIXO DE INTERFERÊNCIAS (NÃO INCLUI FORNECIMENTO). AF_11/2017 | I171: M | J171: ATRIBUÍDO SÃO PAULO | K171: 24,59 | L171: COMPOSICAO | M171: 5631 | N171: ESCAVADEIRA HIDRÁULICA SOBRE ESTEIRAS, CAÇAMBA 0,80 M3, PESO OPERACIONAL 17 T, POTENCIA BRUTA 111 HP - CHP DIURNO. AF_06/2014 | O171: CHP | P171: ATRIBUÍDO SÃO PAULO | Q171: 0,0316000 | R171: 164,34 | S171: 5,19 | AE171: CAIXA REFERENCIAL
A172: ASSENTAMENTO DE TUBOS E PECAS | B172: ASTU | C172: FORNEC E/OU ASSENT DE TUBO DE FERRO FUNDIDO JUNTA | D172: 45 | G172: 97168 | H172: ASSENTAMENTO DE TUBO DE FERRO FUNDIDO PARA REDE DE ÁGUA, DN 700 MM, JUNTA ELÁSTICA, INSTALADO EM LOCAL COM NÍVEL BAIXO DE INTERFERÊNCIAS (NÃO INCLUI FORNECIMENTO). AF_11/2017 | I172: M | J172: ATRIBUÍDO SÃO PAULO | K172: 24,59 | L172: COMPOSICAO | M172: 5632 | N172: ESCAVADEIRA HIDRÁULICA SOBRE ESTEIRAS, CAÇAMBA 0,80 M3, PESO OPERACIONAL 17 T, POTENCIA BRUTA 111 HP - CHI DIURNO. AF_06/2014 | O172: CHI | P172: ATRIBUÍDO SÃO PAULO | Q172: 0,0605000 | R172: 70,54 | S172: 4,26 | AE172: CAIXA REFERENCIAL
A173: ASSENTAMENTO DE TUBOS E PECAS | B173: ASTU | C173: FORNEC E/OU ASSENT DE TUBO DE FERRO FUNDIDO JUNTA | D173: 45 | G173: 97168 | H173: ASSENTAMENTO DE TUBO DE FERRO FUNDIDO PARA REDE DE ÁGUA, DN 700 MM, JUNTA ELÁSTICA, INSTALADO EM LOCAL COM NÍVEL BAIXO DE INTERFERÊNCIAS (NÃO INCLUI FORNECIMENTO). AF_11/2017 | I173: M | J173: ATRIBUÍDO SÃO PAULO | K173: 24,59 | L173: INSUMO | M173: 20078 | N173: PASTA LUBRIFICANTE PARA TUBOS E CONEXOES COM JUNTA ELASTICA, EMBALAGEM DE *400* GR (USO EM PVC, ACO, POLIETILENO E OUTROS) | O173: UN | P173: COEFICIENTE DE REPRESENTATIVIDADE | Q173: 0,0284000 | R173: 23,02 | S173: 0,65 | AE173: CAIXA REFERENCIAL
A174: ASSENTAMENTO DE TUBOS E PECAS | B174: ASTU | C174: FORNEC E/OU ASSENT DE TUBO DE FERRO FUNDIDO JUNTA | D174: 45 | G174: 97168 | H174: ASSENTAMENTO DE TUBO DE FERRO FUNDIDO PARA REDE DE ÁGUA, DN 700 MM, JUNTA ELÁSTICA, INSTALADO EM LOCAL COM NÍVEL BAIXO DE INTERFERÊNCIAS (NÃO INCLUI FORNECIMENTO). AF_11/2017 | I174: M | J174: ATRIBUÍDO SÃO PAULO | K174: 24,59 | L174: COMPOSICAO | M174: 88246 | N174: ASSENTADOR DE TUBOS COM ENCARGOS COMPLEMENTARES | O174: H | P174: COEFICIENTE DE REPRESENTATIVIDADE | Q174: 0,3181000 | R174: 30,02 | S174: 9,54 | AE174: CAIXA REFERENCIAL
A175: ASSENTAMENTO DE TUBOS E PECAS | B175: ASTU | C175: FORNEC E/OU ASSENT DE TUBO DE FERRO FUNDIDO JUNTA | D175: 45 | G175: 97168 | H175: ASSENTAMENTO DE TUBO DE FERRO FUNDIDO PARA REDE DE ÁGUA, DN 700 MM, JUNTA ELÁSTICA, INSTALADO EM LOCAL COM NÍVEL BAIXO DE INTERFERÊNCIAS (NÃO INCLUI FORNECIMENTO). AF_11/2017 | I175: M | J175: ATRIBUÍDO SÃO PAULO | K175: 24,59 | L175: COMPOSICAO | M175: 88316 | N175: SERVENTE COM ENCARGOS COMPLEMENTARES | O175: H | P175: COLETADO | Q175: 0,3181000 | R175: 15,57 | S175: 4,95 | AE175: CAIXA REFERENCIAL
A176: ASSENTAMENTO DE TUBOS E PECAS | B176: ASTU | C176: FORNEC E/OU ASSENT DE TUBO DE FERRO FUNDIDO JUNTA | D176: 45 | G176: 97169 | H176: ASSENTAMENTO DE TUBO DE FERRO FUNDIDO PARA REDE DE ÁGUA, DN 800 MM, JUNTA ELÁSTICA, INSTALADO EM LOCAL COM NÍVEL BAIXO DE INTERFERÊNCIAS (NÃO INCLUI FORNECIMENTO). AF_11/2017 | I176: M | J176: ATRIBUÍDO SÃO PAULO | K176: 27,65 | T176: 16,51 | U176: 59,6504007 | V176: 5,76 | W176: 20,8667152 | X176: 5,38 | Y176: 19,4828841 | Z176: 0,00 | AA176: 0,0000000 | AB176: 0,00 | AC176: 0,0000000 | AD176: 0.19349 | AE176: CAIXA REFERENCIAL
A177: ASSENTAMENTO DE TUBOS E PECAS | B177: ASTU | C177: FORNEC E/OU ASSENT DE TUBO DE FERRO FUNDIDO JUNTA | D177: 45 | G177: 97169 | H177: ASSENTAMENTO DE TUBO DE FERRO FUNDIDO PARA REDE DE ÁGUA, DN 800 MM, JUNTA ELÁSTICA, INSTALADO EM LOCAL COM NÍVEL BAIXO DE INTERFERÊNCIAS (NÃO INCLUI FORNECIMENTO). AF_11/2017 | I177: M | J177: ATRIBUÍDO SÃO PAULO | K177: 27,65 | L177: COMPOSICAO | M177: 5631 | N177: ESCAVADEIRA HIDRÁULICA SOBRE ESTEIRAS, CAÇAMBA 0,80 M3, PESO OPERACIONAL 17 T, POTENCIA BRUTA 111 HP - CHP DIURNO. AF_06/2014 | O177: CHP | P177: ATRIBUÍDO SÃO PAULO | Q177: 0,0351000 | R177: 164,34 | S177: 5,76 | AE177: CAIXA REFERENCIAL
A178: ASSENTAMENTO DE TUBOS E PECAS | B178: ASTU | C178: FORNEC E/OU ASSENT DE TUBO DE FERRO FUNDIDO JUNTA | D178: 45 | G178: 97169 | H178: ASSENTAMENTO DE TUBO DE FERRO FUNDIDO PARA REDE DE ÁGUA, DN 800 MM, JUNTA ELÁSTICA, INSTALADO EM LOCAL COM NÍVEL BAIXO DE INTERFERÊNCIAS (NÃO INCLUI FORNECIMENTO). AF_11/2017 | I178: M | J178: ATRIBUÍDO SÃO PAULO | K178: 27,65 | L178: COMPOSICAO | M178: 5632 | N178: ESCAVADEIRA HIDRÁULICA SOBRE ESTEIRAS, CAÇAMBA 0,80 M3, PESO OPERACIONAL 17 T, POTENCIA BRUTA 111 HP - CHI DIURNO. AF_06/2014 | O178: CHI | P178: ATRIBUÍDO SÃO PAULO | Q178: 0,0672000 | R178: 70,54 | S178: 4,74 | AE178: CAIXA REFERENCIAL
A179: ASSENTAMENTO DE TUBOS E PECAS | B179: ASTU | C179: FORNEC E/OU ASSENT DE TUBO DE FERRO FUNDIDO JUNTA | D179: 45 | G179: 97169 | H179: ASSENTAMENTO DE TUBO DE FERRO FUNDIDO PARA REDE DE ÁGUA, DN 800 MM, JUNTA ELÁSTICA, INSTALADO EM LOCAL COM NÍVEL BAIXO DE INTERFERÊNCIAS (NÃO INCLUI FORNECIMENTO). AF_11/2017 | I179: M | J179: ATRIBUÍDO SÃO PAULO | K179: 27,65 | L179: INSUMO | M179: 20078 | N179: PASTA LUBRIFICANTE PARA TUBOS E CONEXOES COM JUNTA ELASTICA, EMBALAGEM DE *400* GR (USO EM PVC, ACO, POLIETILENO E OUTROS) | O179: UN | P179: COEFICIENTE DE REPRESENTATIVIDADE | Q179: 0,0314000 | R179: 23,02 | S179: 0,72 | AE179: CAIXA REFERENCIAL
A180: ASSENTAMENTO DE TUBOS E PECAS | B180: ASTU | C180: FORNEC E/OU ASSENT DE TUBO DE FERRO FUNDIDO JUNTA | D180: 45 | G180: 97169 | H180: ASSENTAMENTO DE TUBO DE FERRO FUNDIDO PARA REDE DE ÁGUA, DN 800 MM, JUNTA ELÁSTICA, INSTALADO EM LOCAL COM NÍVEL BAIXO DE INTERFERÊNCIAS (NÃO INCLUI FORNECIMENTO). AF_11/2017 | I180: M | J180: ATRIBUÍDO SÃO PAULO | K180: 27,65 | L180: COMPOSICAO | M180: 88246 | N180: ASSENTADOR DE TUBOS COM ENCARGOS COMPLEMENTARES | O180: H | P180: COEFICIENTE DE REPRESENTATIVIDADE | Q180: 0,3605000 | R180: 30,02 | S180: 10,82 | AE180: CAIXA REFERENCIAL
A181: ASSENTAMENTO DE TUBOS E PECAS | B181: ASTU | C181: FORNEC E/OU ASSENT DE TUBO DE FERRO FUNDIDO JUNTA | D181: 45 | G181: 97169 | H181: ASSENTAMENTO DE TUBO DE FERRO FUNDIDO PARA REDE DE ÁGUA, DN 800 MM, JUNTA ELÁSTICA, INSTALADO EM LOCAL COM NÍVEL BAIXO DE INTERFERÊNCIAS (NÃO INCLUI FORNECIMENTO). AF_11/2017 | I181: M | J181: ATRIBUÍDO SÃO PAULO | K181: 27,65 | L181: COMPOSICAO | M181: 88316 | N181: SERVENTE COM ENCARGOS COMPLEMENTARES | O181: H | P181: COLETADO | Q181: 0,3605000 | R181: 15,57 | S181: 5,61 | AE181: CAIXA REFERENCIAL
A182: ASSENTAMENTO DE TUBOS E PECAS | B182: ASTU | C182: FORNEC E/OU ASSENT DE TUBO DE FERRO FUNDIDO JUNTA | D182: 45 | G182: 97170 | H182: ASSENTAMENTO DE TUBO DE FERRO FUNDIDO PARA REDE DE ÁGUA, DN 900 MM, JUNTA ELÁSTICA, INSTALADO EM LOCAL COM NÍVEL BAIXO DE INTERFERÊNCIAS (NÃO INCLUI FORNECIMENTO). AF_11/2017 | I182: M | J182: ATRIBUÍDO SÃO PAULO | K182: 30,72 | T182: 18,36 | U182: 59,7122303 | V182: 6,45 | W182: 21,0268149 | X182: 5,91 | Y182: 19,2609548 | Z182: 0,00 | AA182: 0,0000000 | AB182: 0,00 | AC182: 0,0000000 | AD182: 0.19173 | AE182: CAIXA REFERENCIAL
A183: ASSENTAMENTO DE TUBOS E PECAS | B183: ASTU | C183: FORNEC E/OU ASSENT DE TUBO DE FERRO FUNDIDO JUNTA | D183: 45 | G183: 97170 | H183: ASSENTAMENTO DE TUBO DE FERRO FUNDIDO PARA REDE DE ÁGUA, DN 900 MM, JUNTA ELÁSTICA, INSTALADO EM LOCAL COM NÍVEL BAIXO DE INTERFERÊNCIAS (NÃO INCLUI FORNECIMENTO). AF_11/2017 | I183: M | J183: ATRIBUÍDO SÃO PAULO | K183: 30,72 | L183: COMPOSICAO | M183: 5631 | N183: ESCAVADEIRA HIDRÁULICA SOBRE ESTEIRAS, CAÇAMBA 0,80 M3, PESO OPERACIONAL 17 T, POTENCIA BRUTA 111 HP - CHP DIURNO. AF_06/2014 | O183: CHP | P183: ATRIBUÍDO SÃO PAULO | Q183: 0,0386000 | R183: 164,34 | S183: 6,34 | AE183: CAIXA REFERENCIAL
A184: ASSENTAMENTO DE TUBOS E PECAS | B184: ASTU | C184: FORNEC E/OU ASSENT DE TUBO DE FERRO FUNDIDO JUNTA | D184: 45 | G184: 97170 | H184: ASSENTAMENTO DE TUBO DE FERRO FUNDIDO PARA REDE DE ÁGUA, DN 900 MM, JUNTA ELÁSTICA, INSTALADO EM LOCAL COM NÍVEL BAIXO DE INTERFERÊNCIAS (NÃO INCLUI FORNECIMENTO). AF_11/2017 | I184: M | J184: ATRIBUÍDO SÃO PAULO | K184: 30,72 | L184: COMPOSICAO | M184: 5632 | N184: ESCAVADEIRA HIDRÁULICA SOBRE ESTEIRAS, CAÇAMBA 0,80 M3, PESO OPERACIONAL 17 T, POTENCIA BRUTA 111 HP - CHI DIURNO. AF_06/2014 | O184: CHI | P184: ATRIBUÍDO SÃO PAULO | Q184: 0,0739000 | R184: 70,54 | S184: 5,21 | AE184: CAIXA REFERENCIAL
A185: ASSENTAMENTO DE TUBOS E PECAS | B185: ASTU | C185: FORNEC E/OU ASSENT DE TUBO DE FERRO FUNDIDO JUNTA | D185: 45 | G185: 97170 | H185: ASSENTAMENTO DE TUBO DE FERRO FUNDIDO PARA REDE DE ÁGUA, DN 900 MM, JUNTA ELÁSTICA, INSTALADO EM LOCAL COM NÍVEL BAIXO DE INTERFERÊNCIAS (NÃO INCLUI FORNECIMENTO). AF_11/2017 | I185: M | J185: ATRIBUÍDO SÃO PAULO | K185: 30,72 | L185: INSUMO | M185: 20078 | N185: PASTA LUBRIFICANTE PARA TUBOS E CONEXOES COM JUNTA ELASTICA, EMBALAGEM DE *400* GR (USO EM PVC, ACO, POLIETILENO E OUTROS) | O185: UN | P185: COEFICIENTE DE REPRESENTATIVIDADE | Q185: 0,0355000 | R185: 23,02 | S185: 0,81 | AE185: CAIXA REFERENCIAL
A186: ASSENTAMENTO DE TUBOS E PECAS | B186: ASTU | C186: FORNEC E/OU ASSENT DE TUBO DE FERRO FUNDIDO JUNTA | D186: 45 | G186: 97170 | H186: ASSENTAMENTO DE TUBO DE FERRO FUNDIDO PARA REDE DE ÁGUA, DN 900 MM, JUNTA ELÁSTICA, INSTALADO EM LOCAL COM NÍVEL BAIXO DE INTERFERÊNCIAS (NÃO INCLUI FORNECIMENTO). AF_11/2017 | I186: M | J186: ATRIBUÍDO SÃO PAULO | K186: 30,72 | L186: COMPOSICAO | M186: 88246 | N186: ASSENTADOR DE TUBOS COM ENCARGOS COMPLEMENTARES | O186: H | P186: COEFICIENTE DE REPRESENTATIVIDADE | Q186: 0,4030000 | R186: 30,02 | S186: 12,09 | AE186: CAIXA REFERENCIAL
A187: ASSENTAMENTO DE TUBOS E PECAS | B187: ASTU | C187: FORNEC E/OU ASSENT DE TUBO DE FERRO FUNDIDO JUNTA | D187: 45 | G187: 97170 | H187: ASSENTAMENTO DE TUBO DE FERRO FUNDIDO PARA REDE DE ÁGUA, DN 900 MM, JUNTA ELÁSTICA, INSTALADO EM LOCAL COM NÍVEL BAIXO DE INTERFERÊNCIAS (NÃO INCLUI FORNECIMENTO). AF_11/2017 | I187: M | J187: ATRIBUÍDO SÃO PAULO | K187: 30,72 | L187: COMPOSICAO | M187: 88316 | N187: SERVENTE COM ENCARGOS COMPLEMENTARES | O187: H | P187: COLETADO | Q187: 0,4030000 | R187: 15,57 | S187: 6,27 | AE187: CAIXA REFERENCIAL
A188: ASSENTAMENTO DE TUBOS E PECAS | B188: ASTU | C188: FORNEC E/OU ASSENT DE TUBO DE FERRO FUNDIDO JUNTA | D188: 45 | G188: 97171 | H188: ASSENTAMENTO DE TUBO DE FERRO FUNDIDO PARA REDE DE ÁGUA, DN 1000 MM, JUNTA ELÁSTICA, INSTALADO EM LOCAL COM NÍVEL BAIXO DE INTERFERÊNCIAS (NÃO INCLUI FORNECIMENTO). AF_11/2017 | I188: M | J188: ATRIBUÍDO SÃO PAULO | K188: 33,81 | T188: 20,25 | U188: 59,8633394 | V188: 7,12 | W188: 21,0635769 | X188: 6,44 | Y188: 19,0730837 | Z188: 0,00 | AA188: 0,0000000 | AB188: 0,00 | AC188: 0,0000000 | AD188: 0.18988 | AE188: CAIXA REFERENCIAL
A189: ASSENTAMENTO DE TUBOS E PECAS | B189: ASTU | C189: FORNEC E/OU ASSENT DE TUBO DE FERRO FUNDIDO JUNTA | D189: 45 | G189: 97171 | H189: ASSENTAMENTO DE TUBO DE FERRO FUNDIDO PARA REDE DE ÁGUA, DN 1000 MM, JUNTA ELÁSTICA, INSTALADO EM LOCAL COM NÍVEL BAIXO DE INTERFERÊNCIAS (NÃO INCLUI FORNECIMENTO). AF_11/2017 | I189: M | J189: ATRIBUÍDO SÃO PAULO | K189: 33,81 | L189: COMPOSICAO | M189: 5631 | N189: ESCAVADEIRA HIDRÁULICA SOBRE ESTEIRAS, CAÇAMBA 0,80 M3, PESO OPERACIONAL 17 T, POTENCIA BRUTA 111 HP - CHP DIURNO. AF_06/2014 | O189: CHP | P189: ATRIBUÍDO SÃO PAULO | Q189: 0,0421000 | R189: 164,34 | S189: 6,91 | AE189: CAIXA REFERENCIAL
A190: ASSENTAMENTO DE TUBOS E PECAS | B190: ASTU | C190: FORNEC E/OU ASSENT DE TUBO DE FERRO FUNDIDO JUNTA | D190: 45 | G190: 97171 | H190: ASSENTAMENTO DE TUBO DE FERRO FUNDIDO PARA REDE DE ÁGUA, DN 1000 MM, JUNTA ELÁSTICA, INSTALADO EM LOCAL COM NÍVEL BAIXO DE INTERFERÊNCIAS (NÃO INCLUI FORNECIMENTO). AF_11/2017 | I190: M | J190: ATRIBUÍDO SÃO PAULO | K190: 33,81 | L190: COMPOSICAO | M190: 5632 | N190: ESCAVADEIRA HIDRÁULICA SOBRE ESTEIRAS, CAÇAMBA 0,80 M3, PESO OPERACIONAL 17 T, POTENCIA BRUTA 111 HP - CHI DIURNO. AF_06/2014 | O190: CHI | P190: ATRIBUÍDO SÃO PAULO | Q190: 0,0806000 | R190: 70,54 | S190: 5,68 | AE190: CAIXA REFERENCIAL
A191: ASSENTAMENTO DE TUBOS E PECAS | B191: ASTU | C191: FORNEC E/OU ASSENT DE TUBO DE FERRO FUNDIDO JUNTA | D191: 45 | G191: 97171 | H191: ASSENTAMENTO DE TUBO DE FERRO FUNDIDO PARA REDE DE ÁGUA, DN 1000 MM, JUNTA ELÁSTICA, INSTALADO EM LOCAL COM NÍVEL BAIXO DE INTERFERÊNCIAS (NÃO INCLUI FORNECIMENTO). AF_11/2017 | I191: M | J191: ATRIBUÍDO SÃO PAULO | K191: 33,81 | L191: INSUMO | M191: 20078 | N191: PASTA LUBRIFICANTE PARA TUBOS E CONEXOES COM JUNTA ELASTICA, EMBALAGEM DE *400* GR (USO EM PVC, ACO, POLIETILENO E OUTROS) | O191: UN | P191: COEFICIENTE DE REPRESENTATIVIDADE | Q191: 0,0403000 | R191: 23,02 | S191: 0,92 | AE191: CAIXA REFERENCIAL
A192: ASSENTAMENTO DE TUBOS E PECAS | B192: ASTU | C192: FORNEC E/OU ASSENT DE TUBO DE FERRO FUNDIDO JUNTA | D192: 45 | G192: 97171 | H192: ASSENTAMENTO DE TUBO DE FERRO FUNDIDO PARA REDE DE ÁGUA, DN 1000 MM, JUNTA ELÁSTICA, INSTALADO EM LOCAL COM NÍVEL BAIXO DE INTERFERÊNCIAS (NÃO INCLUI FORNECIMENTO). AF_11/2017 | I192: M | J192: ATRIBUÍDO SÃO PAULO | K192: 33,81 | L192: COMPOSICAO | M192: 88246 | N192: ASSENTADOR DE TUBOS COM ENCARGOS COMPLEMENTARES | O192: H | P192: COEFICIENTE DE REPRESENTATIVIDADE | Q192: 0,4455000 | R192: 30,02 | S192: 13,37 | AE192: CAIXA REFERENCIAL
A193: ASSENTAMENTO DE TUBOS E PECAS | B193: ASTU | C193: FORNEC E/OU ASSENT DE TUBO DE FERRO FUNDIDO JUNTA | D193: 45 | G193: 97171 | H193: ASSENTAMENTO DE TUBO DE FERRO FUNDIDO PARA REDE DE ÁGUA, DN 1000 MM, JUNTA ELÁSTICA, INSTALADO EM LOCAL COM NÍVEL BAIXO DE INTERFERÊNCIAS (NÃO INCLUI FORNECIMENTO). AF_11/2017 | I193: M | J193: ATRIBUÍDO SÃO PAULO | K193: 33,81 | L193: COMPOSICAO | M193: 88316 | N193: SERVENTE COM ENCARGOS COMPLEMENTARES | O193: H | P193: COLETADO | Q193: 0,4455000 | R193: 15,57 | S193: 6,93 | AE193: CAIXA REFERENCIAL
A194: ASSENTAMENTO DE TUBOS E PECAS | B194: ASTU | C194: FORNEC E/OU ASSENT DE TUBO DE FERRO FUNDIDO JUNTA | D194: 45 | G194: 97172 | H194: ASSENTAMENTO DE TUBO DE FERRO FUNDIDO PARA REDE DE ÁGUA, DN 1200 MM, JUNTA ELÁSTICA, INSTALADO EM LOCAL COM NÍVEL BAIXO DE INTERFERÊNCIAS (NÃO INCLUI FORNECIMENTO). AF_11/2017 | I194: M | J194: ATRIBUÍDO SÃO PAULO | K194: 40,34 | T194: 24,03 | U194: 59,5421748 | V194: 8,80 | W194: 21,8213485 | X194: 7,51 | Y194: 18,6364767 | Z194: 0,00 | AA194: 0,0000000 | AB194: 0,00 | AC194: 0,0000000 | AD194: 0.18567 | AE194: CAIXA REFERENCIAL
A195: ASSENTAMENTO DE TUBOS E PECAS | B195: ASTU | C195: FORNEC E/OU ASSENT DE TUBO DE FERRO FUNDIDO JUNTA | D195: 45 | G195: 97172 | H195: ASSENTAMENTO DE TUBO DE FERRO FUNDIDO PARA REDE DE ÁGUA, DN 1200 MM, JUNTA ELÁSTICA, INSTALADO EM LOCAL COM NÍVEL BAIXO DE INTERFERÊNCIAS (NÃO INCLUI FORNECIMENTO). AF_11/2017 | I195: M | J195: ATRIBUÍDO SÃO PAULO | K195: 40,34 | L195: COMPOSICAO | M195: 5631 | N195: ESCAVADEIRA HIDRÁULICA SOBRE ESTEIRAS, CAÇAMBA 0,80 M3, PESO OPERACIONAL 17 T, POTENCIA BRUTA 111 HP - CHP DIURNO. AF_06/2014 | O195: CHP | P195: ATRIBUÍDO SÃO PAULO | Q195: 0,0491000 | R195: 164,34 | S195: 8,06 | AE195: CAIXA REFERENCIAL
A196: ASSENTAMENTO DE TUBOS E PECAS | B196: ASTU | C196: FORNEC E/OU ASSENT DE TUBO DE FERRO FUNDIDO JUNTA | D196: 45 | G196: 97172 | H196: ASSENTAMENTO DE TUBO DE FERRO FUNDIDO PARA REDE DE ÁGUA, DN 1200 MM, JUNTA ELÁSTICA, INSTALADO EM LOCAL COM NÍVEL BAIXO DE INTERFERÊNCIAS (NÃO INCLUI FORNECIMENTO). AF_11/2017 | I196: M | J196: ATRIBUÍDO SÃO PAULO | K196: 40,34 | L196: COMPOSICAO | M196: 5632 | N196: ESCAVADEIRA HIDRÁULICA SOBRE ESTEIRAS, CAÇAMBA 0,80 M3, PESO OPERACIONAL 17 T, POTENCIA BRUTA 111 HP - CHI DIURNO. AF_06/2014 | O196: CHI | P196: ATRIBUÍDO SÃO PAULO | Q196: 0,0940000 | R196: 70,54 | S196: 6,63 | AE196: CAIXA REFERENCIAL
A197: ASSENTAMENTO DE TUBOS E PECAS | B197: ASTU | C197: FORNEC E/OU ASSENT DE TUBO DE FERRO FUNDIDO JUNTA | D197: 45 | G197: 97172 | H197: ASSENTAMENTO DE TUBO DE FERRO FUNDIDO PARA REDE DE ÁGUA, DN 1200 MM, JUNTA ELÁSTICA, INSTALADO EM LOCAL COM NÍVEL BAIXO DE INTERFERÊNCIAS (NÃO INCLUI FORNECIMENTO). AF_11/2017 | I197: M | J197: ATRIBUÍDO SÃO PAULO | K197: 40,34 | L197: INSUMO | M197: 20078 | N197: PASTA LUBRIFICANTE PARA TUBOS E CONEXOES COM JUNTA ELASTICA, EMBALAGEM DE *400* GR (USO EM PVC, ACO, POLIETILENO E OUTROS) | O197: UN | P197: COEFICIENTE DE REPRESENTATIVIDADE | Q197: 0,0646000 | R197: 23,02 | S197: 1,48 | AE197: CAIXA REFERENCIAL
A198: ASSENTAMENTO DE TUBOS E PECAS | B198: ASTU | C198: FORNEC E/OU ASSENT DE TUBO DE FERRO FUNDIDO JUNTA | D198: 45 | G198: 97172 | H198: ASSENTAMENTO DE TUBO DE FERRO FUNDIDO PARA REDE DE ÁGUA, DN 1200 MM, JUNTA ELÁSTICA, INSTALADO EM LOCAL COM NÍVEL BAIXO DE INTERFERÊNCIAS (NÃO INCLUI FORNECIMENTO). AF_11/2017 | I198: M | J198: ATRIBUÍDO SÃO PAULO | K198: 40,34 | L198: COMPOSICAO | M198: 88246 | N198: ASSENTADOR DE TUBOS COM ENCARGOS COMPLEMENTARES | O198: H | P198: COEFICIENTE DE REPRESENTATIVIDADE | Q198: 0,5304000 | R198: 30,02 | S198: 15,92 | AE198: CAIXA REFERENCIAL
A199: ASSENTAMENTO DE TUBOS E PECAS | B199: ASTU | C199: FORNEC E/OU ASSENT DE TUBO DE FERRO FUNDIDO JUNTA | D199: 45 | G199: 97172 | H199: ASSENTAMENTO DE TUBO DE FERRO FUNDIDO PARA REDE DE ÁGUA, DN 1200 MM, JUNTA ELÁSTICA, INSTALADO EM LOCAL COM NÍVEL BAIXO DE INTERFERÊNCIAS (NÃO INCLUI FORNECIMENTO). AF_11/2017 | I199: M | J199: ATRIBUÍDO SÃO PAULO | K199: 40,34 | L199: COMPOSICAO | M199: 88316 | N199: SERVENTE COM ENCARGOS COMPLEMENTARES | O199: H | P199: COLETADO | Q199: 0,5304000 | R199: 15,57 | S199: 8,25 | AE199: CAIXA REFERENCIAL
A200: ASSENTAMENTO DE TUBOS E PECAS | B200: ASTU | C200: FORNEC E/OU ASSENT DE TUBO DE ACO COM JUNTA SOLDAD | D200: 46 | G200: 97173 | H200: ASSENTAMENTO DE TUBO DE AÇO CARBONO PARA REDE DE ÁGUA, DN 600 MM (24), JUNTA SOLDADA, INSTALADO EM LOCAL COM NÍVEL ALTO DE INTERFERÊNCIAS (NÃO INCLUI FORNECIMENTO). AF_11/2017 | I200: M | J200: ATRIBUÍDO SÃO PAULO | K200: 30,68 | T200: 16,40 | U200: 53,4143140 | V200: 8,73 | W200: 28,4635587 | X200: 5,55 | Y200: 18,1221273 | Z200: 0,00 | AA200: 0,0000000 | AB200: 0,00 | AC200: 0,0000000 | AD200: 0.17992 | AE200: CAIXA REFERENCIAL
A201: ASSENTAMENTO DE TUBOS E PECAS | B201: ASTU | C201: FORNEC E/OU ASSENT DE TUBO DE ACO COM JUNTA SOLDAD | D201: 46 | G201: 97173 | H201: ASSENTAMENTO DE TUBO DE AÇO CARBONO PARA REDE DE ÁGUA, DN 600 MM (24), JUNTA SOLDADA, INSTALADO EM LOCAL COM NÍVEL ALTO DE INTERFERÊNCIAS (NÃO INCLUI FORNECIMENTO). AF_11/2017 | I201: M | J201: ATRIBUÍDO SÃO PAULO | K201: 30,68 | L201: COMPOSICAO | M201: 5631 | N201: ESCAVADEIRA HIDRÁULICA SOBRE ESTEIRAS, CAÇAMBA 0,80 M3, PESO OPERACIONAL 17 T, POTENCIA BRUTA 111 HP - CHP DIURNO. AF_06/2014 | O201: CHP | P201: ATRIBUÍDO SÃO PAULO | Q201: 0,0211000 | R201: 164,34 | S201: 3,46 | AE201: CAIXA REFERENCIAL
A202: ASSENTAMENTO DE TUBOS E PECAS | B202: ASTU | C202: FORNEC E/OU ASSENT DE TUBO DE ACO COM JUNTA SOLDAD | D202: 46 | G202: 97173 | H202: ASSENTAMENTO DE TUBO DE AÇO CARBONO PARA REDE DE ÁGUA, DN 600 MM (24), JUNTA SOLDADA, INSTALADO EM LOCAL COM NÍVEL ALTO DE INTERFERÊNCIAS (NÃO INCLUI FORNECIMENTO). AF_11/2017 | I202: M | J202: ATRIBUÍDO SÃO PAULO | K202: 30,68 | L202: COMPOSICAO | M202: 5632 | N202: ESCAVADEIRA HIDRÁULICA SOBRE ESTEIRAS, CAÇAMBA 0,80 M3, PESO OPERACIONAL 17 T, POTENCIA BRUTA 111 HP - CHI DIURNO. AF_06/2014 | O202: CHI | P202: ATRIBUÍDO SÃO PAULO | Q202: 0,1011000 | R202: 70,54 | S202: 7,13 | AE202: CAIXA REFERENCIAL
... 2048 more rows

Sheet COMP Sint. Sinapi
A1: PCI.817.01 - CUSTO DE COMPOSIÇÕES - SINTÉTICO DATA DE EMISSÃO: 15/10/2021 23:26:12 DATA DE RT: 15/10/2021
A2: ENCARGOS SOCIAIS SOBRE PREÇOS DA MÃO-DE-OBRA: 114,70%(HORA) 72,66%(MÊS)
A3: ABRANGÊNCIA : NACIONAL LOCALIDADE : GOIANIA DATA DE PREÇO : 09/2021 REFERÊNCIA COLETA : MEDIANO
A5: CODIGO DA COMPOSICAO | B5: DESCRICAO DA COMPOSICAO | C5: UNIDADE | D5: ORIGEM DE PREÇO | E5: CUSTO TOTAL | F5: VINCULO
A7: 97141 | B7: ASSENTAMENTO DE TUBO DE FERRO FUNDIDO PARA REDE DE ÁGUA, DN 80 MM, JUNTA ELÁSTICA, INSTALADO EM LOCAL COM NÍVEL ALTO DE INTERFERÊNCIAS (NÃO INCLUI FORNECIMENTO). AF_11/2017 | C7: M | D7: ATRIBUÍDO SÃO PAULO | E7: 7,93 | F7: CAIXA REFERENCIAL
A8: 97142 | B8: ASSENTAMENTO DE TUBO DE FERRO FUNDIDO PARA REDE DE ÁGUA, DN 100 MM, JUNTA ELÁSTICA, INSTALADO EM LOCAL COM NÍVEL ALTO DE INTERFERÊNCIAS (NÃO INCLUI FORNECIMENTO). AF_11/2017 | C8: M | D8: ATRIBUÍDO SÃO PAULO | E8: 8,85 | F8: CAIXA REFERENCIAL
A9: 97143 | B9: ASSENTAMENTO DE TUBO DE FERRO FUNDIDO PARA REDE DE ÁGUA, DN 150 MM, JUNTA ELÁSTICA, INSTALADO EM LOCAL COM NÍVEL ALTO DE INTERFERÊNCIAS (NÃO INCLUI FORNECIMENTO). AF_11/2017 | C9: M | D9: ATRIBUÍDO SÃO PAULO | E9: 11,17 | F9: CAIXA REFERENCIAL
A10: 97144 | B10: ASSENTAMENTO DE TUBO DE FERRO FUNDIDO PARA REDE DE ÁGUA, DN 200 MM, JUNTA ELÁSTICA, INSTALADO EM LOCAL COM NÍVEL ALTO DE INTERFERÊNCIAS (NÃO INCLUI FORNECIMENTO). AF_11/2017 | C10: M | D10: ATRIBUÍDO SÃO PAULO | E10: 13,46 | F10: CAIXA REFERENCIAL
A11: 97145 | B11: ASSENTAMENTO DE TUBO DE FERRO FUNDIDO PARA REDE DE ÁGUA, DN 250 MM, JUNTA ELÁSTICA, INSTALADO EM LOCAL COM NÍVEL ALTO DE INTERFERÊNCIAS (NÃO INCLUI FORNECIMENTO). AF_11/2017 | C11: M | D11: ATRIBUÍDO SÃO PAULO | E11: 15,78 | F11: CAIXA REFERENCIAL
A12: 97146 | B12: ASSENTAMENTO DE TUBO DE FERRO FUNDIDO PARA REDE DE ÁGUA, DN 300 MM, JUNTA ELÁSTICA, INSTALADO EM LOCAL COM NÍVEL ALTO DE INTERFERÊNCIAS (NÃO INCLUI FORNECIMENTO). AF_11/2017 | C12: M | D12: ATRIBUÍDO SÃO PAULO | E12: 18,08 | F12: CAIXA REFERENCIAL
A13: 97147 | B13: ASSENTAMENTO DE TUBO DE FERRO FUNDIDO PARA REDE DE ÁGUA, DN 350 MM, JUNTA ELÁSTICA, INSTALADO EM LOCAL COM NÍVEL ALTO DE INTERFERÊNCIAS (NÃO INCLUI FORNECIMENTO). AF_11/2017 | C13: M | D13: ATRIBUÍDO SÃO PAULO | E13: 20,39 | F13: CAIXA REFERENCIAL
A14: 97148 | B14: ASSENTAMENTO DE TUBO DE FERRO FUNDIDO PARA REDE DE ÁGUA, DN 400 MM, JUNTA ELÁSTICA, INSTALADO EM LOCAL COM NÍVEL ALTO DE INTERFERÊNCIAS (NÃO INCLUI FORNECIMENTO). AF_11/2017 | C14: M | D14: ATRIBUÍDO SÃO PAULO | E14: 22,71 | F14: CAIXA REFERENCIAL
A15: 97149 | B15: ASSENTAMENTO DE TUBO DE FERRO FUNDIDO PARA REDE DE ÁGUA, DN 450 MM, JUNTA ELÁSTICA, INSTALADO EM LOCAL COM NÍVEL ALTO DE INTERFERÊNCIAS (NÃO INCLUI FORNECIMENTO). AF_11/2017 | C15: M | D15: ATRIBUÍDO SÃO PAULO | E15: 25,05 | F15: CAIXA REFERENCIAL
A16: 97150 | B16: ASSENTAMENTO DE TUBO DE FERRO FUNDIDO PARA REDE DE ÁGUA, DN 500 MM, JUNTA ELÁSTICA, INSTALADO EM LOCAL COM NÍVEL ALTO DE INTERFERÊNCIAS (NÃO INCLUI FORNECIMENTO). AF_11/2017 | C16: M | D16: ATRIBUÍDO SÃO PAULO | E16: 30,49 | F16: CAIXA REFERENCIAL
A17: 97151 | B17: ASSENTAMENTO DE TUBO DE FERRO FUNDIDO PARA REDE DE ÁGUA, DN 600 MM, JUNTA ELÁSTICA, INSTALADO EM LOCAL COM NÍVEL ALTO DE INTERFERÊNCIAS (NÃO INCLUI FORNECIMENTO). AF_11/2017 | C17: M | D17: ATRIBUÍDO SÃO PAULO | E17: 35,59 | F17: CAIXA REFERENCIAL
A18: 97152 | B18: ASSENTAMENTO DE TUBO DE FERRO FUNDIDO PARA REDE DE ÁGUA, DN 700 MM, JUNTA ELÁSTICA, INSTALADO EM LOCAL COM NÍVEL ALTO DE INTERFERÊNCIAS (NÃO INCLUI FORNECIMENTO). AF_11/2017 | C18: M | D18: ATRIBUÍDO SÃO PAULO | E18: 40,49 | F18: CAIXA REFERENCIAL
A19: 97153 | B19: ASSENTAMENTO DE TUBO DE FERRO FUNDIDO PARA REDE DE ÁGUA, DN 800 MM, JUNTA ELÁSTICA, INSTALADO EM LOCAL COM NÍVEL ALTO DE INTERFERÊNCIAS (NÃO INCLUI FORNECIMENTO). AF_11/2017 | C19: M | D19: ATRIBUÍDO SÃO PAULO | E19: 45,51 | F19: CAIXA REFERENCIAL
A20: 97154 | B20: ASSENTAMENTO DE TUBO DE FERRO FUNDIDO PARA REDE DE ÁGUA, DN 900 MM, JUNTA ELÁSTICA, INSTALADO EM LOCAL COM NÍVEL ALTO DE INTERFERÊNCIAS (NÃO INCLUI FORNECIMENTO). AF_11/2017 | C20: M | D20: ATRIBUÍDO SÃO PAULO | E20: 50,56 | F20: CAIXA REFERENCIAL
A21: 97155 | B21: ASSENTAMENTO DE TUBO DE FERRO FUNDIDO PARA REDE DE ÁGUA, DN 1000 MM, JUNTA ELÁSTICA, INSTALADO EM LOCAL COM NÍVEL ALTO DE INTERFERÊNCIAS (NÃO INCLUI FORNECIMENTO). AF_11/2017 | C21: M | D21: ATRIBUÍDO SÃO PAULO | E21: 55,62 | F21: CAIXA REFERENCIAL
A22: 97156 | B22: ASSENTAMENTO DE TUBO DE FERRO FUNDIDO PARA REDE DE ÁGUA, DN 1200 MM, JUNTA ELÁSTICA, INSTALADO EM LOCAL COM NÍVEL ALTO DE INTERFERÊNCIAS (NÃO INCLUI FORNECIMENTO). AF_11/2017 | C22: M | D22: ATRIBUÍDO SÃO PAULO | E22: 66,10 | F22: CAIXA REFERENCIAL
A23: 97157 | B23: ASSENTAMENTO DE TUBO DE FERRO FUNDIDO PARA REDE DE ÁGUA, DN 80 MM, JUNTA ELÁSTICA, INSTALADO EM LOCAL COM NÍVEL BAIXO DE INTERFERÊNCIAS (NÃO INCLUI FORNECIMENTO). AF_11/2017 | C23: M | D23: ATRIBUÍDO SÃO PAULO | E23: 4,78 | F23: CAIXA REFERENCIAL
A24: 97158 | B24: ASSENTAMENTO DE TUBO DE FERRO FUNDIDO PARA REDE DE ÁGUA, DN 100 MM, JUNTA ELÁSTICA, INSTALADO EM LOCAL COM NÍVEL BAIXO DE INTERFERÊNCIAS (NÃO INCLUI FORNECIMENTO). AF_11/2017 | C24: M | D24: ATRIBUÍDO SÃO PAULO | E24: 5,34 | F24: CAIXA REFERENCIAL
A25: 97159 | B25: ASSENTAMENTO DE TUBO DE FERRO FUNDIDO PARA REDE DE ÁGUA, DN 150 MM, JUNTA ELÁSTICA, INSTALADO EM LOCAL COM NÍVEL BAIXO DE INTERFERÊNCIAS (NÃO INCLUI FORNECIMENTO). AF_11/2017 | C25: M | D25: ATRIBUÍDO SÃO PAULO | E25: 6,74 | F25: CAIXA REFERENCIAL
A26: 97160 | B26: ASSENTAMENTO DE TUBO DE FERRO FUNDIDO PARA REDE DE ÁGUA, DN 200 MM, JUNTA ELÁSTICA, INSTALADO EM LOCAL COM NÍVEL BAIXO DE INTERFERÊNCIAS (NÃO INCLUI FORNECIMENTO). AF_11/2017 | C26: M | D26: ATRIBUÍDO SÃO PAULO | E26: 8,13 | F26: CAIXA REFERENCIAL
A27: 97161 | B27: ASSENTAMENTO DE TUBO DE FERRO FUNDIDO PARA REDE DE ÁGUA, DN 250 MM, JUNTA ELÁSTICA, INSTALADO EM LOCAL COM NÍVEL BAIXO DE INTERFERÊNCIAS (NÃO INCLUI FORNECIMENTO). AF_11/2017 | C27: M | D27: ATRIBUÍDO SÃO PAULO | E27: 9,56 | F27: CAIXA REFERENCIAL
A28: 97162 | B28: ASSENTAMENTO DE TUBO DE FERRO FUNDIDO PARA REDE DE ÁGUA, DN 300 MM, JUNTA ELÁSTICA, INSTALADO EM LOCAL COM NÍVEL BAIXO DE INTERFERÊNCIAS (NÃO INCLUI FORNECIMENTO). AF_11/2017 | C28: M | D28: ATRIBUÍDO SÃO PAULO | E28: 10,95 | F28: CAIXA REFERENCIAL
A29: 97163 | B29: ASSENTAMENTO DE TUBO DE FERRO FUNDIDO PARA REDE DE ÁGUA, DN 350 MM, JUNTA ELÁSTICA, INSTALADO EM LOCAL COM NÍVEL BAIXO DE INTERFERÊNCIAS (NÃO INCLUI FORNECIMENTO). AF_11/2017 | C29: M | D29: ATRIBUÍDO SÃO PAULO | E29: 12,37 | F29: CAIXA REFERENCIAL
A30: 97164 | B30: ASSENTAMENTO DE TUBO DE FERRO FUNDIDO PARA REDE DE ÁGUA, DN 400 MM, JUNTA ELÁSTICA, INSTALADO EM LOCAL COM NÍVEL BAIXO DE INTERFERÊNCIAS (NÃO INCLUI FORNECIMENTO). AF_11/2017 | C30: M | D30: ATRIBUÍDO SÃO PAULO | E30: 13,78 | F30: CAIXA REFERENCIAL
A31: 97165 | B31: ASSENTAMENTO DE TUBO DE FERRO FUNDIDO PARA REDE DE ÁGUA, DN 450 MM, JUNTA ELÁSTICA, INSTALADO EM LOCAL COM NÍVEL BAIXO DE INTERFERÊNCIAS (NÃO INCLUI FORNECIMENTO). AF_11/2017 | C31: M | D31: ATRIBUÍDO SÃO PAULO | E31: 15,22 | F31: CAIXA REFERENCIAL
A32: 97166 | B32: ASSENTAMENTO DE TUBO DE FERRO FUNDIDO PARA REDE DE ÁGUA, DN 500 MM, JUNTA ELÁSTICA, INSTALADO EM LOCAL COM NÍVEL BAIXO DE INTERFERÊNCIAS (NÃO INCLUI FORNECIMENTO). AF_11/2017 | C32: M | D32: ATRIBUÍDO SÃO PAULO | E32: 18,54 | F32: CAIXA REFERENCIAL
A33: 97167 | B33: ASSENTAMENTO DE TUBO DE FERRO FUNDIDO PARA REDE DE ÁGUA, DN 600 MM, JUNTA ELÁSTICA, INSTALADO EM LOCAL COM NÍVEL BAIXO DE INTERFERÊNCIAS (NÃO INCLUI FORNECIMENTO). AF_11/2017 | C33: M | D33: ATRIBUÍDO SÃO PAULO | E33: 21,68 | F33: CAIXA REFERENCIAL
A34: 97168 | B34: ASSENTAMENTO DE TUBO DE FERRO FUNDIDO PARA REDE DE ÁGUA, DN 700 MM, JUNTA ELÁSTICA, INSTALADO EM LOCAL COM NÍVEL BAIXO DE INTERFERÊNCIAS (NÃO INCLUI FORNECIMENTO). AF_11/2017 | C34: M | D34: ATRIBUÍDO SÃO PAULO | E34: 24,59 | F34: CAIXA REFERENCIAL
A35: 97169 | B35: ASSENTAMENTO DE TUBO DE FERRO FUNDIDO PARA REDE DE ÁGUA, DN 800 MM, JUNTA ELÁSTICA, INSTALADO EM LOCAL COM NÍVEL BAIXO DE INTERFERÊNCIAS (NÃO INCLUI FORNECIMENTO). AF_11/2017 | C35: M | D35: ATRIBUÍDO SÃO PAULO | E35: 27,65 | F35: CAIXA REFERENCIAL
A36: 97170 | B36: ASSENTAMENTO DE TUBO DE FERRO FUNDIDO PARA REDE DE ÁGUA, DN 900 MM, JUNTA ELÁSTICA, INSTALADO EM LOCAL COM NÍVEL BAIXO DE INTERFERÊNCIAS (NÃO INCLUI FORNECIMENTO). AF_11/2017 | C36: M | D36: ATRIBUÍDO SÃO PAULO | E36: 30,72 | F36: CAIXA REFERENCIAL
A37: 97171 | B37: ASSENTAMENTO DE TUBO DE FERRO FUNDIDO PARA REDE DE ÁGUA, DN 1000 MM, JUNTA ELÁSTICA, INSTALADO EM LOCAL COM NÍVEL BAIXO DE INTERFERÊNCIAS (NÃO INCLUI FORNECIMENTO). AF_11/2017 | C37: M | D37: ATRIBUÍDO SÃO PAULO | E37: 33,81 | F37: CAIXA REFERENCIAL
A38: 97172 | B38: ASSENTAMENTO DE TUBO DE FERRO FUNDIDO PARA REDE DE ÁGUA, DN 1200 MM, JUNTA ELÁSTICA, INSTALADO EM LOCAL COM NÍVEL BAIXO DE INTERFERÊNCIAS (NÃO INCLUI FORNECIMENTO). AF_11/2017 | C38: M | D38: ATRIBUÍDO SÃO PAULO | E38: 40,34 | F38: CAIXA REFERENCIAL
A39: 97173 | B39: ASSENTAMENTO DE TUBO DE AÇO CARBONO PARA REDE DE ÁGUA, DN 600 MM (24), JUNTA SOLDADA, INSTALADO EM LOCAL COM NÍVEL ALTO DE INTERFERÊNCIAS (NÃO INCLUI FORNECIMENTO). AF_11/2017 | C39: M | D39: ATRIBUÍDO SÃO PAULO | E39: 30,68 | F39: CAIXA REFERENCIAL
A40: 97174 | B40: ASSENTAMENTO DE TUBO DE AÇO CARBONO PARA REDE DE ÁGUA, DN 700 MM (28), JUNTA SOLDADA, INSTALADO EM LOCAL COM NÍVEL ALTO DE INTERFERÊNCIAS (NÃO INCLUI FORNECIMENTO). AF_11/2017 | C40: M | D40: ATRIBUÍDO SÃO PAULO | E40: 35,43 | F40: CAIXA REFERENCIAL
A41: 97175 | B41: ASSENTAMENTO DE TUBO DE AÇO CARBONO PARA REDE DE ÁGUA, DN 800 MM (32), JUNTA SOLDADA, INSTALADO EM LOCAL COM NÍVEL ALTO DE INTERFERÊNCIAS (NÃO INCLUI FORNECIMENTO). AF_11/2017 | C41: M | D41: ATRIBUÍDO SÃO PAULO | E41: 40,20 | F41: CAIXA REFERENCIAL
A42: 97176 | B42: ASSENTAMENTO DE TUBO DE AÇO CARBONO PARA REDE DE ÁGUA, DN 900 MM (36), JUNTA SOLDADA, INSTALADO EM LOCAL COM NÍVEL ALTO DE INTERFERÊNCIAS (NÃO INCLUI FORNECIMENTO). AF_11/2017 | C42: M | D42: ATRIBUÍDO SÃO PAULO | E42: 44,97 | F42: CAIXA REFERENCIAL
A43: 97177 | B43: ASSENTAMENTO DE TUBO DE AÇO CARBONO PARA REDE DE ÁGUA, DN 1000 MM (40) OU DN 1100 MM (44), JUNTA SOLDADA, INSTALADO EM LOCAL COM NÍVEL ALTO DE INTERFERÊNCIAS (NÃO INCLUI FORNECIMENTO). AF_11/2017 | C43: M | D43: ATRIBUÍDO SÃO PAULO | E43: 54,52 | F43: CAIXA REFERENCIAL
A44: 97178 | B44: ASSENTAMENTO DE TUBO DE AÇO CARBONO PARA REDE DE ÁGUA, DN 1200 MM (48) OU DN 1300 MM (52), JUNTA SOLDADA, INSTALADO EM LOCAL COM NÍVEL ALTO DE INTERFERÊNCIAS (NÃO INCLUI FORNECIMENTO). AF_11/2017 | C44: M | D44: ATRIBUÍDO SÃO PAULO | E44: 64,05 | F44: CAIXA REFERENCIAL
A45: 97179 | B45: ASSENTAMENTO DE TUBO DE AÇO CARBONO PARA REDE DE ÁGUA, DN 1400 MM (56'') OU DN 1500 MM (60), JUNTA SOLDADA, INSTALADO EM LOCAL COM NÍVEL ALTO DE INTERFERÊNCIAS (NÃO INCLUI FORNECIMENTO). AF_11/2017 | C45: M | D45: ATRIBUÍDO SÃO PAULO | E45: 73,60 | F45: CAIXA REFERENCIAL
A46: 97180 | B46: ASSENTAMENTO DE TUBO DE AÇO CARBONO PARA REDE DE ÁGUA, DN 1600 MM (64) OU DN 1700 MM (68), JUNTA SOLDADA, INSTALADO EM LOCAL COM NÍVEL ALTO DE INTERFERÊNCIAS (NÃO INCLUI FORNECIMENTO). AF_11/2017 | C46: M | D46: ATRIBUÍDO SÃO PAULO | E46: 83,14 | F46: CAIXA REFERENCIAL
A47: 97181 | B47: ASSENTAMENTO DE TUBO DE AÇO CARBONO PARA REDE DE ÁGUA, DN 1800 MM (72) OU DN 1900 MM (76), JUNTA SOLDADA, INSTALADO EM LOCAL COM NÍVEL ALTO DE INTERFERÊNCIAS (NÃO INCLUI FORNECIMENTO). AF_11/2017 | C47: M | D47: ATRIBUÍDO SÃO PAULO | E47: 95,99 | F47: CAIXA REFERENCIAL
A48: 97182 | B48: ASSENTAMENTO DE TUBO DE AÇO CARBONO PARA REDE DE ÁGUA, DN 2000 MM (80) OU DN 2100 MM (84), JUNTA SOLDADA, INSTALADO EM LOCAL COM NÍVEL ALTO DE INTERFERÊNCIAS (NÃO INCLUI FORNECIMENTO). AF_11/2017 | C48: M | D48: ATRIBUÍDO SÃO PAULO | E48: 105,89 | F48: CAIXA REFERENCIAL
A49: 97183 | B49: ASSENTAMENTO DE TUBO DE AÇO CARBONO PARA REDE DE ÁGUA, DN 600 MM (24), JUNTA SOLDADA, INSTALADO EM LOCAL COM NÍVEL BAIXO DE INTERFERÊNCIAS (NÃO INCLUI FORNECIMENTO). AF_11/2017 | C49: M | D49: ATRIBUÍDO SÃO PAULO | E49: 24,44 | F49: CAIXA REFERENCIAL
A50: 97184 | B50: ASSENTAMENTO DE TUBO DE AÇO CARBONO PARA REDE DE ÁGUA, DN 700 MM (28), JUNTA SOLDADA, INSTALADO EM LOCAL COM NÍVEL BAIXO DE INTERFERÊNCIAS (NÃO INCLUI FORNECIMENTO). AF_11/2017 | C50: M | D50: ATRIBUÍDO SÃO PAULO | E50: 28,30 | F50: CAIXA REFERENCIAL
A51: 97185 | B51: ASSENTAMENTO DE TUBO DE AÇO CARBONO PARA REDE DE ÁGUA, DN 800 MM (32), JUNTA SOLDADA, INSTALADO EM LOCAL COM NÍVEL BAIXO DE INTERFERÊNCIAS (NÃO INCLUI FORNECIMENTO). AF_11/2017 | C51: M | D51: ATRIBUÍDO SÃO PAULO | E51: 32,16 | F51: CAIXA REFERENCIAL
A52: 97186 | B52: ASSENTAMENTO DE TUBO DE AÇO CARBONO PARA REDE DE ÁGUA, DN 900 MM (36), JUNTA SOLDADA, INSTALADO EM LOCAL COM NÍVEL BAIXO DE INTERFERÊNCIAS (NÃO INCLUI FORNECIMENTO). AF_11/2017 | C52: M | D52: ATRIBUÍDO SÃO PAULO | E52: 36,04 | F52: CAIXA REFERENCIAL
A53: 97187 | B53: ASSENTAMENTO DE TUBO DE AÇO CARBONO PARA REDE DE ÁGUA, DN 1000 MM (40 ) OU DN 1100 MM (44 ), JUNTA SOLDADA, INSTALADO EM LOCAL COM NÍVEL BAIXO DE INTERFERÊNCIAS (NÃO INCLUI FORNECIMENTO). AF_11/2017 | C53: M | D53: ATRIBUÍDO SÃO PAULO | E53: 43,76 | F53: CAIXA REFERENCIAL
A54: 97188 | B54: ASSENTAMENTO DE TUBO DE AÇO CARBONO PARA REDE DE ÁGUA, DN 1200 MM (48) OU DN 1300 MM (52), JUNTA SOLDADA, INSTALADO EM LOCAL COM NÍVEL BAIXO DE INTERFERÊNCIAS (NÃO INCLUI FORNECIMENTO). AF_11/2017 | C54: M | D54: ATRIBUÍDO SÃO PAULO | E54: 51,49 | F54: CAIXA REFERENCIAL
A55: 97189 | B55: ASSENTAMENTO DE TUBO DE AÇO CARBONO PARA REDE DE ÁGUA, DN 1400 MM (56'') OU DN 1500 MM (60), JUNTA SOLDADA, INSTALADO EM LOCAL COM NÍVEL BAIXO DE INTERFERÊNCIAS (NÃO INCLUI FORNECIMENTO). AF_11/2017 | C55: M | D55: ATRIBUÍDO SÃO PAULO | E55: 59,22 | F55: CAIXA REFERENCIAL
A56: 97190 | B56: ASSENTAMENTO DE TUBO DE AÇO CARBONO PARA REDE DE ÁGUA, DN 1600 MM (64) OU DN 1700 MM (68), JUNTA SOLDADA, INSTALADO EM LOCAL COM NÍVEL BAIXO DE INTERFERÊNCIAS (NÃO INCLUI FORNECIMENTO). AF_11/2017 | C56: M | D56: ATRIBUÍDO SÃO PAULO | E56: 66,96 | F56: CAIXA REFERENCIAL
A57: 97191 | B57: ASSENTAMENTO DE TUBO DE AÇO CARBONO PARA REDE DE ÁGUA, DN 1800 MM (72) OU DN 1900 MM (76), JUNTA SOLDADA, INSTALADO EM LOCAL COM NÍVEL BAIXO DE INTERFERÊNCIAS (NÃO INCLUI FORNECIMENTO). AF_11/2017 | C57: M | D57: ATRIBUÍDO SÃO PAULO | E57: 77,18 | F57: CAIXA REFERENCIAL
A58: 97192 | B58: ASSENTAMENTO DE TUBO DE AÇO CARBONO PARA REDE DE ÁGUA, DN 2000 MM (80) OU DN 2100 MM (84), JUNTA SOLDADA, INSTALADO EM LOCAL COM NÍVEL BAIXO DE INTERFERÊNCIAS (NÃO INCLUI FORNECIMENTO). AF_11/2017 | C58: M | D58: ATRIBUÍDO SÃO PAULO | E58: 85,19 | F58: CAIXA REFERENCIAL
A59: 90694 | B59: TUBO DE PVC PARA REDE COLETORA DE ESGOTO DE PAREDE MACIÇA, DN 100 MM, JUNTA ELÁSTICA - FORNECIMENTO E ASSENTAMENTO. AF_01/2021 | C59: M | D59: ATRIBUÍDO SÃO PAULO | E59: 42,33 | F59: CAIXA REFERENCIAL
A60: 90695 | B60: TUBO DE PVC PARA REDE COLETORA DE ESGOTO DE PAREDE MACIÇA, DN 150 MM, JUNTA ELÁSTICA - FORNECIMENTO E ASSENTAMENTO. AF_01/2021 | C60: M | D60: ATRIBUÍDO SÃO PAULO | E60: 87,77 | F60: CAIXA REFERENCIAL
A61: 90696 | B61: TUBO DE PVC PARA REDE COLETORA DE ESGOTO DE PAREDE MACIÇA, DN 200 MM, JUNTA ELÁSTICA - FORNECIMENTO E ASSENTAMENTO. AF_01/2021 | C61: M | D61: ATRIBUÍDO SÃO PAULO | E61: 130,26 | F61: CAIXA REFERENCIAL
A62: 90697 | B62: TUBO DE PVC PARA REDE COLETORA DE ESGOTO DE PAREDE MACIÇA, DN 250 MM, JUNTA ELÁSTICA - FORNECIMENTO E ASSENTAMENTO. AF_01/2021 | C62: M | D62: ATRIBUÍDO SÃO PAULO | E62: 219,25 | F62: CAIXA REFERENCIAL
A63: 90698 | B63: TUBO DE PVC PARA REDE COLETORA DE ESGOTO DE PAREDE MACIÇA, DN 300 MM, JUNTA ELÁSTICA, FORNECIMENTO E ASSENTAMENTO. AF_01/2021 | C63: M | D63: ATRIBUÍDO SÃO PAULO | E63: 351,30 | F63: CAIXA REFERENCIAL
A64: 90699 | B64: TUBO DE PVC PARA REDE COLETORA DE ESGOTO DE PAREDE MACIÇA, DN 350 MM, JUNTA ELÁSTICA - FORNECIMENTO E ASSENTAMENTO. AF_01/2021 | C64: M | D64: ATRIBUÍDO SÃO PAULO | E64: 434,28 | F64: CAIXA REFERENCIAL
A65: 90700 | B65: TUBO DE PVC PARA REDE COLETORA DE ESGOTO DE PAREDE MACIÇA, DN 400 MM, JUNTA ELÁSTICA FORNECIMENTO E ASSENTAMENTO. AF_01/2021 | C65: M | D65: ATRIBUÍDO SÃO PAULO | E65: 562,14 | F65: CAIXA REFERENCIAL
A66: 90701 | B66: TUBO DE PVC CORRUGADO DE DUPLA PAREDE PARA REDE COLETORA DE ESGOTO, DN 150 MM, JUNTA ELÁSTICA - FORNECIMENTO E ASSENTAMENTO. AF_01/2021 | C66: M | D66: ATRIBUÍDO SÃO PAULO | E66: 71,69 | F66: CAIXA REFERENCIAL
A67: 90702 | B67: TUBO DE PVC CORRUGADO DE DUPLA PAREDE PARA REDE COLETORA DE ESGOTO, DN 200 MM, JUNTA ELÁSTICA - FORNECIMENTO E ASSENTAMENTO. AF_01/2021 | C67: M | D67: ATRIBUÍDO SÃO PAULO | E67: 113,96 | F67: CAIXA REFERENCIAL
A68: 90703 | B68: TUBO DE PVC CORRUGADO DE DUPLA PAREDE PARA REDE COLETORA DE ESGOTO, DN 250 MM, JUNTA ELÁSTICA - FORNECIMENTO E ASSENTAMENTO. AF_01/2021 | C68: M | D68: ATRIBUÍDO SÃO PAULO | E68: 186,43 | F68: CAIXA REFERENCIAL
A69: 90704 | B69: TUBO DE PVC CORRUGADO DE DUPLA PAREDE PARA REDE COLETORA DE ESGOTO, DN 300 MM, JUNTA ELÁSTICA - FORNECIMENTO E ASSENTAMENTO. AF_01/2021 | C69: M | D69: ATRIBUÍDO SÃO PAULO | E69: 257,73 | F69: CAIXA REFERENCIAL
A70: 90705 | B70: TUBO DE PVC CORRUGADO DE DUPLA PAREDE PARA REDE COLETORA DE ESGOTO, DN 350 MM, JUNTA ELÁSTICA - FORNECIMENTO E ASSENTAMENTO. AF_01/2021 | C70: M | D70: ATRIBUÍDO SÃO PAULO | E70: 362,38 | F70: CAIXA REFERENCIAL
A71: 90706 | B71: TUBO DE PVC CORRUGADO DE DUPLA PAREDE PARA REDE COLETORA DE ESGOTO, DN 400 MM, JUNTA ELÁSTICA - FORNECIMENTO E ASSENTAMENTO. AF_01/2021 | C71: M | D71: ATRIBUÍDO SÃO PAULO | E71: 422,37 | F71: CAIXA REFERENCIAL
A72: 90708 | B72: TUBO DE PEAD CORRUGADO DE DUPLA PAREDE PARA REDE COLETORA DE ESGOTO, DN 600 MM, JUNTA ELÁSTICA INTEGRADA - FORNECIMENTO E ASSENTAMENTO. AF_01/2021 | C72: M | D72: ATRIBUÍDO SÃO PAULO | E72: 1.191,73 | F72: CAIXA REFERENCIAL
A73: 90724 | B73: JUNTA ARGAMASSADA ENTRE TUBO DN 100 MM E O POÇO DE VISITA/ CAIXA DE CONCRETO OU ALVENARIA EM REDES DE ESGOTO. AF_01/2021 | C73: UN | D73: COEFICIENTE DE REPRESENTATIVIDADE | E73: 24,12 | F73: CAIXA REFERENCIAL
A74: 90725 | B74: JUNTA ARGAMASSADA ENTRE TUBO DN 150 MM E O POÇO DE VISITA/ CAIXA DE CONCRETO OU ALVENARIA EM REDES DE ESGOTO. AF_01/2021 | C74: UN | D74: COEFICIENTE DE REPRESENTATIVIDADE | E74: 29,66 | F74: CAIXA REFERENCIAL
A75: 90726 | B75: JUNTA ARGAMASSADA ENTRE TUBO DN 200 MM E O POÇO/ CAIXA DE CONCRETO OU ALVENARIA EM REDES DE ESGOTO. AF_01/2021 | C75: UN | D75: COEFICIENTE DE REPRESENTATIVIDADE | E75: 35,24 | F75: CAIXA REFERENCIAL
A76: 90727 | B76: JUNTA ARGAMASSADA ENTRE TUBO DN 250 MM E O POÇO DE VISITA/ CAIXA DE CONCRETO OU ALVENARIA EM REDES DE ESGOTO. AF_01/2021 | C76: UN | D76: COEFICIENTE DE REPRESENTATIVIDADE | E76: 40,78 | F76: CAIXA REFERENCIAL
A77: 90728 | B77: JUNTA ARGAMASSADA ENTRE TUBO DN 300 MM E O POÇO DE VISITA/ CAIXA DE CONCRETO OU ALVENARIA EM REDES DE ESGOTO. AF_01/2021 | C77: UN | D77: COEFICIENTE DE REPRESENTATIVIDADE | E77: 46,30 | F77: CAIXA REFERENCIAL
A78: 90729 | B78: JUNTA ARGAMASSADA ENTRE TUBO DN 350 MM E O POÇO DE VISITA/ CAIXA DE CONCRETO OU ALVENARIA EM REDES DE ESGOTO. AF_01/2021 | C78: UN | D78: COEFICIENTE DE REPRESENTATIVIDADE | E78: 51,83 | F78: CAIXA REFERENCIAL
A79: 90730 | B79: JUNTA ARGAMASSADA ENTRE TUBO DN 400 MM E O POÇO DE VISITA/ CAIXA DE CONCRETO OU ALVENARIA EM REDES DE ESGOTO. AF_01/2021 | C79: UN | D79: COEFICIENTE DE REPRESENTATIVIDADE | E79: 57,35 | F79: CAIXA REFERENCIAL
A80: 90731 | B80: JUNTA ARGAMASSADA ENTRE TUBO DN 450 MM E O POÇO DE VISITA/ CAIXA DE CONCRETO OU ALVENARIA EM REDES DE ESGOTO. AF_01/2021 | C80: UN | D80: COEFICIENTE DE REPRESENTATIVIDADE | E80: 62,89 | F80: CAIXA REFERENCIAL
A81: 90732 | B81: JUNTA ARGAMASSADA ENTRE TUBO DN 600 MM E O POÇO DE VISITA/ CAIXA DE CONCRETO OU ALVENARIA EM REDES DE ESGOTO. AF_01/2021 | C81: UN | D81: COEFICIENTE DE REPRESENTATIVIDADE | E81: 79,48 | F81: CAIXA REFERENCIAL
A82: 90733 | B82: ASSENTAMENTO DE TUBO DE PVC PARA REDE COLETORA DE ESGOTO DE PAREDE MACIÇA, DN 100 MM, JUNTA ELÁSTICA (NÃO INCLUI FORNECIMENTO). AF_01/2021 | C82: M | D82: COEFICIENTE DE REPRESENTATIVIDADE | E82: 3,43 | F82: CAIXA REFERENCIAL
A83: 90734 | B83: ASSENTAMENTO DE TUBO DE PVC PARA REDE COLETORA DE ESGOTO DE PAREDE MACIÇA, DN 150 MM, JUNTA ELÁSTICA, (NÃO INCLUI FORNECIMENTO). AF_01/2021 | C83: M | D83: COEFICIENTE DE REPRESENTATIVIDADE | E83: 4,05 | F83: CAIXA REFERENCIAL
A84: 90735 | B84: ASSENTAMENTO DE TUBO DE PVC PARA REDE COLETORA DE ESGOTO DE PAREDE MACIÇA, DN 200 MM, JUNTA ELÁSTICA (NÃO INCLUI FORNECIMENTO). AF_01/2021 | C84: M | D84: COEFICIENTE DE REPRESENTATIVIDADE | E84: 4,69 | F84: CAIXA REFERENCIAL
A85: 90736 | B85: ASSENTAMENTO DE TUBO DE PVC PARA REDE COLETORA DE ESGOTO DE PAREDE MACIÇA, DN 250 MM, JUNTA ELÁSTICA (NÃO INCLUI FORNECIMENTO). AF_01/2021 | C85: M | D85: COEFICIENTE DE REPRESENTATIVIDADE | E85: 5,32 | F85: CAIXA REFERENCIAL
A86: 90737 | B86: ASSENTAMENTO DE TUBO DE PVC PARA REDE COLETORA DE ESGOTO DE PAREDE MACIÇA, DN 300 MM, JUNTA ELÁSTICA (NÃO INCLUI FORNECIMENTO). AF_01/2021 | C86: M | D86: COEFICIENTE DE REPRESENTATIVIDADE | E86: 5,95 | F86: CAIXA REFERENCIAL
A87: 90738 | B87: ASSENTAMENTO DE TUBO DE PVC PARA REDE COLETORA DE ESGOTO DE PAREDE MACIÇA, DN 350 MM, JUNTA ELÁSTICA (NÃO INCLUI FORNECIMENTO). AF_01/2021 | C87: M | D87: COEFICIENTE DE REPRESENTATIVIDADE | E87: 6,59 | F87: CAIXA REFERENCIAL
A88: 90739 | B88: ASSENTAMENTO DE TUBO DE PVC PARA REDE COLETORA DE ESGOTO DE PAREDE MACIÇA, DN 400 MM, JUNTA ELÁSTICA (NÃO INCLUI FORNECIMENTO). AF_01/2021 | C88: M | D88: ATRIBUÍDO SÃO PAULO | E88: 8,29 | F88: CAIXA REFERENCIAL
A89: 90740 | B89: ASSENTAMENTO DE TUBO DE PVC CORRUGADO DE DUPLA PAREDE PARA REDE COLETORA DE ESGOTO, DN 150 MM, JUNTA ELÁSTICA (NÃO INCLUI FORNECIMENTO). AF_01/2021 | C89: M | D89: COEFICIENTE DE REPRESENTATIVIDADE | E89: 4,52 | F89: CAIXA REFERENCIAL
A90: 90741 | B90: ASSENTAMENTO DE TUBO DE PVC CORRUGADO DE DUPLA PAREDE PARA REDE COLETORA DE ESGOTO, DN 200 MM, JUNTA ELÁSTICA (NÃO INCLUI FORNECIMENTO). AF_01/2021 | C90: M | D90: COEFICIENTE DE REPRESENTATIVIDADE | E90: 5,15 | F90: CAIXA REFERENCIAL
A91: 90742 | B91: ASSENTAMENTO DE TUBO DE PVC CORRUGADO DE DUPLA PAREDE PARA REDE COLETORA DE ESGOTO, DN 250 MM, JUNTA ELÁSTICA (NÃO INCLUI FORNECIMENTO). AF_01/2021 | C91: M | D91: COEFICIENTE DE REPRESENTATIVIDADE | E91: 5,78 | F91: CAIXA REFERENCIAL
A92: 90743 | B92: ASSENTAMENTO DE TUBO DE PVC CORRUGADO DE DUPLA PAREDE PARA REDE COLETORA DE ESGOTO, DN 300 MM, JUNTA ELÁSTICA (NÃO INCLUI FORNECIMENTO). AF_01/2021 | C92: M | D92: COEFICIENTE DE REPRESENTATIVIDADE | E92: 6,42 | F92: CAIXA REFERENCIAL
A93: 90744 | B93: ASSENTAMENTO DE TUBO DE PVC CORRUGADO DE DUPLA PAREDE PARA REDE COLETORA DE ESGOTO, DN 350 MM, JUNTA ELÁSTICA (NÃO INCLUI FORNECIMENTO). AF_01/2021 | C93: M | D93: COEFICIENTE DE REPRESENTATIVIDADE | E93: 7,06 | F93: CAIXA REFERENCIAL
A94: 90745 | B94: ASSENTAMENTO DE TUBO DE PVC CORRUGADO DE DUPLA PAREDE PARA REDE COLETORA DE ESGOTO, DN 400 MM, JUNTA ELÁSTICA (NÃO INCLUI FORNECIMENTO). AF_01/2021 | C94: M | D94: ATRIBUÍDO SÃO PAULO | E94: 9,24 | F94: CAIXA REFERENCIAL
A95: 90746 | B95: ASSENTAMENTO DE TUBO DE PEAD CORRUGADO DE DUPLA PAREDE PARA REDE COLETORA DE ESGOTO, DN 450 MM, JUNTA ELÁSTICA INTEGRADA (NÃO INCLUI FORNECIMENTO). AF_01/2021 | C95: M | D95: COEFICIENTE DE REPRESENTATIVIDADE | E95: 3,70 | F95: CAIXA REFERENCIAL
A96: 90747 | B96: ASSENTAMENTO DE TUBO DE PEAD CORRUGADO DE DUPLA PAREDE PARA REDE COLETORA DE ESGOTO, DN 600 MM, JUNTA ELÁSTICA INTEGRADA (NÃO INCLUI FORNECIMENTO). AF_01/2021 | C96: M | D96: ATRIBUÍDO SÃO PAULO | E96: 14,69 | F96: CAIXA REFERENCIAL
A97: 94869 | B97: TUBO DE PEAD CORRUGADO DE DUPLA PAREDE PARA REDE COLETORA DE ESGOTO, DN 250 MM, JUNTA ELÁSTICA INTEGRADA - FORNECIMENTO E ASSENTAMENTO. AF_01/2021 | C97: M | D97: ATRIBUÍDO SÃO PAULO | E97: 242,87 | F97: CAIXA REFERENCIAL
A98: 94870 | B98: ASSENTAMENTO DE TUBO DE PEAD CORRUGADO DE DUPLA PAREDE PARA REDE COLETORA DE ESGOTO, DN 250 MM, JUNTA ELÁSTICA INTEGRADA (NÃO INCLUI FORNECIMENTO). AF_01/2021 | C98: M | D98: COEFICIENTE DE REPRESENTATIVIDADE | E98: 1,78 | F98: CAIXA REFERENCIAL
A99: 94871 | B99: TUBO DE PEAD CORRUGADO DE DUPLA PAREDE PARA REDE COLETORA DE ESGOTO, DN 300 MM, JUNTA ELÁSTICA INTEGRADA - FORNECIMENTO E ASSENTAMENTO. AF_01/2021 | C99: M | D99: ATRIBUÍDO SÃO PAULO | E99: 287,67 | F99: CAIXA REFERENCIAL
A100: 94872 | B100: ASSENTAMENTO DE TUBO DE PEAD CORRUGADO DE DUPLA PAREDE PARA REDE COLETORA DE ESGOTO, DN 300 MM, JUNTA ELÁSTICA INTEGRADA (NÃO INCLUI FORNECIMENTO). AF_01/2021 | C100: M | D100: COEFICIENTE DE REPRESENTATIVIDADE | E100: 2,53 | F100: CAIXA REFERENCIAL
A101: 94875 | B101: TUBO DE PEAD CORRUGADO DE DUPLA PAREDE PARA REDE COLETORA DE ESGOTO, DN 800 MM, JUNTA ELÁSTICA INTEGRADA - FORNECIMENTO E ASSENTAMENTO. AF_01/2021 | C101: M | D101: ATRIBUÍDO SÃO PAULO | E101: 1.683,44 | F101: CAIXA REFERENCIAL
A102: 94876 | B102: ASSENTAMENTO DE TUBO DE PEAD CORRUGADO DE DUPLA PAREDE PARA REDE COLETORA DE ESGOTO, DN 800 MM, JUNTA ELÁSTICA INTEGRADA (NÃO INCLUI FORNECIMENTO). AF_01/2021 | C102: M | D102: ATRIBUÍDO SÃO PAULO | E102: 24,64 | F102: CAIXA REFERENCIAL
A103: 94878 | B103: ASSENTAMENTO DE TUBO DE PEAD CORRUGADO DE DUPLA PAREDE PARA REDE COLETORA DE ESGOTO, DN 900 MM, JUNTA ELÁSTICA INTEGRADA (NÃO INCLUI FORNECIMENTO). AF_01/2021 | C103: M | D103: ATRIBUÍDO SÃO PAULO | E103: 28,49 | F103: CAIXA REFERENCIAL
A104: 94879 | B104: TUBO DE PEAD CORRUGADO DE DUPLA PAREDE PARA REDE COLETORA DE ESGOTO, DN 1000 MM, JUNTA ELÁSTICA INTEGRADA - FORNECIMENTO E ASSENTAMENTO. AF_01/2021 | C104: M | D104: ATRIBUÍDO SÃO PAULO | E104: 2.241,57 | F104: CAIXA REFERENCIAL
A105: 94880 | B105: ASSENTAMENTO DE TUBO DE PEAD CORRUGADO DE DUPLA PAREDE PARA REDE COLETORA DE ESGOTO, DN 1000 MM, JUNTA ELÁSTICA INTEGRADA (NÃO INCLUI FORNECIMENTO). AF_01/2021 | C105: M | D105: ATRIBUÍDO SÃO PAULO | E105: 36,76 | F105: CAIXA REFERENCIAL
A106: 94881 | B106: TUBO DE PEAD CORRUGADO DE DUPLA PAREDE PARA REDE COLETORA DE ESGOTO, DN 1200 MM, JUNTA ELÁSTICA INTEGRADA - FORNECIMENTO E ASSENTAMENTO. AF_01/2021 | C106: M | D106: ATRIBUÍDO SÃO PAULO | E106: 3.503,15 | F106: CAIXA REFERENCIAL
A107: 94882 | B107: ASSENTAMENTO DE TUBO DE PEAD CORRUGADO DE DUPLA PAREDE PARA REDE COLETORA DE ESGOTO, DN 1200 MM, JUNTA ELÁSTICA INTEGRADA (NÃO INCLUI FORNECIMENTO). AF_01/2021 | C107: M | D107: ATRIBUÍDO SÃO PAULO | E107: 42,72 | F107: CAIXA REFERENCIAL
A108: 94884 | B108: ASSENTAMENTO DE TUBO DE PEAD CORRUGADO DE DUPLA PAREDE PARA REDE COLETORA DE ESGOTO, DN 1500 MM, JUNTA ELÁSTICA INTEGRADA (NÃO INCLUI FORNECIMENTO). AF_01/2021 | C108: M | D108: ATRIBUÍDO SÃO PAULO | E108: 54,79 | F108: CAIXA REFERENCIAL
A109: 97121 | B109: ASSENTAMENTO DE TUBO DE PVC PBA PARA REDE DE ÁGUA, DN 50 MM, JUNTA ELÁSTICA INTEGRADA, INSTALADO EM LOCAL COM NÍVEL ALTO DE INTERFERÊNCIAS (NÃO INCLUI FORNECIMENTO). AF_11/2017 | C109: M | D109: COEFICIENTE DE REPRESENTATIVIDADE | E109: 2,02 | F109: CAIXA REFERENCIAL
A110: 97122 | B110: ASSENTAMENTO DE TUBO DE PVC PBA PARA REDE DE ÁGUA, DN 75 MM, JUNTA ELÁSTICA INTEGRADA, INSTALADO EM LOCAL COM NÍVEL ALTO DE INTERFERÊNCIAS (NÃO INCLUI FORNECIMENTO). AF_11/2017 | C110: M | D110: COEFICIENTE DE REPRESENTATIVIDADE | E110: 2,81 | F110: CAIXA REFERENCIAL
A111: 97123 | B111: ASSENTAMENTO DE TUBO DE PVC PBA PARA REDE DE ÁGUA, DN 100 MM, JUNTA ELÁSTICA INTEGRADA, INSTALADO EM LOCAL COM NÍVEL ALTO DE INTERFERÊNCIAS (NÃO INCLUI FORNECIMENTO). AF_11/2017 | C111: M | D111: COEFICIENTE DE REPRESENTATIVIDADE | E111: 3,57 | F111: CAIXA REFERENCIAL
A112: 97124 | B112: ASSENTAMENTO DE TUBO DE PVC PBA PARA REDE DE ÁGUA, DN 50 MM, JUNTA ELÁSTICA INTEGRADA, INSTALADO EM LOCAL COM NÍVEL BAIXO DE INTERFERÊNCIAS (NÃO INCLUI FORNECIMENTO). AF_11/2017 | C112: M | D112: COEFICIENTE DE REPRESENTATIVIDADE | E112: 0,88 | F112: CAIXA REFERENCIAL
A113: 97125 | B113: ASSENTAMENTO DE TUBO DE PVC PBA PARA REDE DE ÁGUA, DN 75 MM, JUNTA ELÁSTICA INTEGRADA, INSTALADO EM LOCAL COM NÍVEL BAIXO DE INTERFERÊNCIAS (NÃO INCLUI FORNECIMENTO). AF_11/2017 | C113: M | D113: COEFICIENTE DE REPRESENTATIVIDADE | E113: 1,26 | F113: CAIXA REFERENCIAL
A114: 97126 | B114: ASSENTAMENTO DE TUBO DE PVC PBA PARA REDE DE ÁGUA, DN 100 MM, JUNTA ELÁSTICA INTEGRADA, INSTALADO EM LOCAL COM NÍVEL BAIXO DE INTERFERÊNCIAS (NÃO INCLUI FORNECIMENTO). AF_11/2017 | C114: M | D114: COEFICIENTE DE REPRESENTATIVIDADE | E114: 1,60 | F114: CAIXA REFERENCIAL
A115: 102264 | B115: TUBO DE PVC BRANCO PARA REDE COLETORA DE ESGOTO CONDOMINIAL DE PAREDE MACIÇA, DN 100 MM, JUNTA ELÁSTICA - FORNECIMENTO E ASSENTAMENTO. AF_01/2021 | C115: M | D115: COEFICIENTE DE REPRESENTATIVIDADE | E115: 24,73 | F115: CAIXA REFERENCIAL
A116: 102265 | B116: JUNTA ARGAMASSADA ENTRE TUBO DN 800 MM E O POÇO DE VISITA/ CAIXA DE CONCRETO OU ALVENARIA EM REDES DE ESGOTO. AF_01/2021 | C116: UN | D116: COEFICIENTE DE REPRESENTATIVIDADE | E116: 101,60 | F116: CAIXA REFERENCIAL
A117: 102266 | B117: JUNTA ARGAMASSADA ENTRE TUBO DN 900 MM E O POÇO DE VISITA/ CAIXA DE CONCRETO OU ALVENARIA EM REDES DE ESGOTO. AF_01/2021 | C117: UN | D117: COEFICIENTE DE REPRESENTATIVIDADE | E117: 112,65 | F117: CAIXA REFERENCIAL
A118: 102267 | B118: JUNTA ARGAMASSADA ENTRE TUBO DN 1000 MM E O POÇO DE VISITA/ CAIXA DE CONCRETO OU ALVENARIA EM REDES DE ESGOTO. AF_01/2021 | C118: UN | D118: COEFICIENTE DE REPRESENTATIVIDADE | E118: 129,29 | F118: CAIXA REFERENCIAL
A119: 102268 | B119: JUNTA ARGAMASSADA ENTRE TUBO DN 1200 MM E O POÇO DE VISITA/ CAIXA DE CONCRETO OU ALVENARIA EM REDES DE ESGOTO. AF_01/2021 | C119: UN | D119: COEFICIENTE DE REPRESENTATIVIDADE | E119: 145,88 | F119: CAIXA REFERENCIAL
A120: 102269 | B120: JUNTA ARGAMASSADA ENTRE TUBO DN 1500 MM E O POÇO DE VISITA/ CAIXA DE CONCRETO OU ALVENARIA EM REDES DE ESGOTO. AF_01/2021 | C120: UN | D120: COEFICIENTE DE REPRESENTATIVIDADE | E120: 179,05 | F120: CAIXA REFERENCIAL
A121: 92833 | B121: TUBO DE CONCRETO PARA REDES COLETORAS DE ESGOTO SANITÁRIO, DIÂMETRO DE 300 MM, JUNTA ELÁSTICA, INSTALADO EM LOCAL COM BAIXO NÍVEL DE INTERFERÊNCIAS - FORNECIMENTO E ASSENTAMENTO. AF_12/2015 | C121: M | D121: ATRIBUÍDO SÃO PAULO | E121: 204,32 | F121: CAIXA REFERENCIAL
A122: 92834 | B122: ASSENTAMENTO DE TUBO DE CONCRETO PARA REDES COLETORAS DE ESGOTO SANITÁRIO, DIÂMETRO DE 300 MM, JUNTA ELÁSTICA, INSTALADO EM LOCAL COM BAIXO NÍVEL DE INTERFERÊNCIAS (NÃO INCLUI FORNECIMENTO). AF_12/2015 | C122: M | D122: ATRIBUÍDO SÃO PAULO | E122: 7,84 | F122: CAIXA REFERENCIAL
A123: 92835 | B123: TUBO DE CONCRETO PARA REDES COLETORAS DE ESGOTO SANITÁRIO, DIÂMETRO DE 400 MM, JUNTA ELÁSTICA, INSTALADO EM LOCAL COM BAIXO NÍVEL DE INTERFERÊNCIAS - FORNECIMENTO E ASSENTAMENTO. AF_12/2015 | C123: M | D123: ATRIBUÍDO SÃO PAULO | E123: 219,19 | F123: CAIXA REFERENCIAL
A124: 92836 | B124: ASSENTAMENTO DE TUBO DE CONCRETO PARA REDES COLETORAS DE ESGOTO SANITÁRIO, DIÂMETRO DE 400 MM, JUNTA ELÁSTICA, INSTALADO EM LOCAL COM BAIXO NÍVEL DE INTERFERÊNCIAS (NÃO INCLUI FORNECIMENTO). AF_12/2015 | C124: M | D124: ATRIBUÍDO SÃO PAULO | E124: 10,01 | F124: CAIXA REFERENCIAL
A125: 92837 | B125: TUBO DE CONCRETO PARA REDES COLETORAS DE ESGOTO SANITÁRIO, DIÂMETRO DE 500 MM, JUNTA ELÁSTICA, INSTALADO EM LOCAL COM BAIXO NÍVEL DE INTERFERÊNCIAS - FORNECIMENTO E ASSENTAMENTO. AF_12/2015 | C125: M | D125: ATRIBUÍDO SÃO PAULO | E125: 365,57 | F125: CAIXA REFERENCIAL
A126: 92838 | B126: ASSENTAMENTO DE TUBO DE CONCRETO PARA REDES COLETORAS DE ESGOTO SANITÁRIO, DIÂMETRO DE 500 MM, JUNTA ELÁSTICA, INSTALADO EM LOCAL COM BAIXO NÍVEL DE INTERFERÊNCIAS (NÃO INCLUI FORNECIMENTO). AF_12/2015 | C126: M | D126: ATRIBUÍDO SÃO PAULO | E126: 12,03 | F126: CAIXA REFERENCIAL
A127: 92839 | B127: TUBO DE CONCRETO PARA REDES COLETORAS DE ESGOTO SANITÁRIO, DIÂMETRO DE 600 MM, JUNTA ELÁSTICA, INSTALADO EM LOCAL COM BAIXO NÍVEL DE INTERFERÊNCIAS - FORNECIMENTO E ASSENTAMENTO. AF_12/2015 | C127: M | D127: ATRIBUÍDO SÃO PAULO | E127: 448,07 | F127: CAIXA REFERENCIAL
A128: 92840 | B128: ASSENTAMENTO DE TUBO DE CONCRETO PARA REDES COLETORAS DE ESGOTO SANITÁRIO, DIÂMETRO DE 600 MM, JUNTA ELÁSTICA, INSTALADO EM LOCAL COM BAIXO NÍVEL DE INTERFERÊNCIAS (NÃO INCLUI FORNECIMENTO). AF_12/2015 | C128: M | D128: ATRIBUÍDO SÃO PAULO | E128: 14,24 | F128: CAIXA REFERENCIAL
A129: 92841 | B129: TUBO DE CONCRETO PARA REDES COLETORAS DE ESGOTO SANITÁRIO, DIÂMETRO DE 700 MM, JUNTA ELÁSTICA, INSTALADO EM LOCAL COM BAIXO NÍVEL DE INTERFERÊNCIAS - FORNECIMENTO E ASSENTAMENTO. AF_12/2015 | C129: M | D129: ATRIBUÍDO SÃO PAULO | E129: 560,58 | F129: CAIXA REFERENCIAL
A130: 92842 | B130: ASSENTAMENTO DE TUBO DE CONCRETO PARA REDES COLETORAS DE ESGOTO SANITÁRIO, DIÂMETRO DE 700 MM, JUNTA ELÁSTICA, INSTALADO EM LOCAL COM BAIXO NÍVEL DE INTERFERÊNCIAS (NÃO INCLUI FORNECIMENTO). AF_12/2015 | C130: M | D130: ATRIBUÍDO SÃO PAULO | E130: 16,27 | F130: CAIXA REFERENCIAL
A131: 92843 | B131: TUBO DE CONCRETO PARA REDES COLETORAS DE ESGOTO SANITÁRIO, DIÂMETRO DE 800 MM, JUNTA ELÁSTICA, INSTALADO EM LOCAL COM BAIXO NÍVEL DE INTERFERÊNCIAS - FORNECIMENTO E ASSENTAMENTO. AF_12/2015 | C131: M | D131: ATRIBUÍDO SÃO PAULO | E131: 597,25 | F131: CAIXA REFERENCIAL
A132: 92844 | B132: ASSENTAMENTO DE TUBO DE CONCRETO PARA REDES COLETORAS DE ESGOTO SANITÁRIO, DIÂMETRO DE 800 MM, JUNTA ELÁSTICA, INSTALADO EM LOCAL COM BAIXO NÍVEL DE INTERFERÊNCIAS (NÃO INCLUI FORNECIMENTO). AF_12/2015 | C132: M | D132: ATRIBUÍDO SÃO PAULO | E132: 18,48 | F132: CAIXA REFERENCIAL
A133: 92845 | B133: TUBO DE CONCRETO PARA REDES COLETORAS DE ESGOTO SANITÁRIO, DIÂMETRO DE 900 MM, JUNTA ELÁSTICA, INSTALADO EM LOCAL COM BAIXO NÍVEL DE INTERFERÊNCIAS - FORNECIMENTO E ASSENTAMENTO. AF_12/2015 | C133: M | D133: ATRIBUÍDO SÃO PAULO | E133: 829,53 | F133: CAIXA REFERENCIAL
A134: 92846 | B134: ASSENTAMENTO DE TUBO DE CONCRETO PARA REDES COLETORAS DE ESGOTO SANITÁRIO, DIÂMETRO DE 900 MM, JUNTA ELÁSTICA, INSTALADO EM LOCAL COM BAIXO NÍVEL DE INTERFERÊNCIAS (NÃO INCLUI FORNECIMENTO). AF_12/2015 | C134: M | D134: ATRIBUÍDO SÃO PAULO | E134: 20,49 | F134: CAIXA REFERENCIAL
A135: 92847 | B135: TUBO DE CONCRETO PARA REDES COLETORAS DE ESGOTO SANITÁRIO, DIÂMETRO DE 1000 MM, JUNTA ELÁSTICA, INSTALADO EM LOCAL COM BAIXO NÍVEL DE INTERFERÊNCIAS - FORNECIMENTO E ASSENTAMENTO. AF_12/2015 | C135: M | D135: ATRIBUÍDO SÃO PAULO | E135: 867,00 | F135: CAIXA REFERENCIAL
A136: 92848 | B136: ASSENTAMENTO DE TUBO DE CONCRETO PARA REDES COLETORAS DE ESGOTO SANITÁRIO, DIÂMETRO DE 1000 MM, JUNTA ELÁSTICA, INSTALADO EM LOCAL COM BAIXO NÍVEL DE INTERFERÊNCIAS (NÃO INCLUI FORNECIMENTO). AF_12/2015 | C136: M | D136: ATRIBUÍDO SÃO PAULO | E136: 22,74 | F136: CAIXA REFERENCIAL
A137: 92849 | B137: TUBO DE CONCRETO PARA REDES COLETORAS DE ESGOTO SANITÁRIO, DIÂMETRO DE 300 MM, JUNTA ELÁSTICA, INSTALADO EM LOCAL COM ALTO NÍVEL DE INTERFERÊNCIAS - FORNECIMENTO E ASSENTAMENTO. AF_12/2015 | C137: M | D137: ATRIBUÍDO SÃO PAULO | E137: 210,96 | F137: CAIXA REFERENCIAL
A138: 92850 | B138: ASSENTAMENTO DE TUBO DE CONCRETO PARA REDES COLETORAS DE ESGOTO SANITÁRIO, DIÂMETRO DE 300 MM, JUNTA ELÁSTICA, INSTALADO EM LOCAL COM ALTO NÍVEL DE INTERFERÊNCIAS (NÃO INCLUI FORNECIMENTO). AF_12/2015 | C138: M | D138: ATRIBUÍDO SÃO PAULO | E138: 14,83 | F138: CAIXA REFERENCIAL
A139: 92851 | B139: TUBO DE CONCRETO PARA REDES COLETORAS DE ESGOTO SANITÁRIO, DIÂMETRO DE 400 MM, JUNTA ELÁSTICA, INSTALADO EM LOCAL COM ALTO NÍVEL DE INTERFERÊNCIAS - FORNECIMENTO E ASSENTAMENTO. AF_12/2015 | C139: M | D139: ATRIBUÍDO SÃO PAULO | E139: 227,48 | F139: CAIXA REFERENCIAL
A140: 92852 | B140: ASSENTAMENTO DE TUBO DE CONCRETO PARA REDES COLETORAS DE ESGOTO SANITÁRIO, DIÂMETRO DE 400 MM, JUNTA ELÁSTICA, INSTALADO EM LOCAL COM ALTO NÍVEL DE INTERFERÊNCIAS (NÃO INCLUI FORNECIMENTO). AF_12/2015 | C140: M | D140: ATRIBUÍDO SÃO PAULO | E140: 18,74 | F140: CAIXA REFERENCIAL
A141: 92853 | B141: TUBO DE CONCRETO PARA REDES COLETORAS DE ESGOTO SANITÁRIO, DIÂMETRO DE 500 MM, JUNTA ELÁSTICA, INSTALADO EM LOCAL COM ALTO NÍVEL DE INTERFERÊNCIAS - FORNECIMENTO E ASSENTAMENTO. AF_12/2015 | C141: M | D141: ATRIBUÍDO SÃO PAULO | E141: 375,83 | F141: CAIXA REFERENCIAL
A142: 92854 | B142: ASSENTAMENTO DE TUBO DE CONCRETO PARA REDES COLETORAS DE ESGOTO SANITÁRIO, DIÂMETRO DE 500 MM, JUNTA ELÁSTICA, INSTALADO EM LOCAL COM ALTO NÍVEL DE INTERFERÊNCIAS (NÃO INCLUI FORNECIMENTO). AF_12/2015 | C142: M | D142: ATRIBUÍDO SÃO PAULO | E142: 22,82 | F142: CAIXA REFERENCIAL
A143: 92855 | B143: TUBO DE CONCRETO PARA REDES COLETORAS DE ESGOTO SANITÁRIO, DIÂMETRO DE 600 MM, JUNTA ELÁSTICA, INSTALADO EM LOCAL COM ALTO NÍVEL DE INTERFERÊNCIAS - FORNECIMENTO E ASSENTAMENTO. AF_12/2015 | C143: M | D143: ATRIBUÍDO SÃO PAULO | E143: 460,10 | F143: CAIXA REFERENCIAL
A144: 92856 | B144: ASSENTAMENTO DE TUBO DE CONCRETO PARA REDES COLETORAS DE ESGOTO SANITÁRIO, DIÂMETRO DE 600 MM, JUNTA ELÁSTICA, INSTALADO EM LOCAL COM ALTO NÍVEL DE INTERFERÊNCIAS (NÃO INCLUI FORNECIMENTO). AF_12/2015 | C144: M | D144: ATRIBUÍDO SÃO PAULO | E144: 26,90 | F144: CAIXA REFERENCIAL
A145: 92857 | B145: TUBO DE CONCRETO PARA REDES COLETORAS DE ESGOTO SANITÁRIO, DIÂMETRO DE 700 MM, JUNTA ELÁSTICA, INSTALADO EM LOCAL COM ALTO NÍVEL DE INTERFERÊNCIAS - FORNECIMENTO E ASSENTAMENTO. AF_12/2015 | C145: M | D145: ATRIBUÍDO SÃO PAULO | E145: 574,37 | F145: CAIXA REFERENCIAL
A146: 92858 | B146: ASSENTAMENTO DE TUBO DE CONCRETO PARA REDES COLETORAS DE ESGOTO SANITÁRIO, DIÂMETRO DE 700 MM, JUNTA ELÁSTICA, INSTALADO EM LOCAL COM ALTO NÍVEL DE INTERFERÊNCIAS (NÃO INCLUI FORNECIMENTO). AF_12/2015 | C146: M | D146: ATRIBUÍDO SÃO PAULO | E146: 30,78 | F146: CAIXA REFERENCIAL
A147: 92859 | B147: TUBO DE CONCRETO PARA REDES COLETORAS DE ESGOTO SANITÁRIO, DIÂMETRO DE 800 MM, JUNTA ELÁSTICA, INSTALADO EM LOCAL COM ALTO NÍVEL DE INTERFERÊNCIAS - FORNECIMENTO E ASSENTAMENTO. AF_12/2015 | C147: M | D147: ATRIBUÍDO SÃO PAULO | E147: 613,72 | F147: CAIXA REFERENCIAL
A148: 92860 | B148: ASSENTAMENTO DE TUBO DE CONCRETO PARA REDES COLETORAS DE ESGOTO SANITÁRIO, DIÂMETRO DE 800 MM, JUNTA ELÁSTICA, INSTALADO EM LOCAL COM ALTO NÍVEL DE INTERFERÊNCIAS (NÃO INCLUI FORNECIMENTO). AF_12/2015 | C148: M | D148: ATRIBUÍDO SÃO PAULO | E148: 34,95 | F148: CAIXA REFERENCIAL
A149: 92861 | B149: TUBO DE CONCRETO PARA REDES COLETORAS DE ESGOTO SANITÁRIO, DIÂMETRO DE 900 MM, JUNTA ELÁSTICA, INSTALADO EM LOCAL COM ALTO NÍVEL DE INTERFERÊNCIAS - FORNECIMENTO E ASSENTAMENTO. AF_12/2015 | C149: M | D149: ATRIBUÍDO SÃO PAULO | E149: 848,04 | F149: CAIXA REFERENCIAL
A150: 92862 | B150: ASSENTAMENTO DE TUBO DE CONCRETO PARA REDES COLETORAS DE ESGOTO SANITÁRIO, DIÂMETRO DE 900 MM, JUNTA ELÁSTICA, INSTALADO EM LOCAL COM ALTO NÍVEL DE INTERFERÊNCIAS (NÃO INCLUI FORNECIMENTO). AF_12/2015 | C150: M | D150: ATRIBUÍDO SÃO PAULO | E150: 39,00 | F150: CAIXA REFERENCIAL
A151: 92863 | B151: TUBO DE CONCRETO PARA REDES COLETORAS DE ESGOTO SANITÁRIO, DIÂMETRO DE 1000 MM, JUNTA ELÁSTICA, INSTALADO EM LOCAL COM ALTO NÍVEL DE INTERFERÊNCIAS - FORNECIMENTO E ASSENTAMENTO. AF_12/2015 | C151: M | D151: ATRIBUÍDO SÃO PAULO | E151: 886,33 | F151: CAIXA REFERENCIAL
A152: 92864 | B152: ASSENTAMENTO DE TUBO DE CONCRETO PARA REDES COLETORAS DE ESGOTO SANITÁRIO, DIÂMETRO DE 1000 MM, JUNTA ELÁSTICA, INSTALADO EM LOCAL COM ALTO NÍVEL DE INTERFERÊNCIAS (NÃO INCLUI FORNECIMENTO). AF_12/2015 | C152: M | D152: ATRIBUÍDO SÃO PAULO | E152: 43,08 | F152: CAIXA REFERENCIAL
